Workbook

Sheet Start
A10: SIPOC

Sheet SIPOC (hidden)
A1: SIPOC | B1: SUPPLIERS | C1: INPUTS | D1: PROCESS | F1: OUTPUTS | G1: CUSTOMERS
B2: Providers of the required resources | C2: Resources required by the process | D2: Top level description of the activity | F2: Deliverables from the process | G2: Anyone who receives a deliverable from the process
D3: Requirements | G3: Requirements
A6: The SIPOC helps you to identify all of the relevant elements of the project - especially the process outputs and the customers of the outputs so the voice of the customer can be captured. SIPOC is the starting point of the project it and helps to quickly capture the 'as is' state of the organisation and processes in question

Sheet 4Q (hidden)
A1: Execution Check List & Quadrant Gate Review Guide
C2: 4Q Project Name:
C4: Pre 4Q | F4: Q1 Measure | I4: Q2 Analyze | L4: Q3 Improve | O4: Q4 Sustain
A6: 1) Checklist can be used during each 4Q project as a reminder of actions needed. Print out large and have on the wall for progress reference. | C6: q | D6: Develop draft problem statement | F6: q | G6: Form the project team | I6: q | J6: Analyze variation | L6: q | M6: Team creative brainstorm solutions | O6: q | P6: Select control techniques (SPC)
I9: q | J9: Analyze waste
C11: q | D11: Take immediate containment action | F11: q | G11: SIPOC process map | L11: q | M11: Select optimum solutions | O11: q | P11: Standardize via documentation
I12: q | J12: Team brainstorm to identify root causes
F14: q | G14: Capture VOC & translate to CTQ
C16: q | D16: Identify initial project scope | L16: q | M16: Conduct pilot study (or Risk Analysis) | O16: q | P16: Develop control metrics (KPI's)
A17: 2) The Key Question guide can be used when moving between quadrants to ensure robust execution | I17: q | J17: Document root causes on Cause & Effect diagram
F19: q | G19: Stakeholder map
C21: q | D21: Create business case | L21: q | M21: Verify & validate improvements | O21: q | P21: Disengage old process
F22: q | G22: Communication & project plan
C24: q | D24: Determine SMART objectives | I24: q | J24: Select top 3-5 root causes
A26: 3) Print out the 2 page guide as double sided, short edge (top) binding & fold in thirds. | L26: q | M26: Develop 'to-be' process map | O26: q | P26: Monitor progress
F27: q | G27: Develop 'as-is' process map
C29: q | D29: Create project charter | I29: q | J29: Validate selected root causes as actual root causes | O29: q | P29: Validate improvements in process performance
L31: q | M31: Review stakeholder map & comms plan
F32: q | G32: Validate measurement system
C34: q | D34: Create and enter project white sheet into SMT
I36: q | J36: Project sponsor approval to proceed | L36: q | M36: Implementation business case (cost & benefits & solution plan | O36: q | P36: Share lessons learnt (organization memory, newsletters etc)
F37: q | G37: Develop data collection plan
C41: q | D41: Project sponsor approval to proceed
F42: q | G42: Collect data
O43: q | P43: Thank the team
F45: q | G45: Calculate baseline process performance | L45: q | M45: Project sponsor, process owner and budget holder approval to proceed
O46: q | P46: Celebrate success
O49: q | P49: Plan future activities
F50: q | G50: Revisit problem statement
O52: q | P52: Close project
L54: q | M54: Implement actions on solution plan
F55: q | G55: Project sponsor approval to proceed

Sheet 4QKeyQuestions (hidden)
A1: Key Questions for 4Q Quadrant Gate Reviews | C1: ABB OPEX 4Q | F1: ABB OPEX 4Q | I1: ABB OPEX 4Q
C3: Pre-4Q Quadrant Review | F3: Q1 Measure Continued | I3: Q2 Analyze Continued
I4: 3 | J4: Has the team conducted root cause analysis to identify potential causes (Output: fishbone / 5 Whys)?
C5: Key Questions | F5: 4 | G5: Has a high level project plan with scheduled reviews been prepared?
C8: 1 | D8: Are your top level organizational / functional issues identified?
A9: 2) The Key Question guide can be used when moving between quadrants to ensure robust execution
F10: 5 | G10: Has the 'as-is' process map been developed by the team? Check who was involved in this process.
I11: 4 | J11: What improvement targets can we set? What is the capability in the existing process for 'quick win' improvements?
C13: 2 | D13: Is the project linked to the strategic objectives of the organization?
F17: 6 | G17: What did the team learn from 'walking the process'?
A18: 3) Print out the 2 page guide as double sided, short edge (top) binding & fold in thirds. | C18: 3 | D18: Are potential opportunities and improvement projects identified? | I18: 5 | J18: Have the root cause(s) been verified?
I21: 6 | J21: Does the problem statement need revisiting based on latest knowledge?
F22: 7 | G22: Are the areas where you need to collect data identified?
C23: 4 | D23: Has the problem statement been developed?
I26: 7 | J26: Are you satisfied with the level of cooperation and support you are getting from other parts of your organization?
F27: 8 | G27: What type of data is available? How has it been collected?
C28: 5 | D28: How does this current problem impact on customers (internal & external), their critical requirements (CTQs) and the organization?
F32: 9 | G32: Has the baseline process capability been established?
I33: 8 | J33: What other actions or activities do you need to accelerate your progress?
C37: 6 | D37: Has the project been scoped by identifying the process boundaries? | F37: 10 | G37: What are your next steps?
I38: 9 | J38: Has a quadrant review taken place?
F40: 11 | G40: Are you satisfied with the level of cooperation and support you are getting?
I41: Q3 Improve Quadrant Review
C42: 7 | D42: What are the SMART objectives and improvement goals of the project?
F45: 12 | G45: What other actions or activities do you need to accelerate your progress? | I45: Key Questions
C47: 8 | D47: Are the results of these steps summarized in a project charter?
I48: 1 | J48: Has a team brainstorming session been conducted to identify possible improvement actions?
F50: 13 | G50: Has a quadrant review taken place?
C52: 9 | D52: Has a quadrant review taken place?
F53: Q2 Analze Quadrant Review
C55: Q1 Measure Quadrant Review | I55: 2 | J55: Have decision making tools (e.g. complexity vs. value matrix) been utilized to prioritize the solutions?
F57: Key Questions
C59: 1 | D59: Has a team been formulated with the key actors associated with the problem?
F60: 1 | G60: Have the team analyzed the waste in the process by using appropriate Lean techniques?
I62: 3 | J62: Has the future state process map been developed?
C64: 2 | D64: Have the key stakeholders in the project been identified?
F67: 2 | G67: Have the team analyzed the variation in the process using appropriate statistical techniques? | I67: 4 | J67: Has a pilot study been conducted?
C69: 3 | D69: Has a stakeholder communications plan been prepared?
I70: 5 | J70: If a pilot study is not appropriate (low volume process), has a risk assessment been performed (FMEA)?
C76: ABB OPEX 4Q | F76: ABB OPEX 4Q
C78: Q3 Improve Continued | F78: Q4 Sustain Continued
C82: 6 | D82: Is an implementation business case available (cost / benefit analysis)? | F82: 7 | G82: If the process owner was not leading the change, has he / she taken ownership of the new process?
C87: 7 | D87: Is an implmentation timing plan available & been agreed with all stakeholders?
F89: 8 | G89: Is the new process in control?
C92: 8 | D92: Has the implementation plan been communicated to the appropriate people? | F92: 9 | G92: Have lessons learned been captured to create a 'corporate memory'?
F97: 10 | G97: Have lessons learned been communicated to other functions & ABB Business Units?
C99: 9 | D99: Is there an ongoing review process with all stakeholders to monitor implementation?
F104: 11 | G104: What new tools have you learned?
C106: 10 | D106: Are you satisfied with the level of cooperation and support you are getting from other parts of your organization?
F107: 12 | G107: Are you satisfied with the level of cooperation and support you received? What should we do differently to support the next project?
C113: 11 | D113: What other actions or activities do you need to accelerate your progress?
F116: 13 | G116: Do you have any ideas for follow up projects?
C118: 12 | D118: Has a milestone review taken place?
C121: Q4 Sustain Quadrant Review | F121: 14 | G121: Have you thanked the team and celebrated the success?
C125: Key Questions
C128: 1 | D128: Have control techniques been applied (SPC, Visual management etc)? | F128: Further Information
F132: References
C133: 2 | D133: How will the process be monitored and controlled (KPIs / Charts etc)?
F135: ABB OPEX program:
C138: 3 | D138: Has baseline vs. improved performance been evaluated? | F138: Intranet Access: http://inside.abb.com/gf-go
F141: Program Management Office:
C143: 4 | D143: Have the old processes been disengaged and removed?
F144: Pekka Raudaskoski
F147: Alex Danci
C148: 5 | D148: Have all process changes been documented (SOPs, flowcharts)?

Sheet Charter (hidden)
A1: Project Charter
C3: 4Q Project Charter
C6: Project | D6: (Name of the Project)
C7: Div | D7: (Name of the Division)
C8: BU | D8: (Name of the Business Unit)
C9: Project Site | D9: (Location Address)
C11: Problem description | D11: Briefly describe the problem(s) the team is about to solve
C13: Problem goal | D13: Briefly state what results the project is going to deliver
C14: Major Assumption (optional) | D14: Specify if there are any major assumptions. eg. Production volume is 100 pcs/day
C16: Requirement (optional) | D16: Specify if there are any requirements. eg.All data should be retrieved from SAP system only
C18: Budget (optional) | D18: Please specify the budget estimate for the project
C20: Schedule | D20: Start date: | H20: End date:
C22: Project Team
C23: Role | D23: Name | H23: Title / Department
C24: Project Sponsor
C25: Project Leader
C26: Team Members

Sheet Glossary (hidden)
A1: Jump to:
A2: Key Word | B2: Description
A3: # | B3: Number
A4: %Contribution | B4: See Contribution.
A5: %Failure | B5: A measure of un-reliability. See also Failure.
A6: %GRR | B6: Measurement system study variation (sMS) divided by total variation (sTOTAL). Assesses data relative to total sample data spread irrespective of spec limits. Range: <10% = good, 10-20% = Acceptable, 20-30% = Marginal. Also known as: P/TV, %R&R, %Study Tolerance, %SV, Study Variation, Measruement Capability Index.
A7: %R&R | B7: Measurement system study variation (sMS) divided by total variation (sTOTAL). Assesses data relative to total sample data spread irrespective of spec limits. Range: <10% = good, 10-20% = Acceptable, 20-30% = Marginal. Also known as: P/TV, %R&R, %Study Tolerance, %SV, Study Variation, Measurement Capability Index.
A8: %Study Tolerance | B8: Measurement system study variation (sMS) divided by total variation (sTOTAL). Assesses data relative to total sample data spread irrespective of spec limits. Range: <10% = good, 10-20% = Acceptable, 20-30% = Marginal. Also known as: P/TV, %R&R, %Study Tolerance, %SV, Study Variation, Measruement Capability Index.
A9: %SV | B9: Measurement system study variation (sMS) divided by total variation (sTOTAL). Assesses data relative to total sample data spread irrespective of spec limits. Range: <10% = good, 10-20% = Acceptable, 20-30% = Marginal. Also known as: P/TV, %R&R, %Study Tolerance, %SV, Study Variation, Measruement Capability Index.
A10: %Tolerance | B10: Measurement System variation (5.15*sMS) divided by Tolerance. Also known as: %Tolerance, P/T, SV/Toler, Tolerance Ratio.
A11: %Variation | B11: Type 1 Gauge R & R capability. Data range divided by tolerance. %Variation = 6*Sgauge / TotalTolerance. For acceptance %Variation must be <=15%. %Variation in a Type 1 study is equivalent to %Tolerance in a Type 2 study. see also Study Variation, Total Variation, Random Variation, Assignable Variation.
A12: * | B12: 1. Multiplied by 2. An outlier on a box plot.
A13: ** | B13: To the power of. E.g. 3**2 means 3 squared. Alternative nomenclature: ^ (Caret), or superscript e.g. x2
A14: / | B14: Divide by
A15: ^ | B15: 1. The Caret accent on a letter 2. The circumflex accent on a letter e.g. ô 3. The Mode. E.g. x with a caret represents the Mode of the x values 4. To the power of. E.g. 3^2 means 3 squared. Alternative nomenclature: **, or superscript e.g. x**2 or x2
A16: ` | B16: 1. Bar or Overscore character 2. The Mean. E.g. X-Bar, R-Bar. The mean of those values. See X-Bar, T-Bar, L-Bar.
A17: `L | B17: See L-Bar.
A18: `T | B18: See T-Bar.
A19: `X | B19: See X-Bar.
A20: | | B20: Pipe. Symbol used in Minitab to indicate all permutaions of factors
A21: ~ | B21: 1. The Tilde accent on a letter 2. The Median. E.g. x with a tilde represents the Median of the x values
A22: 1 Sample Sign Test | B22: Non-parametric test equivalent to 1 Sample t-Test. Used in lieu of Wilcoxon test if distribution is non-symmetrical.
A23: 1 Sample t-test | B23: A t-Test comparing one sample with a fixed value. If data is non-normal use 1 Sample Sign Test or 1 Sample Wilcoxon Test.
A24: 1 sample Wilcoxon Test | B24: Non-parametric test equivalent to 1 Sample t-Test. Used when data is symmetrical. For non-symmetrical data use the 1 Sample Sign Test.
A25: 14 Management Principles | B25: See Demings 14 Management Principles.
A26: 1P | B26: Person/people - See 5M's & a P.
A27: 2 Sample t-test | B27: A t-Test comparing two samples of data. If data is non-normal use Mann-Whitney Test.
A28: 2 Variances | B28: A Hypothesis Test for assessing homogeneity of the variances of 2 samples.
A29: 2K Factorials | B29: A DOE where each factor has only two levels. This enables rapid early assessment of a large number of factors with relatively few runs. May be used to conribute to further more complex study. See also: Full Factorials, Fractional Factorials, Standard Order. Nomenclature: 2 = # Levels, K = # Factors. Step 1: State the Practical Problem Step 2: State the factors and levels of interest. Step 3: Select the appropriate sample size based on the effect you are trying to detect. Stat>Power&SampleSize>2Level Step 4: Create the Minitab experimental data sheet with the factors in their respective columns. Randomize the experimental runs in the data sheet. Conduct the experiment. Stat > DOE > Factorial> Create Factorial Design Step 5: Construct the ANOVA table for the full model: Stat>DOE>Factorial>Analyze-Graphs>EffectsPlots(normal/Pareto) Step 6: Review the ANOVA table and eliminate effects with p-values above .05. Remove these one at a time and then run the reduced model and plot the residual graphs for further analysis Stat>DOE>Factorial>Analyze-Graphs>EffectsPlots-Graphs>ResidualsPlots Step 7: Analyze the residual plots to ensure we have a model that fits Step 8: Investigate significant interactions (p-value < .05). Assess the significance of the highest order interactions first. For 3-way interactions unstack the data and analyze. Stat > DOE > Factorial> Factorial Plots > Interaction Plot Once the highest order interactions are interpreted, analyze the next set of lower order interactions. Step 9: Investigate the main effect of significant factors (p-value < .05) whose settings have not been determined by interaction analysis. Stat > DOE > Factorial> Factorial Plots > Main Effects Plot & Cube Plots Step 10: State the mathematical model obtained. If possible calculate the epsilon squared and determine the practical significance. Step 11: Translate the mathematical model into process terms and formulate conclusions and recommendations. Step 12: Replicate optimum conditions. Plan the next experiment or institutionalize the change.
A30: 2R's | B30: Random & Representative sampling
A31: 3.0SL | B31: The Upper 3 Sigma Limit. A former MiniTab nomenclature for Upper Control Limit.
A32: -3.0SL | B32: The Lower 3 Sigma Limit. A former MiniTab nomenclature for Lower Control Limit.
A33: 4M's an E & a P | B33: Another rendering of 5M's and a P.
A34: 5.15*Sigma | B34: Equivalent to range covering 99% of variance. See Gage R & R
A35: 5M's and a P | B35: Machine (Equipment), Method (Procedures), Measurement system, Materials, Mother Nature (Environment), People. Same as Fish Bone or Cause & Effect diagram. See also MEPEM.
A36: 5S | B36: Sorting, Storage, Shining, Standardise, Sustain. “5S Standards are the foundation that supports all the Phases of Lean Manufacturing.” The system can only be as strong as the foundation it is built on. The foundation of a production system is a CLEAN and SAFE work environment. It’s strength is contingent upon the employees/company committed to maintaining it. Derived from TPS Japanese: Japanese Literal Translation English Equivalent Seiri Clearing Up Sorting Seiton Organizing Storage Seiso Cleaning Shining Seketsu Standardizing Standardize Shitsuke Training & Discipline Sustaining See Sorting, Storage, Shining, Standardise, Sustain. See also Lean Manufacturing=5S>Visual Factory>Standardized Work>Kaizen>KanBan.
A37: 5Y's | B37: Ask the question "Why?" five times to peel the onion of causes down to root causes to address. See also Stair Stepping.
A38: 6 Pack | B38: See Capability Six Pack
A39: 6-Sigma | B39: 1. A problem solving methodology - To ensure sources of variation in manufacturing and business processes are objectively identified, quantified and controlled or eliminated. 2. Process Sigma Level 6 - I.E. 6 Std Deviations between mean & nearest spec limit. Equivalent to 3.4 DPMO = "Pretty Darn Good" Mike Cifaratta
A40: 7 Pack | B40: The full set of 7 QS-9000 standards and 2 supplements: QS-9000, QS-9000 QSA, APQP, PPAP, MSA, FMEA, SPC and TE Supplement with its' QSA-TE. Also known as the 9 Pack!
A41: 7 Sins of Muda | B41: Elimination of Waste. Muda = Japanese for Waste. See waste for the 7 areas of waste.
A42: 7-Step Method | B42: Process Mapping methodology: 1) Define the scope of the process the team needs to map. Start & Stop 2) Document all tasks or operations needed in the production of a “good” product or service 3) Document each task or operation above as value add or non value add. 4) List both internal and external Y's at each process step. 5) List both internal and external X's at each process step. 6) Classify all X's as one or more of : Controllable (C), Standard Operating Procedures (SOP), Noise (N) 7) Clearly identify all data collection points.
A43: 80:20 | B43: See Pareto Diagram
A44: 9 Pack | B44: The full set of 7 QS-9000 standards and 2 supplements: QS-9000, QS-9000 QSA, APQP, PPAP, MSA, FMEA, SPC and TE Supplement with its' QSA-TE. Also known as the QS-9000 7 Pack!
A45: a | B45: Greek letter Alpha. See Alpha value, Alpha Risk
A46: a Risk | B46: See ALPHA RISK.
A47: ABC Flowcharter | B47: Previous version of MicroGrafx iGrafx process mapping software
A48: ABSCISSA | B48: The horizontal axis of a graph. See also Ordinate
A49: Accelerated Testing | B49: Methods to accumulate large volumes of test data intended tp represent RWUP over a short period of time. It can be challenging to correlate accelerated conditions to RWUP.
A50: ACCEPTANCE REGION | B50: The region of values for which the null hypothesis is accepted;
A51: Accuracy | B51: Closeness of Mean to target. Measured as a bias from a true value. Improved through Calibration to remove measurement system bias. See also Precision.
A52: Actual Process Capability | B52: Same as Long Term Process Capability. Also known as Between Capability, Overall Capability.
A53: AD* | B53: Anderson-Darling test value of conformity of data to a distribution. The lower the A-Squared value the closer the conformity. Same as A-Squared value. See also P-Value.
A54: Alias | B54: The Alias structure identifies those main effects & interactions that are confounded in order to reduce the no of runs in a Fractional Factorial DOE. Same as Confounding.
A55: Alpha | B55: Greek Letter a.
A56: Alpha Level | B56: 1-(%Confidence). Nomenclature: a. E.g. a = 0.05 for 95% confidence. See also P-Value
A57: Alpha Risk | B57: The probability of accepting the alternate hypothesis when, in reality, the null hypothesis is true. See also Beta Risk
A58: Alternative Hypothesis | B58: A tentative explanation which indicates that an event does not follow a chance distribution; What we want to prove/disprove - the contrast to the null hypothesis. Nomenclature: HA.
A59: Analyse | B59: The Analyse phase of a DMAIC 6-Sigma project. This includes: Micro process map, quantify KPIV's & improvement opportunities, root cause andalysis & performance objectives.
A60: Analyse Phase | B60: Identify vital few X’s: Establish baseline capability for key output variables (y’s) To identify and manage high risk input variables (x’s) (e.g. FMEA) To reduce the number of process input variables (x’s) to a manageable number of critical variables (e.g. hypothesis testing, multi-vari studies and ANOVA techniques) Identify potential sources of variation To plan and document initial improvement activities
A61: Analysis of Means | B61: Analysis Of Means. Test to see if the means of two data samples are from the same population. Nomenclature: ANOM. See also ANOVA - Analysis of Variance.
A62: Analysis of Variance | B62: Test to see if the variances of two data samples are from the same population. See ANOVA. See also ANOM.
A63: And/Or Diagram | B63: An element of Structured Inventive Thinking (SIT). Part of the Particles Method.
A64: And/Or Tree | B64: An element of Structured Inventive Thinking (SIT). Part of the Particles Method.
A65: Anderson-Darling | B65: Test of conforminty of data to a statistical distribution e.g. Test for Normality or other goodness of fit. Expressed as A-Squared or AD* value or as P-Value (0-1).
A66: ANOM | B66: Analysis Of Means. Test to see if the means of two data samples are from the same population. See also ANOVA - Analysis of Variance.
A67: ANOVA | B67: Analysis of Variance studies - A wide range of statistical tools including support for Gage R&R and DOE. Steps include Main Effcts graphical representation, Normality & equal variance determination to support 1 and 2 way ANOVA analysis of means. Steps: Test normality; Test for Equal Variances, ANOVA (n-way according to no of factors), Assess P-Value for H0, assess e2 for extent to which variation is explained by model/factors. Handles multiple sample sets. See also Gage R & R, P/TV, ANOM, MANOVA. If data is non-normal use Kruskal-Wallis or Moods Median Test.
A68: APEL | B68: Assessment for Prior Learning & Experience
A69: Arbitrary Censoring | B69: In Reliability Testing: allowing for the intervals at which failure readings are taken . See also Right Censoring.
A70: ARR | B70: Analytical Reliability & Robustness. See also enCORE, SLAM, Auto-SLAM, QMC, DACE, EMARS.
A71: Array | B71: A matrix of values. See Balanced Array, Geometric Array, Non-Geometric Array, Inner Array, Outer Array, L8, L12.
A72: ASQC | B72: American Society for Quality Control
A73: A-Squared | B73: Anderson-Darling test value of conformity of data to a distribution. The lower the A-Squared value the closer the conformity. See also P-Value.
A74: Assessor Variation | B74: Assessor Variation in a Gage R&R study. Same as Reproducability. See also Equipment Variation.
A75: Assignable Cause | B75: A source of variation which is non-random; a change in the source (“Vital Few” variables) will produce a significant change of some magnitude in the response (dependent variable), e.g., a correlation exists; the change may be due to an intermittent in-phase effect or a constant cause system which may or may not be highly predictable; an assignable cause is often signalled by an excessive number of data points outside a control limit and/or a non-random pattern within the control limits; an unnatural source of variation; most often economical to eliminate. May be identifiable and correctable by the operator. Also known as Special Cause. See also Common / Random Cause.
A76: ASSIGNABLE VARIATIONS | B76: Variations in data which can be attributed to specific causes. See also Random Variation
A77: Attribute Control Charts | B77: Control Charts for attribute data. For constant sample size see: np Chart (# Defective Units), c Chart (# Defects/Non-conformities), For constant sample size see: p Chart (Proportion Defective), u Chart (Proportion Defects/Non-conformities).
A78: ATTRIBUTE DATA | B78: Numerical information at the nominal level; subdivision is not conceptually meaningful; data which represents the frequency of occurrence within some discrete category, e.g., 42 solder shorts.
A79: Attribute R & R | B79: The process for measuring the repeatability & reproducability of the value of an attribute
A80: AV | B80: Assessor Variation in a Gage R&R study. Same as Reproducability. See also Equipment Variation.
A81: Availability | B81: Proportion of total time that item is available for use. Availability = MTBF / (MTBF + MTTR). See also OEE, Performance Efficiency, Quality Yield.
A82: b | B82: 1. The Greek Letter Beta 2. Beta Risk 3. The Shape of the Weibull Distribution. 4. The Intercept (b0) The stress (b1) Coefficients of a Probit Analysis. 5. The slope of the Ideal Function: y=bM
A83: B Life | B83: Time at which x% of parts are expected to have failed. E.g. B5 Life = time at which 5% of parts have failed. Nomenclature originates in the Bearings industry and related to Bearing life expectancy.
A84: b Risk | B84: See BETA RISK.
A85: B/S | B85: Batch Sample
A86: B10 Life | B86: Time at which 10% of parts are expected to have failed
A87: B5 Life | B87: Time at which 5% of parts are expected to have failed
A88: Back To Mark | B88: A bolt torque measuring method by detorquing "Back to Mark": Mark the current position on the bolt and surround. Loosen bolt. Retighten "back to mark" Record torque needed to get back to original position. This is the most informative detorque reading. See also Crack On.
A89: BACKGROUND VARIABLES | B89: Variables which are of no experimental interest and are not held constant. Their effects are often assumed insignificant or negligible, or they are randomized to ensure that contamination of the primary response does not occur.
A90: Balanced ANOVA | B90: ANOVA on two columns of data of equal length. Where data is missing use GLM.
A91: Balanced Array | B91: For use in an Experiment the array of factors and levels must be Balanced. To satisfy this there must be: 1. Equal numbers of levels in each column 2. The Sum Product of each pair of columns equals zero (Taking levels as "+" & "-"). Balanced arrays may be Geometric or Non-Geometric Arrays.
A92: Balanced data | B92: A fully matching set with equal numbers of data values for all permutations of all factors. See also Cross Tabulation, Tally.
A93: Baldrige | B93: The Baldrige National Quality Program and the Malcolm Baldrige National Quality Award of the US National Institute of Standards and Technology (NIST). An endeavour to promote performance excellence among U.S. manufacturers, service companies, educational institutions, and health care providers; conducts outreach programs and recognizes performance excellence and quality achievement;
A94: Bartlett | B94: A form of f-Test for > 2 samples of data. Used for showing equal variances for normal data. Use Levene for non-normal data.
A95: Baseline | B95: The initial or starting value e.g. of the Process Capability or DPMO. A commonly used term in American English, less common in general usage in British English.
A96: Baseline Capability | B96: Starting Process capability. Before process improvements are made. Same as Zbench. May bes expressed as Short or long term capability. See also Final Capability, Baseline DPMO.
A97: Baseline DPMO | B97: The initial or starting value of the process DPMO. Also known as Initial DPMO. See DPMO. See also Baseline Capability.
A98: Basic Quality | B98: Musts: CTQ's which must be satisfied. Part of the Kano Model. See also Performance Quality, Excitement Quality.
A99: Bathtub Curve | B99: The sum of all reliability failures over time. Consists of the effects of Early life failures, Usefule life failures and Wear out failures.
A100: Bayes Analysis | B100: Conducting a reliability data analysis using an assumed shape and/or scale.
A101: Bench | B101: See ZBench. Same as Short Term Sigma Level & ZST
A102: Benchmarking | B102: Study & Indetification of best in class process elements across vehicle lines, competotors, related processes and other industry and research sources so as to maximise variability reduction and quality improvement. See also BIC, CAB Events.
A103: Beta | B103: Greek Letter b.
A104: Beta Risk | B104: The probability of accepting the null hypothesis when, in reality, the alternate hypothesis is true. Beta risk is the converse of Power. See also Alpha Risk.
A105: Between Capability | B105: Process Capability between subgroups or samples. The additional component of variability, which added to the Within/Potential/Short Term Process Capability determines Overall/Long Term Process Capability.
A106: Bias | B106: Distance between True Value and the observed value. The measure of Accuracy. See also Linearity, Mallow's C-p Value.
A107: BIC | B107: Best In Class - The highest quality level achievable in this class of process across current industry achievements. See also Benchmarking
A108: Big 7 | B108: Safety and 7 other key areas of Failure Effects in a PFMEA:- Breakdown, Setup & Adjustment, Idling/minor stoppages, Reduced Cycle, Start Up, Defective Parts, Tooling.
A109: Bimodal | B109: A statistical distribution which has two dominant peaks. This is visible on the baisic stats histogram graph. There is no commonly available standard test to reflect the significance of potential bimodal trends. See also Uni-Modal
A110: Binomial Distribution | B110: The distribution of a Binomial Response variable. I.e. one which has two possible outcomes: success & failure
A111: Binomial Response Variable | B111: A binomial response variable is an outcome variable that has only two possible outcomes. These outcomes are typically defined as a success or a failure. The distribution, or pattern, of these outcomes follows a binomial distribution.
A112: Black Belt | B112: A certified full time practicioner of 6-Sigma problem solving methodologies. Will deliver successful projects using the Breakthrough Strategy. Will train and mentor the local organization on Six Sigma. Mentored by a Master Black Belt. May train and/or be supported by Green Belts
A113: Block | B113: See Blocking Variables.
A114: Blocking Variables | B114: A relatively homogenous set of conditions within which different conditions of the primary variables are compared. Used to ensure that background variables do not contaminate the evaluation of primary variables. A Blocking Variable is a factor in an experiment that may have an undesired influence as a source of variability is called a “block. A block can be “lots” of material, operators, days, etc…, which are likely to produce experimental runs that are more homogenous within the block than between the blocks.” A blocking variable is generally one which is not thought to be a Critical Few X, but which may be introducing noise which we want to spread across the sampling rather than having it confound (mask) variation in a specific Critical X. The blocking factor is placed into the DOE in place of the highest level interaction which is usually insignificant. e.g. Put the blocking value in place of ABCD and do not then look for ABCD in the DOE. See also: Confounding.
A115: Bogey Testing | B115: Gather data by testing to a set no. of cycles / duration. Measure state at end of test period. A low cost data collection method gleaning limited data. Nomenclature said to originate from Golf where Bogey is one over par - maybe representing testing to one measure beyond specified life expectancy.
A116: Bonus Parts | B116: Surplus parts dropped of left in vehicle e.g. washers in door linings, potentially causing S&R or other TGW
A117: Boundary | B117: See Process Boundary
A118: Boundary Diagram | B118: A functional block diagram showing a procust/process and it's interfaces to: Assembly, Use, Service and other parts, subsystems and systems. Interfaces are described. A dotted line is then drawn around those elements and interfaces which are incluided in scope. Part of the FMEA process. See also Interface Matrix & P Diagram.
A119: Box Cox Transformation | B119: Means of transforming non-normal data to normal. Uses the equation W=Yl. E.g. W=Y2, W=Y-1i.e.1/Y. W=Y0.5 i.e.sq rt., W=Y0=Ln(Y) An alternative to transforming the data is to try the Weibull distribution.
A120: Box Plot | B120: A graphical representation of the spread of data like: --[.|]-- * Consists of whiskers at each end, being the initial & final 25% of the data. The box shows the 1st & 3rd quartiles of the data. The line within the box is the median. The mean may be shown as a dot within the box. Outliers beyond 1.5 * IQR are shown by asterix (*).
A121: Box-Behnken | B121: A form of Response Surface Method. See RSM.
A122: Bq Life | B122: Time at which q% of parts are expected to have failed. E.g. B5 Life = time at which 5% of parts have failed.
A123: C & E Chart | B123: Ambiguous reference to C & E Diagram or C & E Matrix
A124: C & E Diagram | B124: Cause & Effect diagram - Same as Fish Bone diagram
A125: C & E Matrix | B125: Cause & Effect matrix - Same as CT Matrix
A126: c Chart | B126: An attribute Run Chart for measuring Defects. A simple chart used to track the number of defects sampled (not the percent defective) assuming the sample size is constant. Requires a constant inspection sample size. See also u Chart.
A127: C CHARTS | B127: Charts which display the number of defects per sample.
A128: c2 | B128: See Chi Square.
A129: c2 | B129: May appear in place of c2 if the fonts have not been set right! Change the font of the 'c' to Symbol Font and apply Font Superscript to the '2' to get c2. See Chi-Square
A130: Calibration | B130: Processes to ensure the Accuracy of a tool or gauge.
A131: CAP | B131: 1. Change Acceleration Process - GE's change management methodology. Helps speed & sustain change. 2. Cause Action Prevention/Profit (VRT's reaction to out of control situation)
A132: Capability | B132: See Process capability. See also Sigma Level, Capability Assessment
A133: Capability Assessment | B133: Assessing capability to predict true quality levels for products. A guide to the product or process sigma level. See Process Capability. See also: Cp, CPK, Pp, Ppk.
A134: Capability Index | B134: Same as Long Term Process Capability. Also known as Between Capability, Overall Capability.
A135: Capability Six Pack | B135: A combined process capability report including: X-Bar & R Chart, Last 25 Subgroups, Capability Histogram, Normal probability plot and process tolerance capability plot.
A136: Cascading | B136: Breaking down high level factors to lower level factors (little x's)
A137: Categorical Variable | B137: A random variable whose value will be one of a limited number of categories in some specified variable.e.g. Day number, Shift, Operator number. As opposed to a Continuous Variable. May be used interchangeably with Discrete Variable
A138: Category | B138: See Distinct Category, Categorial Variable, Cat 'A', Cat '1'/'2'/'3'.
A139: CAUSALITY | B139: The principle that every change implies the operation of a cause. See X's
A140: CAUSATIVE | B140: Effective as a cause. See X's
A141: Cause | B141: That which produces an effect or brings about a change. An independant variable. See X's
A142: Cause & Effect Diagram | B142: A tool used to identify & organise possible causes of a problem. Same as fish bone diagram. Also known as Ishikawa, Fish or Herring Bone diagram or (in FMEA) Cause & Mode Diagram, "5M's and a P", MEPEM. See also X's, Y's
A143: Cause & Effect Matrix | B143: A Simple QFD (Quality Function Deployment) matrix to emphasize the importance of understanding the customer requirements. Method: 1. List the output variables (Y's) along the top section of the matrix. These are outputs which the team and / or the customer deem to be important. These may be a subset of the list of Y's identified on the process map. 2. Rank each output numerically using an arbitrary scale (possibly 1-10). The most important output receives the highest number. 3. Identify all potential inputs or causes (X's) that can impact the various Y's and list these along the left hand side of the matrix. 4. Numerically rate (correlate) the effect of each X on each Y within the body of the matrix. This is based on the experience of the team. 5. Use the totals column to analyze and prioritize where to focus your effort when creating the preliminary FMEA. NB: LH Column contains all potential causes. Top Rows contains all Customer CTQ's - not just the TGW and Warranty Claim headings; and their importance to the customer. Matrix elements are correlation measures (0-10) between the causes & the CTQ's.
A144: Cause & Mode Diagram | B144: The FMEA version of a Cause & Effect or Fish Bone Diagram. In FMEA the granularity of the analysis matches Failure Causes to Failure Modes. Only via them is the link established to Failure Effects.
A145: CC | B145: See Critical Characteristic.
A146: Cd | B146: Coefficient of Drag
A147: CDF | B147: See Cumulative Distribtion Function.
A148: Censoring | B148: In Reliability Testing: allowing for the effects of parts that have survived the test time - See Right Censoring; and allowing for the intervals at which failure readings are taken (Arbitrary Censoring).
A149: Center Points | B149: Centre points, midway between the Low and High values of a two level factor. This can be done to reduce the number of experimental runs needed by adding extra levels. There will only ever be one centre point - being the mid point of all factors. Reference to 'Number of Center Points' means number of repetitions of the same centre point. E.g. 3 factor 2 levels plus a center point needs 9 runs (2*2*2 + 1); 3 factor 3 levels needs 27 runs (3*3*3)
A150: Central Composite Design | B150: A common DOE matrix used to establish as valid second order model. Formed by adding Star Points to a standard Cube/Square+Centre Point design.
A151: Central Limit Theorem | B151: Technique to reduce sample variation by processing the means of set of samples. Reduces variation by 1 / Sq Rt n where n is the number of samples in each agregated set. Method: Add sub-group no col; Unstack using sub-group as subscript; Calc row means from unstacked data.
A152: CENTRAL TENDENCY | B152: Numerical average, e.g., mean, median, and mode; centre line on a statistical process control chart.
A153: CENTRE LINE | B153: The line on a statistical process control chart which represents the characteristic’s central tendency.
A154: Centre Points | B154: See Center Points.
A155: CFMEA | B155: Concept FMEA. Application of FMEA to solution independent concept design . See also DFMEA, PFMEA, MFMEA.
A156: Cg | B156: Capability of Gauge. Type 1 Gauge R & R capability. Cg = TotalTolerance*0.15 / 6*Sgauge. %Variation = 15 / Cg. For acceptance %Variation must be <=15%.
A157: Change Management | B157: Stages in the management of intruducing change form a Transition Curve including: Shock, Denial, Awareness, Acceptance, Testing, Search for Meaning, Integration.
A158: Character Graph | B158: A Minitab function to produce graphs for text only output devices by plotting the required graph using only text characters instead of lines/vectors etc. Very useful if you only have a teletype for output. Not much use now since these became obsolete around 1980!
A159: Characterise | B159: See Characterize.
A160: CHARACTERISTIC | B160: A definable or measurable feature of a process, product, or variable.
A161: Characterize | B161: 1. The Measure & Analyse phases of a 6-Sigma DMAIC project. Focuses on Y's - outputs. 2. The Characterize of a DfSS DCOV 6-Sigma project. In this phase we: Flow CTS Y’s down to lower level y’s, e.g., Y -> y1, y2, … yn Relate y’s to CTQ parameters (x’s and n’s), y = f(x1, … xk, n1, … nj) Characterize robustness opportunities (including high mileage opportunities) See also Optimize.
A162: Check Sheets | B162: Forms used to collect data by making tally marks to indicate # occurrences
A163: Chi | B163: Greek Letter c. See Chi-Square for Chi distribution and values. See Chi-Square Test for Chi-Squared Tests.
A164: Chi-Square | B164: 1. A skewed probability distribution and hypothesis tests using this. 2. Chi-Square Test for goodness of fit / strength of relationship between discrete variables. 3. ChiSquare Test for Variances 4. Chi-Square values (from stats tables) are also used in calculating Confidence Intervals. Calculation: Chi-Sq = (Expected - Observed)^2 / Expected Nomenclature: c2. See Proportion Test
A165: Chi-Square Test | B165: 1. Test for goodness of fit between two discrete variables 2. Statistical Test for variance of a process to target variance. H0: s1=st. HA: s1¹st. If target s falls between confidence intervals for s then fail to reject H0.
A166: CI | B166: Confidence Interval e.g. 95% CI
A167: CL | B167: Control Limit. See Upper & Lower Control Limits, UCL & LCL.
A168: Closed World Diagram | B168: An element of Structured Inventive Thinking (SIT). Part of the Closed World Method.
A169: Closed World Method | B169: An element of Structured Inventive Thinking (SIT). Use of Closed-World Diagram & Qualitative Change graphs to gain understanding of the system e.g. to identify conflicts to be resolved. Used before applying the SIT solution techniques of Uniqueness, Dimensionality, Pluralization & Redistribution. Used in preference to the Particles Method where there is a known solution technology to improve rather than a clean sheet approach.
A170: CLT | B170: See Central Limit Theorem
A171: Cluster Sample | B171: Sampling by diving the population into arbitrary cluster groups and drawing a sample from each group. I.e. where no correlation/dependance is expected between variables and cluster.
A172: Coded | B172: Arbitrary -1 and +1 values to represent Low and High levels for a factor e.g. in a 2K Factorials DOE. In contrast to Uncoded real life actual values.
A173: Collinearity | B173: Collinearity means that within the set of input variables, some of the variables are (nearly) totally predicted by other variables. When input variables are correlated in this way, there are problems in estimating regression coefficients. Often referred to as Multicollinearity. See also Variance Inflation Factor.
A174: COMMON CAUSE | B174: See RANDOM CAUSE. Variation within process capoability. Not controllable by the operators.
A175: Complexity | B175: “Complexity” is a measure of how complicated a particular good or service is. Increased process complexity increases opportunities for defects. May be represented by the “Opportunity Count”.
A176: Compounding | B176: Combining a number of factors / variables into a single measure. See broader use under Confounding.
A177: Concept To Customer | B177: See CTC.
A178: Concern Code | B178: See CCC
A179: Condition Code | B179: See CC Code
A180: Confidence Interval | B180: Reflects the range into which you can expect the mean response to fall. PI = confidence that a point will fall in the range. CI = confednce the mean will fall in the range. See ConfidenceLevel and Confidence Limit.See also Prediction Interval
A181: CONFIDENCE LEVEL | B181: The confidence / probability that a random variable x lies within a defined interval.
A182: CONFIDENCE LIMITS | B182: The two values that define the confidence level.
A183: Confounding | B183: Allowing two or more variables to vary together so that it is impossible to separate their unique effects. If an experiment does not vary A & B separately then the effects of the 2 factors cannot be distinguished. Blocking may be used to separate these effects where one is expected to be a critical X and one appears to be noise. The main effects & interactions can be confounded in order to reduce the no of runs in a Fractional Factorial DOE. Same as Alias structure. See also Blocking Variables, Compounding.
A184: CONSUMERS RISK | B184: Probability of accepting a lot when, in fact, the lot should have been rejected (see BETA RISK).
A185: Contingency Table | B185: a two-dimensional table constructed for classifying count data, the purpose of which is to determine whether two variables are dependent (or contingent) on each other.
A186: CONTINUOUS DATA | B186: Numerical information a the interval of ratio level; subdivision is conceptually meaningful; can assume any number within an interval, e.g., 14.652 amps.
A187: Continuous Data | B187: Data from continuous measurement e.g. temperature. See M-07 Introduction to Data.ppt for selecvting statistical techniques according to Discrete/Continuous nature of input & output attributes & variables. See also Discrete Data, Attribute
A188: CONTINUOUS RANDOM VARIABLE | B188: A random variable which can assume any value continuously in some specified variable.
A189: Contribution | B189: Contribution (proportion) of variance attributable to one factor. Often refers to Gage Contribution. Minitab field: %Contribution. AIAG standards require: <1% = Ideal, 1-4%=Acceptable, 4-9%=Marginal, >=10%=Unacceptable.
A190: Control | B190: 1. See Levels of Control, Control Chart, -Limit, -Phase, -Plan, -Specifications, Controllable Variable. 2. The Control phase of a DMAIC 6-Sigma project. Where sustainability is built in to the process to ensure that improvement benefits are sustained. This includes: mistake proofing, control metrics (SPC/SPM), long term MSA, update SOP's & validation of control.
A191: Control Chart | B191: A graphical rendition of a characteristic’s performance across time in relation to its natural limits and central tendency. Records measurements / counts and highlights variation within and outside Control Limits (not Spec Limits). A Run Chart with Centre Line, USL, LSL. Quickly detects specific types of out of control process changes. Statistical Process Control Control Plan specifies data collection on a Control Chart which monitors data in control within Control Limits. Out of control data triggers a Reaction Plan.
A192: Control Limit | B192: Upper & lower statistical data limits (UCL & LCL). Always calculated from the data - typically (always) set at +/- 3 Std Deviations (c.99.73%). Measure of whether the process is in control. See Upper & Lower Control Limit. A process is In Control if its' data falls cosistently within its Control Limits. This does not imply the product is within customer specification - it can by In Control but off target and out of spec - See Spec Limit. A process is Out Of Control if data falls outside the Control Limits.
A193: Control Phase | B193: Optimize, eliminate, automate, and / or control vital few inputs Document and implement the control plan Sustain the gains identified Re-establish and monitor long-term delivered capability Implement continuous improvement efforts (Green Belts at the functional area)
A194: Control Plan | B194: A plan to control CTQ's on an ongoing basis. Defines the Who/Where/When… control methods for each process step. Statistical Process Control Plan specifies data collection on a Control Chart which monitors data in control within Control Limits. Out of control data triggers a Reaction Plan.
A195: CONTROL SPECIFICATIONS | B195: Specifications called for by the product being manufactured.
A196: Controllable | B196: Process inputs that you can adjust or control while the process is running (e.g. speed, feed rate, temperature, pressure, etc)
A197: Controllable Variable | B197: Controlled or Controllable Variables: Inputs that you can adjust or control while the process is running (i.e...., speed, feed rate, temperature, pressure, etc). See X's
A198: COP | B198: Conformity Of Production - Tests applied to verify the extent to which goods produced and quality assured do actually meet production specifications
A199: COPQ | B199: Cost Of Poor Quality - Cost of not being RFT = VCSI plus the hidden: - Cost of failing to meet customer expectations the first time - Opportunity for increased efficiency - Potential for higher profits - Loss in market share - Increase in production cycle time - Labour associated with ordering replacement material - Costs associated with disposing of defects - "A one sigma improvement will result in 20% margin improvement, 12-18% capacity increase, 12% reduction in or redeployment of employees, and 10-30% capital reduction."
A200: Corner Point | B200: As in a Cube Plot: No Factors * Levels. Part of DOE sample size. See also Effect.
... 1021 more rows

Sheet WorkflowTemplate (hidden)
A1: Workflow Template | C1: Workflow Template
C4: Process
C5: Team
C6: Date
C8: Step | D8: Description | E8: VA | F8: ENVA | G8: Waste | H8: Walk | I8: Layout Plan
D33: Time | E33: =SUM(E9:E32) -> 0 | F33: =SUM(F9:F32) -> 0 | G33: =SUM(G9:G32) -> 0 | H33: =SUM(H10:H31) -> 0

Sheet WorkflowExample (hidden)
A1: Workflow Example | C1: Workflow Example
C4: Process | D4: Sign off EN9000 procedure & despatch hard copy to BU's
C5: Team | D5: Quality Department
C6: Date | D6: 2009-12-01
C8: Step | D8: Description | E8: VA | F8: ENVA | G8: Waste | H8: Walk | I8: Layout Plan
C9: 1 | D9: Review latest draft procedure | F9: 60
H10: 15
C11: 2 | D11: Review draft procedure with manager & update where required | E11: 20 | F11: 60
H12: 10
C13: 3 | D13: Collect updated procedure from printer | F13: 5
H14: 5
C15: 4 | D15: Collate updated procedure at desk | G15: 15
H16: 10
C17: 5 | D17: Obtain manager sign-off on updated procedure (master version) | E17: 10
H18: 10
C19: 6 | D19: Photocopy master procedure | F19: 15
H20: 20
C21: 7 | D21: Collate master procedure copies, place in envelopes & address | F21: 20
H22: 20
C23: 8 | D23: Post copies of master procedures to BU Quality Managers | F23: 20
D33: Time (mins) | E33: =SUM(E9:E32) -> 30 | F33: =SUM(F9:F32) -> 180 | G33: =SUM(G9:G32) -> 15 | H33: =SUM(H10:H31) -> 90

Sheet ControlPlan (hidden)
A1: Control Plan Template | B1: Control Plan | P1: Key | Q1: A product characteristics for which reasonably aniticpated variation is likely to significantly affect customer satisfaction with a product such a form, fit or function.
B2: Control Plan No | D2: Prototype / Production | E2: Customer | J2: Date (originated) | M2: Date (revision)
B3: Part Number / Revision | E3: Customer Contact | J3: Customer Eng. Approval (if required)
B4: Part Name / Description | E4: Plan Prepared By | J4: Customer Quality Approval (if required) | P4: Critical | Q4: A product characteristics for which reasonably aniticpated variation is likely to significantly affect the products safety or complinace with regulation.
B5: Part / Process No | C5: Process Name / Operation Description | D5: Tool/Jig | E5: Characteristic | H5: Characteristic Class | I5: Methods | N5: Reaction Plan
E6: No. | F6: Product | G6: Process | I6: Product / Process / Specification / Tolerence | J6: Evaluation Measurements Technique | K6: Sample | M6: Control method
K7: Size | L7: Frequency

Sheet GageRNR (hidden)
A1: Variable Gage R&R | B1: Variables Study Gage R & R
B2: Table 1 | E2: Set Up
F3: Date:
B4: # Parts | F4: Test Description:
B5: # Trials | F5: Product Description:
B6: # Appraisers | F6: Part No / Name:
B7: # Tolerance | F7: Gage Description:
F8: Special Conditions:
F9: Appraiser #1:
F10: Appraiser #2:
F11: Appraiser #3:
B12: Table 2
B14: Appraiser 1
U15: =(SUM(D15:M15))/$C$4 -> 
U16: =(SUM(D16:M16))/$C$4 -> 
U17: =(SUM(D17:M17))/$C$4 -> 
C18: Average | D18: =IF($C$5=2,AVERAGE(D15:D16),AVERAGE(D15:D17)) ->  | E18: =IF($C$5=2,AVERAGE(E15:E16),AVERAGE(E15:E17)) ->  | O18: Xa | U18: =(SUM(U15:U17))/$C$5 -> 
C19: Range | D19: =IF($C$5=2,MAX(D15,D16)-MIN(D15,D16),MAX(D15,D16,D17)-MIN(D15,D16,D17)) -> 0 | E19: =IF($C$5=2,MAX(E15,E16)-MIN(E15,E16),MAX(E15,E16,E17)-MIN(E15,E16,E17)) -> 0 | F19: 0 | G19: 0 | H19: 0 | I19: 0 | J19: 0 | K19: 0 | L19: 0 | M19: 0 | O19: Ra | U19: =(SUM(D19:M19))/($C$4) -> 
C20: sum | D20: =SUM(D15:D17) -> 0 | E20: =SUM(E15:E17) -> 0 | F20: 0 | G20: 0 | H20: 0 | I20: 0 | J20: 0 | K20: 0 | L20: 0 | M20: 0
B22: Appraiser 2
U23: =(SUM(D23:M23))/$C$4 -> 
U24: =(SUM(D24:M24))/$C$4 -> 
U25: =(SUM(D25:M25))/$C$4 -> 
C26: Average | D26: =IF($C$5=2,AVERAGE(D23:D24),AVERAGE(D23:D25)) ->  | E26: =IF($C$5=2,AVERAGE(E23:E24),AVERAGE(E23:E25)) ->  | O26: Xb | U26: =(SUM(U23:U25))/$C$5 -> 
C27: Range | D27: =IF($C$5=2,MAX(D23,D24)-MIN(D23,D24),MAX(D23,D24,D25)-MIN(D23,D24,D25)) -> 0 | E27: =IF($C$5=2,MAX(E23,E24)-MIN(E23,E24),MAX(E23,E24,E25)-MIN(E23,E24,E25)) -> 0 | F27: 0 | G27: 0 | H27: 0 | I27: 0 | J27: 0 | K27: 0 | L27: 0 | M27: 0 | O27: Rb | U27: =(SUM(D27:M27))/($C$4) -> 
C28: Sum | D28: =SUM(D23:D25) -> 0 | E28: =SUM(E23:E25) -> 0 | F28: 0 | G28: 0 | H28: 0 | I28: 0 | J28: 0 | K28: 0 | L28: 0 | M28: 0
B29: Appraiser 3
U30: =(SUM(D30:M30))/$C$4 -> 
U31: =(SUM(D31:M31))/$C$4 -> 
U32: =(SUM(D32:M32))/$C$4 -> 
C33: Average | D33: =IF($C$5=2,AVERAGE(D30:D31),AVERAGE(D30:D32)) ->  | E33: =IF($C$5=2,AVERAGE(E30:E31),AVERAGE(E30:E32)) ->  | N33: =(SUM(U30:U32))/$C$5 ->  | O33: Xc
C34: Range | D34: =IF($C$5=2,MAX(D30,D31)-MIN(D30,D31),MAX(D30,D31,D32)-MIN(D30,D31,D32)) -> 0 | E34: =IF($C$5=2,MAX(E30,E31)-MIN(E30,E31),MAX(E30,E31,E32)-MIN(E30,E31,E32)) -> 0 | F34: 0 | G34: 0 | H34: 0 | I34: 0 | J34: 0 | K34: 0 | L34: 0 | M34: 0 | N34: =(SUM(D34:M34))/($C$4) ->  | O34: Rc
C35: sum | D35: =SUM(D30:D32) -> 0 | E35: =SUM(E30:E32) -> 0 | F35: 0 | G35: 0 | H35: 0 | I35: 0 | J35: 0 | K35: 0 | L35: 0 | M35: 0
C36: Total sum | D36: =D20+D28+D35 -> 0 | E36: =E20+E28+E35 -> 0 | F36: 0 | G36: 0 | H36: 0 | I36: 0 | J36: 0 | K36: 0 | L36: 0 | M36: 0
C38: Part Average | D38: =(D36/($C$5*$C$6)) ->  | E38: =(E36/($C$5*$C$6)) -> 
B41: R= | C41: =(U19+U27+N34)/C6 ->  | E41: K1 | F41: =IF($C$5=2,0.8862,0.5908) -> 0.5908 | H41: EV^2 | I41: =B65^2 ->  | K41: parts*apprs | L41: =C4*C6 -> 0
B42: UCL= | C42: =C41*(IF($C$5=2,3.27,2.58)) ->  | E42: K2 | F42: =IF($C$6=2,0.7071,0.5231) -> 0.5231 | H42: AV^2 | I42: =B66^2 ->  | K42: r/STD | L42: =ABS((C41/C46)) -> 
B43: LCL= | C43: 0 | E43: parts*trials | F43: =C4*C5 -> 0 | H43: R&R^2 | I43: =B67^2 -> 
B44: Xdiff= | C44: =IF($C$6=2,MAX(U18,U26)-MIN(U18,U26),MAX(U18,U26,N33)-MIN(U18,U26,N33)) ->  | E44: Xdiff * K2 | F44: =C44*F42 ->  | H44: PV^2 | I44: =B68^2 -> 
E45: Xdiff*K2^2 | F45: =F44^2 ->  | H45: F46 | I45: =SQRT((ABS(((C44/IF(C6=2,1.41,1.91)*5.15)^2)-((5.15*L42)^2/F43)))) -> 
B46: std | C46: =IF(AND(C5=2,L41=10),1.16,IF(AND(C5=2,L41<=15),1.15,IF(AND(C5=2,L41>15),1.128,IF(AND(C5=3,L41=10),1.72,IF(AND(C5=3,L41<=15),1.71,IF(AND(C6=3,L41>15),1.693)))))) -> FALSE
I53: % Study Variation | J53: % Tolerance Variation | K53: % Contribution
C54: Total Repeatability & Reproducibility | H54: R&R = | I54: =B67/B69 ->  | J54: =IF(C7>0,(D67/C7),"") ->  | K54: =G67/G69 -> 
C55: Repeatability - Equipment Variation | H55: EV = | I55: =(B65/B69) ->  | J55: =IF(C7>0,D65/C7,"") ->  | K55: =G65/G69 -> 
C56: Reproducibility - Appraiser Variation | H56: AV = | I56: =B66/B69 ->  | J56: =IF(C7>0,(I45/C7),"") ->  | K56: =G66/G69 -> 
C57: Part to Part Variation | H57: PV = | I57: =B68/B69 ->  | J57: =IF(C7>0,D68/C7,"") ->  | K57: =G68/G69 -> 
C58: Total Variation | H58: TV = | I58: =B69/B69 ->  | J58: =IF(C7>0,D69/C7,"") ->  | K58: =G69/G69 -> 
C59: Distinct Categories | I59: =(D68/D67)*1.41 -> 
C61: RESULTS
C62: Study Variation | G62: =IF(I54="","",IF(I54<0.1,"Gage is OK",IF(I54<=0.3,"Gage may be acceptable based upon importance of application and cost factor",IF(I54>0.3,"Gage is unacceptable","")))) -> 
C63: Tolerance Variation | G63: =IF(J54="","",IF(J54<0.1,"Gage is OK",IF(J54<=0.3,"Gage may be acceptable based upon importance of application and cost factor",IF(J54>0.3,"Gage is unacceptable","")))) -> 
B64: Unit Analysis | D64: unit * 5.15 | G64: Variance
B65: =C41*F41 ->  | C65: EV | D65: =B65*5.15 ->  | G65: =(D65/5.15)^2 -> 
B66: =(SQRT(ABS(F45-(I41/F43)))) ->  | C66: AV | D66: =B66*5.15 ->  | G66: =(D66/5.15)^2 -> 
B67: =(SQRT((I41+I42))) ->  | C67: R&R | D67: =B67*5.15 ->  | G67: =(D67/5.15)^2 -> 
B68: =IF(C4=5,(MAX(D38:H38)-MIN(D38:H38))*0.403,IF(C4=6,(MAX(D38:I38)-MIN(D38:I38))*0.3742,IF(C4=7,(MAX(D38:J38)-MIN(D38:J38))*0.3534,IF(C4=8,(MAX(D38:K38)-MIN(D38:K38))*0.3375,IF(C4=9,(MAX(D38:L38)-MIN(D38:L38))*0.3249,(MAX(D38:M38)-MIN(D38:M38))*0.3146))))) ->  | C68: PV | D68: =B68*5.15 ->  | G68: =(D68/5.15)^2 -> 
B69: =SQRT(I43+I44) ->  | C69: TV | D69: =B69*5.15 ->  | G69: =(D69/5.15)^2 -> 
C70: Distinct Categories | G70: =IF(I59<4.999999999,"Gage resolution is not acceptable, increase discrimination of measurement system","Gage is OK") -> 
B183: Demo 1
B184: 10
B185: 2
B186: 3
B187: 5
B190: 0.65 | C190: 1 | D190: 0.85 | E190: 0.85 | F190: 0.55 | G190: 1 | H190: 0.95 | I190: 0.85 | J190: 1 | K190: 0.6
B191: 0.6 | C191: 1 | D191: 0.8 | E191: 0.95 | F191: 0.45 | G191: 1 | H191: 0.95 | I191: 0.8 | J191: 1 | K191: 0.7
B194: 0.55 | C194: 1.05 | D194: 0.8 | E194: 0.8 | F194: 0.4 | G194: 1 | H194: 0.95 | I194: 0.75 | J194: 1 | K194: 0.55
B195: 0.55 | C195: 0.95 | D195: 0.75 | E195: 0.75 | F195: 0.4 | G195: 1.05 | H195: 0.9 | I195: 0.7 | J195: 0.95 | K195: 0.5
B198: 0.5 | C198: 1.05 | D198: 0.8 | E198: 0.8 | F198: 0.45 | G198: 1 | H198: 0.95 | I198: 0.8 | J198: 1.05 | K198: 0.85
B199: 0.55 | C199: 1 | D199: 0.8 | E199: 0.8 | F199: 0.5 | G199: 1.05 | H199: 0.95 | I199: 0.8 | J199: 1.05 | K199: 0.8
B202: Demo 2
B203: 10
B204: 3
B205: 3
B209: 1.2 | C209: 2.5 | D209: 1.9 | E209: 2.4 | F209: 3.1 | G209: 2.5 | H209: 1.8 | I209: 2.5 | J209: 2.2 | K209: 2.5
B210: 1.4 | C210: 2.8 | D210: 1.5 | E210: 2.4 | F210: 3.4 | G210: 2.7 | H210: 1.6 | I210: 2.5 | J210: 1.9 | K210: 2.2
B211: 1.9 | C211: 2.2 | D211: 1.5 | E211: 2.1 | F211: 3.3 | G211: 2.7 | H211: 1.3 | I211: 2.4 | J211: 1.8 | K211: 2.5
B213: 1.1 | C213: 2.6 | D213: 1.8 | E213: 2.5 | F213: 3.2 | G213: 2.4 | H213: 1.9 | I213: 2.5 | J213: 2.1 | K213: 2.4
B214: 1.6 | C214: 2.5 | D214: 1.6 | E214: 2.3 | F214: 3.1 | G214: 2.8 | H214: 1.5 | I214: 2.6 | J214: 1.8 | K214: 2.1
B215: 1.5 | C215: 2.3 | D215: 1.5 | E215: 2.8 | F215: 3.4 | G215: 2.6 | H215: 1.2 | I215: 2.5 | J215: 1.7 | K215: 2.6
B217: 1 | C217: 2.7 | D217: 1.7 | E217: 2.6 | F217: 3.3 | G217: 2.6 | H217: 1.7 | I217: 2.5 | J217: 2 | K217: 2.3
B218: 1.8 | C218: 2.6 | D218: 1.4 | E218: 2.2 | F218: 3.2 | G218: 2.9 | H218: 1.4 | I218: 2.7 | J218: 1.7 | K218: 2.4
B219: 4 | C219: 2.5 | D219: 1.7 | E219: 2.7 | F219: 3.5 | G219: 2.5 | H219: 1.1 | I219: 2.5 | J219: 1.6 | K219: 2.4
B223: Demo 3
B224: 5
B225: 2
B226: 2
B230: 5 | C230: 1 | D230: 4.5 | E230: 7.1 | F230: 5
B231: 5.3 | C231: 1.2 | D231: 4.4 | E231: 7.3 | F231: 5.2
B234: 5.1 | C234: 1.1 | D234: 4.6 | E234: 7.2 | F234: 5.1
B235: 5.2 | C235: 1.3 | D235: 4.3 | E235: 7.4 | F235: 5.3
B239: Demo 4
B240: 10
B241: 3
B242: 3
B246: 0.29 | C246: -0.56 | D246: 1.34 | E246: 0.47 | F246: -0.8 | G246: 0.02 | H246: 0.59 | I246: -0.31 | J246: 2.26 | K246: -1.36
B247: 0.41 | C247: -0.68 | D247: 1.17 | E247: 0.5 | F247: -0.92 | G247: -0.11 | H247: 0.75 | I247: -0.2 | J247: 1.99 | K247: -1.25
B248: 0.64 | C248: -0.58 | D248: 1.27 | E248: 0.64 | F248: -0.84 | G248: -0.21 | H248: 0.66 | I248: -0.17 | J248: 2.01 | K248: -1.31
B250: 0.08 | C250: -0.47 | D250: 1.19 | E250: 0.01 | F250: -0.56 | G250: -0.2 | H250: 0.47 | I250: -0.63 | J250: 1.8 | K250: -1.68
B251: 0.25 | C251: -1.22 | D251: 0.94 | E251: 1.03 | F251: -1.2 | G251: 0.22 | H251: 0.55 | I251: 0.08 | J251: 2.12 | K251: -1.62
B252: 0.07 | C252: -0.68 | D252: 1.34 | E252: 0.2 | F252: -1.28 | G252: 0.06 | H252: 0.83 | I252: -0.34 | J252: 2.19 | K252: -1.5
B254: 0.04 | C254: -1.38 | D254: 0.88 | E254: 0.14 | F254: -1.46 | G254: -0.29 | H254: 0.02 | I254: -0.46 | J254: 1.77 | K254: -1.49
B255: -0.11 | C255: -1.13 | D255: 1.09 | E255: 0.2 | F255: -1.07 | G255: -0.67 | H255: 0.01 | I255: -0.56 | J255: 1.45 | K255: -1.77
B256: -0.15 | C256: -0.96 | D256: 0.67 | E256: 0.11 | F256: -1.45 | G256: -0.49 | H256: 0.21 | I256: -0.49 | J256: 1.87 | K256: -2.16

Sheet GageAttributes (hidden)
A1: Gage R & R Attribute | C1: Gage R&R attribute
C4: Observation | J4: Attribute
J7: A | K7: Approved
C8: Gage name | J8: D | K8: Defect
J9: G | K9: Go
C10: Gage | J10: S | K10: Stop | O10: Total Gage R&R = | R10: =K49 -> 0
E12: Name | G12: Date
C13: Operator A
C14: Operator B
C15: Operator C
C17: Known attribute | E17: Operator A | G17: Operator B | I17: Operator C | M17: Operator A | O17: Operator B | Q17: Operator C
C18: Nr. | D18: Attribute | E18: Trial 1 | F18: Trial 2 | G18: Trial 1 | H18: Trial 2 | I18: Trial 1 | J18: Trial 2 | M18: Trial 1 | N18: Trial 2 | O18: Trial 2 | P18: Trial 2 | Q18: Trial 2 | R18: Trial 2
C19: 1 | M19: =IF(AND($D19<>0,E19<>0),IF($D19=E19,1,0),"") -> 
C20: 2
C21: 3
C22: 4
C23: 5
C24: 6
C25: 7
C26: 8
C27: 9
C28: 10
C29: 11
C30: 12
C31: 13
C32: 14
C33: 15
C34: 16
C35: 17
C36: 18
C37: 19
C38: 20
C39: 21
C40: 22
C41: 23
C42: 24
C43: 25
C44: 26
C45: 27
C46: 28
C47: 29
C48: 30
C49: Result | E49: =IF(30-COUNTBLANK(M19:M48)<>0,SUM(M19:M48)/(30-COUNTBLANK(M19:M48)),0) -> 0 | F49: 0 | G49: 0 | H49: 0 | I49: 0 | J49: 0 | K49: =F50*H50*J50 -> 0
C50: Result per operator | F50: =IF(60-COUNTBLANK(M19:N48)<>0,SUM(M19:N48)/(60-COUNTBLANK(M19:N48)),0) -> 0 | H50: =IF(60-COUNTBLANK(O19:P48)<>0,SUM(O19:P48)/(60-COUNTBLANK(O19:P48)),0) -> 0 | J50: =IF(60-COUNTBLANK(Q19:R48)<>0,SUM(Q19:R48)/(60-COUNTBLANK(Q19:R48)),0) -> 0
E51: Trial 1 | F51: Trial 2 | G51: Trial 1 | H51: Trial 2 | I51: Trial 1 | J51: Trial 2
E52: Operator A | G52: Operator B | I52: Operator C
C55: Notes:

Sheet CpCpk (hidden)
A1: Cp & Cpk Calculation | B1: Cp & Cpk Calculation
B3: Process No. or unique ID
B4: Process Description
B5: Number of Subgroups
B6: Upper Specification Limit
B7: Lower Specification Limit | I7: First Subgroup
B8: Process Average (Xbar) | I8: Last Subgroup
F12: This can be obtained using statistical software e.g. Minitab, Excel, or using the estimator using Rbar/D2
B13: Process Potential (Cp):- | C13: Std dev
C15: Cp Value: | E15: =IF(OR(C70="",C71=""),"",C70/C71) -> 
B20: Process Capability (Cpk):- | C20: Cpk Upper | E20: =IF(E13="","",(C6-C8)/(3*E13)) -> 
C22: Cpk Lower | E22: =IF(C8="","",(C8-C7)/(3*E13)) -> 
C24: Cpk Value: | E24: =IF(E20="","",MIN(E20,E22)) -> 
C70: =IF(E13="",22,IF(C6="","N/A",IF(C7="","N/A",C6-C7))) -> 22 | E70: 3
C71: =IF(C70="N/A","N/A",IF(E13="","",E13*6)) ->  | E71: 34
E72: 24
E73: 30
E74: 1.36

Sheet CauseEffectMatrix (hidden)
A1: Cause & Effect Matrix | C1: Cause & Effect Matrix
D4: Date | J4: Process :
D5: Dept. | J5: Score | K5: =MAX(U12:U32) -> 0
D6: Resp.
D8: Rating of importance to customer
F9: 1 | G9: 2 | H9: 3 | I9: 4 | J9: 5 | K9: 6 | L9: 7 | M9: 8 | N9: 9 | O9: 10 | P9: 11 | Q9: 12 | R9: 13 | S9: 14 | T9: 15
D11: Process step | E11: Process Input | U11: Total
C12: 1 | U12: =SUM(F$8*F12,G$8*G12,H$8*H12,I$8*I12,J$8*J12,K$8*K12,L$8*L12,M$8*M12,N$8*N12,O$8*O12,P$8*P12,Q$8*Q12,R$8*R12,S$8*S12,T$8*T12) -> 0
C13: 2 | U13: =SUM(F$8*F13,G$8*G13,H$8*H13,I$8*I13,J$8*J13,K$8*K13,L$8*L13,M$8*M13,N$8*N13,O$8*O13,P$8*P13,Q$8*Q13,R$8*R13,S$8*S13,T$8*T13) -> 0
C14: 3 | U14: 0
C15: 4 | U15: 0
C16: 5 | U16: 0
C17: 6 | U17: 0
C18: 7 | U18: 0
C19: 8 | U19: 0
C20: 9 | U20: 0
C21: 10 | U21: 0
C22: 11 | U22: 0
C23: 12 | U23: 0
C24: 13 | U24: 0
C25: 14 | U25: 0
C26: 15 | U26: 0
C27: 16 | U27: 0
C28: 17 | U28: 0
C29: 18 | U29: =SUM(F$8*F29,G$8*G29,H$8*H29,I$8*I29,J$8*J29,K$8*K29,L$8*L29,M$8*M29,N$8*N29,O$8*O29,P$8*P29,Q$8*Q29,R$8*R29,S$8*S29,T$8*T29) -> 0
C30: 19 | U30: =SUM(F$8*F30,G$8*G30,H$8*H30,I$8*I30,J$8*J30,K$8*K30,L$8*L30,M$8*M30,N$8*N30,O$8*O30,P$8*P30,Q$8*Q30,R$8*R30,S$8*S30,T$8*T30) -> 0
C31: 20 | U31: =SUM(F$8*F31,G$8*G31,H$8*H31,I$8*I31,J$8*J31,K$8*K31,L$8*L31,M$8*M31,N$8*N31,O$8*O31,P$8*P31,Q$8*Q31,R$8*R31,S$8*S31,T$8*T31) -> 0
C32: Total | F32: =SUM(F8*F12,F8*F13,F8*F14,F8*F15,F8*F16,F8*F17,F8*F18,F8*F19,F8*F20,F8*F21,F8*F22,F8*F23,F8*F24,F8*F25,F8*F26,F8*F27,F8*F28,F8*F29,F8*F30,F8*F31) -> 0 | G32: 0 | H32: 0 | I32: 0 | J32: 0 | K32: 0 | L32: 0 | M32: 0 | N32: 0 | O32: 0 | P32: 0 | Q32: 0 | R32: 0 | S32: 0 | T32: 0
E33: LSL
E34: Target
E35: OSL
C37: Notes

Sheet FishboneData (hidden)
A1: Fishbone why, why | B1: Fishbone
C3: Defect description
C5: Main cause | D5: Why? | E5: Why? | F5: Why? | G5: Why? | H5: Why?
B6: People
B9: Machine
B12: Method
B15: Material
B18: Measuring
B21: Environment

Sheet FishboneModel (hidden)
A1: Fishbone | C1: =FishboneData!E3 -> 0
E3: =FishboneData!B12 -> Method | Q3: =FishboneData!B9 -> Machine | AC3: =FishboneData!B6 -> People
D5: =FishboneData!C12 -> 0 | P5: =FishboneData!C9 -> 0 | AB5: =FishboneData!C6 -> 0
C6: =FishboneData!D12 -> 0 | O6: =FishboneData!D9 -> 0 | AA6: =FishboneData!D6 -> 0
C7: =FishboneData!E12 -> 0 | H7: =FishboneData!C13 -> 0 | O7: =FishboneData!E9 -> 0 | T7: =FishboneData!C10 -> 0 | AA7: =FishboneData!E6 -> 0 | AF7: =FishboneData!C7 -> 0
C8: =FishboneData!F12 -> 0 | I8: =FishboneData!D13 -> 0 | O8: =FishboneData!F9 -> 0 | U8: =FishboneData!D10 -> 0 | AA8: =FishboneData!F6 -> 0 | AG8: =FishboneData!D7 -> 0
C9: =FishboneData!G12 -> 0 | I9: =FishboneData!E13 -> 0 | O9: =FishboneData!G9 -> 0 | U9: =FishboneData!E10 -> 0 | AA9: =FishboneData!G6 -> 0 | AG9: =FishboneData!E7 -> 0
C10: =FishboneData!H12 -> 0 | I10: =FishboneData!F13 -> 0 | O10: =FishboneData!H9 -> 0 | U10: =FishboneData!F10 -> 0 | AA10: =FishboneData!H6 -> 0 | AG10: =FishboneData!F7 -> 0
F11: =FishboneData!C14 -> 0 | I11: =FishboneData!G13 -> 0 | R11: =FishboneData!C11 -> 0 | U11: =FishboneData!G10 -> 0 | AD11: =FishboneData!C8 -> 0 | AG11: =FishboneData!G7 -> 0
E12: =FishboneData!D14 -> 0 | I12: =FishboneData!H13 -> 0 | Q12: =FishboneData!D11 -> 0 | U12: =FishboneData!H10 -> 0 | AC12: =FishboneData!D8 -> 0 | AG12: =FishboneData!H7 -> 0
E13: =FishboneData!E14 -> 0 | Q13: =FishboneData!E11 -> 0 | AC13: =FishboneData!E8 -> 0
E14: =FishboneData!F14 -> 0 | Q14: =FishboneData!F11 -> 0 | AC14: =FishboneData!F8 -> 0
E15: =FishboneData!G14 -> 0 | Q15: =FishboneData!G11 -> 0 | AC15: =FishboneData!G8 -> 0
E16: =FishboneData!H14 -> 0 | Q16: =FishboneData!H11 -> 0 | AC16: =FishboneData!H8 -> 0
J20: =FishboneData!C22 -> 0 | W20: =FishboneData!C19 -> 0 | AI20: =FishboneData!C16 -> 0
K21: =FishboneData!D22 -> 0 | X21: =FishboneData!D19 -> 0 | AJ21: =FishboneData!D16 -> 0
G22: =FishboneData!C21 -> 0 | K22: =FishboneData!E22 -> 0 | S22: =FishboneData!C18 -> 0 | X22: =FishboneData!E19 -> 0 | AE22: =FishboneData!C15 -> 0 | AJ22: =FishboneData!E16 -> 0
E23: =FishboneData!D21 -> 0 | K23: =FishboneData!F22 -> 0 | Q23: =FishboneData!D18 -> 0 | X23: =FishboneData!F19 -> 0 | AD23: =FishboneData!D15 -> 0 | AJ23: =FishboneData!F16 -> 0
E24: =FishboneData!E21 -> 0 | K24: =FishboneData!G22 -> 0 | Q24: =FishboneData!E18 -> 0 | X24: =FishboneData!G19 -> 0 | AD24: =FishboneData!E15 -> 0 | AJ24: =FishboneData!G16 -> 0
E25: =FishboneData!F21 -> 0 | K25: =FishboneData!H22 -> 0 | Q25: =FishboneData!F18 -> 0 | X25: =FishboneData!H19 -> 0 | AD25: =FishboneData!F15 -> 0 | AJ25: =FishboneData!H16 -> 0
E26: =FishboneData!G21 -> 0 | Q26: =FishboneData!G18 -> 0 | AD26: =FishboneData!G15 -> 0
E27: =FishboneData!H21 -> 0 | H27: =FishboneData!C23 -> 0 | Q27: =FishboneData!H18 -> 0 | T27: =FishboneData!C20 -> 0 | AD27: =FishboneData!H15 -> 0 | AF27: =FishboneData!C17 -> 0
I28: =FishboneData!D22 -> 0 | U28: =FishboneData!D20 -> 0 | AG28: =FishboneData!D17 -> 0
I29: =FishboneData!E23 -> 0 | U29: =FishboneData!E20 -> 0 | AG29: =FishboneData!E17 -> 0
I30: =FishboneData!F23 -> 0 | U30: =FishboneData!F20 -> 0 | AG30: =FishboneData!F17 -> 0
I31: =FishboneData!G23 -> 0 | U31: =FishboneData!G20 -> 0 | AG31: =FishboneData!G17 -> 0
I32: =FishboneData!H23 -> 0 | U32: =FishboneData!H20 -> 0 | AG32: =FishboneData!H17 -> 0
D33: =FishboneData!B21 -> Environment | P33: =FishboneData!B18 -> Measuring | AC33: =FishboneData!B15 -> Material

Sheet FMEA (hidden)
A1: Failure Mode & Effects Analysis | B1: Failure Mode & Effects Analysis | I1: Failure Mode & Effect Analysis cont.
D3: Process/Product: | H3: FMEA Date: (original) | L3: FMEA No: | P3: Issue:
D4: FMEA Team: | H4: (Revised)
D5: Responsibility: | H5: Page: | J5: of
D6: Prepared By:
B7: Analysis | K7: Actions | N7: Results
B8: Process Step | C8: Potential Failure Mode | D8: Potential Effects of Failure | E8: Severity (1-10) | F8: Potential Cause(s) of Failure | G8: Occurrence (1-10) | H8: Current Controls | I8: Detection (1-10) | J8: Risk Priority Number (RPN) | K8: Recommended Action | L8: Responsibility and Target Completion Date | M8: Action Taken | N8: Revised Severity (1-10) | O8: Revised Occurrence (1-10) | P8: Revised Detection (1-10) | Q8: Revised Risk Priority Number
J9: =IF(AND(ISNUMBER($E9),ISNUMBER($G9),ISNUMBER($I9)),($E9*$G9*$I9),"") ->  | Q9: =IF(AND(ISNUMBER($N9),ISNUMBER($O9),ISNUMBER($P9)),($N9*$O9*$P9),"") -> 
J10: =IF(AND(ISNUMBER($E10),ISNUMBER($G10),ISNUMBER($I10)),($E10*$G10*$I10),"") ->  | Q10: =IF(AND(ISNUMBER($N10),ISNUMBER($O10),ISNUMBER($P10)),($N10*$O10*$P10),"") -> 

Sheet FMEAGuidelines (hidden)
A1: FMEA Guidelines | B1: Score | C1: Severity Guidelines
C2: AIAG | E2: Six Sigma
B3: 10 | C3: Hazardous without warning | E3: Injure a customer or employee | K3: Bad
B4: 9 | C4: Hazardous with warning | E4: Be illegal
B5: 8 | C5: Very High | E5: Render product or service unfit for use
B6: 7 | C6: High | E6: Cause extreme customer dissatisfaction
B7: 6 | C7: Moderate | E7: Result in partial malfunction
B8: 5 | C8: Low | E8: Cause a loss of performance which is likely to result in a complaint
B9: 4 | C9: Very Low | E9: Cause minor performance loss
B10: 3 | C10: Minor | E10: Cause a minor nuisance but can be overcome with no performance loss
B11: 2 | C11: Very Minor | E11: Be unnoticed and have only minor effect on performance
B12: 1 | C12: None | E12: Be unnoticed and not affect the performance | K12: Good
B14: Score | C14: Occurrence Guidelines
C15: AIAG | F15: Six Sigma
B16: 10 | C16: Very High: Persistent Failures, Ppk < 0.55 | F16: More than once per day | H16: > 30% | K16: Bad
B17: 9 | C17: Very High: Persistent Failures, Ppk >= 0.55 | F17: Once every 3-4 days | H17: < 30%
B18: 8 | C18: High: Frequent Failures, Ppk >= 0.78 | F18: Once every week | H18: < 5%
B19: 7 | C19: High: Frequent Failures, Ppk >= 0.86 | F19: Once per month | H19: < 1%
B20: 6 | C20: Moderate: Occasional Failures, Ppk >= 0.94 | F20: Once every 3 months | H20: < 0.03%
B21: 5 | C21: Moderate: Occasional Failures, Ppk >= 1.00 | F21: Once every 6 months | H21: < 1 per 10,000
B22: 4 | C22: Moderate: Occasional Failures, Ppk >= 1.10 | F22: Once per year | H22: < 6 per 100,000
B23: 3 | C23: Low: Relatively Few Failures, Ppk >=1.20 | F23: Once every 1-3 years | H23: < 6 per million
B24: 2 | C24: Low: Relatively Few Failures, Ppk >=1.30 | F24: Once every 3-6 years | H24: < 3 per 10 million
B25: 1 | C25: Remote: Failure is Unlikely, Ppk >=1.67 | F25: Once every 6-9 years | H25: < 2 per billion | K25: Good
B27: Score | C27: Detection Guidelines
C28: AIAG | G28: Six Sigma
B29: 10 | C29: Almost Impossible: Absolute certainty of non-detection | G29: Defect caused by failure is not detectable | K29: Bad
B30: 9 | C30: Very Remote: Controls will probably not detect | G30: Occasional units are checked for defects
B31: 8 | C31: Remote: Controls have poor chance of detection | G31: Units are systematically sampled and inspected
B32: 7 | C32: Very Low: Controls have poor chance of detection | G32: All units are manually inspected
B33: 6 | C33: Low: Controls may detect | G33: Manual inspection with mistake-proofing modifications
B34: 5 | C34: Moderate: Controls may detect | G34: Process is monitored (SPC) and manually inspected
B35: 4 | C35: Moderately High: Controls have a good chance to detect | G35: SPC is used with an immediate reaction to out of control conditions
B36: 3 | C36: High: Controls have a good chance to detect | G36: SPC as above, 100% inspection surrounding out of control conditions
B37: 2 | C37: Very High: Controls almost certain to detect | G37: All units are automatically inspected
B38: 1 | C38: Very High: Controls certain to detect | G38: Defect is obvious and can be kept from affecting the customer | K38: Good

Sheet FMEADesign (hidden)
A1: Design FMEA Example | B1: Design FMEA Example
B2: SEVERITY EVALUATION CRITERIA | G2: OCCURRENCE EVALUATION CRITERIA | L2: DETECTION EVALUATION CRITERIA
B3: Effect | C3: Criteria: Severity of Effect (Customer Effect) | D3: Criteria: Severity of Effect (Manufacturing / Assembly Effect) | E3: Rank | G3: Probability | H3: Likely Failure Rates | J3: Rank | L3: Detection | M3: Criteria | N3: Suggested Range of Detection Methods | O3: Rank
B4: Hazardous - without warning | C4: Very high severity ranking when a potential failure mode affects safe item operation and / or involves noncompliance with government regulation without warning. | D4: Or may endanger operator (machine or assembly) without warning. | E4: 10 | G4: Very High: Persistent Failures | H4: >/ 100 per thousand pieces | J4: 10 | L4: Almost Impossible | M4: Absolute certainty of non-detection. | N4: Design Control will not and/or can not detect a potential cause/mechanism and subsequent failure mode; or there is no Design Control. | O4: 10
B5: Hazardous - with warning | C5: Very high severity ranking when a potential failure mode affects safe process operation and / or involves noncompliance with government regulation with warning. | D5: Or may endanger operator (machine or assembly) with warning. | E5: 9 | H5: 50 per thousand pieces | J5: 9 | L5: Very Remote | M5: Controls will probably not detect. | N5: Very remote chance the Design Control will detect a potential cause/mechanism and subsequent failure mode. | O5: 9
B6: Very High | C6: Item inoperable (loss of primary function). | D6: Or 100% of product may have to be scrapped, or item repaired in repair department with a repair time greater than one hour. | E6: 8 | G6: High: Frequent Failures | H6: 20 per thousand pieces | J6: 8 | L6: Remote | M6: Controls have poor chance of detection. | N6: Remote chance the Design Control will detect a potential cause/mechanism and subsequent failure mode. | O6: 8
B7: High | C7: Item operable, but at a reduced level of performance. Customer very dissatisfied. | D7: Or product may have to be sorted and a portion (less than 100%) scrapped, or item repaired in repair department between a half-hour and an hour. | E7: 7 | H7: 10 per thousand pieces | J7: 7 | L7: Very Low | M7: Controls have poor chance of detection. | N7: Very low chance the Design Control will detect a potential cause/mechanism and subsequent failure mode. | O7: 7
B8: Moderate | C8: Item operable, but some comfort / convenience element(s) inoperable. Customer dissatisfied. | D8: Or a portion (less than 100%) of the product may have to be scrapped with no sorting, or item repaired in repair department with a repair time less than a half-hour. | E8: 6 | G8: Moderate: Occasional Failures | H8: 5 per thousand pieces | J8: 6 | L8: Low | M8: Controls may detect. | N8: Low chance the Design Control will detect a potential cause/mechanism and subsequent failure mode. | O8: 6
B9: Low | C9: Item operable, but some comfort / convenience element(s) operable at a reduced level of performance. | D9: Or 100% of product may have to be reworked, or item repaired offline but does not go to repair department. | E9: 5 | H9: 2 per thousand pieces | J9: 5 | L9: Moderate | M9: Controls may detect. | N9: Moderate chance the Design Control will detect a potential cause/mechanism and subsequent failure mode. | O9: 5
B10: Very Low | C10: Fit / Finish / Squeak & Rattle item does not conform. Defect noticed by most customers (greater than 75%). | D10: Or the product may have to be sorted, with no scrap, and a portion (less than 100%) reworked. | E10: 4 | H10: 1 per thousand pieces | J10: 4 | L10: Moderately High | M10: Controls have a good chance to detect. | N10: Moderately high chance the Design Control will detect a potential cause/mechanism and subsequent failure mode. | O10: 4
B11: Minor | C11: Fit / Finish / Squeak & Rattle item does not conform. Defect noticed by 50% of customers. | D11: Or a portion (less than 100%) of the product may have to be reworked, with no scrap, on-line but out-of-station. | E11: 3 | G11: Low: Relatively Few Failures | H11: 0.5 per thousand pieces | J11: 3 | L11: High | M11: Controls have a good chance to detect. | N11: High chance the Design Control will detect a potential cause/mechanism and subsequent failure mode. | O11: 3
B12: Very Minor | C12: Fit / Finish / Squeak & Rattle item does not conform. Defect noticed by discriminating customers (less than 25%). | D12: Or a portion (less than 100%) of the product may have to be reworked, with no scrap, on-line but in-station. | E12: 2 | H12: 0.1 per thousand pieces | J12: 2 | L12: Very High | M12: Controls almost certain to detect. | N12: Very high chance the Design Control will detect a potential cause/mechanism and subsequent failure mode. | O12: 2
B13: None | C13: No discernible effect. | D13: Or slight inconvenience to operation or operator, or no effect. | E13: 1 | G13: Remote: Failure is Unlikely | H13: </ 0.01 per thousand pieces | J13: 1 | L13: Very High | M13: Controls certain to detect. | N13: Design Control will almost certainly detect a potential cause/mechanism and subsequent failure mode. | O13: 1
C15: RPN = Risk Priority Number | E15: Classifications: | H15: = CC | J15: = SC or HIC | N15: = Blank

Sheet FMEAProcess (hidden)
A1: Process FMEA Example | B1: Process FMEA Example
B2: SEVERITY EVALUATION CRITERIA | G2: OCCURRENCE EVALUATION CRITERIA | L2: DETECTION EVALUATION CRITERIA
B3: Effect | C3: Criteria: Severity of Effect (Customer Effect) | D3: Criteria: Severity of Effect (Manufacturing / Assembly Effect) | E3: Rank | G3: Probability | H3: Likely Failure Rates | J3: Rank | L3: Detection | M3: Criteria | N3: Inspection Types | O3: Suggested Range of Detection Methods | P3: Rank
B4: Hazardous - without warning | C4: Very high severity ranking when a potential failure mode affects safe item operation and / or involves noncompliance with government regulation without warning. | D4: Or may endanger operator (machine or assembly) without warning. | E4: 10 | G4: Very High: Persistent Failures | H4: >/ 100 per thousand pieces | J4: 10 | L4: Almost Impossible | M4: Absolute certainty of non-detection. | N4: Manual Inspection | O4: Cannot detect or is not checked. | P4: 10
B5: Hazardous - with warning | C5: Very high severity ranking when a potential failure mode affects safe process operation and / or involves noncompliance with government regulation with warning. | D5: Or may endanger operator (machine or assembly) with warning. | E5: 9 | H5: 50 per thousand pieces | J5: 9 | L5: Very Remote | M5: Controls will probably not detect. | N5: Manual Inspection | O5: Control is achieved with indirect or random checks only. | P5: 9
B6: Very High | C6: Item inoperable (loss of primary function). | D6: Or 100% of product may have to be scrapped, or item repaired in repair department with a repair time greater than one hour. | E6: 8 | G6: High: Frequent Failures | H6: 20 per thousand pieces | J6: 8 | L6: Remote | M6: Controls have poor chance of detection. | N6: Manual Inspection | O6: Control is achieved with visual inspection only. | P6: 8
B7: High | C7: Item operable, but at a reduced level of performance. Customer very dissatisfied. | D7: Or product may have to be sorted and a portion (less than 100%) scrapped, or item repaired in repair department between a half-hour and an hour. | E7: 7 | H7: 10 per thousand pieces | J7: 7 | L7: Very Low | M7: Controls have poor chance of detection. | N7: Manual Inspection | O7: Control is achieved with double visual inspection only. | P7: 7
B8: Moderate | C8: Item operable, but some comfort / convenience element(s) inoperable. Customer dissatisfied. | D8: Or a portion (less than 100%) of the product may have to be scrapped with no sorting, or item repaired in repair department with a repair time less than a half-hour. | E8: 6 | G8: Moderate: Occasional Failures | H8: 5 per thousand pieces | J8: 6 | L8: Low | M8: Controls may detect. | N8: Gauging / Manual Inspection | O8: Control is achieved with charting methods, such as SPC (Statistical Process Control). | P8: 6
B9: Low | C9: Item operable, but some comfort / convenience element(s) operable at a reduced level of performance. | D9: Or 100% of product may have to be reworked, or item repaired offline but does not go to repair department. | E9: 5 | H9: 2 per thousand pieces | J9: 5 | L9: Moderate | M9: Controls may detect. | N9: Error - Proofed / Gauging | O9: Control is based on variable gauging after parts have left the station, or GO/NO GO gauging performed on 100% of the parts after parts have left the station. | P9: 5
B10: Very Low | C10: Fit / Finish / Squeak & Rattle item does not conform. Defect noticed by most customers (greater than 75%). | D10: Or the product may have to be sorted, with no scrap, and a portion (less than 100%) reworked. | E10: 4 | H10: 1 per thousand pieces | J10: 4 | L10: Moderately High | M10: Controls have a good chance to detect. | N10: Error - Proofed / Gauging | O10: Error detection in subsequent operations, or gauging performed on set-up and first piece check (for set-up causes only). | P10: 4
B11: Minor | C11: Fit / Finish / Squeak & Rattle item does not conform. Defect noticed by 50% of customers. | D11: Or a portion (less than 100%) of the product may have to be reworked, with no scrap, on-line but out-of-station. | E11: 3 | G11: Low: Relatively Few Failures | H11: 0.5 per thousand pieces | J11: 3 | L11: High | M11: Controls have a good chance to detect. | N11: Error - Proofed / Gauging | O11: Error detection in-station, or error detection in subsequent operations by multiple layers of acceptance, supply, select, install, verify, cannot accept discrepant part. | P11: 3
B12: Very Minor | C12: Fit / Finish / Squeak & Rattle item does not conform. Defect noticed by discriminating customers (less than 25%). | D12: Or a portion (less than 100%) of the product may have to be reworked, with no scrap, on-line but in-station. | E12: 2 | H12: 0.1 per thousand pieces | J12: 2 | L12: Very High | M12: Controls almost certain to detect. | N12: Error - Proofed / Gauging | O12: Error detection in-station (automatic gauging with automatic stop feature). Cannot pass discrepant part. | P12: 2
B13: None | C13: No discernible effect. | D13: Or slight inconvenience to operation or operator, or no effect. | E13: 1 | G13: Remote: Failure is Unlikely | H13: </ 0.01 per thousand pieces | J13: 1 | L13: Very High | M13: Controls certain to detect. | N13: Error - Proofed | O13: Discrepant parts cannot be made because item has been error-proofed by process / product design. | P13: 1
C15: RPN = Risk Priority Number | E15: Classifications: | H15: = CC | J15: = SC or HIC | N15: = Blank

Sheet DataSheet (hidden)
A1: Charting Tools | H1: Date | I1: Cycle Time | J1: Cycle Time | K1: Cycle Time | M1: Temperature C | N1: Pressure Bar
H2: 2010-01-01 | I2: 10.02675953 | J2: 7.400425876 | K2: 9.517581108 | M2: 105 | N2: 104
H3: 2010-01-02 | I3: 8.192693479 | J3: 10.97373803 | K3: 9.317728136 | M3: 105 | N3: 103
H4: 2010-01-03 | I4: 9.780172688 | J4: 12.09858029 | K4: 11.47145452 | M4: 96 | N4: 96
H5: 2010-01-04 | I5: 10.18688727 | J5: 11.42841047 | K5: 8.482279808 | M5: 102 | N5: 105
H6: 2010-01-05 | I6: 9.747974355 | J6: 9.833162614 | K6: 8.5 | M6: 100 | N6: 99
H7: 2010-01-06 | I7: 9.588768857 | J7: 8.144829717 | K7: 8.117745286 | M7: 102 | N7: 101
H8: 2010-01-07 | I8: 9.17052924 | J8: 9.151430678 | K8: 11.67970519 | M8: 102 | N8: 95
H9: 2010-01-08 | I9: 10.07365029 | J9: 7.18189674 | K9: 12.86468526 | M9: 102 | N9: 96
H10: 2010-01-09 | I10: 9.932413977 | J10: 9.929039712 | K10: 3.97459908 | M10: 102 | N10: 106
H11: 2010-01-10 | I11: 10.64846859 | J11: 11.47534414 | K11: 13.33224661 | M11: 98 | N11: 100
H12: 2010-01-11 | I12: 10.60570755 | J12: 10.710733 | K12: 0.5027193569 | M12: 95 | N12: 98
H13: 2010-01-12 | I13: 10.24627644 | J13: 10.65135771 | K13: 4.037686373 | M13: 97 | N13: 102
H14: 2010-01-13 | I14: 9.036998533 | J14: 9.693396192 | K14: 13.38934215 | M14: 104 | N14: 108
H15: 2010-01-14 | I15: 10.01408638 | J15: 7.176749284 | K15: 8.260716509 | M15: 102 | N15: 107
H16: 2010-01-15 | I16: 10.58186172 | J16: 6.291569016 | K16: 10.85604767 | M16: 101 | N16: 96
H17: 2010-01-16 | I17: 9.759067797 | J17: 10.5679175 | K17: 9.118662763 | M17: 99 | N17: 107
H18: 2010-01-17 | I18: 9.082865964 | J18: 12.53050319 | K18: 11.40389362 | M18: 103 | N18: 99
H19: 2010-01-18 | I19: 11.10551343 | J19: 9.415260941 | K19: 3.910091299 | M19: 104 | N19: 110
H20: 2010-01-19 | I20: 8.800927606 | J20: 10.91893863 | K20: 11.40093147 | M20: 107 | N20: 115
H21: 2010-01-20 | I21: 7.95215117 | J21: 7.151979483 | K21: 11.12207755 | M21: 99 | N21: 89
H22: 2010-01-21 | I22: 11.89252695 | J22: 11.79107173 | K22: 8.024925772 | M22: 101 | N22: 105
H23: 2010-01-22 | I23: 10.59340095 | J23: 10.68624706 | K23: 5.014157881 | M23: 108 | N23: 106
H24: 2010-01-23 | I24: 10.74064164 | J24: 12.58314598 | K24: 10.72841403 | M24: 111 | N24: 123
H25: 2010-01-24 | I25: 10.67740002 | J25: 10.54653236 | K25: 10.58863793 | M25: 108 | N25: 118
H26: 2010-01-25 | I26: 10.02953729 | J26: 10.82940977 | K26: 10.7546365 | M26: 107 | N26: 112
H27: 2010-01-26 | I27: 10.27346716 | J27: 8.070420644 | K27: 2.751000027
H28: 2010-01-27 | I28: 11.00685108 | J28: 12.03557074 | K28: 11.64684136
H29: 2010-01-28 | I29: 10.68141222 | J29: 7.897224605 | K29: 6.028126913
H30: 2010-01-29 | I30: 8.78574858 | J30: 8.351362383 | K30: 11.51798509
H31: 2010-01-30 | I31: 9.812915358 | J31: 7.833743764 | K31: 11.11677608
H32: 2010-01-31 | I32: 10.92525886 | J32: 9.719211396 | K32: 10.53809075
H33: 2010-02-01 | I33: 9.603148145 | J33: 12.29512298 | K33: 13.29958481
H34: 2010-02-02 | I34: 8.607728888 | J34: 10.8650173 | K34: 9.451150183
H35: 2010-02-03 | I35: 10.73670433 | J35: 8.346130072 | K35: 16.65986932
H36: 2010-02-04 | I36: 8.822042233 | J36: 12.19000085 | K36: 11.78846915
H37: 2010-02-05 | I37: 9.094502467 | J37: 9.291984357 | K37: 8.431835802
H38: 2010-02-06 | I38: 9.805358615 | J38: 9.414569049 | K38: 10.49709714
H39: 2010-02-07 | I39: 9.475913273 | J39: 9.291184108 | K39: 8.07924214
H40: 2010-02-08 | I40: 10.06308324 | J40: 10.21488404 | K40: 5.401381616
H41: 2010-02-09 | I41: 10.43767936 | J41: 9.286627289 | K41: 12.33025011
H42: 2010-02-10 | I42: 9.82023701 | J42: 12.15130753 | K42: 10.36324038
H43: 2010-02-11 | I43: 11.64415074 | J43: 10.1246804 | K43: 6.364237944
H44: 2010-02-12 | I44: 8.354530913 | J44: 8.548127732 | K44: 11.72130014
H45: 2010-02-13 | I45: 9.719336643 | J45: 11.01274831 | K45: 10.90733451
H46: 2010-02-14 | I46: 12.31770195 | J46: 9.149576958 | K46: 12.07630818
H47: 2010-02-15 | I47: 10.9234796 | J47: 8.759522717 | K47: 8.624067342
H48: 2010-02-16 | I48: 11.06526971 | J48: 9.815589413 | K48: 9.827455041
H49: 2010-02-17 | I49: 8.890334136 | J49: 7.38605261 | K49: 4.89056498
H50: 2010-02-18 | I50: 8.742844756 | J50: 10.2032608 | K50: 10.78990157
H51: 2010-02-19 | I51: 9.977746587 | J51: 10.53067573 | K51: 10.66226645

Sheet ArraySheet (hidden)
A1: Temperature C | B1: Pressure Bar
A2: 105 | B2: 104
A3: 105 | B3: 103
A4: 96 | B4: 96
A5: 102 | B5: 105
A6: 100 | B6: 99
A7: 102 | B7: 101
A8: 102 | B8: 95
A9: 102 | B9: 96
A10: 102 | B10: 106
A11: 98 | B11: 100
A12: 95 | B12: 98
A13: 97 | B13: 102
A14: 104 | B14: 108
A15: 102 | B15: 107
A16: 101 | B16: 96
A17: 99 | B17: 107
A18: 103 | B18: 99
A19: 104 | B19: 110
A20: 107 | B20: 115
A21: 99 | B21: 89
A22: 101 | B22: 105
A23: 108 | B23: 106
A24: 111 | B24: 123
A25: 108 | B25: 118
A26: 107 | B26: 112

Sheet TempSheet (hidden)

Sheet GraphSheet (hidden)
A100: bob
A114: Y
A115: bob | B115: bob

Sheet Display (hidden)
A1: Charts

Sheet C-Pareto (hidden)
A1: Pareto | B1: Cumulative % | C1: Vital Few | D1: Useful Many | E1: Cutoff % | F1: 0.8 | G1: ="The first "&COUNT(C2:C501)&" "&ArraySheet!$A$1&" cover "&TEXT(OFFSET(B2,(COUNT(C2:C501)-1),0,1,1),"0.??%")&" of the total "&ArraySheet!B1 -> 
B2: =IF(OR(ArraySheet!A2="",ArraySheet!B2=""),"",SUM(ArraySheet!B2)/SUM(ArraySheet!$B$2:'ArraySheet'!$B$501)) -> 0.04 | C2: =IF(ISBLANK(ArraySheet!B2),"",IF(B2<=$F$1,ArraySheet!B2,"")) -> 104 | D2: =IF(ISBLANK(ArraySheet!B2),"",IF(C2="",ArraySheet!B2,"")) -> 
B3: =IF(OR(ArraySheet!A3="",ArraySheet!B3=""),"",SUM(ArraySheet!$B$2:B3)/SUM(ArraySheet!$B$2:'ArraySheet'!$B$501)) -> 0.07961538462 | C3: =IF(ISBLANK(ArraySheet!B3),"",IF(B3<=$F$1,ArraySheet!B3,"")) -> 103 | D3: =IF(ISBLANK(ArraySheet!B3),"",IF(C3="",ArraySheet!B3,"")) -> 
B4: =IF(OR(ArraySheet!A4="",ArraySheet!B4=""),"",SUM(ArraySheet!$B$2:B4)/SUM(ArraySheet!$B$2:'ArraySheet'!$B$501)) -> 0.1165384615 | C4: =IF(ISBLANK(ArraySheet!B4),"",IF(B4<=$F$1,ArraySheet!B4,"")) -> 96 | D4: =IF(ISBLANK(ArraySheet!B4),"",IF(C4="",ArraySheet!B4,"")) -> 
B5: =IF(OR(ArraySheet!A5="",ArraySheet!B5=""),"",SUM(ArraySheet!$B$2:B5)/SUM(ArraySheet!$B$2:'ArraySheet'!$B$501)) -> 0.1569230769 | C5: =IF(ISBLANK(ArraySheet!B5),"",IF(B5<=$F$1,ArraySheet!B5,"")) -> 105 | D5: =IF(ISBLANK(ArraySheet!B5),"",IF(C5="",ArraySheet!B5,"")) -> 
B6: =IF(OR(ArraySheet!A6="",ArraySheet!B6=""),"",SUM(ArraySheet!$B$2:B6)/SUM(ArraySheet!$B$2:'ArraySheet'!$B$501)) -> 0.195 | C6: =IF(ISBLANK(ArraySheet!B6),"",IF(B6<=$F$1,ArraySheet!B6,"")) -> 99 | D6: =IF(ISBLANK(ArraySheet!B6),"",IF(C6="",ArraySheet!B6,"")) -> 
B7: =IF(OR(ArraySheet!A7="",ArraySheet!B7=""),"",SUM(ArraySheet!$B$2:B7)/SUM(ArraySheet!$B$2:'ArraySheet'!$B$501)) -> 0.2338461538 | C7: =IF(ISBLANK(ArraySheet!B7),"",IF(B7<=$F$1,ArraySheet!B7,"")) -> 101 | D7: =IF(ISBLANK(ArraySheet!B7),"",IF(C7="",ArraySheet!B7,"")) -> 
B8: =IF(OR(ArraySheet!A8="",ArraySheet!B8=""),"",SUM(ArraySheet!$B$2:B8)/SUM(ArraySheet!$B$2:'ArraySheet'!$B$501)) -> 0.2703846154 | C8: =IF(ISBLANK(ArraySheet!B8),"",IF(B8<=$F$1,ArraySheet!B8,"")) -> 95 | D8: =IF(ISBLANK(ArraySheet!B8),"",IF(C8="",ArraySheet!B8,"")) -> 
B9: =IF(OR(ArraySheet!A9="",ArraySheet!B9=""),"",SUM(ArraySheet!$B$2:B9)/SUM(ArraySheet!$B$2:'ArraySheet'!$B$501)) -> 0.3073076923 | C9: =IF(ISBLANK(ArraySheet!B9),"",IF(B9<=$F$1,ArraySheet!B9,"")) -> 96 | D9: =IF(ISBLANK(ArraySheet!B9),"",IF(C9="",ArraySheet!B9,"")) -> 
B10: =IF(OR(ArraySheet!A10="",ArraySheet!B10=""),"",SUM(ArraySheet!$B$2:B10)/SUM(ArraySheet!$B$2:'ArraySheet'!$B$501)) -> 0.3480769231 | C10: =IF(ISBLANK(ArraySheet!B10),"",IF(B10<=$F$1,ArraySheet!B10,"")) -> 106 | D10: =IF(ISBLANK(ArraySheet!B10),"",IF(C10="",ArraySheet!B10,"")) -> 
B11: =IF(OR(ArraySheet!A11="",ArraySheet!B11=""),"",SUM(ArraySheet!$B$2:B11)/SUM(ArraySheet!$B$2:'ArraySheet'!$B$501)) -> 0.3865384615 | C11: =IF(ISBLANK(ArraySheet!B11),"",IF(B11<=$F$1,ArraySheet!B11,"")) -> 100 | D11: =IF(ISBLANK(ArraySheet!B11),"",IF(C11="",ArraySheet!B11,"")) -> 
B12: =IF(OR(ArraySheet!A12="",ArraySheet!B12=""),"",SUM(ArraySheet!$B$2:B12)/SUM(ArraySheet!$B$2:'ArraySheet'!$B$501)) -> 0.4242307692 | C12: =IF(ISBLANK(ArraySheet!B12),"",IF(B12<=$F$1,ArraySheet!B12,"")) -> 98 | D12: =IF(ISBLANK(ArraySheet!B12),"",IF(C12="",ArraySheet!B12,"")) -> 
B13: =IF(OR(ArraySheet!A13="",ArraySheet!B13=""),"",SUM(ArraySheet!$B$2:B13)/SUM(ArraySheet!$B$2:'ArraySheet'!$B$501)) -> 0.4634615385 | C13: =IF(ISBLANK(ArraySheet!B13),"",IF(B13<=$F$1,ArraySheet!B13,"")) -> 102 | D13: =IF(ISBLANK(ArraySheet!B13),"",IF(C13="",ArraySheet!B13,"")) -> 
B14: =IF(OR(ArraySheet!A14="",ArraySheet!B14=""),"",SUM(ArraySheet!$B$2:B14)/SUM(ArraySheet!$B$2:'ArraySheet'!$B$501)) -> 0.505 | C14: =IF(ISBLANK(ArraySheet!B14),"",IF(B14<=$F$1,ArraySheet!B14,"")) -> 108 | D14: =IF(ISBLANK(ArraySheet!B14),"",IF(C14="",ArraySheet!B14,"")) -> 
B15: =IF(OR(ArraySheet!A15="",ArraySheet!B15=""),"",SUM(ArraySheet!$B$2:B15)/SUM(ArraySheet!$B$2:'ArraySheet'!$B$501)) -> 0.5461538462 | C15: =IF(ISBLANK(ArraySheet!B15),"",IF(B15<=$F$1,ArraySheet!B15,"")) -> 107 | D15: =IF(ISBLANK(ArraySheet!B15),"",IF(C15="",ArraySheet!B15,"")) -> 
B16: =IF(OR(ArraySheet!A16="",ArraySheet!B16=""),"",SUM(ArraySheet!$B$2:B16)/SUM(ArraySheet!$B$2:'ArraySheet'!$B$501)) -> 0.5830769231 | C16: =IF(ISBLANK(ArraySheet!B16),"",IF(B16<=$F$1,ArraySheet!B16,"")) -> 96 | D16: =IF(ISBLANK(ArraySheet!B16),"",IF(C16="",ArraySheet!B16,"")) -> 
B17: =IF(OR(ArraySheet!A17="",ArraySheet!B17=""),"",SUM(ArraySheet!$B$2:B17)/SUM(ArraySheet!$B$2:'ArraySheet'!$B$501)) -> 0.6242307692 | C17: =IF(ISBLANK(ArraySheet!B17),"",IF(B17<=$F$1,ArraySheet!B17,"")) -> 107 | D17: =IF(ISBLANK(ArraySheet!B17),"",IF(C17="",ArraySheet!B17,"")) -> 
B18: =IF(OR(ArraySheet!A18="",ArraySheet!B18=""),"",SUM(ArraySheet!$B$2:B18)/SUM(ArraySheet!$B$2:'ArraySheet'!$B$501)) -> 0.6623076923 | C18: =IF(ISBLANK(ArraySheet!B18),"",IF(B18<=$F$1,ArraySheet!B18,"")) -> 99 | D18: =IF(ISBLANK(ArraySheet!B18),"",IF(C18="",ArraySheet!B18,"")) -> 
B19: =IF(OR(ArraySheet!A19="",ArraySheet!B19=""),"",SUM(ArraySheet!$B$2:B19)/SUM(ArraySheet!$B$2:'ArraySheet'!$B$501)) -> 0.7046153846 | C19: =IF(ISBLANK(ArraySheet!B19),"",IF(B19<=$F$1,ArraySheet!B19,"")) -> 110 | D19: =IF(ISBLANK(ArraySheet!B19),"",IF(C19="",ArraySheet!B19,"")) -> 
B20: =IF(OR(ArraySheet!A20="",ArraySheet!B20=""),"",SUM(ArraySheet!$B$2:B20)/SUM(ArraySheet!$B$2:'ArraySheet'!$B$501)) -> 0.7488461538 | C20: =IF(ISBLANK(ArraySheet!B20),"",IF(B20<=$F$1,ArraySheet!B20,"")) -> 115 | D20: =IF(ISBLANK(ArraySheet!B20),"",IF(C20="",ArraySheet!B20,"")) -> 
B21: =IF(OR(ArraySheet!A21="",ArraySheet!B21=""),"",SUM(ArraySheet!$B$2:B21)/SUM(ArraySheet!$B$2:'ArraySheet'!$B$501)) -> 0.7830769231 | C21: =IF(ISBLANK(ArraySheet!B21),"",IF(B21<=$F$1,ArraySheet!B21,"")) -> 89 | D21: =IF(ISBLANK(ArraySheet!B21),"",IF(C21="",ArraySheet!B21,"")) -> 
B22: =IF(OR(ArraySheet!A22="",ArraySheet!B22=""),"",SUM(ArraySheet!$B$2:B22)/SUM(ArraySheet!$B$2:'ArraySheet'!$B$501)) -> 0.8234615385 | C22: =IF(ISBLANK(ArraySheet!B22),"",IF(B22<=$F$1,ArraySheet!B22,"")) ->  | D22: =IF(ISBLANK(ArraySheet!B22),"",IF(C22="",ArraySheet!B22,"")) -> 105
B23: =IF(OR(ArraySheet!A23="",ArraySheet!B23=""),"",SUM(ArraySheet!$B$2:B23)/SUM(ArraySheet!$B$2:'ArraySheet'!$B$501)) -> 0.8642307692 | C23: =IF(ISBLANK(ArraySheet!B23),"",IF(B23<=$F$1,ArraySheet!B23,"")) ->  | D23: =IF(ISBLANK(ArraySheet!B23),"",IF(C23="",ArraySheet!B23,"")) -> 106
B24: =IF(OR(ArraySheet!A24="",ArraySheet!B24=""),"",SUM(ArraySheet!$B$2:B24)/SUM(ArraySheet!$B$2:'ArraySheet'!$B$501)) -> 0.9115384615 | C24: =IF(ISBLANK(ArraySheet!B24),"",IF(B24<=$F$1,ArraySheet!B24,"")) ->  | D24: =IF(ISBLANK(ArraySheet!B24),"",IF(C24="",ArraySheet!B24,"")) -> 123
B25: =IF(OR(ArraySheet!A25="",ArraySheet!B25=""),"",SUM(ArraySheet!$B$2:B25)/SUM(ArraySheet!$B$2:'ArraySheet'!$B$501)) -> 0.9569230769 | C25: =IF(ISBLANK(ArraySheet!B25),"",IF(B25<=$F$1,ArraySheet!B25,"")) ->  | D25: =IF(ISBLANK(ArraySheet!B25),"",IF(C25="",ArraySheet!B25,"")) -> 118
B26: =IF(OR(ArraySheet!A26="",ArraySheet!B26=""),"",SUM(ArraySheet!$B$2:B26)/SUM(ArraySheet!$B$2:'ArraySheet'!$B$501)) -> 1 | C26: =IF(ISBLANK(ArraySheet!B26),"",IF(B26<=$F$1,ArraySheet!B26,"")) ->  | D26: =IF(ISBLANK(ArraySheet!B26),"",IF(C26="",ArraySheet!B26,"")) -> 112
B27: =IF(OR(ArraySheet!A27="",ArraySheet!B27=""),"",SUM(ArraySheet!$B$2:B27)/SUM(ArraySheet!$B$2:'ArraySheet'!$B$501)) ->  | C27: =IF(ISBLANK(ArraySheet!B27),"",IF(B27<=$F$1,ArraySheet!B27,"")) ->  | D27: =IF(ISBLANK(ArraySheet!B27),"",IF(C27="",ArraySheet!B27,"")) -> 
B28: =IF(OR(ArraySheet!A28="",ArraySheet!B28=""),"",SUM(ArraySheet!$B$2:B28)/SUM(ArraySheet!$B$2:'ArraySheet'!$B$501)) ->  | C28: =IF(ISBLANK(ArraySheet!B28),"",IF(B28<=$F$1,ArraySheet!B28,"")) ->  | D28: =IF(ISBLANK(ArraySheet!B28),"",IF(C28="",ArraySheet!B28,"")) -> 
B29: =IF(OR(ArraySheet!A29="",ArraySheet!B29=""),"",SUM(ArraySheet!$B$2:B29)/SUM(ArraySheet!$B$2:'ArraySheet'!$B$501)) ->  | C29: =IF(ISBLANK(ArraySheet!B29),"",IF(B29<=$F$1,ArraySheet!B29,"")) ->  | D29: =IF(ISBLANK(ArraySheet!B29),"",IF(C29="",ArraySheet!B29,"")) -> 
B30: =IF(OR(ArraySheet!A30="",ArraySheet!B30=""),"",SUM(ArraySheet!$B$2:B30)/SUM(ArraySheet!$B$2:'ArraySheet'!$B$501)) ->  | C30: =IF(ISBLANK(ArraySheet!B30),"",IF(B30<=$F$1,ArraySheet!B30,"")) ->  | D30: =IF(ISBLANK(ArraySheet!B30),"",IF(C30="",ArraySheet!B30,"")) -> 
B31: =IF(OR(ArraySheet!A31="",ArraySheet!B31=""),"",SUM(ArraySheet!$B$2:B31)/SUM(ArraySheet!$B$2:'ArraySheet'!$B$501)) ->  | C31: =IF(ISBLANK(ArraySheet!B31),"",IF(B31<=$F$1,ArraySheet!B31,"")) ->  | D31: =IF(ISBLANK(ArraySheet!B31),"",IF(C31="",ArraySheet!B31,"")) -> 
B32: =IF(OR(ArraySheet!A32="",ArraySheet!B32=""),"",SUM(ArraySheet!$B$2:B32)/SUM(ArraySheet!$B$2:'ArraySheet'!$B$501)) ->  | C32: =IF(ISBLANK(ArraySheet!B32),"",IF(B32<=$F$1,ArraySheet!B32,"")) ->  | D32: =IF(ISBLANK(ArraySheet!B32),"",IF(C32="",ArraySheet!B32,"")) -> 
B33: =IF(OR(ArraySheet!A33="",ArraySheet!B33=""),"",SUM(ArraySheet!$B$2:B33)/SUM(ArraySheet!$B$2:'ArraySheet'!$B$501)) ->  | C33: =IF(ISBLANK(ArraySheet!B33),"",IF(B33<=$F$1,ArraySheet!B33,"")) ->  | D33: =IF(ISBLANK(ArraySheet!B33),"",IF(C33="",ArraySheet!B33,"")) -> 
B34: =IF(OR(ArraySheet!A34="",ArraySheet!B34=""),"",SUM(ArraySheet!$B$2:B34)/SUM(ArraySheet!$B$2:'ArraySheet'!$B$501)) ->  | C34: =IF(ISBLANK(ArraySheet!B34),"",IF(B34<=$F$1,ArraySheet!B34,"")) ->  | D34: =IF(ISBLANK(ArraySheet!B34),"",IF(C34="",ArraySheet!B34,"")) -> 
B35: =IF(OR(ArraySheet!A35="",ArraySheet!B35=""),"",SUM(ArraySheet!$B$2:B35)/SUM(ArraySheet!$B$2:'ArraySheet'!$B$501)) ->  | C35: =IF(ISBLANK(ArraySheet!B35),"",IF(B35<=$F$1,ArraySheet!B35,"")) ->  | D35: =IF(ISBLANK(ArraySheet!B35),"",IF(C35="",ArraySheet!B35,"")) -> 
B36: =IF(OR(ArraySheet!A36="",ArraySheet!B36=""),"",SUM(ArraySheet!$B$2:B36)/SUM(ArraySheet!$B$2:'ArraySheet'!$B$501)) ->  | C36: =IF(ISBLANK(ArraySheet!B36),"",IF(B36<=$F$1,ArraySheet!B36,"")) ->  | D36: =IF(ISBLANK(ArraySheet!B36),"",IF(C36="",ArraySheet!B36,"")) -> 
B37: =IF(OR(ArraySheet!A37="",ArraySheet!B37=""),"",SUM(ArraySheet!$B$2:B37)/SUM(ArraySheet!$B$2:'ArraySheet'!$B$501)) ->  | C37: =IF(ISBLANK(ArraySheet!B37),"",IF(B37<=$F$1,ArraySheet!B37,"")) ->  | D37: =IF(ISBLANK(ArraySheet!B37),"",IF(C37="",ArraySheet!B37,"")) -> 
B38: =IF(OR(ArraySheet!A38="",ArraySheet!B38=""),"",SUM(ArraySheet!$B$2:B38)/SUM(ArraySheet!$B$2:'ArraySheet'!$B$501)) ->  | C38: =IF(ISBLANK(ArraySheet!B38),"",IF(B38<=$F$1,ArraySheet!B38,"")) ->  | D38: =IF(ISBLANK(ArraySheet!B38),"",IF(C38="",ArraySheet!B38,"")) -> 
B39: =IF(OR(ArraySheet!A39="",ArraySheet!B39=""),"",SUM(ArraySheet!$B$2:B39)/SUM(ArraySheet!$B$2:'ArraySheet'!$B$501)) ->  | C39: =IF(ISBLANK(ArraySheet!B39),"",IF(B39<=$F$1,ArraySheet!B39,"")) ->  | D39: =IF(ISBLANK(ArraySheet!B39),"",IF(C39="",ArraySheet!B39,"")) -> 
B40: =IF(OR(ArraySheet!A40="",ArraySheet!B40=""),"",SUM(ArraySheet!$B$2:B40)/SUM(ArraySheet!$B$2:'ArraySheet'!$B$501)) ->  | C40: =IF(ISBLANK(ArraySheet!B40),"",IF(B40<=$F$1,ArraySheet!B40,"")) ->  | D40: =IF(ISBLANK(ArraySheet!B40),"",IF(C40="",ArraySheet!B40,"")) -> 
B41: =IF(OR(ArraySheet!A41="",ArraySheet!B41=""),"",SUM(ArraySheet!$B$2:B41)/SUM(ArraySheet!$B$2:'ArraySheet'!$B$501)) ->  | C41: =IF(ISBLANK(ArraySheet!B41),"",IF(B41<=$F$1,ArraySheet!B41,"")) ->  | D41: =IF(ISBLANK(ArraySheet!B41),"",IF(C41="",ArraySheet!B41,"")) -> 
B42: =IF(OR(ArraySheet!A42="",ArraySheet!B42=""),"",SUM(ArraySheet!$B$2:B42)/SUM(ArraySheet!$B$2:'ArraySheet'!$B$501)) ->  | C42: =IF(ISBLANK(ArraySheet!B42),"",IF(B42<=$F$1,ArraySheet!B42,"")) ->  | D42: =IF(ISBLANK(ArraySheet!B42),"",IF(C42="",ArraySheet!B42,"")) -> 
B43: =IF(OR(ArraySheet!A43="",ArraySheet!B43=""),"",SUM(ArraySheet!$B$2:B43)/SUM(ArraySheet!$B$2:'ArraySheet'!$B$501)) ->  | C43: =IF(ISBLANK(ArraySheet!B43),"",IF(B43<=$F$1,ArraySheet!B43,"")) ->  | D43: =IF(ISBLANK(ArraySheet!B43),"",IF(C43="",ArraySheet!B43,"")) -> 
B44: =IF(OR(ArraySheet!A44="",ArraySheet!B44=""),"",SUM(ArraySheet!$B$2:B44)/SUM(ArraySheet!$B$2:'ArraySheet'!$B$501)) ->  | C44: =IF(ISBLANK(ArraySheet!B44),"",IF(B44<=$F$1,ArraySheet!B44,"")) ->  | D44: =IF(ISBLANK(ArraySheet!B44),"",IF(C44="",ArraySheet!B44,"")) -> 
B45: =IF(OR(ArraySheet!A45="",ArraySheet!B45=""),"",SUM(ArraySheet!$B$2:B45)/SUM(ArraySheet!$B$2:'ArraySheet'!$B$501)) ->  | C45: =IF(ISBLANK(ArraySheet!B45),"",IF(B45<=$F$1,ArraySheet!B45,"")) ->  | D45: =IF(ISBLANK(ArraySheet!B45),"",IF(C45="",ArraySheet!B45,"")) -> 
B46: =IF(OR(ArraySheet!A46="",ArraySheet!B46=""),"",SUM(ArraySheet!$B$2:B46)/SUM(ArraySheet!$B$2:'ArraySheet'!$B$501)) ->  | C46: =IF(ISBLANK(ArraySheet!B46),"",IF(B46<=$F$1,ArraySheet!B46,"")) ->  | D46: =IF(ISBLANK(ArraySheet!B46),"",IF(C46="",ArraySheet!B46,"")) -> 
B47: =IF(OR(ArraySheet!A47="",ArraySheet!B47=""),"",SUM(ArraySheet!$B$2:B47)/SUM(ArraySheet!$B$2:'ArraySheet'!$B$501)) ->  | C47: =IF(ISBLANK(ArraySheet!B47),"",IF(B47<=$F$1,ArraySheet!B47,"")) ->  | D47: =IF(ISBLANK(ArraySheet!B47),"",IF(C47="",ArraySheet!B47,"")) -> 
B48: =IF(OR(ArraySheet!A48="",ArraySheet!B48=""),"",SUM(ArraySheet!$B$2:B48)/SUM(ArraySheet!$B$2:'ArraySheet'!$B$501)) ->  | C48: =IF(ISBLANK(ArraySheet!B48),"",IF(B48<=$F$1,ArraySheet!B48,"")) ->  | D48: =IF(ISBLANK(ArraySheet!B48),"",IF(C48="",ArraySheet!B48,"")) -> 
B49: =IF(OR(ArraySheet!A49="",ArraySheet!B49=""),"",SUM(ArraySheet!$B$2:B49)/SUM(ArraySheet!$B$2:'ArraySheet'!$B$501)) ->  | C49: =IF(ISBLANK(ArraySheet!B49),"",IF(B49<=$F$1,ArraySheet!B49,"")) ->  | D49: =IF(ISBLANK(ArraySheet!B49),"",IF(C49="",ArraySheet!B49,"")) -> 
B50: =IF(OR(ArraySheet!A50="",ArraySheet!B50=""),"",SUM(ArraySheet!$B$2:B50)/SUM(ArraySheet!$B$2:'ArraySheet'!$B$501)) ->  | C50: =IF(ISBLANK(ArraySheet!B50),"",IF(B50<=$F$1,ArraySheet!B50,"")) ->  | D50: =IF(ISBLANK(ArraySheet!B50),"",IF(C50="",ArraySheet!B50,"")) -> 
B51: =IF(OR(ArraySheet!A51="",ArraySheet!B51=""),"",SUM(ArraySheet!$B$2:B51)/SUM(ArraySheet!$B$2:'ArraySheet'!$B$501)) ->  | C51: =IF(ISBLANK(ArraySheet!B51),"",IF(B51<=$F$1,ArraySheet!B51,"")) ->  | D51: =IF(ISBLANK(ArraySheet!B51),"",IF(C51="",ArraySheet!B51,"")) -> 
B52: =IF(OR(ArraySheet!A52="",ArraySheet!B52=""),"",SUM(ArraySheet!$B$2:B52)/SUM(ArraySheet!$B$2:'ArraySheet'!$B$501)) ->  | C52: =IF(ISBLANK(ArraySheet!B52),"",IF(B52<=$F$1,ArraySheet!B52,"")) ->  | D52: =IF(ISBLANK(ArraySheet!B52),"",IF(C52="",ArraySheet!B52,"")) -> 
B53: =IF(OR(ArraySheet!A53="",ArraySheet!B53=""),"",SUM(ArraySheet!$B$2:B53)/SUM(ArraySheet!$B$2:'ArraySheet'!$B$501)) ->  | C53: =IF(ISBLANK(ArraySheet!B53),"",IF(B53<=$F$1,ArraySheet!B53,"")) ->  | D53: =IF(ISBLANK(ArraySheet!B53),"",IF(C53="",ArraySheet!B53,"")) -> 
B54: =IF(OR(ArraySheet!A54="",ArraySheet!B54=""),"",SUM(ArraySheet!$B$2:B54)/SUM(ArraySheet!$B$2:'ArraySheet'!$B$501)) ->  | C54: =IF(ISBLANK(ArraySheet!B54),"",IF(B54<=$F$1,ArraySheet!B54,"")) ->  | D54: =IF(ISBLANK(ArraySheet!B54),"",IF(C54="",ArraySheet!B54,"")) -> 
B55: =IF(OR(ArraySheet!A55="",ArraySheet!B55=""),"",SUM(ArraySheet!$B$2:B55)/SUM(ArraySheet!$B$2:'ArraySheet'!$B$501)) ->  | C55: =IF(ISBLANK(ArraySheet!B55),"",IF(B55<=$F$1,ArraySheet!B55,"")) ->  | D55: =IF(ISBLANK(ArraySheet!B55),"",IF(C55="",ArraySheet!B55,"")) -> 
B56: =IF(OR(ArraySheet!A56="",ArraySheet!B56=""),"",SUM(ArraySheet!$B$2:B56)/SUM(ArraySheet!$B$2:'ArraySheet'!$B$501)) ->  | C56: =IF(ISBLANK(ArraySheet!B56),"",IF(B56<=$F$1,ArraySheet!B56,"")) ->  | D56: =IF(ISBLANK(ArraySheet!B56),"",IF(C56="",ArraySheet!B56,"")) -> 
B57: =IF(OR(ArraySheet!A57="",ArraySheet!B57=""),"",SUM(ArraySheet!$B$2:B57)/SUM(ArraySheet!$B$2:'ArraySheet'!$B$501)) ->  | C57: =IF(ISBLANK(ArraySheet!B57),"",IF(B57<=$F$1,ArraySheet!B57,"")) ->  | D57: =IF(ISBLANK(ArraySheet!B57),"",IF(C57="",ArraySheet!B57,"")) -> 
B58: =IF(OR(ArraySheet!A58="",ArraySheet!B58=""),"",SUM(ArraySheet!$B$2:B58)/SUM(ArraySheet!$B$2:'ArraySheet'!$B$501)) ->  | C58: =IF(ISBLANK(ArraySheet!B58),"",IF(B58<=$F$1,ArraySheet!B58,"")) ->  | D58: =IF(ISBLANK(ArraySheet!B58),"",IF(C58="",ArraySheet!B58,"")) -> 
B59: =IF(OR(ArraySheet!A59="",ArraySheet!B59=""),"",SUM(ArraySheet!$B$2:B59)/SUM(ArraySheet!$B$2:'ArraySheet'!$B$501)) ->  | C59: =IF(ISBLANK(ArraySheet!B59),"",IF(B59<=$F$1,ArraySheet!B59,"")) ->  | D59: =IF(ISBLANK(ArraySheet!B59),"",IF(C59="",ArraySheet!B59,"")) -> 
B60: =IF(OR(ArraySheet!A60="",ArraySheet!B60=""),"",SUM(ArraySheet!$B$2:B60)/SUM(ArraySheet!$B$2:'ArraySheet'!$B$501)) ->  | C60: =IF(ISBLANK(ArraySheet!B60),"",IF(B60<=$F$1,ArraySheet!B60,"")) ->  | D60: =IF(ISBLANK(ArraySheet!B60),"",IF(C60="",ArraySheet!B60,"")) -> 
B61: =IF(OR(ArraySheet!A61="",ArraySheet!B61=""),"",SUM(ArraySheet!$B$2:B61)/SUM(ArraySheet!$B$2:'ArraySheet'!$B$501)) ->  | C61: =IF(ISBLANK(ArraySheet!B61),"",IF(B61<=$F$1,ArraySheet!B61,"")) ->  | D61: =IF(ISBLANK(ArraySheet!B61),"",IF(C61="",ArraySheet!B61,"")) -> 
B62: =IF(OR(ArraySheet!A62="",ArraySheet!B62=""),"",SUM(ArraySheet!$B$2:B62)/SUM(ArraySheet!$B$2:'ArraySheet'!$B$501)) ->  | C62: =IF(ISBLANK(ArraySheet!B62),"",IF(B62<=$F$1,ArraySheet!B62,"")) ->  | D62: =IF(ISBLANK(ArraySheet!B62),"",IF(C62="",ArraySheet!B62,"")) -> 
B63: =IF(OR(ArraySheet!A63="",ArraySheet!B63=""),"",SUM(ArraySheet!$B$2:B63)/SUM(ArraySheet!$B$2:'ArraySheet'!$B$501)) ->  | C63: =IF(ISBLANK(ArraySheet!B63),"",IF(B63<=$F$1,ArraySheet!B63,"")) ->  | D63: =IF(ISBLANK(ArraySheet!B63),"",IF(C63="",ArraySheet!B63,"")) -> 
B64: =IF(OR(ArraySheet!A64="",ArraySheet!B64=""),"",SUM(ArraySheet!$B$2:B64)/SUM(ArraySheet!$B$2:'ArraySheet'!$B$501)) ->  | C64: =IF(ISBLANK(ArraySheet!B64),"",IF(B64<=$F$1,ArraySheet!B64,"")) ->  | D64: =IF(ISBLANK(ArraySheet!B64),"",IF(C64="",ArraySheet!B64,"")) -> 
B65: =IF(OR(ArraySheet!A65="",ArraySheet!B65=""),"",SUM(ArraySheet!$B$2:B65)/SUM(ArraySheet!$B$2:'ArraySheet'!$B$501)) ->  | C65: =IF(ISBLANK(ArraySheet!B65),"",IF(B65<=$F$1,ArraySheet!B65,"")) ->  | D65: =IF(ISBLANK(ArraySheet!B65),"",IF(C65="",ArraySheet!B65,"")) -> 
B66: =IF(OR(ArraySheet!A66="",ArraySheet!B66=""),"",SUM(ArraySheet!$B$2:B66)/SUM(ArraySheet!$B$2:'ArraySheet'!$B$501)) ->  | C66: =IF(ISBLANK(ArraySheet!B66),"",IF(B66<=$F$1,ArraySheet!B66,"")) ->  | D66: =IF(ISBLANK(ArraySheet!B66),"",IF(C66="",ArraySheet!B66,"")) -> 
B67: =IF(OR(ArraySheet!A67="",ArraySheet!B67=""),"",SUM(ArraySheet!$B$2:B67)/SUM(ArraySheet!$B$2:'ArraySheet'!$B$501)) ->  | C67: =IF(ISBLANK(ArraySheet!B67),"",IF(B67<=$F$1,ArraySheet!B67,"")) ->  | D67: =IF(ISBLANK(ArraySheet!B67),"",IF(C67="",ArraySheet!B67,"")) -> 
B68: =IF(OR(ArraySheet!A68="",ArraySheet!B68=""),"",SUM(ArraySheet!$B$2:B68)/SUM(ArraySheet!$B$2:'ArraySheet'!$B$501)) ->  | C68: =IF(ISBLANK(ArraySheet!B68),"",IF(B68<=$F$1,ArraySheet!B68,"")) ->  | D68: =IF(ISBLANK(ArraySheet!B68),"",IF(C68="",ArraySheet!B68,"")) -> 
B69: =IF(OR(ArraySheet!A69="",ArraySheet!B69=""),"",SUM(ArraySheet!$B$2:B69)/SUM(ArraySheet!$B$2:'ArraySheet'!$B$501)) ->  | C69: =IF(ISBLANK(ArraySheet!B69),"",IF(B69<=$F$1,ArraySheet!B69,"")) ->  | D69: =IF(ISBLANK(ArraySheet!B69),"",IF(C69="",ArraySheet!B69,"")) -> 
B70: =IF(OR(ArraySheet!A70="",ArraySheet!B70=""),"",SUM(ArraySheet!$B$2:B70)/SUM(ArraySheet!$B$2:'ArraySheet'!$B$501)) ->  | C70: =IF(ISBLANK(ArraySheet!B70),"",IF(B70<=$F$1,ArraySheet!B70,"")) ->  | D70: =IF(ISBLANK(ArraySheet!B70),"",IF(C70="",ArraySheet!B70,"")) -> 
B71: =IF(OR(ArraySheet!A71="",ArraySheet!B71=""),"",SUM(ArraySheet!$B$2:B71)/SUM(ArraySheet!$B$2:'ArraySheet'!$B$501)) ->  | C71: =IF(ISBLANK(ArraySheet!B71),"",IF(B71<=$F$1,ArraySheet!B71,"")) ->  | D71: =IF(ISBLANK(ArraySheet!B71),"",IF(C71="",ArraySheet!B71,"")) -> 
B72: =IF(OR(ArraySheet!A72="",ArraySheet!B72=""),"",SUM(ArraySheet!$B$2:B72)/SUM(ArraySheet!$B$2:'ArraySheet'!$B$501)) ->  | C72: =IF(ISBLANK(ArraySheet!B72),"",IF(B72<=$F$1,ArraySheet!B72,"")) ->  | D72: =IF(ISBLANK(ArraySheet!B72),"",IF(C72="",ArraySheet!B72,"")) -> 
B73: =IF(OR(ArraySheet!A73="",ArraySheet!B73=""),"",SUM(ArraySheet!$B$2:B73)/SUM(ArraySheet!$B$2:'ArraySheet'!$B$501)) ->  | C73: =IF(ISBLANK(ArraySheet!B73),"",IF(B73<=$F$1,ArraySheet!B73,"")) ->  | D73: =IF(ISBLANK(ArraySheet!B73),"",IF(C73="",ArraySheet!B73,"")) -> 
B74: =IF(OR(ArraySheet!A74="",ArraySheet!B74=""),"",SUM(ArraySheet!$B$2:B74)/SUM(ArraySheet!$B$2:'ArraySheet'!$B$501)) ->  | C74: =IF(ISBLANK(ArraySheet!B74),"",IF(B74<=$F$1,ArraySheet!B74,"")) ->  | D74: =IF(ISBLANK(ArraySheet!B74),"",IF(C74="",ArraySheet!B74,"")) -> 
B75: =IF(OR(ArraySheet!A75="",ArraySheet!B75=""),"",SUM(ArraySheet!$B$2:B75)/SUM(ArraySheet!$B$2:'ArraySheet'!$B$501)) ->  | C75: =IF(ISBLANK(ArraySheet!B75),"",IF(B75<=$F$1,ArraySheet!B75,"")) ->  | D75: =IF(ISBLANK(ArraySheet!B75),"",IF(C75="",ArraySheet!B75,"")) -> 
B76: =IF(OR(ArraySheet!A76="",ArraySheet!B76=""),"",SUM(ArraySheet!$B$2:B76)/SUM(ArraySheet!$B$2:'ArraySheet'!$B$501)) ->  | C76: =IF(ISBLANK(ArraySheet!B76),"",IF(B76<=$F$1,ArraySheet!B76,"")) ->  | D76: =IF(ISBLANK(ArraySheet!B76),"",IF(C76="",ArraySheet!B76,"")) -> 
B77: =IF(OR(ArraySheet!A77="",ArraySheet!B77=""),"",SUM(ArraySheet!$B$2:B77)/SUM(ArraySheet!$B$2:'ArraySheet'!$B$501)) ->  | C77: =IF(ISBLANK(ArraySheet!B77),"",IF(B77<=$F$1,ArraySheet!B77,"")) ->  | D77: =IF(ISBLANK(ArraySheet!B77),"",IF(C77="",ArraySheet!B77,"")) -> 
B78: =IF(OR(ArraySheet!A78="",ArraySheet!B78=""),"",SUM(ArraySheet!$B$2:B78)/SUM(ArraySheet!$B$2:'ArraySheet'!$B$501)) ->  | C78: =IF(ISBLANK(ArraySheet!B78),"",IF(B78<=$F$1,ArraySheet!B78,"")) ->  | D78: =IF(ISBLANK(ArraySheet!B78),"",IF(C78="",ArraySheet!B78,"")) -> 
B79: =IF(OR(ArraySheet!A79="",ArraySheet!B79=""),"",SUM(ArraySheet!$B$2:B79)/SUM(ArraySheet!$B$2:'ArraySheet'!$B$501)) ->  | C79: =IF(ISBLANK(ArraySheet!B79),"",IF(B79<=$F$1,ArraySheet!B79,"")) ->  | D79: =IF(ISBLANK(ArraySheet!B79),"",IF(C79="",ArraySheet!B79,"")) -> 
B80: =IF(OR(ArraySheet!A80="",ArraySheet!B80=""),"",SUM(ArraySheet!$B$2:B80)/SUM(ArraySheet!$B$2:'ArraySheet'!$B$501)) ->  | C80: =IF(ISBLANK(ArraySheet!B80),"",IF(B80<=$F$1,ArraySheet!B80,"")) ->  | D80: =IF(ISBLANK(ArraySheet!B80),"",IF(C80="",ArraySheet!B80,"")) -> 
B81: =IF(OR(ArraySheet!A81="",ArraySheet!B81=""),"",SUM(ArraySheet!$B$2:B81)/SUM(ArraySheet!$B$2:'ArraySheet'!$B$501)) ->  | C81: =IF(ISBLANK(ArraySheet!B81),"",IF(B81<=$F$1,ArraySheet!B81,"")) ->  | D81: =IF(ISBLANK(ArraySheet!B81),"",IF(C81="",ArraySheet!B81,"")) -> 
B82: =IF(OR(ArraySheet!A82="",ArraySheet!B82=""),"",SUM(ArraySheet!$B$2:B82)/SUM(ArraySheet!$B$2:'ArraySheet'!$B$501)) ->  | C82: =IF(ISBLANK(ArraySheet!B82),"",IF(B82<=$F$1,ArraySheet!B82,"")) ->  | D82: =IF(ISBLANK(ArraySheet!B82),"",IF(C82="",ArraySheet!B82,"")) -> 
B83: =IF(OR(ArraySheet!A83="",ArraySheet!B83=""),"",SUM(ArraySheet!$B$2:B83)/SUM(ArraySheet!$B$2:'ArraySheet'!$B$501)) ->  | C83: =IF(ISBLANK(ArraySheet!B83),"",IF(B83<=$F$1,ArraySheet!B83,"")) ->  | D83: =IF(ISBLANK(ArraySheet!B83),"",IF(C83="",ArraySheet!B83,"")) -> 
B84: =IF(OR(ArraySheet!A84="",ArraySheet!B84=""),"",SUM(ArraySheet!$B$2:B84)/SUM(ArraySheet!$B$2:'ArraySheet'!$B$501)) ->  | C84: =IF(ISBLANK(ArraySheet!B84),"",IF(B84<=$F$1,ArraySheet!B84,"")) ->  | D84: =IF(ISBLANK(ArraySheet!B84),"",IF(C84="",ArraySheet!B84,"")) -> 
B85: =IF(OR(ArraySheet!A85="",ArraySheet!B85=""),"",SUM(ArraySheet!$B$2:B85)/SUM(ArraySheet!$B$2:'ArraySheet'!$B$501)) ->  | C85: =IF(ISBLANK(ArraySheet!B85),"",IF(B85<=$F$1,ArraySheet!B85,"")) ->  | D85: =IF(ISBLANK(ArraySheet!B85),"",IF(C85="",ArraySheet!B85,"")) -> 
B86: =IF(OR(ArraySheet!A86="",ArraySheet!B86=""),"",SUM(ArraySheet!$B$2:B86)/SUM(ArraySheet!$B$2:'ArraySheet'!$B$501)) ->  | C86: =IF(ISBLANK(ArraySheet!B86),"",IF(B86<=$F$1,ArraySheet!B86,"")) ->  | D86: =IF(ISBLANK(ArraySheet!B86),"",IF(C86="",ArraySheet!B86,"")) -> 
B87: =IF(OR(ArraySheet!A87="",ArraySheet!B87=""),"",SUM(ArraySheet!$B$2:B87)/SUM(ArraySheet!$B$2:'ArraySheet'!$B$501)) ->  | C87: =IF(ISBLANK(ArraySheet!B87),"",IF(B87<=$F$1,ArraySheet!B87,"")) ->  | D87: =IF(ISBLANK(ArraySheet!B87),"",IF(C87="",ArraySheet!B87,"")) -> 
B88: =IF(OR(ArraySheet!A88="",ArraySheet!B88=""),"",SUM(ArraySheet!$B$2:B88)/SUM(ArraySheet!$B$2:'ArraySheet'!$B$501)) ->  | C88: =IF(ISBLANK(ArraySheet!B88),"",IF(B88<=$F$1,ArraySheet!B88,"")) ->  | D88: =IF(ISBLANK(ArraySheet!B88),"",IF(C88="",ArraySheet!B88,"")) -> 
B89: =IF(OR(ArraySheet!A89="",ArraySheet!B89=""),"",SUM(ArraySheet!$B$2:B89)/SUM(ArraySheet!$B$2:'ArraySheet'!$B$501)) ->  | C89: =IF(ISBLANK(ArraySheet!B89),"",IF(B89<=$F$1,ArraySheet!B89,"")) ->  | D89: =IF(ISBLANK(ArraySheet!B89),"",IF(C89="",ArraySheet!B89,"")) -> 
B90: =IF(OR(ArraySheet!A90="",ArraySheet!B90=""),"",SUM(ArraySheet!$B$2:B90)/SUM(ArraySheet!$B$2:'ArraySheet'!$B$501)) ->  | C90: =IF(ISBLANK(ArraySheet!B90),"",IF(B90<=$F$1,ArraySheet!B90,"")) ->  | D90: =IF(ISBLANK(ArraySheet!B90),"",IF(C90="",ArraySheet!B90,"")) -> 
B91: =IF(OR(ArraySheet!A91="",ArraySheet!B91=""),"",SUM(ArraySheet!$B$2:B91)/SUM(ArraySheet!$B$2:'ArraySheet'!$B$501)) ->  | C91: =IF(ISBLANK(ArraySheet!B91),"",IF(B91<=$F$1,ArraySheet!B91,"")) ->  | D91: =IF(ISBLANK(ArraySheet!B91),"",IF(C91="",ArraySheet!B91,"")) -> 
B92: =IF(OR(ArraySheet!A92="",ArraySheet!B92=""),"",SUM(ArraySheet!$B$2:B92)/SUM(ArraySheet!$B$2:'ArraySheet'!$B$501)) ->  | C92: =IF(ISBLANK(ArraySheet!B92),"",IF(B92<=$F$1,ArraySheet!B92,"")) ->  | D92: =IF(ISBLANK(ArraySheet!B92),"",IF(C92="",ArraySheet!B92,"")) -> 
B93: =IF(OR(ArraySheet!A93="",ArraySheet!B93=""),"",SUM(ArraySheet!$B$2:B93)/SUM(ArraySheet!$B$2:'ArraySheet'!$B$501)) ->  | C93: =IF(ISBLANK(ArraySheet!B93),"",IF(B93<=$F$1,ArraySheet!B93,"")) ->  | D93: =IF(ISBLANK(ArraySheet!B93),"",IF(C93="",ArraySheet!B93,"")) -> 
B94: =IF(OR(ArraySheet!A94="",ArraySheet!B94=""),"",SUM(ArraySheet!$B$2:B94)/SUM(ArraySheet!$B$2:'ArraySheet'!$B$501)) ->  | C94: =IF(ISBLANK(ArraySheet!B94),"",IF(B94<=$F$1,ArraySheet!B94,"")) ->  | D94: =IF(ISBLANK(ArraySheet!B94),"",IF(C94="",ArraySheet!B94,"")) -> 
B95: =IF(OR(ArraySheet!A95="",ArraySheet!B95=""),"",SUM(ArraySheet!$B$2:B95)/SUM(ArraySheet!$B$2:'ArraySheet'!$B$501)) ->  | C95: =IF(ISBLANK(ArraySheet!B95),"",IF(B95<=$F$1,ArraySheet!B95,"")) ->  | D95: =IF(ISBLANK(ArraySheet!B95),"",IF(C95="",ArraySheet!B95,"")) -> 
B96: =IF(OR(ArraySheet!A96="",ArraySheet!B96=""),"",SUM(ArraySheet!$B$2:B96)/SUM(ArraySheet!$B$2:'ArraySheet'!$B$501)) ->  | C96: =IF(ISBLANK(ArraySheet!B96),"",IF(B96<=$F$1,ArraySheet!B96,"")) ->  | D96: =IF(ISBLANK(ArraySheet!B96),"",IF(C96="",ArraySheet!B96,"")) -> 
B97: =IF(OR(ArraySheet!A97="",ArraySheet!B97=""),"",SUM(ArraySheet!$B$2:B97)/SUM(ArraySheet!$B$2:'ArraySheet'!$B$501)) ->  | C97: =IF(ISBLANK(ArraySheet!B97),"",IF(B97<=$F$1,ArraySheet!B97,"")) ->  | D97: =IF(ISBLANK(ArraySheet!B97),"",IF(C97="",ArraySheet!B97,"")) -> 
B98: =IF(OR(ArraySheet!A98="",ArraySheet!B98=""),"",SUM(ArraySheet!$B$2:B98)/SUM(ArraySheet!$B$2:'ArraySheet'!$B$501)) ->  | C98: =IF(ISBLANK(ArraySheet!B98),"",IF(B98<=$F$1,ArraySheet!B98,"")) ->  | D98: =IF(ISBLANK(ArraySheet!B98),"",IF(C98="",ArraySheet!B98,"")) -> 
B99: =IF(OR(ArraySheet!A99="",ArraySheet!B99=""),"",SUM(ArraySheet!$B$2:B99)/SUM(ArraySheet!$B$2:'ArraySheet'!$B$501)) ->  | C99: =IF(ISBLANK(ArraySheet!B99),"",IF(B99<=$F$1,ArraySheet!B99,"")) ->  | D99: =IF(ISBLANK(ArraySheet!B99),"",IF(C99="",ArraySheet!B99,"")) -> 
B100: =IF(OR(ArraySheet!A100="",ArraySheet!B100=""),"",SUM(ArraySheet!$B$2:B100)/SUM(ArraySheet!$B$2:'ArraySheet'!$B$501)) ->  | C100: =IF(ISBLANK(ArraySheet!B100),"",IF(B100<=$F$1,ArraySheet!B100,"")) ->  | D100: =IF(ISBLANK(ArraySheet!B100),"",IF(C100="",ArraySheet!B100,"")) -> 
B101: =IF(OR(ArraySheet!A101="",ArraySheet!B101=""),"",SUM(ArraySheet!$B$2:B101)/SUM(ArraySheet!$B$2:'ArraySheet'!$B$501)) ->  | C101: =IF(ISBLANK(ArraySheet!B101),"",IF(B101<=$F$1,ArraySheet!B101,"")) ->  | D101: =IF(ISBLANK(ArraySheet!B101),"",IF(C101="",ArraySheet!B101,"")) -> 
B102: =IF(OR(ArraySheet!A102="",ArraySheet!B102=""),"",SUM(ArraySheet!$B$2:B102)/SUM(ArraySheet!$B$2:'ArraySheet'!$B$501)) ->  | C102: =IF(ISBLANK(ArraySheet!B102),"",IF(B102<=$F$1,ArraySheet!B102,"")) ->  | D102: =IF(ISBLANK(ArraySheet!B102),"",IF(C102="",ArraySheet!B102,"")) -> 
B103: =IF(OR(ArraySheet!A103="",ArraySheet!B103=""),"",SUM(ArraySheet!$B$2:B103)/SUM(ArraySheet!$B$2:'ArraySheet'!$B$501)) ->  | C103: =IF(ISBLANK(ArraySheet!B103),"",IF(B103<=$F$1,ArraySheet!B103,"")) ->  | D103: =IF(ISBLANK(ArraySheet!B103),"",IF(C103="",ArraySheet!B103,"")) -> 
B104: =IF(OR(ArraySheet!A104="",ArraySheet!B104=""),"",SUM(ArraySheet!$B$2:B104)/SUM(ArraySheet!$B$2:'ArraySheet'!$B$501)) ->  | C104: =IF(ISBLANK(ArraySheet!B104),"",IF(B104<=$F$1,ArraySheet!B104,"")) ->  | D104: =IF(ISBLANK(ArraySheet!B104),"",IF(C104="",ArraySheet!B104,"")) -> 
B105: =IF(OR(ArraySheet!A105="",ArraySheet!B105=""),"",SUM(ArraySheet!$B$2:B105)/SUM(ArraySheet!$B$2:'ArraySheet'!$B$501)) ->  | C105: =IF(ISBLANK(ArraySheet!B105),"",IF(B105<=$F$1,ArraySheet!B105,"")) ->  | D105: =IF(ISBLANK(ArraySheet!B105),"",IF(C105="",ArraySheet!B105,"")) -> 
B106: =IF(OR(ArraySheet!A106="",ArraySheet!B106=""),"",SUM(ArraySheet!$B$2:B106)/SUM(ArraySheet!$B$2:'ArraySheet'!$B$501)) ->  | C106: =IF(ISBLANK(ArraySheet!B106),"",IF(B106<=$F$1,ArraySheet!B106,"")) ->  | D106: =IF(ISBLANK(ArraySheet!B106),"",IF(C106="",ArraySheet!B106,"")) -> 
B107: =IF(OR(ArraySheet!A107="",ArraySheet!B107=""),"",SUM(ArraySheet!$B$2:B107)/SUM(ArraySheet!$B$2:'ArraySheet'!$B$501)) ->  | C107: =IF(ISBLANK(ArraySheet!B107),"",IF(B107<=$F$1,ArraySheet!B107,"")) ->  | D107: =IF(ISBLANK(ArraySheet!B107),"",IF(C107="",ArraySheet!B107,"")) -> 
B108: =IF(OR(ArraySheet!A108="",ArraySheet!B108=""),"",SUM(ArraySheet!$B$2:B108)/SUM(ArraySheet!$B$2:'ArraySheet'!$B$501)) ->  | C108: =IF(ISBLANK(ArraySheet!B108),"",IF(B108<=$F$1,ArraySheet!B108,"")) ->  | D108: =IF(ISBLANK(ArraySheet!B108),"",IF(C108="",ArraySheet!B108,"")) -> 
B109: =IF(OR(ArraySheet!A109="",ArraySheet!B109=""),"",SUM(ArraySheet!$B$2:B109)/SUM(ArraySheet!$B$2:'ArraySheet'!$B$501)) ->  | C109: =IF(ISBLANK(ArraySheet!B109),"",IF(B109<=$F$1,ArraySheet!B109,"")) ->  | D109: =IF(ISBLANK(ArraySheet!B109),"",IF(C109="",ArraySheet!B109,"")) -> 
B110: =IF(OR(ArraySheet!A110="",ArraySheet!B110=""),"",SUM(ArraySheet!$B$2:B110)/SUM(ArraySheet!$B$2:'ArraySheet'!$B$501)) ->  | C110: =IF(ISBLANK(ArraySheet!B110),"",IF(B110<=$F$1,ArraySheet!B110,"")) ->  | D110: =IF(ISBLANK(ArraySheet!B110),"",IF(C110="",ArraySheet!B110,"")) -> 
B111: =IF(OR(ArraySheet!A111="",ArraySheet!B111=""),"",SUM(ArraySheet!$B$2:B111)/SUM(ArraySheet!$B$2:'ArraySheet'!$B$501)) ->  | C111: =IF(ISBLANK(ArraySheet!B111),"",IF(B111<=$F$1,ArraySheet!B111,"")) ->  | D111: =IF(ISBLANK(ArraySheet!B111),"",IF(C111="",ArraySheet!B111,"")) -> 
B112: =IF(OR(ArraySheet!A112="",ArraySheet!B112=""),"",SUM(ArraySheet!$B$2:B112)/SUM(ArraySheet!$B$2:'ArraySheet'!$B$501)) ->  | C112: =IF(ISBLANK(ArraySheet!B112),"",IF(B112<=$F$1,ArraySheet!B112,"")) ->  | D112: =IF(ISBLANK(ArraySheet!B112),"",IF(C112="",ArraySheet!B112,"")) -> 
B113: =IF(OR(ArraySheet!A113="",ArraySheet!B113=""),"",SUM(ArraySheet!$B$2:B113)/SUM(ArraySheet!$B$2:'ArraySheet'!$B$501)) ->  | C113: =IF(ISBLANK(ArraySheet!B113),"",IF(B113<=$F$1,ArraySheet!B113,"")) ->  | D113: =IF(ISBLANK(ArraySheet!B113),"",IF(C113="",ArraySheet!B113,"")) -> 
B114: =IF(OR(ArraySheet!A114="",ArraySheet!B114=""),"",SUM(ArraySheet!$B$2:B114)/SUM(ArraySheet!$B$2:'ArraySheet'!$B$501)) ->  | C114: =IF(ISBLANK(ArraySheet!B114),"",IF(B114<=$F$1,ArraySheet!B114,"")) ->  | D114: =IF(ISBLANK(ArraySheet!B114),"",IF(C114="",ArraySheet!B114,"")) -> 
B115: =IF(OR(ArraySheet!A115="",ArraySheet!B115=""),"",SUM(ArraySheet!$B$2:B115)/SUM(ArraySheet!$B$2:'ArraySheet'!$B$501)) ->  | C115: =IF(ISBLANK(ArraySheet!B115),"",IF(B115<=$F$1,ArraySheet!B115,"")) ->  | D115: =IF(ISBLANK(ArraySheet!B115),"",IF(C115="",ArraySheet!B115,"")) -> 
B116: =IF(OR(ArraySheet!A116="",ArraySheet!B116=""),"",SUM(ArraySheet!$B$2:B116)/SUM(ArraySheet!$B$2:'ArraySheet'!$B$501)) ->  | C116: =IF(ISBLANK(ArraySheet!B116),"",IF(B116<=$F$1,ArraySheet!B116,"")) ->  | D116: =IF(ISBLANK(ArraySheet!B116),"",IF(C116="",ArraySheet!B116,"")) -> 
B117: =IF(OR(ArraySheet!A117="",ArraySheet!B117=""),"",SUM(ArraySheet!$B$2:B117)/SUM(ArraySheet!$B$2:'ArraySheet'!$B$501)) ->  | C117: =IF(ISBLANK(ArraySheet!B117),"",IF(B117<=$F$1,ArraySheet!B117,"")) ->  | D117: =IF(ISBLANK(ArraySheet!B117),"",IF(C117="",ArraySheet!B117,"")) -> 
B118: =IF(OR(ArraySheet!A118="",ArraySheet!B118=""),"",SUM(ArraySheet!$B$2:B118)/SUM(ArraySheet!$B$2:'ArraySheet'!$B$501)) ->  | C118: =IF(ISBLANK(ArraySheet!B118),"",IF(B118<=$F$1,ArraySheet!B118,"")) ->  | D118: =IF(ISBLANK(ArraySheet!B118),"",IF(C118="",ArraySheet!B118,"")) -> 
B119: =IF(OR(ArraySheet!A119="",ArraySheet!B119=""),"",SUM(ArraySheet!$B$2:B119)/SUM(ArraySheet!$B$2:'ArraySheet'!$B$501)) ->  | C119: =IF(ISBLANK(ArraySheet!B119),"",IF(B119<=$F$1,ArraySheet!B119,"")) ->  | D119: =IF(ISBLANK(ArraySheet!B119),"",IF(C119="",ArraySheet!B119,"")) -> 
B120: =IF(OR(ArraySheet!A120="",ArraySheet!B120=""),"",SUM(ArraySheet!$B$2:B120)/SUM(ArraySheet!$B$2:'ArraySheet'!$B$501)) ->  | C120: =IF(ISBLANK(ArraySheet!B120),"",IF(B120<=$F$1,ArraySheet!B120,"")) ->  | D120: =IF(ISBLANK(ArraySheet!B120),"",IF(C120="",ArraySheet!B120,"")) -> 
B121: =IF(OR(ArraySheet!A121="",ArraySheet!B121=""),"",SUM(ArraySheet!$B$2:B121)/SUM(ArraySheet!$B$2:'ArraySheet'!$B$501)) ->  | C121: =IF(ISBLANK(ArraySheet!B121),"",IF(B121<=$F$1,ArraySheet!B121,"")) ->  | D121: =IF(ISBLANK(ArraySheet!B121),"",IF(C121="",ArraySheet!B121,"")) -> 
B122: =IF(OR(ArraySheet!A122="",ArraySheet!B122=""),"",SUM(ArraySheet!$B$2:B122)/SUM(ArraySheet!$B$2:'ArraySheet'!$B$501)) ->  | C122: =IF(ISBLANK(ArraySheet!B122),"",IF(B122<=$F$1,ArraySheet!B122,"")) ->  | D122: =IF(ISBLANK(ArraySheet!B122),"",IF(C122="",ArraySheet!B122,"")) -> 
B123: =IF(OR(ArraySheet!A123="",ArraySheet!B123=""),"",SUM(ArraySheet!$B$2:B123)/SUM(ArraySheet!$B$2:'ArraySheet'!$B$501)) ->  | C123: =IF(ISBLANK(ArraySheet!B123),"",IF(B123<=$F$1,ArraySheet!B123,"")) ->  | D123: =IF(ISBLANK(ArraySheet!B123),"",IF(C123="",ArraySheet!B123,"")) -> 
B124: =IF(OR(ArraySheet!A124="",ArraySheet!B124=""),"",SUM(ArraySheet!$B$2:B124)/SUM(ArraySheet!$B$2:'ArraySheet'!$B$501)) ->  | C124: =IF(ISBLANK(ArraySheet!B124),"",IF(B124<=$F$1,ArraySheet!B124,"")) ->  | D124: =IF(ISBLANK(ArraySheet!B124),"",IF(C124="",ArraySheet!B124,"")) -> 
B125: =IF(OR(ArraySheet!A125="",ArraySheet!B125=""),"",SUM(ArraySheet!$B$2:B125)/SUM(ArraySheet!$B$2:'ArraySheet'!$B$501)) ->  | C125: =IF(ISBLANK(ArraySheet!B125),"",IF(B125<=$F$1,ArraySheet!B125,"")) ->  | D125: =IF(ISBLANK(ArraySheet!B125),"",IF(C125="",ArraySheet!B125,"")) -> 
B126: =IF(OR(ArraySheet!A126="",ArraySheet!B126=""),"",SUM(ArraySheet!$B$2:B126)/SUM(ArraySheet!$B$2:'ArraySheet'!$B$501)) ->  | C126: =IF(ISBLANK(ArraySheet!B126),"",IF(B126<=$F$1,ArraySheet!B126,"")) ->  | D126: =IF(ISBLANK(ArraySheet!B126),"",IF(C126="",ArraySheet!B126,"")) -> 
B127: =IF(OR(ArraySheet!A127="",ArraySheet!B127=""),"",SUM(ArraySheet!$B$2:B127)/SUM(ArraySheet!$B$2:'ArraySheet'!$B$501)) ->  | C127: =IF(ISBLANK(ArraySheet!B127),"",IF(B127<=$F$1,ArraySheet!B127,"")) ->  | D127: =IF(ISBLANK(ArraySheet!B127),"",IF(C127="",ArraySheet!B127,"")) -> 
B128: =IF(OR(ArraySheet!A128="",ArraySheet!B128=""),"",SUM(ArraySheet!$B$2:B128)/SUM(ArraySheet!$B$2:'ArraySheet'!$B$501)) ->  | C128: =IF(ISBLANK(ArraySheet!B128),"",IF(B128<=$F$1,ArraySheet!B128,"")) ->  | D128: =IF(ISBLANK(ArraySheet!B128),"",IF(C128="",ArraySheet!B128,"")) -> 
B129: =IF(OR(ArraySheet!A129="",ArraySheet!B129=""),"",SUM(ArraySheet!$B$2:B129)/SUM(ArraySheet!$B$2:'ArraySheet'!$B$501)) ->  | C129: =IF(ISBLANK(ArraySheet!B129),"",IF(B129<=$F$1,ArraySheet!B129,"")) ->  | D129: =IF(ISBLANK(ArraySheet!B129),"",IF(C129="",ArraySheet!B129,"")) -> 
B130: =IF(OR(ArraySheet!A130="",ArraySheet!B130=""),"",SUM(ArraySheet!$B$2:B130)/SUM(ArraySheet!$B$2:'ArraySheet'!$B$501)) ->  | C130: =IF(ISBLANK(ArraySheet!B130),"",IF(B130<=$F$1,ArraySheet!B130,"")) ->  | D130: =IF(ISBLANK(ArraySheet!B130),"",IF(C130="",ArraySheet!B130,"")) -> 
B131: =IF(OR(ArraySheet!A131="",ArraySheet!B131=""),"",SUM(ArraySheet!$B$2:B131)/SUM(ArraySheet!$B$2:'ArraySheet'!$B$501)) ->  | C131: =IF(ISBLANK(ArraySheet!B131),"",IF(B131<=$F$1,ArraySheet!B131,"")) ->  | D131: =IF(ISBLANK(ArraySheet!B131),"",IF(C131="",ArraySheet!B131,"")) -> 
B132: =IF(OR(ArraySheet!A132="",ArraySheet!B132=""),"",SUM(ArraySheet!$B$2:B132)/SUM(ArraySheet!$B$2:'ArraySheet'!$B$501)) ->  | C132: =IF(ISBLANK(ArraySheet!B132),"",IF(B132<=$F$1,ArraySheet!B132,"")) ->  | D132: =IF(ISBLANK(ArraySheet!B132),"",IF(C132="",ArraySheet!B132,"")) -> 
B133: =IF(OR(ArraySheet!A133="",ArraySheet!B133=""),"",SUM(ArraySheet!$B$2:B133)/SUM(ArraySheet!$B$2:'ArraySheet'!$B$501)) ->  | C133: =IF(ISBLANK(ArraySheet!B133),"",IF(B133<=$F$1,ArraySheet!B133,"")) ->  | D133: =IF(ISBLANK(ArraySheet!B133),"",IF(C133="",ArraySheet!B133,"")) -> 
B134: =IF(OR(ArraySheet!A134="",ArraySheet!B134=""),"",SUM(ArraySheet!$B$2:B134)/SUM(ArraySheet!$B$2:'ArraySheet'!$B$501)) ->  | C134: =IF(ISBLANK(ArraySheet!B134),"",IF(B134<=$F$1,ArraySheet!B134,"")) ->  | D134: =IF(ISBLANK(ArraySheet!B134),"",IF(C134="",ArraySheet!B134,"")) -> 
B135: =IF(OR(ArraySheet!A135="",ArraySheet!B135=""),"",SUM(ArraySheet!$B$2:B135)/SUM(ArraySheet!$B$2:'ArraySheet'!$B$501)) ->  | C135: =IF(ISBLANK(ArraySheet!B135),"",IF(B135<=$F$1,ArraySheet!B135,"")) ->  | D135: =IF(ISBLANK(ArraySheet!B135),"",IF(C135="",ArraySheet!B135,"")) -> 
B136: =IF(OR(ArraySheet!A136="",ArraySheet!B136=""),"",SUM(ArraySheet!$B$2:B136)/SUM(ArraySheet!$B$2:'ArraySheet'!$B$501)) ->  | C136: =IF(ISBLANK(ArraySheet!B136),"",IF(B136<=$F$1,ArraySheet!B136,"")) ->  | D136: =IF(ISBLANK(ArraySheet!B136),"",IF(C136="",ArraySheet!B136,"")) -> 
B137: =IF(OR(ArraySheet!A137="",ArraySheet!B137=""),"",SUM(ArraySheet!$B$2:B137)/SUM(ArraySheet!$B$2:'ArraySheet'!$B$501)) ->  | C137: =IF(ISBLANK(ArraySheet!B137),"",IF(B137<=$F$1,ArraySheet!B137,"")) ->  | D137: =IF(ISBLANK(ArraySheet!B137),"",IF(C137="",ArraySheet!B137,"")) -> 
B138: =IF(OR(ArraySheet!A138="",ArraySheet!B138=""),"",SUM(ArraySheet!$B$2:B138)/SUM(ArraySheet!$B$2:'ArraySheet'!$B$501)) ->  | C138: =IF(ISBLANK(ArraySheet!B138),"",IF(B138<=$F$1,ArraySheet!B138,"")) ->  | D138: =IF(ISBLANK(ArraySheet!B138),"",IF(C138="",ArraySheet!B138,"")) -> 
B139: =IF(OR(ArraySheet!A139="",ArraySheet!B139=""),"",SUM(ArraySheet!$B$2:B139)/SUM(ArraySheet!$B$2:'ArraySheet'!$B$501)) ->  | C139: =IF(ISBLANK(ArraySheet!B139),"",IF(B139<=$F$1,ArraySheet!B139,"")) ->  | D139: =IF(ISBLANK(ArraySheet!B139),"",IF(C139="",ArraySheet!B139,"")) -> 
B140: =IF(OR(ArraySheet!A140="",ArraySheet!B140=""),"",SUM(ArraySheet!$B$2:B140)/SUM(ArraySheet!$B$2:'ArraySheet'!$B$501)) ->  | C140: =IF(ISBLANK(ArraySheet!B140),"",IF(B140<=$F$1,ArraySheet!B140,"")) ->  | D140: =IF(ISBLANK(ArraySheet!B140),"",IF(C140="",ArraySheet!B140,"")) -> 
B141: =IF(OR(ArraySheet!A141="",ArraySheet!B141=""),"",SUM(ArraySheet!$B$2:B141)/SUM(ArraySheet!$B$2:'ArraySheet'!$B$501)) ->  | C141: =IF(ISBLANK(ArraySheet!B141),"",IF(B141<=$F$1,ArraySheet!B141,"")) ->  | D141: =IF(ISBLANK(ArraySheet!B141),"",IF(C141="",ArraySheet!B141,"")) -> 
B142: =IF(OR(ArraySheet!A142="",ArraySheet!B142=""),"",SUM(ArraySheet!$B$2:B142)/SUM(ArraySheet!$B$2:'ArraySheet'!$B$501)) ->  | C142: =IF(ISBLANK(ArraySheet!B142),"",IF(B142<=$F$1,ArraySheet!B142,"")) ->  | D142: =IF(ISBLANK(ArraySheet!B142),"",IF(C142="",ArraySheet!B142,"")) -> 
B143: =IF(OR(ArraySheet!A143="",ArraySheet!B143=""),"",SUM(ArraySheet!$B$2:B143)/SUM(ArraySheet!$B$2:'ArraySheet'!$B$501)) ->  | C143: =IF(ISBLANK(ArraySheet!B143),"",IF(B143<=$F$1,ArraySheet!B143,"")) ->  | D143: =IF(ISBLANK(ArraySheet!B143),"",IF(C143="",ArraySheet!B143,"")) -> 
B144: =IF(OR(ArraySheet!A144="",ArraySheet!B144=""),"",SUM(ArraySheet!$B$2:B144)/SUM(ArraySheet!$B$2:'ArraySheet'!$B$501)) ->  | C144: =IF(ISBLANK(ArraySheet!B144),"",IF(B144<=$F$1,ArraySheet!B144,"")) ->  | D144: =IF(ISBLANK(ArraySheet!B144),"",IF(C144="",ArraySheet!B144,"")) -> 
B145: =IF(OR(ArraySheet!A145="",ArraySheet!B145=""),"",SUM(ArraySheet!$B$2:B145)/SUM(ArraySheet!$B$2:'ArraySheet'!$B$501)) ->  | C145: =IF(ISBLANK(ArraySheet!B145),"",IF(B145<=$F$1,ArraySheet!B145,"")) ->  | D145: =IF(ISBLANK(ArraySheet!B145),"",IF(C145="",ArraySheet!B145,"")) -> 
B146: =IF(OR(ArraySheet!A146="",ArraySheet!B146=""),"",SUM(ArraySheet!$B$2:B146)/SUM(ArraySheet!$B$2:'ArraySheet'!$B$501)) ->  | C146: =IF(ISBLANK(ArraySheet!B146),"",IF(B146<=$F$1,ArraySheet!B146,"")) ->  | D146: =IF(ISBLANK(ArraySheet!B146),"",IF(C146="",ArraySheet!B146,"")) -> 
B147: =IF(OR(ArraySheet!A147="",ArraySheet!B147=""),"",SUM(ArraySheet!$B$2:B147)/SUM(ArraySheet!$B$2:'ArraySheet'!$B$501)) ->  | C147: =IF(ISBLANK(ArraySheet!B147),"",IF(B147<=$F$1,ArraySheet!B147,"")) ->  | D147: =IF(ISBLANK(ArraySheet!B147),"",IF(C147="",ArraySheet!B147,"")) -> 
B148: =IF(OR(ArraySheet!A148="",ArraySheet!B148=""),"",SUM(ArraySheet!$B$2:B148)/SUM(ArraySheet!$B$2:'ArraySheet'!$B$501)) ->  | C148: =IF(ISBLANK(ArraySheet!B148),"",IF(B148<=$F$1,ArraySheet!B148,"")) ->  | D148: =IF(ISBLANK(ArraySheet!B148),"",IF(C148="",ArraySheet!B148,"")) -> 
B149: =IF(OR(ArraySheet!A149="",ArraySheet!B149=""),"",SUM(ArraySheet!$B$2:B149)/SUM(ArraySheet!$B$2:'ArraySheet'!$B$501)) ->  | C149: =IF(ISBLANK(ArraySheet!B149),"",IF(B149<=$F$1,ArraySheet!B149,"")) ->  | D149: =IF(ISBLANK(ArraySheet!B149),"",IF(C149="",ArraySheet!B149,"")) -> 
B150: =IF(OR(ArraySheet!A150="",ArraySheet!B150=""),"",SUM(ArraySheet!$B$2:B150)/SUM(ArraySheet!$B$2:'ArraySheet'!$B$501)) ->  | C150: =IF(ISBLANK(ArraySheet!B150),"",IF(B150<=$F$1,ArraySheet!B150,"")) ->  | D150: =IF(ISBLANK(ArraySheet!B150),"",IF(C150="",ArraySheet!B150,"")) -> 
B151: =IF(OR(ArraySheet!A151="",ArraySheet!B151=""),"",SUM(ArraySheet!$B$2:B151)/SUM(ArraySheet!$B$2:'ArraySheet'!$B$501)) ->  | C151: =IF(ISBLANK(ArraySheet!B151),"",IF(B151<=$F$1,ArraySheet!B151,"")) ->  | D151: =IF(ISBLANK(ArraySheet!B151),"",IF(C151="",ArraySheet!B151,"")) -> 
B152: =IF(OR(ArraySheet!A152="",ArraySheet!B152=""),"",SUM(ArraySheet!$B$2:B152)/SUM(ArraySheet!$B$2:'ArraySheet'!$B$501)) ->  | C152: =IF(ISBLANK(ArraySheet!B152),"",IF(B152<=$F$1,ArraySheet!B152,"")) ->  | D152: =IF(ISBLANK(ArraySheet!B152),"",IF(C152="",ArraySheet!B152,"")) -> 
B153: =IF(OR(ArraySheet!A153="",ArraySheet!B153=""),"",SUM(ArraySheet!$B$2:B153)/SUM(ArraySheet!$B$2:'ArraySheet'!$B$501)) ->  | C153: =IF(ISBLANK(ArraySheet!B153),"",IF(B153<=$F$1,ArraySheet!B153,"")) ->  | D153: =IF(ISBLANK(ArraySheet!B153),"",IF(C153="",ArraySheet!B153,"")) -> 
B154: =IF(OR(ArraySheet!A154="",ArraySheet!B154=""),"",SUM(ArraySheet!$B$2:B154)/SUM(ArraySheet!$B$2:'ArraySheet'!$B$501)) ->  | C154: =IF(ISBLANK(ArraySheet!B154),"",IF(B154<=$F$1,ArraySheet!B154,"")) ->  | D154: =IF(ISBLANK(ArraySheet!B154),"",IF(C154="",ArraySheet!B154,"")) -> 
B155: =IF(OR(ArraySheet!A155="",ArraySheet!B155=""),"",SUM(ArraySheet!$B$2:B155)/SUM(ArraySheet!$B$2:'ArraySheet'!$B$501)) ->  | C155: =IF(ISBLANK(ArraySheet!B155),"",IF(B155<=$F$1,ArraySheet!B155,"")) ->  | D155: =IF(ISBLANK(ArraySheet!B155),"",IF(C155="",ArraySheet!B155,"")) -> 
B156: =IF(OR(ArraySheet!A156="",ArraySheet!B156=""),"",SUM(ArraySheet!$B$2:B156)/SUM(ArraySheet!$B$2:'ArraySheet'!$B$501)) ->  | C156: =IF(ISBLANK(ArraySheet!B156),"",IF(B156<=$F$1,ArraySheet!B156,"")) ->  | D156: =IF(ISBLANK(ArraySheet!B156),"",IF(C156="",ArraySheet!B156,"")) -> 
B157: =IF(OR(ArraySheet!A157="",ArraySheet!B157=""),"",SUM(ArraySheet!$B$2:B157)/SUM(ArraySheet!$B$2:'ArraySheet'!$B$501)) ->  | C157: =IF(ISBLANK(ArraySheet!B157),"",IF(B157<=$F$1,ArraySheet!B157,"")) ->  | D157: =IF(ISBLANK(ArraySheet!B157),"",IF(C157="",ArraySheet!B157,"")) -> 
B158: =IF(OR(ArraySheet!A158="",ArraySheet!B158=""),"",SUM(ArraySheet!$B$2:B158)/SUM(ArraySheet!$B$2:'ArraySheet'!$B$501)) ->  | C158: =IF(ISBLANK(ArraySheet!B158),"",IF(B158<=$F$1,ArraySheet!B158,"")) ->  | D158: =IF(ISBLANK(ArraySheet!B158),"",IF(C158="",ArraySheet!B158,"")) -> 
B159: =IF(OR(ArraySheet!A159="",ArraySheet!B159=""),"",SUM(ArraySheet!$B$2:B159)/SUM(ArraySheet!$B$2:'ArraySheet'!$B$501)) ->  | C159: =IF(ISBLANK(ArraySheet!B159),"",IF(B159<=$F$1,ArraySheet!B159,"")) ->  | D159: =IF(ISBLANK(ArraySheet!B159),"",IF(C159="",ArraySheet!B159,"")) -> 
B160: =IF(OR(ArraySheet!A160="",ArraySheet!B160=""),"",SUM(ArraySheet!$B$2:B160)/SUM(ArraySheet!$B$2:'ArraySheet'!$B$501)) ->  | C160: =IF(ISBLANK(ArraySheet!B160),"",IF(B160<=$F$1,ArraySheet!B160,"")) ->  | D160: =IF(ISBLANK(ArraySheet!B160),"",IF(C160="",ArraySheet!B160,"")) -> 
B161: =IF(OR(ArraySheet!A161="",ArraySheet!B161=""),"",SUM(ArraySheet!$B$2:B161)/SUM(ArraySheet!$B$2:'ArraySheet'!$B$501)) ->  | C161: =IF(ISBLANK(ArraySheet!B161),"",IF(B161<=$F$1,ArraySheet!B161,"")) ->  | D161: =IF(ISBLANK(ArraySheet!B161),"",IF(C161="",ArraySheet!B161,"")) -> 
B162: =IF(OR(ArraySheet!A162="",ArraySheet!B162=""),"",SUM(ArraySheet!$B$2:B162)/SUM(ArraySheet!$B$2:'ArraySheet'!$B$501)) ->  | C162: =IF(ISBLANK(ArraySheet!B162),"",IF(B162<=$F$1,ArraySheet!B162,"")) ->  | D162: =IF(ISBLANK(ArraySheet!B162),"",IF(C162="",ArraySheet!B162,"")) -> 
B163: =IF(OR(ArraySheet!A163="",ArraySheet!B163=""),"",SUM(ArraySheet!$B$2:B163)/SUM(ArraySheet!$B$2:'ArraySheet'!$B$501)) ->  | C163: =IF(ISBLANK(ArraySheet!B163),"",IF(B163<=$F$1,ArraySheet!B163,"")) ->  | D163: =IF(ISBLANK(ArraySheet!B163),"",IF(C163="",ArraySheet!B163,"")) -> 
B164: =IF(OR(ArraySheet!A164="",ArraySheet!B164=""),"",SUM(ArraySheet!$B$2:B164)/SUM(ArraySheet!$B$2:'ArraySheet'!$B$501)) ->  | C164: =IF(ISBLANK(ArraySheet!B164),"",IF(B164<=$F$1,ArraySheet!B164,"")) ->  | D164: =IF(ISBLANK(ArraySheet!B164),"",IF(C164="",ArraySheet!B164,"")) -> 
B165: =IF(OR(ArraySheet!A165="",ArraySheet!B165=""),"",SUM(ArraySheet!$B$2:B165)/SUM(ArraySheet!$B$2:'ArraySheet'!$B$501)) ->  | C165: =IF(ISBLANK(ArraySheet!B165),"",IF(B165<=$F$1,ArraySheet!B165,"")) ->  | D165: =IF(ISBLANK(ArraySheet!B165),"",IF(C165="",ArraySheet!B165,"")) -> 
B166: =IF(OR(ArraySheet!A166="",ArraySheet!B166=""),"",SUM(ArraySheet!$B$2:B166)/SUM(ArraySheet!$B$2:'ArraySheet'!$B$501)) ->  | C166: =IF(ISBLANK(ArraySheet!B166),"",IF(B166<=$F$1,ArraySheet!B166,"")) ->  | D166: =IF(ISBLANK(ArraySheet!B166),"",IF(C166="",ArraySheet!B166,"")) -> 
B167: =IF(OR(ArraySheet!A167="",ArraySheet!B167=""),"",SUM(ArraySheet!$B$2:B167)/SUM(ArraySheet!$B$2:'ArraySheet'!$B$501)) ->  | C167: =IF(ISBLANK(ArraySheet!B167),"",IF(B167<=$F$1,ArraySheet!B167,"")) ->  | D167: =IF(ISBLANK(ArraySheet!B167),"",IF(C167="",ArraySheet!B167,"")) -> 
B168: =IF(OR(ArraySheet!A168="",ArraySheet!B168=""),"",SUM(ArraySheet!$B$2:B168)/SUM(ArraySheet!$B$2:'ArraySheet'!$B$501)) ->  | C168: =IF(ISBLANK(ArraySheet!B168),"",IF(B168<=$F$1,ArraySheet!B168,"")) ->  | D168: =IF(ISBLANK(ArraySheet!B168),"",IF(C168="",ArraySheet!B168,"")) -> 
B169: =IF(OR(ArraySheet!A169="",ArraySheet!B169=""),"",SUM(ArraySheet!$B$2:B169)/SUM(ArraySheet!$B$2:'ArraySheet'!$B$501)) ->  | C169: =IF(ISBLANK(ArraySheet!B169),"",IF(B169<=$F$1,ArraySheet!B169,"")) ->  | D169: =IF(ISBLANK(ArraySheet!B169),"",IF(C169="",ArraySheet!B169,"")) -> 
B170: =IF(OR(ArraySheet!A170="",ArraySheet!B170=""),"",SUM(ArraySheet!$B$2:B170)/SUM(ArraySheet!$B$2:'ArraySheet'!$B$501)) ->  | C170: =IF(ISBLANK(ArraySheet!B170),"",IF(B170<=$F$1,ArraySheet!B170,"")) ->  | D170: =IF(ISBLANK(ArraySheet!B170),"",IF(C170="",ArraySheet!B170,"")) -> 
B171: =IF(OR(ArraySheet!A171="",ArraySheet!B171=""),"",SUM(ArraySheet!$B$2:B171)/SUM(ArraySheet!$B$2:'ArraySheet'!$B$501)) ->  | C171: =IF(ISBLANK(ArraySheet!B171),"",IF(B171<=$F$1,ArraySheet!B171,"")) ->  | D171: =IF(ISBLANK(ArraySheet!B171),"",IF(C171="",ArraySheet!B171,"")) -> 
B172: =IF(OR(ArraySheet!A172="",ArraySheet!B172=""),"",SUM(ArraySheet!$B$2:B172)/SUM(ArraySheet!$B$2:'ArraySheet'!$B$501)) ->  | C172: =IF(ISBLANK(ArraySheet!B172),"",IF(B172<=$F$1,ArraySheet!B172,"")) ->  | D172: =IF(ISBLANK(ArraySheet!B172),"",IF(C172="",ArraySheet!B172,"")) -> 
B173: =IF(OR(ArraySheet!A173="",ArraySheet!B173=""),"",SUM(ArraySheet!$B$2:B173)/SUM(ArraySheet!$B$2:'ArraySheet'!$B$501)) ->  | C173: =IF(ISBLANK(ArraySheet!B173),"",IF(B173<=$F$1,ArraySheet!B173,"")) ->  | D173: =IF(ISBLANK(ArraySheet!B173),"",IF(C173="",ArraySheet!B173,"")) -> 
B174: =IF(OR(ArraySheet!A174="",ArraySheet!B174=""),"",SUM(ArraySheet!$B$2:B174)/SUM(ArraySheet!$B$2:'ArraySheet'!$B$501)) ->  | C174: =IF(ISBLANK(ArraySheet!B174),"",IF(B174<=$F$1,ArraySheet!B174,"")) ->  | D174: =IF(ISBLANK(ArraySheet!B174),"",IF(C174="",ArraySheet!B174,"")) -> 
B175: =IF(OR(ArraySheet!A175="",ArraySheet!B175=""),"",SUM(ArraySheet!$B$2:B175)/SUM(ArraySheet!$B$2:'ArraySheet'!$B$501)) ->  | C175: =IF(ISBLANK(ArraySheet!B175),"",IF(B175<=$F$1,ArraySheet!B175,"")) ->  | D175: =IF(ISBLANK(ArraySheet!B175),"",IF(C175="",ArraySheet!B175,"")) -> 
B176: =IF(OR(ArraySheet!A176="",ArraySheet!B176=""),"",SUM(ArraySheet!$B$2:B176)/SUM(ArraySheet!$B$2:'ArraySheet'!$B$501)) ->  | C176: =IF(ISBLANK(ArraySheet!B176),"",IF(B176<=$F$1,ArraySheet!B176,"")) ->  | D176: =IF(ISBLANK(ArraySheet!B176),"",IF(C176="",ArraySheet!B176,"")) -> 
B177: =IF(OR(ArraySheet!A177="",ArraySheet!B177=""),"",SUM(ArraySheet!$B$2:B177)/SUM(ArraySheet!$B$2:'ArraySheet'!$B$501)) ->  | C177: =IF(ISBLANK(ArraySheet!B177),"",IF(B177<=$F$1,ArraySheet!B177,"")) ->  | D177: =IF(ISBLANK(ArraySheet!B177),"",IF(C177="",ArraySheet!B177,"")) -> 
B178: =IF(OR(ArraySheet!A178="",ArraySheet!B178=""),"",SUM(ArraySheet!$B$2:B178)/SUM(ArraySheet!$B$2:'ArraySheet'!$B$501)) ->  | C178: =IF(ISBLANK(ArraySheet!B178),"",IF(B178<=$F$1,ArraySheet!B178,"")) ->  | D178: =IF(ISBLANK(ArraySheet!B178),"",IF(C178="",ArraySheet!B178,"")) -> 
B179: =IF(OR(ArraySheet!A179="",ArraySheet!B179=""),"",SUM(ArraySheet!$B$2:B179)/SUM(ArraySheet!$B$2:'ArraySheet'!$B$501)) ->  | C179: =IF(ISBLANK(ArraySheet!B179),"",IF(B179<=$F$1,ArraySheet!B179,"")) ->  | D179: =IF(ISBLANK(ArraySheet!B179),"",IF(C179="",ArraySheet!B179,"")) -> 
B180: =IF(OR(ArraySheet!A180="",ArraySheet!B180=""),"",SUM(ArraySheet!$B$2:B180)/SUM(ArraySheet!$B$2:'ArraySheet'!$B$501)) ->  | C180: =IF(ISBLANK(ArraySheet!B180),"",IF(B180<=$F$1,ArraySheet!B180,"")) ->  | D180: =IF(ISBLANK(ArraySheet!B180),"",IF(C180="",ArraySheet!B180,"")) -> 
B181: =IF(OR(ArraySheet!A181="",ArraySheet!B181=""),"",SUM(ArraySheet!$B$2:B181)/SUM(ArraySheet!$B$2:'ArraySheet'!$B$501)) ->  | C181: =IF(ISBLANK(ArraySheet!B181),"",IF(B181<=$F$1,ArraySheet!B181,"")) ->  | D181: =IF(ISBLANK(ArraySheet!B181),"",IF(C181="",ArraySheet!B181,"")) -> 
B182: =IF(OR(ArraySheet!A182="",ArraySheet!B182=""),"",SUM(ArraySheet!$B$2:B182)/SUM(ArraySheet!$B$2:'ArraySheet'!$B$501)) ->  | C182: =IF(ISBLANK(ArraySheet!B182),"",IF(B182<=$F$1,ArraySheet!B182,"")) ->  | D182: =IF(ISBLANK(ArraySheet!B182),"",IF(C182="",ArraySheet!B182,"")) -> 
B183: =IF(OR(ArraySheet!A183="",ArraySheet!B183=""),"",SUM(ArraySheet!$B$2:B183)/SUM(ArraySheet!$B$2:'ArraySheet'!$B$501)) ->  | C183: =IF(ISBLANK(ArraySheet!B183),"",IF(B183<=$F$1,ArraySheet!B183,"")) ->  | D183: =IF(ISBLANK(ArraySheet!B183),"",IF(C183="",ArraySheet!B183,"")) -> 
B184: =IF(OR(ArraySheet!A184="",ArraySheet!B184=""),"",SUM(ArraySheet!$B$2:B184)/SUM(ArraySheet!$B$2:'ArraySheet'!$B$501)) ->  | C184: =IF(ISBLANK(ArraySheet!B184),"",IF(B184<=$F$1,ArraySheet!B184,"")) ->  | D184: =IF(ISBLANK(ArraySheet!B184),"",IF(C184="",ArraySheet!B184,"")) -> 
B185: =IF(OR(ArraySheet!A185="",ArraySheet!B185=""),"",SUM(ArraySheet!$B$2:B185)/SUM(ArraySheet!$B$2:'ArraySheet'!$B$501)) ->  | C185: =IF(ISBLANK(ArraySheet!B185),"",IF(B185<=$F$1,ArraySheet!B185,"")) ->  | D185: =IF(ISBLANK(ArraySheet!B185),"",IF(C185="",ArraySheet!B185,"")) -> 
B186: =IF(OR(ArraySheet!A186="",ArraySheet!B186=""),"",SUM(ArraySheet!$B$2:B186)/SUM(ArraySheet!$B$2:'ArraySheet'!$B$501)) ->  | C186: =IF(ISBLANK(ArraySheet!B186),"",IF(B186<=$F$1,ArraySheet!B186,"")) ->  | D186: =IF(ISBLANK(ArraySheet!B186),"",IF(C186="",ArraySheet!B186,"")) -> 
B187: =IF(OR(ArraySheet!A187="",ArraySheet!B187=""),"",SUM(ArraySheet!$B$2:B187)/SUM(ArraySheet!$B$2:'ArraySheet'!$B$501)) ->  | C187: =IF(ISBLANK(ArraySheet!B187),"",IF(B187<=$F$1,ArraySheet!B187,"")) ->  | D187: =IF(ISBLANK(ArraySheet!B187),"",IF(C187="",ArraySheet!B187,"")) -> 
B188: =IF(OR(ArraySheet!A188="",ArraySheet!B188=""),"",SUM(ArraySheet!$B$2:B188)/SUM(ArraySheet!$B$2:'ArraySheet'!$B$501)) ->  | C188: =IF(ISBLANK(ArraySheet!B188),"",IF(B188<=$F$1,ArraySheet!B188,"")) ->  | D188: =IF(ISBLANK(ArraySheet!B188),"",IF(C188="",ArraySheet!B188,"")) -> 
B189: =IF(OR(ArraySheet!A189="",ArraySheet!B189=""),"",SUM(ArraySheet!$B$2:B189)/SUM(ArraySheet!$B$2:'ArraySheet'!$B$501)) ->  | C189: =IF(ISBLANK(ArraySheet!B189),"",IF(B189<=$F$1,ArraySheet!B189,"")) ->  | D189: =IF(ISBLANK(ArraySheet!B189),"",IF(C189="",ArraySheet!B189,"")) -> 
B190: =IF(OR(ArraySheet!A190="",ArraySheet!B190=""),"",SUM(ArraySheet!$B$2:B190)/SUM(ArraySheet!$B$2:'ArraySheet'!$B$501)) ->  | C190: =IF(ISBLANK(ArraySheet!B190),"",IF(B190<=$F$1,ArraySheet!B190,"")) ->  | D190: =IF(ISBLANK(ArraySheet!B190),"",IF(C190="",ArraySheet!B190,"")) -> 
B191: =IF(OR(ArraySheet!A191="",ArraySheet!B191=""),"",SUM(ArraySheet!$B$2:B191)/SUM(ArraySheet!$B$2:'ArraySheet'!$B$501)) ->  | C191: =IF(ISBLANK(ArraySheet!B191),"",IF(B191<=$F$1,ArraySheet!B191,"")) ->  | D191: =IF(ISBLANK(ArraySheet!B191),"",IF(C191="",ArraySheet!B191,"")) -> 
B192: =IF(OR(ArraySheet!A192="",ArraySheet!B192=""),"",SUM(ArraySheet!$B$2:B192)/SUM(ArraySheet!$B$2:'ArraySheet'!$B$501)) ->  | C192: =IF(ISBLANK(ArraySheet!B192),"",IF(B192<=$F$1,ArraySheet!B192,"")) ->  | D192: =IF(ISBLANK(ArraySheet!B192),"",IF(C192="",ArraySheet!B192,"")) -> 
B193: =IF(OR(ArraySheet!A193="",ArraySheet!B193=""),"",SUM(ArraySheet!$B$2:B193)/SUM(ArraySheet!$B$2:'ArraySheet'!$B$501)) ->  | C193: =IF(ISBLANK(ArraySheet!B193),"",IF(B193<=$F$1,ArraySheet!B193,"")) ->  | D193: =IF(ISBLANK(ArraySheet!B193),"",IF(C193="",ArraySheet!B193,"")) -> 
B194: =IF(OR(ArraySheet!A194="",ArraySheet!B194=""),"",SUM(ArraySheet!$B$2:B194)/SUM(ArraySheet!$B$2:'ArraySheet'!$B$501)) ->  | C194: =IF(ISBLANK(ArraySheet!B194),"",IF(B194<=$F$1,ArraySheet!B194,"")) ->  | D194: =IF(ISBLANK(ArraySheet!B194),"",IF(C194="",ArraySheet!B194,"")) -> 
B195: =IF(OR(ArraySheet!A195="",ArraySheet!B195=""),"",SUM(ArraySheet!$B$2:B195)/SUM(ArraySheet!$B$2:'ArraySheet'!$B$501)) ->  | C195: =IF(ISBLANK(ArraySheet!B195),"",IF(B195<=$F$1,ArraySheet!B195,"")) ->  | D195: =IF(ISBLANK(ArraySheet!B195),"",IF(C195="",ArraySheet!B195,"")) -> 
B196: =IF(OR(ArraySheet!A196="",ArraySheet!B196=""),"",SUM(ArraySheet!$B$2:B196)/SUM(ArraySheet!$B$2:'ArraySheet'!$B$501)) ->  | C196: =IF(ISBLANK(ArraySheet!B196),"",IF(B196<=$F$1,ArraySheet!B196,"")) ->  | D196: =IF(ISBLANK(ArraySheet!B196),"",IF(C196="",ArraySheet!B196,"")) -> 
B197: =IF(OR(ArraySheet!A197="",ArraySheet!B197=""),"",SUM(ArraySheet!$B$2:B197)/SUM(ArraySheet!$B$2:'ArraySheet'!$B$501)) ->  | C197: =IF(ISBLANK(ArraySheet!B197),"",IF(B197<=$F$1,ArraySheet!B197,"")) ->  | D197: =IF(ISBLANK(ArraySheet!B197),"",IF(C197="",ArraySheet!B197,"")) -> 
B198: =IF(OR(ArraySheet!A198="",ArraySheet!B198=""),"",SUM(ArraySheet!$B$2:B198)/SUM(ArraySheet!$B$2:'ArraySheet'!$B$501)) ->  | C198: =IF(ISBLANK(ArraySheet!B198),"",IF(B198<=$F$1,ArraySheet!B198,"")) ->  | D198: =IF(ISBLANK(ArraySheet!B198),"",IF(C198="",ArraySheet!B198,"")) -> 
B199: =IF(OR(ArraySheet!A199="",ArraySheet!B199=""),"",SUM(ArraySheet!$B$2:B199)/SUM(ArraySheet!$B$2:'ArraySheet'!$B$501)) ->  | C199: =IF(ISBLANK(ArraySheet!B199),"",IF(B199<=$F$1,ArraySheet!B199,"")) ->  | D199: =IF(ISBLANK(ArraySheet!B199),"",IF(C199="",ArraySheet!B199,"")) -> 
B200: =IF(OR(ArraySheet!A200="",ArraySheet!B200=""),"",SUM(ArraySheet!$B$2:B200)/SUM(ArraySheet!$B$2:'ArraySheet'!$B$501)) ->  | C200: =IF(ISBLANK(ArraySheet!B200),"",IF(B200<=$F$1,ArraySheet!B200,"")) ->  | D200: =IF(ISBLANK(ArraySheet!B200),"",IF(C200="",ArraySheet!B200,"")) -> 
... 301 more rows

Sheet G-Pareto (hidden)

Sheet C-Histogram (hidden)
A1: Histogram | D1: (Bins) Interval | E1: frequency | F1: Cum frequency | G1: Frequency % | J1: norm dist | L1: 2sample | M1: 2 sample norm dist
B2: data max | C2: =MAX(ArraySheet!$A$2:$A$501) -> 111 | D2: =IF(C3>0,FLOOR(C6,0.5),IF(C3<0,FLOOR(C6,-0.5))) -> 94.5 | E2: =F2 -> 0 | F2: =IF(D2="","",(FREQUENCY(ArraySheet!$A$2:'ArraySheet'!$A$501,D2))) -> 0 | G2: =IF(C12=0,"",E2/$C$12) -> 0 | H2: -2 | I2: =IF($C$8="","",H2*$C$8+$C$9) -> 94.48377194 | J2: =IF($C$8="","",NORMDIST(I2,$C$9,$C$8,FALSE)) -> 0.01364057885 | L2: =IF($C$33="","",H2*$C$33+$C$34) -> 88.52959815 | M2: =IF(L2="","",NORMDIST(L2,$C$34,$C$33,FALSE)) -> 0.006979904859
B3: data min | C3: =MIN(ArraySheet!$A$2:$A$501) -> 95 | D3: =D2+C5 -> 96.3 | E3: =IF(F3="","",F3-F2) -> 2 | F3: =IF(D3="","",(FREQUENCY(ArraySheet!$A$2:'ArraySheet'!$A$501,D3))) -> 2 | G3: =IF(F3="","",E3/$C$12) -> 0.08 | H3: -1.75 | I3: 95.47330045 | J3: 0.02179758294 | L3: =IF($C$33="","",IF(H3="","",H3*$C$33+$C$34)) -> 90.46339838 | M3: 0.01115385621
B4: delta | C4: =C2-C3 -> 16 | D4: =IF(D3<$C$2,D3+$C$5,"") -> 98.1 | E4: 2 | F4: =IF(D4="","",(FREQUENCY(ArraySheet!$A$2:'ArraySheet'!$A$501,D4))) -> 4 | G4: 0.08 | H4: -1.5 | I4: 96.46282896 | J4: 0.0327220476 | L4: 92.39719861 | M4: 0.01674392132
B5: Intervals | C5: =ROUND((C2-C3)/9,1) -> 1.8 | D5: 99.9 | E5: 2 | F5: =IF(D5="","",(FREQUENCY(ArraySheet!$A$2:'ArraySheet'!$A$501,D5))) -> 6 | G5: 0.08 | H5: -1.25 | I5: 97.45235746 | J5: 0.04614548344 | L5: 94.33099885 | M5: 0.02361271377
B6: Bin Min | C6: =C3-(C4/100) -> 94.84 | D6: 101.7 | E6: 3 | F6: =IF(D6="","",(FREQUENCY(ArraySheet!$A$2:'ArraySheet'!$A$501,D6))) -> 9 | G6: 0.12 | H6: -1 | I6: 98.44188597 | J6: 0.06113283315 | L6: 96.26479908 | M6: 0.03128176332
B7: delta/100 | C7: =C4/100 -> 0.16 | D7: 103.5 | E7: 7 | F7: =IF(D7="","",(FREQUENCY(ArraySheet!$A$2:'ArraySheet'!$A$501,D7))) -> 16 | G7: 0.28 | H7: -0.75 | I7: 99.43141448 | J7: 0.0760810401 | L7: 98.19859931 | M7: 0.03893078346
B8: Standard Dev | C8: =IF(ArraySheet!A2="","",STDEV(ArraySheet!$A$2:'ArraySheet'!$A$501)) -> 3.958114029 | D8: 105.3 | E8: 4 | F8: =IF(D8="","",(FREQUENCY(ArraySheet!$A$2:'ArraySheet'!$A$501,D8))) -> 20 | G8: 0.16 | H8: -0.5 | I8: 100.420943 | J8: 0.08894774738 | L8: 100.1323995 | M8: 0.04551469706
B9: Mean = | C9: =IF(ArraySheet!A2="","",AVERAGE(ArraySheet!$A$2:'ArraySheet'!$A$501)) -> 102.4 | D9: 107.1 | E9: 2 | F9: =IF(D9="","",(FREQUENCY(ArraySheet!$A$2:'ArraySheet'!$A$501,D9))) -> 22 | G9: 0.08 | H9: -0.25 | I9: 101.4104715 | J9: 0.09768998921 | L9: 102.0661998 | M9: 0.04998811545
B10: Mean * 2 | C10: =IF(C12=0,"",C9*2) -> 204.8 | D10: 108.9 | E10: 2 | F10: =IF(D10="","",(FREQUENCY(ArraySheet!$A$2:'ArraySheet'!$A$501,D10))) -> 24 | G10: 0.08 | H10: 0 | I10: 102.4 | J10: 0.1007910024 | L10: 104 | M10: 0.05157490857
D11: 110.7 | E11: 0 | F11: =IF(D11="","",(FREQUENCY(ArraySheet!$A$2:'ArraySheet'!$A$501,D11))) -> 24 | G11: 0 | H11: 0.25 | I11: 103.3895285 | J11: 0.09768998921 | L11: 105.9338002 | M11: 0.04998811545
B12: # data points | C12: =COUNT(ArraySheet!$A$2:'ArraySheet'!$A$501) -> 25 | D12: 112.5 | E12: 1 | F12: =IF(D12="","",(FREQUENCY(ArraySheet!$A$2:'ArraySheet'!$A$501,D12))) -> 25 | G12: 0.04 | H12: 0.5 | I12: 104.379057 | J12: 0.08894774738 | L12: 107.8676005 | M12: 0.04551469706
F13: =IF(D13="","",(FREQUENCY(ArraySheet!$A$2:'ArraySheet'!$A$501,D13))) ->  | H13: 0.75 | I13: 105.3685855 | J13: 0.0760810401 | L13: 109.8014007 | M13: 0.03893078346
B14: HistNormMin | C14: =D2 -> 94.5 | F14: =IF(D14="","",(FREQUENCY(ArraySheet!$A$2:'ArraySheet'!$A$501,D14))) ->  | H14: 1 | I14: 106.358114 | J14: 0.06113283315 | L14: 111.7352009 | M14: 0.03128176332
B15: HistNormMax | C15: =MAX(D2:D20) -> 112.5 | F15: =IF(D15="","",(FREQUENCY(ArraySheet!$A$2:'ArraySheet'!$A$501,D15))) ->  | H15: 1.25 | I15: 107.3476425 | J15: 0.04614548344 | L15: 113.6690012 | M15: 0.02361271377
F16: =IF(D16="","",(FREQUENCY(ArraySheet!$A$2:'ArraySheet'!$A$501,D16))) ->  | H16: 1.5 | I16: 108.337171 | J16: 0.0327220476 | L16: 115.6028014 | M16: 0.01674392132
B17: mean | C17: mean frequency | F17: =IF(D17="","",(FREQUENCY(ArraySheet!$A$2:'ArraySheet'!$A$501,D17))) ->  | H17: 1.75 | I17: 109.3266996 | J17: 0.02179758294 | L17: 117.5366016 | M17: 0.01115385621
B18: =C9 -> 102.4 | C18: =IF(C12=0,"",MAX($G$2:$G$12)+1) -> 1.28 | F18: =IF(D18="","",(FREQUENCY(ArraySheet!$A$2:'ArraySheet'!$A$501,D18))) ->  | H18: 2 | I18: 110.3162281 | J18: 0.01364057885 | L18: 119.4704018 | M18: 0.006979904859
B19: row count | C19: =COUNT(ArraySheet!$A$2:'ArraySheet'!$A$501) -> 25
B20: Count columns
B21: mean dot y value | C21: 0
B22: se mean | C22: =IF(C12=0,"",C8/SQRT(C12)) -> 0.7916228058
B23: 95% confidence | C23: =IF(C12=0,"",C9-(TINV(0.05,C12-1)*C22)) -> 100.7661708 | D23: =IF(C12=0,"",C9+(TINV(0.05,C12-1)*C22)) -> 104.0338292 | E23: =IF(C23="","",ROUND(C23,3)&", "&ROUND(D23,3)) -> 100,766, 104,034
A26: Two Sample | D26: (Bins) Interval | E26: frequency | F26: Cum frequency | G26: Frequency %
B27: data max | C27: =MAX(ArraySheet!$B$2:$B$501) -> 123 | D27: =FLOOR(C31,0.5) -> 88.5 | E27: =F27 -> 0 | F27: =IF(D27="","",(FREQUENCY(ArraySheet!$B$2:'ArraySheet'!$B$501,D27))) -> 0 | G27: =IF($C$37=0,"",E27/$C$37) -> 0 | I27: =ROUNDDOWN(C39,0.5) -> 88
B28: data min | C28: =MIN(ArraySheet!$B$2:$B$501) -> 89 | D28: =D27+C30 -> 92.27777778 | E28: =IF(F28="","",F28-F27) -> 1 | F28: =IF(D28="","",(FREQUENCY(ArraySheet!$B$2:'ArraySheet'!$B$501,D28))) -> 1 | G28: 0.04 | I28: =I27+(($I$37-$I$27)/10) -> 90.5
B29: delta | C29: =C27-C28 -> 34 | D29: =IF(D28<$C$2,D28+$C$5,"") -> 94.07777778 | E29: 0 | F29: =IF(D29="","",(FREQUENCY(ArraySheet!$B$2:'ArraySheet'!$B$501,D29))) -> 1 | G29: 0 | I29: 93
B30: Intervals | C30: =(C27-C28)/9 -> 3.777777778 | D30: 95.87777778 | E30: 1 | F30: =IF(D30="","",(FREQUENCY(ArraySheet!$B$2:'ArraySheet'!$B$501,D30))) -> 2 | G30: 0.04 | I30: 95.5
B31: Bin Min | C31: =C28-(C29/100) -> 88.66 | D31: 97.67777778 | E31: 3 | F31: =IF(D31="","",(FREQUENCY(ArraySheet!$B$2:'ArraySheet'!$B$501,D31))) -> 5 | G31: 0.12 | I31: 98
B32: delta/100 | C32: =C29/100 -> 0.34 | D32: 99.47777778 | E32: 3 | F32: =IF(D32="","",(FREQUENCY(ArraySheet!$B$2:'ArraySheet'!$B$501,D32))) -> 8 | G32: 0.12 | I32: 100.5
B33: Standard Dev | C33: =IF(ArraySheet!$B$2="","",STDEV(ArraySheet!$B$2:'ArraySheet'!$B$501)) -> 7.735200924 | D33: 101.2777778 | E33: 2 | F33: =IF(D33="","",(FREQUENCY(ArraySheet!$B$2:'ArraySheet'!$B$501,D33))) -> 10 | G33: 0.08 | I33: 103
B34: Mean = | C34: =IF(ArraySheet!B2="","",AVERAGE(ArraySheet!$B$2:'ArraySheet'!$B$501)) -> 104 | D34: 103.0777778 | E34: 2 | F34: =IF(D34="","",(FREQUENCY(ArraySheet!$B$2:'ArraySheet'!$B$501,D34))) -> 12 | G34: 0.08 | I34: 105.5
B35: Mean * 2 | C35: =IF(OR(C37=0,C12=0),"",C34*2) -> 208 | D35: 104.8777778 | E35: 1 | F35: =IF(D35="","",(FREQUENCY(ArraySheet!$B$2:'ArraySheet'!$B$501,D35))) -> 13 | G35: 0.04 | I35: 108
D36: 106.6777778 | E36: 4 | F36: =IF(D36="","",(FREQUENCY(ArraySheet!$B$2:'ArraySheet'!$B$501,D36))) -> 17 | G36: 0.16 | I36: 110.5
B37: # data points | C37: =COUNT(ArraySheet!$B$2:'ArraySheet'!$B$501) -> 25 | D37: 108.4777778 | E37: 3 | F37: =IF(D37="","",(FREQUENCY(ArraySheet!$B$2:'ArraySheet'!$B$501,D37))) -> 20 | G37: =IF($C$37=0,"",IF(E37="","",E37/$C$37)) -> 0.12 | I37: =ROUNDUP(TwoHistNormMax,0.5) -> 113
G38: =IF($C$37=0,"",IF(E38="","",E38/$C$37)) -> 
B39: TwoHistNormMin | C39: =MIN(D27,D2) -> 88.5
B40: TwoHistNormMax | C40: =MAX(D37,D12) -> 112.5
B42: mean | C42: mean frequency
B43: =C34 -> 104 | C43: =IF(G27="","",(MAX($G$27:$G$37)+1)) -> 1.16
B44: row count | C44: =COUNT(ArraySheet!$B$2:'ArraySheet'!$B$501) -> 25
B45: Count columns
B46: mean dot y value | C46: 0
B47: se mean | C47: =IF(C37=0,"",C33/SQRT(C37)) -> 1.547040185
A48: Pair | B48: confidence low high | C48: =IF(OR(C37=0,C12=0),"",C50-(TINV(0.05,D56))*C59) -> -5.12795144 | D48: =IF(OR(C37=0,C12=0),"",C50+(TINV(0.05,D56))*C59) -> 1.92795144 | E48: =IF(OR(C37=0,C12=0),"",ROUND(C48,2)&", "&ROUND(D48,2)) -> -5,13, 1,93
B49: 95 factor | C49: =IF(OR(C37=0,C12=0),"",TINV((1-0.95),D56)) -> 2.030107928
B50: mean diff est. | C50: =IF(OR(C34="",C9=""),"",C9-C34) -> -1.6
B53: (std A)^2/N1 | C53: =IF(C12=0,"",C8^2/C12) -> 0.6266666667
B54: (std B)^2/N2 | C54: =IF(C33="","",C33^2/C37) -> 2.393333333
B55: c | C55: =IF(OR(C37=0,C12=0),"",C53/(C53+C54)) -> 0.2075055188
B56: Deg of freedom | C56: =IF(OR(C37=0,C12=0),"",((C12-1)*(C37-1))/((C12-1)*(C55)^2+(1-C55)^2*(C12-1))) -> 35.76185947 | D56: =IF(OR(C37=0,C12=0),"",INT(C56)) -> 35
B57: se mean B^2 | C57: =IF(C47="","",C47^2) -> 2.393333333
B58: se mean A^2 | C58: =IF(C22="","",C22^2) -> 0.6266666667
B59: sqrt se meanA+se mean B | C59: =IF(C57="","",SQRT(C57+C58)) -> 1.73781472
B60: T value | C60: =IF(C50="","",C50/C59) -> -0.9206965402
B61: P value | C61: =IF(OR(C37=0,C12=0),"",TDIST(ABS(C60),D56,2)) -> 0.3635116709
A63: data b | B63: conf interval | C63: =IF(C34="","",C34-(TINV(0.05,C37-1)*C47)) -> 100.807066 | D63: =IF(C34="","",C34+(TINV(0.05,C37-1)*C47)) -> 107.192934 | E63: =IF(C63="","",ROUND(C63,3)&", "&ROUND(D63,3)) -> 100,807, 107,193
B66: Hist2AxisMin | C66: =ROUNDDOWN(MIN(TwoHistNormMin,C3),0) -> 88
B67: Hist2AxisMax | C67: =L79+D72 -> 90
A70: two hist bin min | B70: =ROUNDDOWN(MIN(C3,C28),1) -> 89
A71: two hist bin max | B71: =ROUNDUP(MAX(C27,C2),0.5) -> 123 | D71: BINS | E71: SAMPLE 1 FREQUENCY | F71: SAMPLE 1 CUM FREQUENCY | G71: SAMPLE 1 FREQUENCY % | H71: SAMPLE 2 FREQUENCY | I71: SAMPLE 2 CUM FREQUENCY | J71: SAMPLE 2 FREQUENCY %
A72: bin interval | B72: =MROUND(((B71-B70)/9),0.5) -> 4 | D72: =B70 -> 89 | E72: =F72 -> 0 | F72: =IF(D72="","",(FREQUENCY(ArraySheet!$A$2:'ArraySheet'!$A$501,D72))) -> 0 | G72: =IF(F72="","",E72/$C$12) -> 0 | H72: =I72 -> 1 | I72: =IF(D72="","",(FREQUENCY(ArraySheet!$B$2:'ArraySheet'!$B$501,D72))) -> 1 | J72: =IF(I72="","",H72/$C$37) -> 0.04 | L72: =E72+H72 -> 1
D73: =D72+$B$72 -> 93 | E73: =IF(F73="","",F73-F72) -> 0 | F73: =IF(D73="","",(FREQUENCY(ArraySheet!$A$2:'ArraySheet'!$A$501,D73))) -> 0 | G73: 0 | H73: =IF(I73="","",I73-I72) -> 0 | I73: =IF(D73="","",(FREQUENCY(ArraySheet!$B$2:'ArraySheet'!$B$501,D73))) -> 1 | J73: 0 | L73: 0
D74: 97 | E74: 3 | F74: =IF(D74="","",(FREQUENCY(ArraySheet!$A$2:'ArraySheet'!$A$501,D74))) -> 3 | G74: 0.12 | H74: 4 | I74: =IF(D74="","",(FREQUENCY(ArraySheet!$B$2:'ArraySheet'!$B$501,D74))) -> 5 | J74: 0.16 | L74: 7
D75: 101 | E75: 6 | F75: =IF(D75="","",(FREQUENCY(ArraySheet!$A$2:'ArraySheet'!$A$501,D75))) -> 9 | G75: 0.24 | H75: 5 | I75: =IF(D75="","",(FREQUENCY(ArraySheet!$B$2:'ArraySheet'!$B$501,D75))) -> 10 | J75: 0.2 | L75: 11
D76: 105 | E76: 11 | F76: =IF(D76="","",(FREQUENCY(ArraySheet!$A$2:'ArraySheet'!$A$501,D76))) -> 20 | G76: 0.44 | H76: 5 | I76: =IF(D76="","",(FREQUENCY(ArraySheet!$B$2:'ArraySheet'!$B$501,D76))) -> 15 | J76: 0.2 | L76: 16
D77: 109 | E77: 4 | F77: =IF(D77="","",(FREQUENCY(ArraySheet!$A$2:'ArraySheet'!$A$501,D77))) -> 24 | G77: 0.16 | H77: 5 | I77: =IF(D77="","",(FREQUENCY(ArraySheet!$B$2:'ArraySheet'!$B$501,D77))) -> 20 | J77: 0.2 | L77: 9
D78: 113 | E78: 1 | F78: =IF(D78="","",(FREQUENCY(ArraySheet!$A$2:'ArraySheet'!$A$501,D78))) -> 25 | G78: 0.04 | H78: 2 | I78: =IF(D78="","",(FREQUENCY(ArraySheet!$B$2:'ArraySheet'!$B$501,D78))) -> 22 | J78: 0.08 | L78: 3
D79: 117 | E79: 0 | F79: =IF(D79="","",(FREQUENCY(ArraySheet!$A$2:'ArraySheet'!$A$501,D79))) -> 25 | G79: 0 | H79: 1 | I79: =IF(D79="","",(FREQUENCY(ArraySheet!$B$2:'ArraySheet'!$B$501,D79))) -> 23 | J79: 0.04 | L79: 1
D80: 121 | E80: 0 | F80: =IF(D80="","",(FREQUENCY(ArraySheet!$A$2:'ArraySheet'!$A$501,D80))) -> 25 | G80: 0 | H80: 1 | I80: =IF(D80="","",(FREQUENCY(ArraySheet!$B$2:'ArraySheet'!$B$501,D80))) -> 24 | J80: 0.04 | L80: 1
D81: 125 | E81: 0 | F81: =IF(D81="","",(FREQUENCY(ArraySheet!$A$2:'ArraySheet'!$A$501,D81))) -> 25 | G81: 0 | H81: 1 | I81: =IF(D81="","",(FREQUENCY(ArraySheet!$B$2:'ArraySheet'!$B$501,D81))) -> 25 | J81: 0.04 | L81: 1
F84: =IF(D84="","",(FREQUENCY(ArraySheet!$A$2:'ArraySheet'!$A$501,D84))) -> 
F85: =IF(D85="","",(FREQUENCY(ArraySheet!$A$2:'ArraySheet'!$A$501,D85))) -> 
F86: =IF(D86="","",(FREQUENCY(ArraySheet!$A$2:'ArraySheet'!$A$501,D86))) -> 
F87: =IF(D87="","",(FREQUENCY(ArraySheet!$A$2:'ArraySheet'!$A$501,D87))) -> 

Sheet G-Histogram (hidden)

Sheet C-Scatter (hidden)
A1: Scatter | E1: y axis min value | F1: =IF(F2<1,ROUND(F2,2),ROUND(F2,1)) -> 95
E2: min AU | F2: =MIN(ArraySheet!$A$2:$A$501) -> 95 | H2: correl min | I2: -1
E3: correlation | F3: =IF(ArraySheet!$B$2="","",CORREL(OFFSET(ArraySheet!$A$2,0,0,COUNT(ArraySheet!$B$2:'ArraySheet'!$B$501),1),OFFSET(ArraySheet!$B$2,0,0,COUNT(ArraySheet!$B$2:'ArraySheet'!$B$501),1))) -> 0.738973198 | H3: correl max | I3: 1
E4: min AT | F4: =MIN(ArraySheet!$A$2:'ArraySheet'!$B$501) -> 89 | H4: correlation | I4: =F3 -> 0.738973198
E5: x axis min | F5: =IF(F4<0.1,ROUND(F4,1),ROUND(F4,0)) -> 89

Sheet G-Scatter (hidden)
A100: nn

Sheet C-Time (hidden)
A1: Run | B1: avg lab
B2: =IF(C3="",C2,NA()) ->  | C2: =IF(ArraySheet!A2="","",AVERAGE(ArraySheet!$A$2:$A$501)) -> 102.4 | D2: data min | E2: =MIN(ArraySheet!$A$2:'ArraySheet'!$A$501) -> 95
C3: =IF(ArraySheet!A3="","",AVERAGE(ArraySheet!$A$2:$A$501)) -> 102.4 | D3: yaxis min | E3: =IF(E2<1,ROUNDDOWN(E2,2),ROUNDDOWN(E2,0)) -> 95
C4: =IF(ArraySheet!A4="","",AVERAGE(ArraySheet!$A$2:$A$501)) -> 102.4 | D4: Datacount | E4: =COUNT(ArraySheet!$A$2:'ArraySheet'!$A$501) -> 25
C5: =IF(ArraySheet!A5="","",AVERAGE(ArraySheet!$A$2:$A$501)) -> 102.4
C6: =IF(ArraySheet!A6="","",AVERAGE(ArraySheet!$A$2:$A$501)) -> 102.4
C7: =IF(ArraySheet!A7="","",AVERAGE(ArraySheet!$A$2:$A$501)) -> 102.4
C8: =IF(ArraySheet!A8="","",AVERAGE(ArraySheet!$A$2:$A$501)) -> 102.4
C9: =IF(ArraySheet!A9="","",AVERAGE(ArraySheet!$A$2:$A$501)) -> 102.4
C10: =IF(ArraySheet!A10="","",AVERAGE(ArraySheet!$A$2:$A$501)) -> 102.4
C11: =IF(ArraySheet!A11="","",AVERAGE(ArraySheet!$A$2:$A$501)) -> 102.4
C12: =IF(ArraySheet!A12="","",AVERAGE(ArraySheet!$A$2:$A$501)) -> 102.4
C13: =IF(ArraySheet!A13="","",AVERAGE(ArraySheet!$A$2:$A$501)) -> 102.4
C14: =IF(ArraySheet!A14="","",AVERAGE(ArraySheet!$A$2:$A$501)) -> 102.4
C15: =IF(ArraySheet!A15="","",AVERAGE(ArraySheet!$A$2:$A$501)) -> 102.4
C16: =IF(ArraySheet!A16="","",AVERAGE(ArraySheet!$A$2:$A$501)) -> 102.4
C17: =IF(ArraySheet!A17="","",AVERAGE(ArraySheet!$A$2:$A$501)) -> 102.4
C18: =IF(ArraySheet!A18="","",AVERAGE(ArraySheet!$A$2:$A$501)) -> 102.4
C19: =IF(ArraySheet!A19="","",AVERAGE(ArraySheet!$A$2:$A$501)) -> 102.4
C20: =IF(ArraySheet!A20="","",AVERAGE(ArraySheet!$A$2:$A$501)) -> 102.4
C21: =IF(ArraySheet!A21="","",AVERAGE(ArraySheet!$A$2:$A$501)) -> 102.4
C22: =IF(ArraySheet!A22="","",AVERAGE(ArraySheet!$A$2:$A$501)) -> 102.4
C23: =IF(ArraySheet!A23="","",AVERAGE(ArraySheet!$A$2:$A$501)) -> 102.4
C24: =IF(ArraySheet!A24="","",AVERAGE(ArraySheet!$A$2:$A$501)) -> 102.4
C25: =IF(ArraySheet!A25="","",AVERAGE(ArraySheet!$A$2:$A$501)) -> 102.4
B26: 102.4 | C26: =IF(ArraySheet!A26="","",AVERAGE(ArraySheet!$A$2:$A$501)) -> 102.4
C27: =IF(ArraySheet!A27="","",AVERAGE(ArraySheet!$A$2:$A$501)) -> 
C28: =IF(ArraySheet!A28="","",AVERAGE(ArraySheet!$A$2:$A$501)) -> 
C29: =IF(ArraySheet!A29="","",AVERAGE(ArraySheet!$A$2:$A$501)) -> 
C30: =IF(ArraySheet!A30="","",AVERAGE(ArraySheet!$A$2:$A$501)) -> 
C31: =IF(ArraySheet!A31="","",AVERAGE(ArraySheet!$A$2:$A$501)) -> 
C32: =IF(ArraySheet!A32="","",AVERAGE(ArraySheet!$A$2:$A$501)) -> 
C33: =IF(ArraySheet!A33="","",AVERAGE(ArraySheet!$A$2:$A$501)) -> 
C34: =IF(ArraySheet!A34="","",AVERAGE(ArraySheet!$A$2:$A$501)) -> 
C35: =IF(ArraySheet!A35="","",AVERAGE(ArraySheet!$A$2:$A$501)) -> 
C36: =IF(ArraySheet!A36="","",AVERAGE(ArraySheet!$A$2:$A$501)) -> 
C37: =IF(ArraySheet!A37="","",AVERAGE(ArraySheet!$A$2:$A$501)) -> 
C38: =IF(ArraySheet!A38="","",AVERAGE(ArraySheet!$A$2:$A$501)) -> 
C39: =IF(ArraySheet!A39="","",AVERAGE(ArraySheet!$A$2:$A$501)) -> 
C40: =IF(ArraySheet!A40="","",AVERAGE(ArraySheet!$A$2:$A$501)) -> 
C41: =IF(ArraySheet!A41="","",AVERAGE(ArraySheet!$A$2:$A$501)) -> 
C42: =IF(ArraySheet!A42="","",AVERAGE(ArraySheet!$A$2:$A$501)) -> 
C43: =IF(ArraySheet!A43="","",AVERAGE(ArraySheet!$A$2:$A$501)) -> 
C44: =IF(ArraySheet!A44="","",AVERAGE(ArraySheet!$A$2:$A$501)) -> 
C45: =IF(ArraySheet!A45="","",AVERAGE(ArraySheet!$A$2:$A$501)) -> 
C46: =IF(ArraySheet!A46="","",AVERAGE(ArraySheet!$A$2:$A$501)) -> 
C47: =IF(ArraySheet!A47="","",AVERAGE(ArraySheet!$A$2:$A$501)) -> 
C48: =IF(ArraySheet!A48="","",AVERAGE(ArraySheet!$A$2:$A$501)) -> 
C49: =IF(ArraySheet!A49="","",AVERAGE(ArraySheet!$A$2:$A$501)) -> 
C50: =IF(ArraySheet!A50="","",AVERAGE(ArraySheet!$A$2:$A$501)) -> 
C51: =IF(ArraySheet!A51="","",AVERAGE(ArraySheet!$A$2:$A$501)) -> 
C52: =IF(ArraySheet!A52="","",AVERAGE(ArraySheet!$A$2:$A$501)) -> 
C53: =IF(ArraySheet!A53="","",AVERAGE(ArraySheet!$A$2:$A$501)) -> 
C54: =IF(ArraySheet!A54="","",AVERAGE(ArraySheet!$A$2:$A$501)) -> 
C55: =IF(ArraySheet!A55="","",AVERAGE(ArraySheet!$A$2:$A$501)) -> 
C56: =IF(ArraySheet!A56="","",AVERAGE(ArraySheet!$A$2:$A$501)) -> 
C57: =IF(ArraySheet!A57="","",AVERAGE(ArraySheet!$A$2:$A$501)) -> 
C58: =IF(ArraySheet!A58="","",AVERAGE(ArraySheet!$A$2:$A$501)) -> 
C59: =IF(ArraySheet!A59="","",AVERAGE(ArraySheet!$A$2:$A$501)) -> 
C60: =IF(ArraySheet!A60="","",AVERAGE(ArraySheet!$A$2:$A$501)) -> 
C61: =IF(ArraySheet!A61="","",AVERAGE(ArraySheet!$A$2:$A$501)) -> 
C62: =IF(ArraySheet!A62="","",AVERAGE(ArraySheet!$A$2:$A$501)) -> 
C63: =IF(ArraySheet!A63="","",AVERAGE(ArraySheet!$A$2:$A$501)) -> 
C64: =IF(ArraySheet!A64="","",AVERAGE(ArraySheet!$A$2:$A$501)) -> 
C65: =IF(ArraySheet!A65="","",AVERAGE(ArraySheet!$A$2:$A$501)) -> 
B66: =IF(C67="",C66,NA()) ->  | C66: =IF(ArraySheet!A66="","",AVERAGE(ArraySheet!$A$2:$A$501)) -> 
C67: =IF(ArraySheet!A67="","",AVERAGE(ArraySheet!$A$2:$A$501)) -> 
C68: =IF(ArraySheet!A68="","",AVERAGE(ArraySheet!$A$2:$A$501)) -> 
C69: =IF(ArraySheet!A69="","",AVERAGE(ArraySheet!$A$2:$A$501)) -> 
C70: =IF(ArraySheet!A70="","",AVERAGE(ArraySheet!$A$2:$A$501)) -> 
C71: =IF(ArraySheet!A71="","",AVERAGE(ArraySheet!$A$2:$A$501)) -> 
C72: =IF(ArraySheet!A72="","",AVERAGE(ArraySheet!$A$2:$A$501)) -> 
C73: =IF(ArraySheet!A73="","",AVERAGE(ArraySheet!$A$2:$A$501)) -> 
C74: =IF(ArraySheet!A74="","",AVERAGE(ArraySheet!$A$2:$A$501)) -> 
C75: =IF(ArraySheet!A75="","",AVERAGE(ArraySheet!$A$2:$A$501)) -> 
C76: =IF(ArraySheet!A76="","",AVERAGE(ArraySheet!$A$2:$A$501)) -> 
C77: =IF(ArraySheet!A77="","",AVERAGE(ArraySheet!$A$2:$A$501)) -> 
C78: =IF(ArraySheet!A78="","",AVERAGE(ArraySheet!$A$2:$A$501)) -> 
C79: =IF(ArraySheet!A79="","",AVERAGE(ArraySheet!$A$2:$A$501)) -> 
C80: =IF(ArraySheet!A80="","",AVERAGE(ArraySheet!$A$2:$A$501)) -> 
C81: =IF(ArraySheet!A81="","",AVERAGE(ArraySheet!$A$2:$A$501)) -> 
C82: =IF(ArraySheet!A82="","",AVERAGE(ArraySheet!$A$2:$A$501)) -> 
C83: =IF(ArraySheet!A83="","",AVERAGE(ArraySheet!$A$2:$A$501)) -> 
C84: =IF(ArraySheet!A84="","",AVERAGE(ArraySheet!$A$2:$A$501)) -> 
C85: =IF(ArraySheet!A85="","",AVERAGE(ArraySheet!$A$2:$A$501)) -> 
C86: =IF(ArraySheet!A86="","",AVERAGE(ArraySheet!$A$2:$A$501)) -> 
C87: =IF(ArraySheet!A87="","",AVERAGE(ArraySheet!$A$2:$A$501)) -> 
C88: =IF(ArraySheet!A88="","",AVERAGE(ArraySheet!$A$2:$A$501)) -> 
C89: =IF(ArraySheet!A89="","",AVERAGE(ArraySheet!$A$2:$A$501)) -> 
C90: =IF(ArraySheet!A90="","",AVERAGE(ArraySheet!$A$2:$A$501)) -> 
C91: =IF(ArraySheet!A91="","",AVERAGE(ArraySheet!$A$2:$A$501)) -> 
C92: =IF(ArraySheet!A92="","",AVERAGE(ArraySheet!$A$2:$A$501)) -> 
C93: =IF(ArraySheet!A93="","",AVERAGE(ArraySheet!$A$2:$A$501)) -> 
C94: =IF(ArraySheet!A94="","",AVERAGE(ArraySheet!$A$2:$A$501)) -> 
C95: =IF(ArraySheet!A95="","",AVERAGE(ArraySheet!$A$2:$A$501)) -> 
C96: =IF(ArraySheet!A96="","",AVERAGE(ArraySheet!$A$2:$A$501)) -> 
C97: =IF(ArraySheet!A97="","",AVERAGE(ArraySheet!$A$2:$A$501)) -> 
C98: =IF(ArraySheet!A98="","",AVERAGE(ArraySheet!$A$2:$A$501)) -> 
C99: =IF(ArraySheet!A99="","",AVERAGE(ArraySheet!$A$2:$A$501)) -> 
C100: =IF(ArraySheet!A100="","",AVERAGE(ArraySheet!$A$2:$A$501)) -> 
C101: =IF(ArraySheet!A101="","",AVERAGE(ArraySheet!$A$2:$A$501)) -> 
C102: =IF(ArraySheet!A102="","",AVERAGE(ArraySheet!$A$2:$A$501)) -> 
C103: =IF(ArraySheet!A103="","",AVERAGE(ArraySheet!$A$2:$A$501)) -> 
C104: =IF(ArraySheet!A104="","",AVERAGE(ArraySheet!$A$2:$A$501)) -> 
C105: =IF(ArraySheet!A105="","",AVERAGE(ArraySheet!$A$2:$A$501)) -> 
C106: =IF(ArraySheet!A106="","",AVERAGE(ArraySheet!$A$2:$A$501)) -> 
C107: =IF(ArraySheet!A107="","",AVERAGE(ArraySheet!$A$2:$A$501)) -> 
C108: =IF(ArraySheet!A108="","",AVERAGE(ArraySheet!$A$2:$A$501)) -> 
C109: =IF(ArraySheet!A109="","",AVERAGE(ArraySheet!$A$2:$A$501)) -> 
C110: =IF(ArraySheet!A110="","",AVERAGE(ArraySheet!$A$2:$A$501)) -> 
C111: =IF(ArraySheet!A111="","",AVERAGE(ArraySheet!$A$2:$A$501)) -> 
C112: =IF(ArraySheet!A112="","",AVERAGE(ArraySheet!$A$2:$A$501)) -> 
C113: =IF(ArraySheet!A113="","",AVERAGE(ArraySheet!$A$2:$A$501)) -> 
C114: =IF(ArraySheet!A114="","",AVERAGE(ArraySheet!$A$2:$A$501)) -> 
C115: =IF(ArraySheet!A115="","",AVERAGE(ArraySheet!$A$2:$A$501)) -> 
C116: =IF(ArraySheet!A116="","",AVERAGE(ArraySheet!$A$2:$A$501)) -> 
C117: =IF(ArraySheet!A117="","",AVERAGE(ArraySheet!$A$2:$A$501)) -> 
C118: =IF(ArraySheet!A118="","",AVERAGE(ArraySheet!$A$2:$A$501)) -> 
C119: =IF(ArraySheet!A119="","",AVERAGE(ArraySheet!$A$2:$A$501)) -> 
C120: =IF(ArraySheet!A120="","",AVERAGE(ArraySheet!$A$2:$A$501)) -> 
C121: =IF(ArraySheet!A121="","",AVERAGE(ArraySheet!$A$2:$A$501)) -> 
C122: =IF(ArraySheet!A122="","",AVERAGE(ArraySheet!$A$2:$A$501)) -> 
C123: =IF(ArraySheet!A123="","",AVERAGE(ArraySheet!$A$2:$A$501)) -> 
C124: =IF(ArraySheet!A124="","",AVERAGE(ArraySheet!$A$2:$A$501)) -> 
C125: =IF(ArraySheet!A125="","",AVERAGE(ArraySheet!$A$2:$A$501)) -> 
C126: =IF(ArraySheet!A126="","",AVERAGE(ArraySheet!$A$2:$A$501)) -> 
C127: =IF(ArraySheet!A127="","",AVERAGE(ArraySheet!$A$2:$A$501)) -> 
C128: =IF(ArraySheet!A128="","",AVERAGE(ArraySheet!$A$2:$A$501)) -> 
C129: =IF(ArraySheet!A129="","",AVERAGE(ArraySheet!$A$2:$A$501)) -> 
B130: =IF(C131="",C130,NA()) ->  | C130: =IF(ArraySheet!A130="","",AVERAGE(ArraySheet!$A$2:$A$501)) -> 
C131: =IF(ArraySheet!A131="","",AVERAGE(ArraySheet!$A$2:$A$501)) -> 
C132: =IF(ArraySheet!A132="","",AVERAGE(ArraySheet!$A$2:$A$501)) -> 
C133: =IF(ArraySheet!A133="","",AVERAGE(ArraySheet!$A$2:$A$501)) -> 
C134: =IF(ArraySheet!A134="","",AVERAGE(ArraySheet!$A$2:$A$501)) -> 
C135: =IF(ArraySheet!A135="","",AVERAGE(ArraySheet!$A$2:$A$501)) -> 
C136: =IF(ArraySheet!A136="","",AVERAGE(ArraySheet!$A$2:$A$501)) -> 
C137: =IF(ArraySheet!A137="","",AVERAGE(ArraySheet!$A$2:$A$501)) -> 
C138: =IF(ArraySheet!A138="","",AVERAGE(ArraySheet!$A$2:$A$501)) -> 
C139: =IF(ArraySheet!A139="","",AVERAGE(ArraySheet!$A$2:$A$501)) -> 
C140: =IF(ArraySheet!A140="","",AVERAGE(ArraySheet!$A$2:$A$501)) -> 
C141: =IF(ArraySheet!A141="","",AVERAGE(ArraySheet!$A$2:$A$501)) -> 
C142: =IF(ArraySheet!A142="","",AVERAGE(ArraySheet!$A$2:$A$501)) -> 
C143: =IF(ArraySheet!A143="","",AVERAGE(ArraySheet!$A$2:$A$501)) -> 
C144: =IF(ArraySheet!A144="","",AVERAGE(ArraySheet!$A$2:$A$501)) -> 
C145: =IF(ArraySheet!A145="","",AVERAGE(ArraySheet!$A$2:$A$501)) -> 
C146: =IF(ArraySheet!A146="","",AVERAGE(ArraySheet!$A$2:$A$501)) -> 
C147: =IF(ArraySheet!A147="","",AVERAGE(ArraySheet!$A$2:$A$501)) -> 
C148: =IF(ArraySheet!A148="","",AVERAGE(ArraySheet!$A$2:$A$501)) -> 
C149: =IF(ArraySheet!A149="","",AVERAGE(ArraySheet!$A$2:$A$501)) -> 
C150: =IF(ArraySheet!A150="","",AVERAGE(ArraySheet!$A$2:$A$501)) -> 
C151: =IF(ArraySheet!A151="","",AVERAGE(ArraySheet!$A$2:$A$501)) -> 
C152: =IF(ArraySheet!A152="","",AVERAGE(ArraySheet!$A$2:$A$501)) -> 
C153: =IF(ArraySheet!A153="","",AVERAGE(ArraySheet!$A$2:$A$501)) -> 
C154: =IF(ArraySheet!A154="","",AVERAGE(ArraySheet!$A$2:$A$501)) -> 
C155: =IF(ArraySheet!A155="","",AVERAGE(ArraySheet!$A$2:$A$501)) -> 
C156: =IF(ArraySheet!A156="","",AVERAGE(ArraySheet!$A$2:$A$501)) -> 
C157: =IF(ArraySheet!A157="","",AVERAGE(ArraySheet!$A$2:$A$501)) -> 
C158: =IF(ArraySheet!A158="","",AVERAGE(ArraySheet!$A$2:$A$501)) -> 
C159: =IF(ArraySheet!A159="","",AVERAGE(ArraySheet!$A$2:$A$501)) -> 
C160: =IF(ArraySheet!A160="","",AVERAGE(ArraySheet!$A$2:$A$501)) -> 
C161: =IF(ArraySheet!A161="","",AVERAGE(ArraySheet!$A$2:$A$501)) -> 
C162: =IF(ArraySheet!A162="","",AVERAGE(ArraySheet!$A$2:$A$501)) -> 
C163: =IF(ArraySheet!A163="","",AVERAGE(ArraySheet!$A$2:$A$501)) -> 
C164: =IF(ArraySheet!A164="","",AVERAGE(ArraySheet!$A$2:$A$501)) -> 
C165: =IF(ArraySheet!A165="","",AVERAGE(ArraySheet!$A$2:$A$501)) -> 
C166: =IF(ArraySheet!A166="","",AVERAGE(ArraySheet!$A$2:$A$501)) -> 
C167: =IF(ArraySheet!A167="","",AVERAGE(ArraySheet!$A$2:$A$501)) -> 
C168: =IF(ArraySheet!A168="","",AVERAGE(ArraySheet!$A$2:$A$501)) -> 
C169: =IF(ArraySheet!A169="","",AVERAGE(ArraySheet!$A$2:$A$501)) -> 
C170: =IF(ArraySheet!A170="","",AVERAGE(ArraySheet!$A$2:$A$501)) -> 
C171: =IF(ArraySheet!A171="","",AVERAGE(ArraySheet!$A$2:$A$501)) -> 
C172: =IF(ArraySheet!A172="","",AVERAGE(ArraySheet!$A$2:$A$501)) -> 
C173: =IF(ArraySheet!A173="","",AVERAGE(ArraySheet!$A$2:$A$501)) -> 
C174: =IF(ArraySheet!A174="","",AVERAGE(ArraySheet!$A$2:$A$501)) -> 
C175: =IF(ArraySheet!A175="","",AVERAGE(ArraySheet!$A$2:$A$501)) -> 
C176: =IF(ArraySheet!A176="","",AVERAGE(ArraySheet!$A$2:$A$501)) -> 
C177: =IF(ArraySheet!A177="","",AVERAGE(ArraySheet!$A$2:$A$501)) -> 
C178: =IF(ArraySheet!A178="","",AVERAGE(ArraySheet!$A$2:$A$501)) -> 
C179: =IF(ArraySheet!A179="","",AVERAGE(ArraySheet!$A$2:$A$501)) -> 
C180: =IF(ArraySheet!A180="","",AVERAGE(ArraySheet!$A$2:$A$501)) -> 
C181: =IF(ArraySheet!A181="","",AVERAGE(ArraySheet!$A$2:$A$501)) -> 
C182: =IF(ArraySheet!A182="","",AVERAGE(ArraySheet!$A$2:$A$501)) -> 
C183: =IF(ArraySheet!A183="","",AVERAGE(ArraySheet!$A$2:$A$501)) -> 
C184: =IF(ArraySheet!A184="","",AVERAGE(ArraySheet!$A$2:$A$501)) -> 
C185: =IF(ArraySheet!A185="","",AVERAGE(ArraySheet!$A$2:$A$501)) -> 
C186: =IF(ArraySheet!A186="","",AVERAGE(ArraySheet!$A$2:$A$501)) -> 
C187: =IF(ArraySheet!A187="","",AVERAGE(ArraySheet!$A$2:$A$501)) -> 
C188: =IF(ArraySheet!A188="","",AVERAGE(ArraySheet!$A$2:$A$501)) -> 
C189: =IF(ArraySheet!A189="","",AVERAGE(ArraySheet!$A$2:$A$501)) -> 
C190: =IF(ArraySheet!A190="","",AVERAGE(ArraySheet!$A$2:$A$501)) -> 
C191: =IF(ArraySheet!A191="","",AVERAGE(ArraySheet!$A$2:$A$501)) -> 
C192: =IF(ArraySheet!A192="","",AVERAGE(ArraySheet!$A$2:$A$501)) -> 
C193: =IF(ArraySheet!A193="","",AVERAGE(ArraySheet!$A$2:$A$501)) -> 
B194: =IF(C195="",C194,NA()) ->  | C194: =IF(ArraySheet!A194="","",AVERAGE(ArraySheet!$A$2:$A$501)) -> 
C195: =IF(ArraySheet!A195="","",AVERAGE(ArraySheet!$A$2:$A$501)) -> 
C196: =IF(ArraySheet!A196="","",AVERAGE(ArraySheet!$A$2:$A$501)) -> 
C197: =IF(ArraySheet!A197="","",AVERAGE(ArraySheet!$A$2:$A$501)) -> 
C198: =IF(ArraySheet!A198="","",AVERAGE(ArraySheet!$A$2:$A$501)) -> 
C199: =IF(ArraySheet!A199="","",AVERAGE(ArraySheet!$A$2:$A$501)) -> 
C200: =IF(ArraySheet!A200="","",AVERAGE(ArraySheet!$A$2:$A$501)) -> 
... 301 more rows

Sheet G-Time (hidden)
A100: time

Sheet C-DPMO (hidden)
A1: DPMO | E1: z | F1: x | G1: y | H1: area
B2: Opportunities for defects | E2: =C15 -> -3 | F2: =E2*$C$13+$C$12 -> -4.5 | G2: =NORMDIST(F2,$C$12,$C$13,FALSE) -> 0.002954565608 | H2: =IF(F2>$C$22,"",IF(F2<$C$21,NA(),G2)) -> 
B3: Number of defects | E3: =($C$16-$C$15)/($C$14-1)+E2 -> -2.939393939 | F3: -4.409090909 | G3: 0.003537192284
B4: DPMO Calculated | E4: -2.878787879 | F4: -4.318181818 | G4: 0.004219184286
B5: DPMO Entered | C5: 1 | E5: -2.818181818 | F5: -4.227272727 | G5: 0.005014216899
B6: DPMO = | C6: =DPMOEnter -> 1 | E6: -2.757575758 | F6: -4.136363636 | G6: 0.005937211676
B7: Failure rate | C7: =C6/1000000 -> 1e-06 | E7: -2.696969697 | F7: -4.045454545 | G7: 0.007004332348
B8: Accuracy rate | C8: =1-C7 -> 0.999999 | E8: -2.636363636 | F8: -3.954545455 | G8: 0.008232955194
B9: Long term sigma value = | C9: =NORMSINV(C8) -> 4.753424309 | E9: -2.575757576 | F9: -3.863636364 | G9: 0.009641609865
E10: -2.515151515 | F10: -3.772727273 | G10: 0.01124988679
E11: -2.454545455 | F11: -3.681818182 | G11: 0.01307830752
B12: mean | C12: 0 | E12: -2.393939394 | F12: -3.590909091 | G12: 0.01514815476
B13: stdev | C13: 1.5 | E13: -2.333333333 | F13: -3.5 | G13: 0.0174812594
B14: number rows | C14: 100 | E14: -2.272727273 | F14: -3.409090909 | G14: 0.02009974261
B15: zmin | C15: -3 | E15: -2.212121212 | F15: -3.318181818 | G15: 0.0230257121
B16: zmax | C16: 3 | E16: -2.151515152 | F16: -3.227272727 | G16: 0.02628091247
E17: -2.090909091 | F17: -3.136363636 | G17: 0.02988633117
B18: pctClear | C18: 0.25 | E18: -2.03030303 | F18: -3.045454545 | G18: 0.03386176292
B19: pctShade | C19: 0.75 | E19: -1.96969697 | F19: -2.954545455 | G19: 0.03822533675
E20: -1.909090909 | F20: -2.863636364 | G20: 0.04299301188
B21: shade left | C21: =C9 -> 4.753424309 | E21: -1.848484848 | F21: -2.772727273 | G21: 0.04817804985
B22: shade right | C22: =F101+0.5 -> 5 | E22: -1.787878788 | F22: -2.681818182 | G22: 0.05379047235
E23: -1.727272727 | F23: -2.590909091 | G23: 0.05983651543
E24: -1.666666667 | F24: -2.5 | G24: 0.06631809253
E25: -1.606060606 | F25: -2.409090909 | G25: 0.07323227964
E26: -1.545454545 | F26: -2.318181818 | G26: 0.08057083711
E27: -1.484848485 | F27: -2.227272727 | G27: 0.08831978306
E28: -1.424242424 | F28: -2.136363636 | G28: 0.09645903362
E29: -1.363636364 | F29: -2.045454545 | G29: 0.1049621251
E30: -1.303030303 | F30: -1.954545455 | G30: 0.1137960319
E31: -1.242424242 | F31: -1.863636364 | G31: 0.1229210942
E32: -1.181818182 | F32: -1.772727273 | G32: 0.1322910646
E33: -1.121212121 | F33: -1.681818182 | G33: 0.1418532861
E34: -1.060606061 | F34: =E34*$C$13+$C$12 -> -1.590909091 | G34: =NORMDIST(F34,$C$12,$C$13,FALSE) -> 0.1515490038 | H34: =IF(F34>$C$22,"",IF(F34<$C$21,NA(),G34)) -> 
E35: =($C$16-$C$15)/($C$14-1)+E34 -> -1 | F35: -1.5 | G35: 0.1613138163
E36: -0.9393939394 | F36: -1.409090909 | G36: 0.1710782666
E37: -0.8787878788 | F37: -1.318181818 | G37: 0.1807685655
E38: -0.8181818182 | F38: -1.227272727 | G38: 0.1903074446
E39: -0.7575757576 | F39: -1.136363636 | G39: 0.1996151222
E40: -0.696969697 | F40: -1.045454545 | G40: 0.208610371
E41: -0.6363636364 | F41: -0.9545454545 | G41: 0.2172116663
E42: -0.5757575758 | F42: -0.8636363636 | G42: 0.2253383938
E43: -0.5151515152 | F43: -0.7727272727 | G43: 0.2329120922
E44: -0.4545454545 | F44: -0.6818181818 | G44: 0.2398577052
E45: -0.3939393939 | F45: -0.5909090909 | G45: 0.2461048131
E46: -0.3333333333 | F46: -0.5 | G46: 0.2515888185
E47: -0.2727272727 | F47: -0.4090909091 | G47: 0.2562520563
E48: -0.2121212121 | F48: -0.3181818182 | G48: 0.2600448025
E49: -0.1515151515 | F49: -0.2272727273 | G49: 0.262926156
E50: -0.09090909091 | F50: -0.1363636364 | G50: 0.2648647733
E51: -0.0303030303 | F51: -0.04545454545 | G51: 0.2658394356
E52: 0.0303030303 | F52: 0.04545454545 | G52: 0.2658394356
E53: 0.09090909091 | F53: 0.1363636364 | G53: 0.2648647733
E54: 0.1515151515 | F54: 0.2272727273 | G54: 0.262926156
E55: 0.2121212121 | F55: 0.3181818182 | G55: 0.2600448025
E56: 0.2727272727 | F56: 0.4090909091 | G56: 0.2562520563
E57: 0.3333333333 | F57: 0.5 | G57: 0.2515888185
E58: 0.3939393939 | F58: 0.5909090909 | G58: 0.2461048131
E59: 0.4545454545 | F59: 0.6818181818 | G59: 0.2398577052
E60: 0.5151515152 | F60: 0.7727272727 | G60: 0.2329120922
E61: 0.5757575758 | F61: 0.8636363636 | G61: 0.2253383938
E62: 0.6363636364 | F62: 0.9545454545 | G62: 0.2172116663
E63: 0.696969697 | F63: 1.045454545 | G63: 0.208610371
E64: 0.7575757576 | F64: 1.136363636 | G64: 0.1996151222
E65: 0.8181818182 | F65: 1.227272727 | G65: 0.1903074446
E66: 0.8787878788 | F66: =E66*$C$13+$C$12 -> 1.318181818 | G66: =NORMDIST(F66,$C$12,$C$13,FALSE) -> 0.1807685655 | H66: =IF(F66>$C$22,"",IF(F66<$C$21,NA(),G66)) -> 
E67: =($C$16-$C$15)/($C$14-1)+E66 -> 0.9393939394 | F67: 1.409090909 | G67: 0.1710782666
E68: 1 | F68: 1.5 | G68: 0.1613138163
E69: 1.060606061 | F69: 1.590909091 | G69: 0.1515490038
E70: 1.121212121 | F70: 1.681818182 | G70: 0.1418532861
E71: 1.181818182 | F71: 1.772727273 | G71: 0.1322910646
E72: 1.242424242 | F72: 1.863636364 | G72: 0.1229210942
E73: 1.303030303 | F73: 1.954545455 | G73: 0.1137960319
E74: 1.363636364 | F74: 2.045454545 | G74: 0.1049621251
E75: 1.424242424 | F75: 2.136363636 | G75: 0.09645903362
E76: 1.484848485 | F76: 2.227272727 | G76: 0.08831978306
E77: 1.545454545 | F77: 2.318181818 | G77: 0.08057083711
E78: 1.606060606 | F78: 2.409090909 | G78: 0.07323227964
E79: 1.666666667 | F79: 2.5 | G79: 0.06631809253
E80: 1.727272727 | F80: 2.590909091 | G80: 0.05983651543
E81: 1.787878788 | F81: 2.681818182 | G81: 0.05379047235
E82: 1.848484848 | F82: 2.772727273 | G82: 0.04817804985
E83: 1.909090909 | F83: 2.863636364 | G83: 0.04299301188
E84: 1.96969697 | F84: 2.954545455 | G84: 0.03822533675
E85: 2.03030303 | F85: 3.045454545 | G85: 0.03386176292
E86: 2.090909091 | F86: 3.136363636 | G86: 0.02988633117
E87: 2.151515152 | F87: 3.227272727 | G87: 0.02628091247
E88: 2.212121212 | F88: 3.318181818 | G88: 0.0230257121
E89: 2.272727273 | F89: 3.409090909 | G89: 0.02009974261
E90: 2.333333333 | F90: 3.5 | G90: 0.0174812594
E91: 2.393939394 | F91: 3.590909091 | G91: 0.01514815476
E92: 2.454545455 | F92: 3.681818182 | G92: 0.01307830752
E93: 2.515151515 | F93: 3.772727273 | G93: 0.01124988679
E94: 2.575757576 | F94: 3.863636364 | G94: 0.009641609865
E95: 2.636363636 | F95: 3.954545455 | G95: 0.008232955194
E96: 2.696969697 | F96: 4.045454545 | G96: 0.007004332348
E97: 2.757575758 | F97: 4.136363636 | G97: 0.005937211676
E98: 2.818181818 | F98: =E98*$C$13+$C$12 -> 4.227272727 | G98: =NORMDIST(F98,$C$12,$C$13,FALSE) -> 0.005014216899 | H98: =IF(F98>$C$22,"",IF(F98<$C$21,NA(),G98)) -> 
E99: 2.878787879 | F99: =E99*$C$13+$C$12 -> 4.318181818 | G99: =NORMDIST(F99,$C$12,$C$13,FALSE) -> 0.004219184286 | H99: =IF(F99>$C$22,"",IF(F99<$C$21,NA(),G99)) -> 
E100: 2.939393939 | F100: =E100*$C$13+$C$12 -> 4.409090909 | G100: =NORMDIST(F100,$C$12,$C$13,FALSE) -> 0.003537192284 | H100: =IF(F100>$C$22,"",IF(F100<$C$21,NA(),G100)) -> 
E101: 3 | F101: =E101*$C$13+$C$12 -> 4.5 | G101: =NORMDIST(F101,$C$12,$C$13,FALSE) -> 0.002954565608 | H101: =IF(F101>$C$22,"",IF(F101<$C$21,NA(),G101)) -> 

Sheet G-DPMO (hidden)

Sheet C-DPMOZ (hidden)
A1: DPMO Z | E1: z | F1: x | G1: y | H1: area
E2: =C15 -> -3 | F2: =E2*$C$13+$C$12 -> -4.5 | G2: =NORMDIST(F2,$C$12,$C$13,FALSE) -> 0.002954565608 | H2: =IF(F2>$C$22,"",IF(F2<$C$21,NA(),G2)) -> 
E3: =($C$16-$C$15)/($C$14-1)+E2 -> -2.939393939 | F3: -4.409090909 | G3: 0.003537192284
E4: -2.878787879 | F4: -4.318181818 | G4: 0.004219184286
E5: -2.818181818 | F5: -4.227272727 | G5: 0.005014216899
B6: DPMO = | C6: =C7*1000000 -> 451845.5176 | E6: -2.757575758 | F6: -4.136363636 | G6: 0.005937211676
B7: Failure rate | C7: =1-C8 -> 0.4518455176 | E7: -2.696969697 | F7: -4.045454545 | G7: 0.007004332348
B8: Accuracy rate | C8: =NORMSDIST(C9) -> 0.5481544824 | E8: -2.636363636 | F8: -3.954545455 | G8: 0.008232955194
B9: Long term sigma value = | C9: 0.121 | E9: -2.575757576 | F9: -3.863636364 | G9: 0.009641609865
E10: -2.515151515 | F10: -3.772727273 | G10: 0.01124988679
E11: -2.454545455 | F11: -3.681818182 | G11: 0.01307830752
B12: mean | C12: 0 | E12: -2.393939394 | F12: -3.590909091 | G12: 0.01514815476
B13: stdev | C13: 1.5 | E13: -2.333333333 | F13: -3.5 | G13: 0.0174812594
B14: number rows | C14: 100 | E14: -2.272727273 | F14: -3.409090909 | G14: 0.02009974261
B15: zmin | C15: -3 | E15: -2.212121212 | F15: -3.318181818 | G15: 0.0230257121
B16: zmax | C16: 3 | E16: -2.151515152 | F16: -3.227272727 | G16: 0.02628091247
E17: -2.090909091 | F17: -3.136363636 | G17: 0.02988633117
B18: pctClear | C18: 0.25 | E18: -2.03030303 | F18: -3.045454545 | G18: 0.03386176292
B19: pctShade | C19: 0.75 | E19: -1.96969697 | F19: -2.954545455 | G19: 0.03822533675
E20: -1.909090909 | F20: -2.863636364 | G20: 0.04299301188
B21: shade left | C21: =C9 -> 0.121 | E21: -1.848484848 | F21: -2.772727273 | G21: 0.04817804985
B22: shade right | C22: =F101+0.5 -> 5 | E22: -1.787878788 | F22: -2.681818182 | G22: 0.05379047235
E23: -1.727272727 | F23: -2.590909091 | G23: 0.05983651543
E24: -1.666666667 | F24: -2.5 | G24: 0.06631809253
E25: -1.606060606 | F25: -2.409090909 | G25: 0.07323227964
E26: -1.545454545 | F26: -2.318181818 | G26: 0.08057083711
E27: -1.484848485 | F27: -2.227272727 | G27: 0.08831978306
E28: -1.424242424 | F28: -2.136363636 | G28: 0.09645903362
E29: -1.363636364 | F29: -2.045454545 | G29: 0.1049621251
E30: -1.303030303 | F30: -1.954545455 | G30: 0.1137960319
E31: -1.242424242 | F31: -1.863636364 | G31: 0.1229210942
E32: -1.181818182 | F32: -1.772727273 | G32: 0.1322910646
E33: -1.121212121 | F33: -1.681818182 | G33: 0.1418532861
E34: -1.060606061 | F34: =E34*$C$13+$C$12 -> -1.590909091 | G34: =NORMDIST(F34,$C$12,$C$13,FALSE) -> 0.1515490038 | H34: =IF(F34>$C$22,"",IF(F34<$C$21,NA(),G34)) -> 
E35: =($C$16-$C$15)/($C$14-1)+E34 -> -1 | F35: -1.5 | G35: 0.1613138163
E36: -0.9393939394 | F36: -1.409090909 | G36: 0.1710782666
E37: -0.8787878788 | F37: -1.318181818 | G37: 0.1807685655
E38: -0.8181818182 | F38: -1.227272727 | G38: 0.1903074446
E39: -0.7575757576 | F39: -1.136363636 | G39: 0.1996151222
E40: -0.696969697 | F40: -1.045454545 | G40: 0.208610371
E41: -0.6363636364 | F41: -0.9545454545 | G41: 0.2172116663
E42: -0.5757575758 | F42: -0.8636363636 | G42: 0.2253383938
E43: -0.5151515152 | F43: -0.7727272727 | G43: 0.2329120922
E44: -0.4545454545 | F44: -0.6818181818 | G44: 0.2398577052
E45: -0.3939393939 | F45: -0.5909090909 | G45: 0.2461048131
E46: -0.3333333333 | F46: -0.5 | G46: 0.2515888185
E47: -0.2727272727 | F47: -0.4090909091 | G47: 0.2562520563
E48: -0.2121212121 | F48: -0.3181818182 | G48: 0.2600448025
E49: -0.1515151515 | F49: -0.2272727273 | G49: 0.262926156
E50: -0.09090909091 | F50: -0.1363636364 | G50: 0.2648647733
E51: -0.0303030303 | F51: -0.04545454545 | G51: 0.2658394356
E52: 0.0303030303 | F52: 0.04545454545 | G52: 0.2658394356
E53: 0.09090909091 | F53: 0.1363636364 | G53: 0.2648647733 | H53: 0.2648647733
E54: 0.1515151515 | F54: 0.2272727273 | G54: 0.262926156 | H54: 0.262926156
E55: 0.2121212121 | F55: 0.3181818182 | G55: 0.2600448025 | H55: 0.2600448025
E56: 0.2727272727 | F56: 0.4090909091 | G56: 0.2562520563 | H56: 0.2562520563
E57: 0.3333333333 | F57: 0.5 | G57: 0.2515888185 | H57: 0.2515888185
E58: 0.3939393939 | F58: 0.5909090909 | G58: 0.2461048131 | H58: 0.2461048131
E59: 0.4545454545 | F59: 0.6818181818 | G59: 0.2398577052 | H59: 0.2398577052
E60: 0.5151515152 | F60: 0.7727272727 | G60: 0.2329120922 | H60: 0.2329120922
E61: 0.5757575758 | F61: 0.8636363636 | G61: 0.2253383938 | H61: 0.2253383938
E62: 0.6363636364 | F62: 0.9545454545 | G62: 0.2172116663 | H62: 0.2172116663
E63: 0.696969697 | F63: 1.045454545 | G63: 0.208610371 | H63: 0.208610371
E64: 0.7575757576 | F64: 1.136363636 | G64: 0.1996151222 | H64: 0.1996151222
E65: 0.8181818182 | F65: 1.227272727 | G65: 0.1903074446 | H65: 0.1903074446
E66: 0.8787878788 | F66: =E66*$C$13+$C$12 -> 1.318181818 | G66: =NORMDIST(F66,$C$12,$C$13,FALSE) -> 0.1807685655 | H66: =IF(F66>$C$22,"",IF(F66<$C$21,NA(),G66)) -> 0.1807685655
E67: =($C$16-$C$15)/($C$14-1)+E66 -> 0.9393939394 | F67: 1.409090909 | G67: 0.1710782666 | H67: 0.1710782666
E68: 1 | F68: 1.5 | G68: 0.1613138163 | H68: 0.1613138163
E69: 1.060606061 | F69: 1.590909091 | G69: 0.1515490038 | H69: 0.1515490038
E70: 1.121212121 | F70: 1.681818182 | G70: 0.1418532861 | H70: 0.1418532861
E71: 1.181818182 | F71: 1.772727273 | G71: 0.1322910646 | H71: 0.1322910646
E72: 1.242424242 | F72: 1.863636364 | G72: 0.1229210942 | H72: 0.1229210942
E73: 1.303030303 | F73: 1.954545455 | G73: 0.1137960319 | H73: 0.1137960319
E74: 1.363636364 | F74: 2.045454545 | G74: 0.1049621251 | H74: 0.1049621251
E75: 1.424242424 | F75: 2.136363636 | G75: 0.09645903362 | H75: 0.09645903362
E76: 1.484848485 | F76: 2.227272727 | G76: 0.08831978306 | H76: 0.08831978306
E77: 1.545454545 | F77: 2.318181818 | G77: 0.08057083711 | H77: 0.08057083711
E78: 1.606060606 | F78: 2.409090909 | G78: 0.07323227964 | H78: 0.07323227964
E79: 1.666666667 | F79: 2.5 | G79: 0.06631809253 | H79: 0.06631809253
E80: 1.727272727 | F80: 2.590909091 | G80: 0.05983651543 | H80: 0.05983651543
E81: 1.787878788 | F81: 2.681818182 | G81: 0.05379047235 | H81: 0.05379047235
E82: 1.848484848 | F82: 2.772727273 | G82: 0.04817804985 | H82: 0.04817804985
E83: 1.909090909 | F83: 2.863636364 | G83: 0.04299301188 | H83: 0.04299301188
E84: 1.96969697 | F84: 2.954545455 | G84: 0.03822533675 | H84: 0.03822533675
E85: 2.03030303 | F85: 3.045454545 | G85: 0.03386176292 | H85: 0.03386176292
E86: 2.090909091 | F86: 3.136363636 | G86: 0.02988633117 | H86: 0.02988633117
E87: 2.151515152 | F87: 3.227272727 | G87: 0.02628091247 | H87: 0.02628091247
E88: 2.212121212 | F88: 3.318181818 | G88: 0.0230257121 | H88: 0.0230257121
E89: 2.272727273 | F89: 3.409090909 | G89: 0.02009974261 | H89: 0.02009974261
E90: 2.333333333 | F90: 3.5 | G90: 0.0174812594 | H90: 0.0174812594
E91: 2.393939394 | F91: 3.590909091 | G91: 0.01514815476 | H91: 0.01514815476
E92: 2.454545455 | F92: 3.681818182 | G92: 0.01307830752 | H92: 0.01307830752
E93: 2.515151515 | F93: 3.772727273 | G93: 0.01124988679 | H93: 0.01124988679
E94: 2.575757576 | F94: 3.863636364 | G94: 0.009641609865 | H94: 0.009641609865
E95: 2.636363636 | F95: 3.954545455 | G95: 0.008232955194 | H95: 0.008232955194
E96: 2.696969697 | F96: 4.045454545 | G96: 0.007004332348 | H96: 0.007004332348
E97: 2.757575758 | F97: 4.136363636 | G97: 0.005937211676 | H97: 0.005937211676
E98: 2.818181818 | F98: =E98*$C$13+$C$12 -> 4.227272727 | G98: =NORMDIST(F98,$C$12,$C$13,FALSE) -> 0.005014216899 | H98: =IF(F98>$C$22,"",IF(F98<$C$21,NA(),G98)) -> 0.005014216899
E99: 2.878787879 | F99: =E99*$C$13+$C$12 -> 4.318181818 | G99: =NORMDIST(F99,$C$12,$C$13,FALSE) -> 0.004219184286 | H99: =IF(F99>$C$22,"",IF(F99<$C$21,NA(),G99)) -> 0.004219184286
E100: 2.939393939 | F100: =E100*$C$13+$C$12 -> 4.409090909 | G100: =NORMDIST(F100,$C$12,$C$13,FALSE) -> 0.003537192284 | H100: =IF(F100>$C$22,"",IF(F100<$C$21,NA(),G100)) -> 0.003537192284
E101: 3 | F101: =E101*$C$13+$C$12 -> 4.5 | G101: =NORMDIST(F101,$C$12,$C$13,FALSE) -> 0.002954565608 | H101: =IF(F101>$C$22,"",IF(F101<$C$21,NA(),G101)) -> 0.002954565608

Sheet G-DPMOZ (hidden)

Sheet C-Xbar (hidden)
O1: Xbar R table | Q1: n | R1: A2 | S1: d3 | T1: d4 | V1: Ranges | W1: Ranges | X1: Max | Y1: min | Z1: xbarrange | AA1: Plot | AB1: UCL | AC1: LCL | AD1: Mean | AE1: UCLlabel | AF1: Meanlabel | AG1: LCLlabel | AI1: Range Plot | AJ1: Range UCL | AK1: RangeLCL | AL1: RangeMean | AM1: RangeUCLLab | AN1: RangeMeanLab | AO1: RangeLCLLab | AQ1: One Sig + | AR1: Two Sig + | AS1: One Sig - | AT1: Two Sig - | AV1: R 1Sig+ | AW1: R 2Sig+ | AX1: R 1Sig- | AY1: R 2 Sig- | BA1: Test 1 | BB1: Test 1 Range | BD1: Test2PU | BE1: Test2PL | BF1: test2PUcount | BG1: test2PLcount | BH1: Test2P | BJ1: Test2RU | BK1: Test2RL | BL1: Test2RUcount | BM1: Test2RLcount | BN1: Test2R | BP1: Test3PI | BQ1: Test3PD | BR1: Test3pIcount | BS1: Test3pdCount | BT1: Test3P | BV1: Test3RI | BW1: Test3RD | BX1: Test3RIcount | BY1: Test3RdCount | BZ1: Test3r | CB1: Test4PG | CC1: Test4PL | CD1: Test4PcountG | CE1: test4Pcount | CF1: Test4P | CH1: Test4RG | CI1: Test4rL | CJ1: Test4rcountG | CK1: Test4rcount | CL1: Test4R | CN1: Test5u | CO1: Test5l | CP1: test5countu | CQ1: test5countl | CR1: Test5 | CT1: Test6u | CU1: Test6l | CV1: Test6countu | CW1: test6countl | CX1: Test6 | CZ1: Test7u | DB1: Test 7 | DD1: Test8u | DF1: Test8countu | DH1: Test8 | DJ1: XBT1P | DK1: =IF(AND(ISERROR(XBT1P)),"Hide","Show") -> Show
Q2: 1 | R2: 2.66 | V2: =IF(ArraySheet!A2="","",1) -> 1 | W2: =IF(V2="","",Q13) -> 2 | X2: =IF(V2="","",MAX(ArraySheet!$A$2:OFFSET(ArraySheet!$A$2,(W2-1),0,1,1))) -> 105 | Y2: =IF(V2="","",MIN(ArraySheet!$A$2:OFFSET(ArraySheet!$A$2,(W2-1),0,1,1))) -> 105 | Z2: =IF(X2="","",(X2-Y2)) -> 0 | AA2: =IF(V2="","",AVERAGE(ArraySheet!$A$2:OFFSET(ArraySheet!A2,(W2-1),0,1,1))) -> 105 | AB2: =IF(AA2="","",(ROUND($Q$18,2))) -> 108.2 | AC2: =IF(AA2="","",$Q$19) -> 96.60333333 | AD2: =IF(AA2="","",$Q$15) -> 102.4 | AE2: =IF(AB3="",AB2,"") ->  | AF2: =IF(AD3="",AD2,"") ->  | AG2: =IF(AC3="",AC2,"") ->  | AI2: =IF(Z2="","",Z2) -> 0 | AJ2: =IF(AI2="","",$Q$27) -> 10.07325 | AK2: =IF(AI2="","",$Q$25) -> 0 | AL2: =IF(AI2="","",$Q$17) -> 3.083333333 | AM2: =IF(AJ3="",AJ2,NA()) ->  | AN2: =IF(AL3="",AL2,NA()) ->  | AO2: =IF(AK3="",AK2,NA()) ->  | AQ2: =IF(AA2="","",$Q$36+$Q$15) -> 104.3333333 | AR2: =IF(AA2="","",($Q$36*2)+$Q$15) -> 106.2666667 | AS2: =IF(AA2="","",$Q$15-$Q$36) -> 100.4666667 | AT2: =IF(AA2="","",$Q$15-($Q$36*2)) -> 98.53333333 | AV2: =IF(AI2="","",(AL2+$Q$37)) -> 5.413305556 | AW2: =IF(AI2="","",(AL2+($Q$37*2))) -> 7.743277778 | AX2: =IF(AI2="","",(AL2-$Q$37)) -> 0.7533611111 | AY2: =IF(AI2="","",(AL2-($Q$37*2))) -> -1.576611111 | BA2: =IF(AA2="","",IF(OR(AA2>=AB2,AA2<=AC2),AA2,NA())) ->  | BB2: =IF(AI2="","",IF(OR(AI2>=AJ2,AI2<=AK2),AI2,NA())) -> 0 | BD2: =IF(AA2="","",IF(AA2>=AD2,1,"")) -> 1 | BE2: =IF(AA2="","",IF(AA2<=AD2,1,"")) ->  | BJ2: =IF(AI2="","",IF(AI2>=AL2,1,"")) ->  | BK2: =IF(AI2="","",IF(AI2<=AL2,1,"")) -> 1 | CN2: =IF(AA2="","",IF(AA2>=AR2,AA2,"")) ->  | CO2: =IF(AA2="","",IF(AA2<=AT2,AA2,"")) ->  | CP2: =IF(AA2="","",COUNT(CN2)) -> 0 | CQ2: =IF(AB2="","",COUNT(CO2)) -> 0 | CT2: =IF(AA2="","",IF(AA2>=AQ2,1,"")) -> 1 | CU2: =IF(AA2="","",IF(AA2<=AS2,1,"")) ->  | CZ2: =IF(AA2="","",IF(AND(AA2>=AS2,AA2<=AQ2),1,"")) ->  | DD2: =IF(AA2="","",IF(OR(AA2>=AQ2,AA2<=AS2),1,"")) -> 1 | DJ2: XBT1R | DK2: =IF(AND(ISERROR(XBT1R)),"Hide","Show") -> Show
Q3: 2 | R3: 1.88 | S3: 0 | T3: 3.267 | V3: =IF(V2="","",IF(V2+1>$Q$22,"",V2+1)) -> 2 | W3: =IF(V3="","",$Q$13+W2) -> 4 | X3: =IF(V3="","",MAX(OFFSET(ArraySheet!$A$2,W2,0,1,1):OFFSET(ArraySheet!$A$2,(W3-1),0,1,1))) -> 102 | Y3: =IF(V3="","",MIN(OFFSET(ArraySheet!$A$2,W2,0,1,1):OFFSET(ArraySheet!$A$2,(W3-1),0,1,1))) -> 96 | Z3: =IF(X3="","",(X3-Y3)) -> 6 | AA3: =IF(V3="","",AVERAGE(OFFSET(ArraySheet!$A$2,W2,0,1,1):OFFSET(ArraySheet!$A$2,(W3-1),0,1,1))) -> 99 | AB3: =IF(AA3="","",(ROUND($Q$18,2))) -> 108.2 | AC3: =IF(AA3="","",$Q$19) -> 96.60333333 | AD3: =IF(AA3="","",$Q$15) -> 102.4 | AI3: =IF(Z3="","",Z3) -> 6 | AJ3: =IF(AI3="","",$Q$27) -> 10.07325 | AK3: =IF(AI3="","",$Q$25) -> 0 | AL3: =IF(AI3="","",$Q$17) -> 3.083333333 | AM3: =IF(AJ4="",AJ3,NA()) ->  | AN3: =IF(AL4="",AL3,NA()) ->  | AO3: =IF(AK4="",AK3,NA()) ->  | AQ3: =IF(AA3="","",$Q$36+$Q$15) -> 104.3333333 | AR3: =IF(AA3="","",($Q$36*2)+$Q$15) -> 106.2666667 | AS3: =IF(AA3="","",$Q$15-$Q$36) -> 100.4666667 | AT3: =IF(AA3="","",$Q$15-($Q$36*2)) -> 98.53333333 | AV3: =IF(AI3="","",(AL3+$Q$37)) -> 5.413305556 | AW3: =IF(AI3="","",(AL3+($Q$37*2))) -> 7.743277778 | AX3: =IF(AI3="","",(AL3-$Q$37)) -> 0.7533611111 | AY3: =IF(AI3="","",(AL3-($Q$37*2))) -> -1.576611111 | BA3: =IF(AA3="","",IF(OR(AA3>=AB3,AA3<=AC3),AA3,NA())) ->  | BB3: =IF(AI3="","",IF(OR(AI3>=AJ3,AI3<=AK3),AI3,NA())) ->  | BD3: =IF(AA3="","",IF(AA3>=AD3,1,"")) ->  | BE3: =IF(AA3="","",IF(AA3<=AD3,1,"")) -> 1 | BJ3: =IF(AI3="","",IF(AI3>=AL3,1,"")) -> 1 | BK3: =IF(AI3="","",IF(AI3<=AL3,1,"")) ->  | BP3: =IF(AA3="","",IF(AA3>AA2,1,"")) ->  | BQ3: =IF(AA3="","",IF(AA3<AA2,1,"")) -> 1 | BV3: =IF(AI3="","",IF(AI3>AI2,1,"")) -> 1 | BW3: =IF(AI3="","",IF(AI3<AI2,1,"")) ->  | CB3: =IF(AA3="","",IF(AA3>AA2,1,"")) ->  | CC3: =IF(AA3="","",IF(AA3<AA2,1,"")) -> 1 | CH3: =IF(AI3="","",IF(AI3>AI2,1,"")) -> 1 | CI3: =IF(AI3="","",IF(AI3<AI2,1,"")) ->  | CN3: =IF(AA3="","",IF(AND(AA2>=AR2,AA3>=AR3),AA3,"")) ->  | CO3: =IF(AA3="","",IF(AND(AA2<=AT2,AA3<=AT3),AA3,"")) ->  | CP3: =IF(AA3="","",COUNT(CN2:CN3)) -> 0 | CQ3: =IF(AB3="","",COUNT(CO2:CO3)) -> 0 | CT3: =IF(AA3="","",IF(AA3>=AQ3,1,"")) ->  | CU3: =IF(AA3="","",IF(AA3<=AS3,1,"")) -> 1 | CZ3: =IF(AA3="","",IF(AND(AA3>=AS3,AA3<=AQ3),1,"")) ->  | DD3: =IF(AA3="","",IF(OR(AA3>=AQ3,AA3<=AS3),1,"")) -> 1 | DJ3: XBT2P | DK3: =IF(AND(ISERROR(XBT2P)),"Hide","Show") -> Hide
Q4: 3 | R4: 1.023 | S4: 0 | T4: 2.574 | V4: =IF(V3="","",IF(V3+1>$Q$22,"",V3+1)) -> 3 | W4: =IF(V4="","",$Q$13+W3) -> 6 | X4: =IF(V4="","",MAX(OFFSET(ArraySheet!$A$2,W3,0,1,1):OFFSET(ArraySheet!$A$2,(W4-1),0,1,1))) -> 102 | Y4: =IF(V4="","",MIN(OFFSET(ArraySheet!$A$2,W3,0,1,1):OFFSET(ArraySheet!$A$2,(W4-1),0,1,1))) -> 100 | Z4: 2 | AA4: =IF(V4="","",AVERAGE(OFFSET(ArraySheet!$A$2,W3,0,1,1):OFFSET(ArraySheet!$A$2,(W4-1),0,1,1))) -> 101 | AB4: 108.2 | AC4: 96.60333333 | AD4: 102.4 | AI4: 2 | AJ4: 10.07325 | AK4: 0 | AL4: 3.083333333 | AQ4: 104.3333333 | AR4: 106.2666667 | AS4: 100.4666667 | AT4: 98.53333333 | AV4: 5.413305556 | AW4: 7.743277778 | AX4: 0.7533611111 | AY4: -1.576611111 | BD4: =IF(AA4="","",IF(AA4>=AD4,1,"")) ->  | BE4: 1 | BK4: 1 | BP4: =IF(AA4="","",IF(AA4>AA3,1,"")) -> 1 | BV4: =IF(AI4="","",IF(AI4>AI3,1,"")) ->  | BW4: =IF(AI4="","",IF(AI4<AI3,1,"")) -> 1 | CB4: =IF(AA4="","",IF(AA4<AA3,1,"")) ->  | CC4: =IF(AA4="","",IF(AA4>AA3,1,"")) -> 1 | CH4: =IF(AI4="","",IF(AI4<AI3,1,"")) -> 1 | CI4: =IF(AI4="","",IF(AI4>AI3,1,"")) ->  | CN4: =IF(AA4="","",IF(AND(AA4>=AR4,OR(AA3>=AR3,AA2>=AR2)),AA4,"")) ->  | CO4: =IF(AA4="","",IF(AND(AA4<=AT4,OR(AA3<=AT3,AA2<=AT2)),AA4,"")) ->  | CP4: =IF(AA4="","",COUNT(CN2:CN4)) -> 0 | CQ4: =IF(AA4="","",COUNT(CO2:CO4)) -> 0 | CR4: =IF(AA4="","",IF(CN4<>"",CN4,IF(CO4<>"",CO4,NA()))) ->  | CZ4: 1 | DJ4: XBT2R | DK4: =IF(AND(ISERROR(XBT2R)),"Hide","Show") -> Hide
Q5: 4 | R5: 0.729 | S5: 0 | T5: 2.282 | V5: 4 | W5: 8 | X5: =IF(V5="","",MAX(OFFSET(ArraySheet!$A$2,W4,0,1,1):OFFSET(ArraySheet!$A$2,(W5-1),0,1,1))) -> 102 | Y5: =IF(V5="","",MIN(OFFSET(ArraySheet!$A$2,W4,0,1,1):OFFSET(ArraySheet!$A$2,(W5-1),0,1,1))) -> 102 | Z5: 0 | AA5: =IF(V5="","",AVERAGE(OFFSET(ArraySheet!$A$2,W4,0,1,1):OFFSET(ArraySheet!$A$2,(W5-1),0,1,1))) -> 102 | AB5: 108.2 | AC5: 96.60333333 | AD5: 102.4 | AI5: 0 | AJ5: 10.07325 | AK5: 0 | AL5: 3.083333333 | AQ5: 104.3333333 | AR5: 106.2666667 | AS5: 100.4666667 | AT5: 98.53333333 | AV5: 5.413305556 | AW5: 7.743277778 | AX5: 0.7533611111 | AY5: -1.576611111 | BB5: 0 | BE5: 1 | BK5: 1 | BP5: 1 | BW5: 1 | CB5: =IF(AA5="","",IF(AA5>AA4,1,"")) -> 1 | CC5: =IF(AA5="","",IF(AA5<AA4,1,"")) ->  | CH5: =IF(AI5="","",IF(AI5>AI4,1,"")) ->  | CI5: =IF(AI5="","",IF(AI5<AI4,1,"")) -> 1 | CN5: =IF(AA5="","",IF(AND(AA5>=AR5,OR(AA4>=AR4,AA3>=AR3)),AA5,"")) ->  | CO5: =IF(AA5="","",IF(AND(AA5<=AT5,OR(AA4<=AT4,AA3<=AT3)),AA5,"")) ->  | CP5: =IF(AA5="","",COUNT(CN3:CN5)) -> 0 | CQ5: =IF(AA5="","",COUNT(CO3:CO5)) -> 0 | CR5: =IF(AA5="","",IF(CN5<>"",CN5,IF(CO5<>"",CO5,NA()))) ->  | CZ5: 1 | DJ5: XBT3P | DK5: =IF(AND(ISERROR(XBT3P)),"Hide","Show") -> Hide
Q6: 5 | R6: 0.577 | S6: 0 | T6: 2.114 | V6: 5 | W6: 10 | X6: =IF(V6="","",MAX(OFFSET(ArraySheet!$A$2,W5,0,1,1):OFFSET(ArraySheet!$A$2,(W6-1),0,1,1))) -> 102 | Y6: =IF(V6="","",MIN(OFFSET(ArraySheet!$A$2,W5,0,1,1):OFFSET(ArraySheet!$A$2,(W6-1),0,1,1))) -> 98 | Z6: 4 | AA6: =IF(V6="","",AVERAGE(OFFSET(ArraySheet!$A$2,W5,0,1,1):OFFSET(ArraySheet!$A$2,(W6-1),0,1,1))) -> 100 | AB6: 108.2 | AC6: 96.60333333 | AD6: 102.4 | AI6: 4 | AJ6: 10.07325 | AK6: 0 | AL6: 3.083333333 | AQ6: 104.3333333 | AR6: 106.2666667 | AS6: 100.4666667 | AT6: 98.53333333 | AV6: 5.413305556 | AW6: 7.743277778 | AX6: 0.7533611111 | AY6: -1.576611111 | BE6: 1 | BJ6: 1 | BQ6: 1 | BV6: 1 | CB6: =IF(AA6="","",IF(AA6<AA5,1,"")) -> 1 | CC6: =IF(AA6="","",IF(AA6>AA5,1,"")) ->  | CH6: =IF(AI6="","",IF(AI6<AI5,1,"")) ->  | CI6: =IF(AI6="","",IF(AI6>AI5,1,"")) -> 1 | CP6: 0 | CQ6: 0 | CU6: 1 | CV6: =IF(AA6="","",SUM(CT2:CT6)) -> 1 | CW6: =IF(AA6="","",COUNT(CU2:CU6)) -> 2 | CX6: =IF(OR(CV6>=4,CW6>=4),AA6,NA()) ->  | DD6: 1 | DJ6: XBT3R | DK6: =IF(AND(ISERROR(XBT3R)),"Hide","Show") -> Hide
Q7: 6 | R7: 0.483 | S7: 0 | T7: 2.004 | V7: 6 | W7: 12 | X7: =IF(V7="","",MAX(OFFSET(ArraySheet!$A$2,W6,0,1,1):OFFSET(ArraySheet!$A$2,(W7-1),0,1,1))) -> 97 | Y7: =IF(V7="","",MIN(OFFSET(ArraySheet!$A$2,W6,0,1,1):OFFSET(ArraySheet!$A$2,(W7-1),0,1,1))) -> 95 | Z7: 2 | AA7: =IF(V7="","",AVERAGE(OFFSET(ArraySheet!$A$2,W6,0,1,1):OFFSET(ArraySheet!$A$2,(W7-1),0,1,1))) -> 96 | AB7: 108.2 | AC7: 96.60333333 | AD7: 102.4 | AI7: 2 | AJ7: 10.07325 | AK7: 0 | AL7: 3.083333333 | AQ7: 104.3333333 | AR7: 106.2666667 | AS7: 100.4666667 | AT7: 98.53333333 | AV7: 5.413305556 | AW7: 7.743277778 | AX7: 0.7533611111 | AY7: -1.576611111 | BA7: 96 | BE7: 1 | BF7: =IF(AA7="","",COUNT(BD2:OFFSET(BD2,5,0,1,1))) -> 1 | BG7: =IF(AB7="","",COUNT(BE2:OFFSET(BE2,5,0,1,1))) -> 5 | BH7: =IF(OR(BF7>=6,BG7>=6),AA7,NA()) ->  | BK7: 1 | BL7: =IF(AI7="","",COUNT(BJ2:OFFSET(BJ2,5,0,1,1))) -> 2 | BM7: =IF(AI7="","",COUNT(BK2:OFFSET(BK2,5,0,1,1))) -> 4 | BN7: =IF(OR(BL7>=6,BM7>=6),AI7,NA()) ->  | BQ7: 1 | BR7: =IF(AA7="","",COUNT(BP7:OFFSET(BP7,-5,0,1,1))) -> 2 | BS7: =IF(AA7="","",COUNT(BQ7:OFFSET(BQ7,-5,0,1,1))) -> 3 | BT7: =IF(OR(BR7>=6,BS7>=6),AA7,NA()) ->  | BW7: 1 | BX7: =IF(AI7="","",COUNT(BV7:OFFSET(BV7,5,0,1,1))) -> 1 | BY7: =IF(AI7="","",COUNT(BW7:OFFSET(BW7,5,0,1,1))) -> 3 | BZ7: =IF(OR(BX7>=6,BY7>=6),AI7,NA()) ->  | CB7: =IF(AA7="","",IF(AA7>AA6,1,"")) ->  | CC7: =IF(AA7="","",IF(AA7<AA6,1,"")) -> 1 | CH7: =IF(AI7="","",IF(AI7>AI6,1,"")) ->  | CI7: =IF(AI7="","",IF(AI7<AI6,1,"")) -> 1 | CP7: 0 | CQ7: 0 | CU7: 1 | CV7: =IF(AA7="","",SUM(CT3:CT7)) -> 0 | CW7: =IF(AA7="","",COUNT(CU3:CU7)) -> 3 | CX7: =IF(OR(CV7>=4,CW7>=4),AA7,NA()) ->  | DD7: 1 | DF7: =IF(AA7="","",COUNT(DD2:DD7)) -> 4 | DH7: =IF(DF7>=6,AA7,NA()) ->  | DJ7: XBT4P | DK7: =IF(AND(ISERROR(XBT4P)),"Hide","Show") -> Hide
Q8: 7 | R8: 0.419 | S8: 0.076 | T8: 1.924 | V8: 7 | W8: 14 | X8: =IF(V8="","",MAX(OFFSET(ArraySheet!$A$2,W7,0,1,1):OFFSET(ArraySheet!$A$2,(W8-1),0,1,1))) -> 104 | Y8: =IF(V8="","",MIN(OFFSET(ArraySheet!$A$2,W7,0,1,1):OFFSET(ArraySheet!$A$2,(W8-1),0,1,1))) -> 102 | Z8: 2 | AA8: =IF(V8="","",AVERAGE(OFFSET(ArraySheet!$A$2,W7,0,1,1):OFFSET(ArraySheet!$A$2,(W8-1),0,1,1))) -> 103 | AB8: 108.2 | AC8: 96.60333333 | AD8: 102.4 | AI8: 2 | AJ8: 10.07325 | AK8: 0 | AL8: 3.083333333 | AQ8: 104.3333333 | AR8: 106.2666667 | AS8: 100.4666667 | AT8: 98.53333333 | AV8: 5.413305556 | AW8: 7.743277778 | AX8: 0.7533611111 | AY8: -1.576611111 | AZ8: =IF(AA8="","",IF(AA8>$Q$15,"",IF(AA7>$Q$15,"",IF(AA7>$Q$15,"",IF(AA6>$Q$15,"",IF(AA5>$Q$15,"",IF(AA4>$Q$15,"",IF(AA3>$Q$15,"",AB8)))))))) ->  | BD8: 1 | BF8: =IF(AA8="","",COUNT(BD3:OFFSET(BD3,5,0,1,1))) -> 1 | BG8: =IF(AB8="","",COUNT(BE3:OFFSET(BE3,5,0,1,1))) -> 5 | BH8: =IF(OR(BF8>=6,BG8>=6),AA8,NA()) ->  | BK8: 1 | BL8: =IF(AI8="","",COUNT(BJ3:OFFSET(BJ3,5,0,1,1))) -> 2 | BM8: =IF(AI8="","",COUNT(BK3:OFFSET(BK3,5,0,1,1))) -> 4 | BN8: =IF(OR(BL8>=6,BM8>=6),AI8,NA()) ->  | BP8: 1 | BR8: =IF(AA8="","",COUNT(BP8:OFFSET(BP8,-5,0,1,1))) -> 3 | BS8: =IF(AA8="","",COUNT(BQ8:OFFSET(BQ8,-5,0,1,1))) -> 3 | BT8: =IF(OR(BR8>=6,BS8>=6),AA8,NA()) ->  | BX8: =IF(AI8="","",COUNT(BV8:OFFSET(BV8,5,0,1,1))) -> 1 | BY8: =IF(AI8="","",COUNT(BW8:OFFSET(BW8,5,0,1,1))) -> 3 | BZ8: =IF(OR(BX8>=6,BY8>=6),AI8,NA()) ->  | CB8: =IF(AA8="","",IF(AA8<AA7,1,"")) ->  | CC8: =IF(AA8="","",IF(AA8>AA7,1,"")) -> 1 | CH8: =IF(AI8="","",IF(AI8<AI7,1,"")) ->  | CI8: =IF(AI8="","",IF(AI8>AI7,1,"")) ->  | CP8: 0 | CQ8: 0 | CV8: 0 | CW8: 2 | CZ8: 1 | DF8: =IF(AA8="","",COUNT(DD3:DD8)) -> 3 | DH8: =IF(DF8>=6,AA8,NA()) ->  | DJ8: XBT4R | DK8: =IF(AND(ISERROR(XBT4R)),"Hide","Show") -> Hide
Q9: 8 | R9: 0.373 | S9: 0.136 | T9: 1.864 | V9: 8 | W9: 16 | X9: =IF(V9="","",MAX(OFFSET(ArraySheet!$A$2,W8,0,1,1):OFFSET(ArraySheet!$A$2,(W9-1),0,1,1))) -> 101 | Y9: =IF(V9="","",MIN(OFFSET(ArraySheet!$A$2,W8,0,1,1):OFFSET(ArraySheet!$A$2,(W9-1),0,1,1))) -> 99 | Z9: 2 | AA9: =IF(V9="","",AVERAGE(OFFSET(ArraySheet!$A$2,W8,0,1,1):OFFSET(ArraySheet!$A$2,(W9-1),0,1,1))) -> 100 | AB9: 108.2 | AC9: 96.60333333 | AD9: 102.4 | AI9: 2 | AJ9: 10.07325 | AK9: 0 | AL9: 3.083333333 | AQ9: 104.3333333 | AR9: 106.2666667 | AS9: 100.4666667 | AT9: 98.53333333 | AV9: 5.413305556 | AW9: 7.743277778 | AX9: 0.7533611111 | AY9: -1.576611111 | AZ9: =IF(AA9="","",IF(AA9>$Q$15,"",IF(AA8>$Q$15,"",IF(AA8>$Q$15,"",IF(AA7>$Q$15,"",IF(AA6>$Q$15,"",IF(AA5>$Q$15,"",IF(AA4>$Q$15,"",AB9)))))))) ->  | BE9: 1 | BF9: =IF(AA9="","",COUNT(BD4:OFFSET(BD4,5,0,1,1))) -> 1 | BG9: =IF(AB9="","",COUNT(BE4:OFFSET(BE4,5,0,1,1))) -> 5 | BK9: 1 | BL9: =IF(AI9="","",COUNT(BJ4:OFFSET(BJ4,5,0,1,1))) -> 1 | BM9: =IF(AI9="","",COUNT(BK4:OFFSET(BK4,5,0,1,1))) -> 5 | BQ9: =IF(AA9="","",IF(AA9<AA8,1,"")) -> 1 | BR9: =IF(AA9="","",COUNT(BP9:OFFSET(BP9,-5,0,1,1))) -> 3 | BS9: =IF(AA9="","",COUNT(BQ9:OFFSET(BQ9,-5,0,1,1))) -> 3 | BX9: =IF(AI9="","",COUNT(BV9:OFFSET(BV9,5,0,1,1))) -> 1 | BY9: =IF(AI9="","",COUNT(BW9:OFFSET(BW9,5,0,1,1))) -> 3 | CB9: =IF(AA9="","",IF(AA9>AA8,1,"")) ->  | CC9: =IF(AA9="","",IF(AA9<AA8,1,"")) -> 1 | CH9: =IF(AI9="","",IF(AI9>AI8,1,"")) ->  | CI9: =IF(AI9="","",IF(AI9<AI8,1,"")) ->  | CP9: 0 | CQ9: 0 | CU9: 1 | CV9: 0 | CW9: 3 | DD9: 1 | DF9: 3 | DJ9: XBT5P | DK9: =IF(AND(ISERROR(XBT5P)),"Hide","Show") -> Hide
Q10: 9 | R10: 0.337 | S10: 0.184 | T10: 1.816 | V10: 9 | W10: 18 | X10: =IF(V10="","",MAX(OFFSET(ArraySheet!$A$2,W9,0,1,1):OFFSET(ArraySheet!$A$2,(W10-1),0,1,1))) -> 104 | Y10: =IF(V10="","",MIN(OFFSET(ArraySheet!$A$2,W9,0,1,1):OFFSET(ArraySheet!$A$2,(W10-1),0,1,1))) -> 103 | Z10: 1 | AA10: =IF(V10="","",AVERAGE(OFFSET(ArraySheet!$A$2,W9,0,1,1):OFFSET(ArraySheet!$A$2,(W10-1),0,1,1))) -> 103.5 | AB10: 108.2 | AC10: 96.60333333 | AD10: 102.4 | AI10: 1 | AJ10: 10.07325 | AK10: 0 | AL10: 3.083333333 | AQ10: 104.3333333 | AR10: 106.2666667 | AS10: 100.4666667 | AT10: 98.53333333 | AV10: 5.413305556 | AW10: 7.743277778 | AX10: 0.7533611111 | AY10: -1.576611111 | BD10: =IF(AA10="","",IF(AA10>=AD10,1,"")) -> 1 | BE10: =IF(AA10="","",IF(AA10<=AD10,1,"")) ->  | BF10: =IF(AA10="","",COUNT(BD5:OFFSET(BD5,5,0,1,1))) -> 2 | BG10: =IF(AB10="","",COUNT(BE5:OFFSET(BE5,5,0,1,1))) -> 4 | BJ10: =IF(AI10="","",IF(AI10>=AL10,1,"")) ->  | BK10: =IF(AI10="","",IF(AI10<=AL10,1,"")) -> 1 | BL10: =IF(AI10="","",COUNT(BJ5:OFFSET(BJ5,5,0,1,1))) -> 1 | BM10: =IF(AI10="","",COUNT(BK5:OFFSET(BK5,5,0,1,1))) -> 5 | BR10: =IF(AA10="","",COUNT(BP10:OFFSET(BP10,-5,0,1,1))) -> 2 | BS10: =IF(AA10="","",COUNT(BQ10:OFFSET(BQ10,-5,0,1,1))) -> 3 | BV10: =IF(AI10="","",IF(AI10>AI9,1,"")) ->  | BW10: =IF(AI10="","",IF(AI10<AI9,1,"")) -> 1 | BX10: =IF(AI10="","",COUNT(BV10:OFFSET(BV10,5,0,1,1))) -> 1 | BY10: =IF(AI10="","",COUNT(BW10:OFFSET(BW10,5,0,1,1))) -> 3 | CB10: =IF(AA10="","",IF(AA10<AA9,1,"")) ->  | CC10: =IF(AA10="","",IF(AA10>AA9,1,"")) -> 1 | CH10: =IF(AI10="","",IF(AI10<AI9,1,"")) -> 1 | CI10: =IF(AI10="","",IF(AI10>AI9,1,"")) ->  | CP10: 0 | CQ10: 0 | CV10: 0 | CW10: 3 | CZ10: 1 | DF10: 3 | DJ10: XBT6P | DK10: =IF(AND(ISERROR(XBT6P)),"Hide","Show") -> Hide
Q11: 10 | R11: 0.308 | S11: 0.223 | T11: 1.777 | V11: 10 | W11: 20 | X11: =IF(V11="","",MAX(OFFSET(ArraySheet!$A$2,W10,0,1,1):OFFSET(ArraySheet!$A$2,(W11-1),0,1,1))) -> 107 | Y11: =IF(V11="","",MIN(OFFSET(ArraySheet!$A$2,W10,0,1,1):OFFSET(ArraySheet!$A$2,(W11-1),0,1,1))) -> 99 | Z11: 8 | AA11: =IF(V11="","",AVERAGE(OFFSET(ArraySheet!$A$2,W10,0,1,1):OFFSET(ArraySheet!$A$2,(W11-1),0,1,1))) -> 103 | AB11: 108.2 | AC11: 96.60333333 | AD11: 102.4 | AI11: 8 | AJ11: 10.07325 | AK11: 0 | AL11: 3.083333333 | AQ11: 104.3333333 | AR11: 106.2666667 | AS11: 100.4666667 | AT11: 98.53333333 | AV11: 5.413305556 | AW11: 7.743277778 | AX11: 0.7533611111 | AY11: -1.576611111 | BD11: 1 | BF11: =IF(AA11="","",COUNT(BD6:OFFSET(BD6,5,0,1,1))) -> 3 | BG11: =IF(AB11="","",COUNT(BE6:OFFSET(BE6,5,0,1,1))) -> 3 | BJ11: 1 | BL11: =IF(AI11="","",COUNT(BJ6:OFFSET(BJ6,5,0,1,1))) -> 2 | BM11: =IF(AI11="","",COUNT(BK6:OFFSET(BK6,5,0,1,1))) -> 4 | BQ11: 1 | BR11: =IF(AA11="","",COUNT(BP11:OFFSET(BP11,-5,0,1,1))) -> 1 | BS11: =IF(AA11="","",COUNT(BQ11:OFFSET(BQ11,-5,0,1,1))) -> 4 | BV11: 1 | BX11: =IF(AI11="","",COUNT(BV11:OFFSET(BV11,5,0,1,1))) -> 1 | BY11: =IF(AI11="","",COUNT(BW11:OFFSET(BW11,5,0,1,1))) -> 2 | CB11: =IF(AA11="","",IF(AA11>AA10,1,"")) ->  | CC11: =IF(AA11="","",IF(AA11<AA10,1,"")) -> 1 | CH11: =IF(AI11="","",IF(AI11>AI10,1,"")) -> 1 | CI11: =IF(AI11="","",IF(AI11<AI10,1,"")) ->  | CP11: 0 | CQ11: 0 | CV11: 0 | CW11: 2 | CZ11: 1 | DF11: 3 | DJ11: XBT7P | DK11: =IF(AND(ISERROR(XBT7P)),"Hide","Show") -> Hide
V12: 11 | W12: 22 | X12: =IF(V12="","",MAX(OFFSET(ArraySheet!$A$2,W11,0,1,1):OFFSET(ArraySheet!$A$2,(W12-1),0,1,1))) -> 108 | Y12: =IF(V12="","",MIN(OFFSET(ArraySheet!$A$2,W11,0,1,1):OFFSET(ArraySheet!$A$2,(W12-1),0,1,1))) -> 101 | Z12: 7 | AA12: =IF(V12="","",AVERAGE(OFFSET(ArraySheet!$A$2,W11,0,1,1):OFFSET(ArraySheet!$A$2,(W12-1),0,1,1))) -> 104.5 | AB12: 108.2 | AC12: 96.60333333 | AD12: 102.4 | AI12: 7 | AJ12: 10.07325 | AK12: 0 | AL12: 3.083333333 | AQ12: 104.3333333 | AR12: 106.2666667 | AS12: 100.4666667 | AT12: 98.53333333 | AV12: 5.413305556 | AW12: 7.743277778 | AX12: 0.7533611111 | AY12: -1.576611111 | BD12: 1 | BF12: =IF(AA12="","",COUNT(BD7:OFFSET(BD7,5,0,1,1))) -> 4 | BG12: =IF(AB12="","",COUNT(BE7:OFFSET(BE7,5,0,1,1))) -> 2 | BJ12: 1 | BL12: =IF(AI12="","",COUNT(BJ7:OFFSET(BJ7,5,0,1,1))) -> 2 | BM12: =IF(AI12="","",COUNT(BK7:OFFSET(BK7,5,0,1,1))) -> 4 | BR12: =IF(AA12="","",COUNT(BP12:OFFSET(BP12,-5,0,1,1))) -> 1 | BS12: =IF(AA12="","",COUNT(BQ12:OFFSET(BQ12,-5,0,1,1))) -> 3 | BW12: 1 | BX12: =IF(AI12="","",COUNT(BV12:OFFSET(BV12,5,0,1,1))) -> 0 | BY12: =IF(AI12="","",COUNT(BW12:OFFSET(BW12,5,0,1,1))) -> 2 | CB12: =IF(AA12="","",IF(AA12<AA11,1,"")) ->  | CC12: =IF(AA12="","",IF(AA12>AA11,1,"")) -> 1 | CH12: =IF(AI12="","",IF(AI12<AI11,1,"")) -> 1 | CI12: =IF(AI12="","",IF(AI12>AI11,1,"")) ->  | CP12: 0 | CQ12: 0 | CT12: 1 | CV12: 1 | CW12: 1 | DD12: 1 | DF12: 3 | DJ12: XBT8P | DK12: =IF(AND(ISERROR(XBT8P)),"Hide","Show") -> Hide
P13: subgroups | Q13: 2 | V13: 12 | W13: 24 | X13: =IF(V13="","",MAX(OFFSET(ArraySheet!$A$2,W12,0,1,1):OFFSET(ArraySheet!$A$2,(W13-1),0,1,1))) -> 111 | Y13: =IF(V13="","",MIN(OFFSET(ArraySheet!$A$2,W12,0,1,1):OFFSET(ArraySheet!$A$2,(W13-1),0,1,1))) -> 108 | Z13: 3 | AA13: =IF(V13="","",AVERAGE(OFFSET(ArraySheet!$A$2,W12,0,1,1):OFFSET(ArraySheet!$A$2,(W13-1),0,1,1))) -> 109.5 | AB13: 108.2 | AC13: 96.60333333 | AD13: 102.4 | AE13: 108.2 | AF13: 102.4 | AG13: 96.60333333 | AI13: 3 | AJ13: 10.07325 | AK13: 0 | AL13: 3.083333333 | AM13: 10.07325 | AN13: 3.083333333 | AO13: 0 | AQ13: 104.3333333 | AR13: 106.2666667 | AS13: 100.4666667 | AT13: 98.53333333 | AV13: 5.413305556 | AW13: 7.743277778 | AX13: 0.7533611111 | AY13: -1.576611111 | BA13: 109.5 | BD13: 1 | BF13: =IF(AA13="","",COUNT(BD8:OFFSET(BD8,5,0,1,1))) -> 5 | BG13: =IF(AB13="","",COUNT(BE8:OFFSET(BE8,5,0,1,1))) -> 1 | BK13: 1 | BL13: =IF(AI13="","",COUNT(BJ8:OFFSET(BJ8,5,0,1,1))) -> 2 | BM13: =IF(AI13="","",COUNT(BK8:OFFSET(BK8,5,0,1,1))) -> 4 | BR13: =IF(AA13="","",COUNT(BP13:OFFSET(BP13,-5,0,1,1))) -> 1 | BS13: =IF(AA13="","",COUNT(BQ13:OFFSET(BQ13,-5,0,1,1))) -> 2 | BW13: 1 | BX13: =IF(AI13="","",COUNT(BV13:OFFSET(BV13,5,0,1,1))) -> 0 | BY13: =IF(AI13="","",COUNT(BW13:OFFSET(BW13,5,0,1,1))) -> 1 | CB13: =IF(AA13="","",IF(AA13>AA12,1,"")) -> 1 | CC13: =IF(AA13="","",IF(AA13<AA12,1,"")) ->  | CH13: =IF(AI13="","",IF(AI13>AI12,1,"")) ->  | CI13: =IF(AI13="","",IF(AI13<AI12,1,"")) -> 1 | CP13: 0 | CQ13: 0 | CT13: 1 | CV13: 2 | CW13: 1 | DD13: 1 | DF13: 3
P14: Group STD | Q14: =VLOOKUP(Q13,ConstantsTable,2,TRUE) -> 1.88 | X14: =IF(V14="","",MAX(OFFSET(ArraySheet!$A$2,W13,0,1,1):OFFSET(ArraySheet!$A$2,(W14-1),0,1,1))) ->  | Y14: =IF(V14="","",MIN(OFFSET(ArraySheet!$A$2,W13,0,1,1):OFFSET(ArraySheet!$A$2,(W14-1),0,1,1))) ->  | AA14: =IF(V14="","",AVERAGE(OFFSET(ArraySheet!$A$2,W13,0,1,1):OFFSET(ArraySheet!$A$2,(W14-1),0,1,1))) ->  | BF14: =IF(AA14="","",COUNT(BD9:OFFSET(BD9,5,0,1,1))) ->  | BG14: =IF(AB14="","",COUNT(BE9:OFFSET(BE9,5,0,1,1))) ->  | BL14: =IF(AI14="","",COUNT(BJ9:OFFSET(BJ9,5,0,1,1))) ->  | BM14: =IF(AI14="","",COUNT(BK9:OFFSET(BK9,5,0,1,1))) ->  | BR14: =IF(AA14="","",COUNT(BP14:OFFSET(BP14,-5,0,1,1))) ->  | BS14: =IF(AA14="","",COUNT(BQ14:OFFSET(BQ14,-5,0,1,1))) ->  | BX14: =IF(AI14="","",COUNT(BV14:OFFSET(BV14,5,0,1,1))) ->  | BY14: =IF(AI14="","",COUNT(BW14:OFFSET(BW14,5,0,1,1))) ->  | CB14: =IF(AA14="","",IF(AA14<AA13,1,"")) ->  | CC14: =IF(AA14="","",IF(AA14>AA13,1,"")) ->  | CH14: =IF(AI14="","",IF(AI14<AI13,1,"")) ->  | CI14: =IF(AI14="","",IF(AI14>AI13,1,"")) -> 
P15: Avg = | Q15: =IF(ArraySheet!A2="","",AVERAGE(ArraySheet!A2:A501)) -> 102.4 | X15: =IF(V15="","",MAX(OFFSET(ArraySheet!$A$2,W14,0,1,1):OFFSET(ArraySheet!$A$2,(W15-1),0,1,1))) ->  | Y15: =IF(V15="","",MIN(OFFSET(ArraySheet!$A$2,W14,0,1,1):OFFSET(ArraySheet!$A$2,(W15-1),0,1,1))) ->  | AA15: =IF(V15="","",AVERAGE(OFFSET(ArraySheet!$A$2,W14,0,1,1):OFFSET(ArraySheet!$A$2,(W15-1),0,1,1))) ->  | BF15: =IF(AA15="","",COUNT(BD10:OFFSET(BD10,5,0,1,1))) ->  | BG15: =IF(AB15="","",COUNT(BE10:OFFSET(BE10,5,0,1,1))) ->  | BL15: =IF(AI15="","",COUNT(BJ10:OFFSET(BJ10,5,0,1,1))) ->  | BM15: =IF(AI15="","",COUNT(BK10:OFFSET(BK10,5,0,1,1))) ->  | BR15: =IF(AA15="","",COUNT(BP15:OFFSET(BP15,-5,0,1,1))) ->  | BS15: =IF(AA15="","",COUNT(BQ15:OFFSET(BQ15,-5,0,1,1))) ->  | BX15: =IF(AI15="","",COUNT(BV15:OFFSET(BV15,5,0,1,1))) ->  | BY15: =IF(AI15="","",COUNT(BW15:OFFSET(BW15,5,0,1,1))) ->  | CB15: =IF(AA15="","",IF(AA15>AA14,1,"")) ->  | CC15: =IF(AA15="","",IF(AA15<AA14,1,"")) ->  | CH15: =IF(AI15="","",IF(AI15>AI14,1,"")) ->  | CI15: =IF(AI15="","",IF(AI15<AI14,1,"")) -> 
X16: =IF(V16="","",MAX(OFFSET(ArraySheet!$A$2,W15,0,1,1):OFFSET(ArraySheet!$A$2,(W16-1),0,1,1))) ->  | Y16: =IF(V16="","",MIN(OFFSET(ArraySheet!$A$2,W15,0,1,1):OFFSET(ArraySheet!$A$2,(W16-1),0,1,1))) ->  | AA16: =IF(V16="","",AVERAGE(OFFSET(ArraySheet!$A$2,W15,0,1,1):OFFSET(ArraySheet!$A$2,(W16-1),0,1,1))) ->  | BF16: =IF(AA16="","",COUNT(BD11:OFFSET(BD11,5,0,1,1))) ->  | BG16: =IF(AB16="","",COUNT(BE11:OFFSET(BE11,5,0,1,1))) ->  | BL16: =IF(AI16="","",COUNT(BJ11:OFFSET(BJ11,5,0,1,1))) ->  | BM16: =IF(AI16="","",COUNT(BK11:OFFSET(BK11,5,0,1,1))) ->  | BR16: =IF(AA16="","",COUNT(BP16:OFFSET(BP16,-5,0,1,1))) ->  | BS16: =IF(AA16="","",COUNT(BQ16:OFFSET(BQ16,-5,0,1,1))) ->  | BX16: =IF(AI16="","",COUNT(BV16:OFFSET(BV16,5,0,1,1))) ->  | BY16: =IF(AI16="","",COUNT(BW16:OFFSET(BW16,5,0,1,1))) ->  | CB16: =IF(AA16="","",IF(AA16<AA15,1,"")) ->  | CC16: =IF(AA16="","",IF(AA16>AA15,1,"")) ->  | CD16: =IF(AA16="","",COUNT(CB3:CB16)) ->  | CE16: =IF(AA16="","",COUNT(CC3:CC16)) ->  | CF16: =IF(OR(CD16>=14,CE16>=14),AA16,NA()) ->  | CH16: =IF(AI16="","",IF(AI16<AI15,1,"")) ->  | CI16: =IF(AI16="","",IF(AI16>AI15,1,"")) ->  | CJ16: =IF(AI16="","",COUNT(CH3:CH16)) ->  | CK16: =IF(AI16="","",COUNT(CI3:CI16)) ->  | CL16: =IF(OR(CJ16>=14,CK16>=14),AI16,NA()) ->  | DB16: =IF(AA16="","",IF(COUNT(CZ2:CZ16)>=15,AA15,NA())) -> 
P17: Range Average | Q17: =IF(Z2="","",AVERAGE(Z2:Z252)) -> 3.083333333 | X17: =IF(V17="","",MAX(OFFSET(ArraySheet!$A$2,W16,0,1,1):OFFSET(ArraySheet!$A$2,(W17-1),0,1,1))) ->  | Y17: =IF(V17="","",MIN(OFFSET(ArraySheet!$A$2,W16,0,1,1):OFFSET(ArraySheet!$A$2,(W17-1),0,1,1))) ->  | AA17: =IF(V17="","",AVERAGE(OFFSET(ArraySheet!$A$2,W16,0,1,1):OFFSET(ArraySheet!$A$2,(W17-1),0,1,1))) ->  | BF17: =IF(AA17="","",COUNT(BD12:OFFSET(BD12,5,0,1,1))) ->  | BG17: =IF(AB17="","",COUNT(BE12:OFFSET(BE12,5,0,1,1))) ->  | BL17: =IF(AI17="","",COUNT(BJ12:OFFSET(BJ12,5,0,1,1))) ->  | BM17: =IF(AI17="","",COUNT(BK12:OFFSET(BK12,5,0,1,1))) ->  | BR17: =IF(AA17="","",COUNT(BP17:OFFSET(BP17,-5,0,1,1))) ->  | BS17: =IF(AA17="","",COUNT(BQ17:OFFSET(BQ17,-5,0,1,1))) ->  | BX17: =IF(AI17="","",COUNT(BV17:OFFSET(BV17,5,0,1,1))) ->  | BY17: =IF(AI17="","",COUNT(BW17:OFFSET(BW17,5,0,1,1))) ->  | CB17: =IF(AA17="","",IF(AA17>AA16,1,"")) ->  | CC17: =IF(AA17="","",IF(AA17<AA16,1,"")) ->  | CD17: =IF(AA17="","",COUNT(CB4:CB17)) ->  | CE17: =IF(AA17="","",COUNT(CC4:CC17)) ->  | CF17: =IF(OR(CD17>=14,CE17>=14),AA17,NA()) ->  | CH17: =IF(AI17="","",IF(AI17>AI16,1,"")) ->  | CI17: =IF(AI17="","",IF(AI17<AI16,1,"")) ->  | CJ17: =IF(AI17="","",COUNT(CH4:CH17)) ->  | CK17: =IF(AI17="","",COUNT(CI4:CI17)) ->  | CL17: =IF(OR(CJ17>=14,CK17>=14),AI17,NA()) ->  | DB17: =IF(AA17="","",IF(COUNT(CZ3:CZ17)>=15,AA16,NA())) -> 
P18: UCL= | Q18: =IF(Q15="","",ROUND(Q15+Q14*Q17,2)) -> 108.2 | X18: =IF(V18="","",MAX(OFFSET(ArraySheet!$A$2,W17,0,1,1):OFFSET(ArraySheet!$A$2,(W18-1),0,1,1))) ->  | Y18: =IF(V18="","",MIN(OFFSET(ArraySheet!$A$2,W17,0,1,1):OFFSET(ArraySheet!$A$2,(W18-1),0,1,1))) ->  | AA18: =IF(V18="","",AVERAGE(OFFSET(ArraySheet!$A$2,W17,0,1,1):OFFSET(ArraySheet!$A$2,(W18-1),0,1,1))) ->  | BF18: =IF(AA18="","",COUNT(BD13:OFFSET(BD13,5,0,1,1))) ->  | BG18: =IF(AB18="","",COUNT(BE13:OFFSET(BE13,5,0,1,1))) ->  | BL18: =IF(AI18="","",COUNT(BJ13:OFFSET(BJ13,5,0,1,1))) ->  | BM18: =IF(AI18="","",COUNT(BK13:OFFSET(BK13,5,0,1,1))) ->  | BR18: =IF(AA18="","",COUNT(BP18:OFFSET(BP18,-5,0,1,1))) ->  | BS18: =IF(AA18="","",COUNT(BQ18:OFFSET(BQ18,-5,0,1,1))) ->  | BX18: =IF(AI18="","",COUNT(BV18:OFFSET(BV18,5,0,1,1))) ->  | BY18: =IF(AI18="","",COUNT(BW18:OFFSET(BW18,5,0,1,1))) ->  | CB18: =IF(AA18="","",IF(AA18<AA17,1,"")) ->  | CC18: =IF(AA18="","",IF(AA18>AA17,1,"")) ->  | CH18: =IF(AI18="","",IF(AI18<AI17,1,"")) ->  | CI18: =IF(AI18="","",IF(AI18>AI17,1,"")) -> 
P19: LCL = | Q19: =IF(Q15="","",Q15-Q14*Q17) -> 96.60333333 | X19: =IF(V19="","",MAX(OFFSET(ArraySheet!$A$2,W18,0,1,1):OFFSET(ArraySheet!$A$2,(W19-1),0,1,1))) ->  | Y19: =IF(V19="","",MIN(OFFSET(ArraySheet!$A$2,W18,0,1,1):OFFSET(ArraySheet!$A$2,(W19-1),0,1,1))) ->  | AA19: =IF(V19="","",AVERAGE(OFFSET(ArraySheet!$A$2,W18,0,1,1):OFFSET(ArraySheet!$A$2,(W19-1),0,1,1))) ->  | BF19: =IF(AA19="","",COUNT(BD14:OFFSET(BD14,5,0,1,1))) ->  | BG19: =IF(AB19="","",COUNT(BE14:OFFSET(BE14,5,0,1,1))) ->  | BL19: =IF(AI19="","",COUNT(BJ14:OFFSET(BJ14,5,0,1,1))) ->  | BM19: =IF(AI19="","",COUNT(BK14:OFFSET(BK14,5,0,1,1))) ->  | BR19: =IF(AA19="","",COUNT(BP19:OFFSET(BP19,-5,0,1,1))) ->  | BS19: =IF(AA19="","",COUNT(BQ19:OFFSET(BQ19,-5,0,1,1))) ->  | BX19: =IF(AI19="","",COUNT(BV19:OFFSET(BV19,5,0,1,1))) ->  | BY19: =IF(AI19="","",COUNT(BW19:OFFSET(BW19,5,0,1,1))) ->  | CB19: =IF(AA19="","",IF(AA19>AA18,1,"")) ->  | CC19: =IF(AA19="","",IF(AA19<AA18,1,"")) ->  | CH19: =IF(AI19="","",IF(AI19>AI18,1,"")) ->  | CI19: =IF(AI19="","",IF(AI19<AI18,1,"")) -> 
X20: =IF(V20="","",MAX(OFFSET(ArraySheet!$A$2,W19,0,1,1):OFFSET(ArraySheet!$A$2,(W20-1),0,1,1))) ->  | Y20: =IF(V20="","",MIN(OFFSET(ArraySheet!$A$2,W19,0,1,1):OFFSET(ArraySheet!$A$2,(W20-1),0,1,1))) ->  | AA20: =IF(V20="","",AVERAGE(OFFSET(ArraySheet!$A$2,W19,0,1,1):OFFSET(ArraySheet!$A$2,(W20-1),0,1,1))) ->  | BF20: =IF(AA20="","",COUNT(BD15:OFFSET(BD15,5,0,1,1))) ->  | BG20: =IF(AB20="","",COUNT(BE15:OFFSET(BE15,5,0,1,1))) ->  | BL20: =IF(AI20="","",COUNT(BJ15:OFFSET(BJ15,5,0,1,1))) ->  | BM20: =IF(AI20="","",COUNT(BK15:OFFSET(BK15,5,0,1,1))) ->  | BR20: =IF(AA20="","",COUNT(BP20:OFFSET(BP20,-5,0,1,1))) ->  | BS20: =IF(AA20="","",COUNT(BQ20:OFFSET(BQ20,-5,0,1,1))) ->  | BX20: =IF(AI20="","",COUNT(BV20:OFFSET(BV20,5,0,1,1))) ->  | BY20: =IF(AI20="","",COUNT(BW20:OFFSET(BW20,5,0,1,1))) ->  | CB20: =IF(AA20="","",IF(AA20<AA19,1,"")) ->  | CC20: =IF(AA20="","",IF(AA20>AA19,1,"")) ->  | CH20: =IF(AI20="","",IF(AI20<AI19,1,"")) ->  | CI20: =IF(AI20="","",IF(AI20>AI19,1,"")) -> 
P21: min y value | Q21: =IF(ISERR(Q19),"",(ROUND(Q19-0.5,1))) -> 96.1 | X21: =IF(V21="","",MAX(OFFSET(ArraySheet!$A$2,W20,0,1,1):OFFSET(ArraySheet!$A$2,(W21-1),0,1,1))) ->  | Y21: =IF(V21="","",MIN(OFFSET(ArraySheet!$A$2,W20,0,1,1):OFFSET(ArraySheet!$A$2,(W21-1),0,1,1))) ->  | AA21: =IF(V21="","",AVERAGE(OFFSET(ArraySheet!$A$2,W20,0,1,1):OFFSET(ArraySheet!$A$2,(W21-1),0,1,1))) ->  | BF21: =IF(AA21="","",COUNT(BD16:OFFSET(BD16,5,0,1,1))) ->  | BG21: =IF(AB21="","",COUNT(BE16:OFFSET(BE16,5,0,1,1))) ->  | BL21: =IF(AI21="","",COUNT(BJ16:OFFSET(BJ16,5,0,1,1))) ->  | BM21: =IF(AI21="","",COUNT(BK16:OFFSET(BK16,5,0,1,1))) ->  | BR21: =IF(AA21="","",COUNT(BP21:OFFSET(BP21,-5,0,1,1))) ->  | BS21: =IF(AA21="","",COUNT(BQ21:OFFSET(BQ21,-5,0,1,1))) ->  | BX21: =IF(AI21="","",COUNT(BV21:OFFSET(BV21,5,0,1,1))) ->  | BY21: =IF(AI21="","",COUNT(BW21:OFFSET(BW21,5,0,1,1))) ->  | CB21: =IF(AA21="","",IF(AA21>AA20,1,"")) ->  | CC21: =IF(AA21="","",IF(AA21<AA20,1,"")) ->  | CH21: =IF(AI21="","",IF(AI21>AI20,1,"")) ->  | CI21: =IF(AI21="","",IF(AI21<AI20,1,"")) -> 
P22: plot points | Q22: =Q23/xbarsubgroup -> 12.5 | X22: =IF(V22="","",MAX(OFFSET(ArraySheet!$A$2,W21,0,1,1):OFFSET(ArraySheet!$A$2,(W22-1),0,1,1))) ->  | Y22: =IF(V22="","",MIN(OFFSET(ArraySheet!$A$2,W21,0,1,1):OFFSET(ArraySheet!$A$2,(W22-1),0,1,1))) ->  | AA22: =IF(V22="","",AVERAGE(OFFSET(ArraySheet!$A$2,W21,0,1,1):OFFSET(ArraySheet!$A$2,(W22-1),0,1,1))) ->  | BF22: =IF(AA22="","",COUNT(BD17:OFFSET(BD17,5,0,1,1))) ->  | BG22: =IF(AB22="","",COUNT(BE17:OFFSET(BE17,5,0,1,1))) ->  | BL22: =IF(AI22="","",COUNT(BJ17:OFFSET(BJ17,5,0,1,1))) ->  | BM22: =IF(AI22="","",COUNT(BK17:OFFSET(BK17,5,0,1,1))) ->  | BR22: =IF(AA22="","",COUNT(BP22:OFFSET(BP22,-5,0,1,1))) ->  | BS22: =IF(AA22="","",COUNT(BQ22:OFFSET(BQ22,-5,0,1,1))) ->  | BX22: =IF(AI22="","",COUNT(BV22:OFFSET(BV22,5,0,1,1))) ->  | BY22: =IF(AI22="","",COUNT(BW22:OFFSET(BW22,5,0,1,1))) ->  | CB22: =IF(AA22="","",IF(AA22<AA21,1,"")) ->  | CC22: =IF(AA22="","",IF(AA22>AA21,1,"")) ->  | CH22: =IF(AI22="","",IF(AI22<AI21,1,"")) ->  | CI22: =IF(AI22="","",IF(AI22>AI21,1,"")) ->  | CV22: =IF(AA22="","",COUNT(CT18:CT22)) -> 
P23: data Points | Q23: =COUNT(ArraySheet!$A$2:$A$501) -> 25 | X23: =IF(V23="","",MAX(OFFSET(ArraySheet!$A$2,W22,0,1,1):OFFSET(ArraySheet!$A$2,(W23-1),0,1,1))) ->  | Y23: =IF(V23="","",MIN(OFFSET(ArraySheet!$A$2,W22,0,1,1):OFFSET(ArraySheet!$A$2,(W23-1),0,1,1))) ->  | AA23: =IF(V23="","",AVERAGE(OFFSET(ArraySheet!$A$2,W22,0,1,1):OFFSET(ArraySheet!$A$2,(W23-1),0,1,1))) ->  | BF23: =IF(AA23="","",COUNT(BD18:OFFSET(BD18,5,0,1,1))) ->  | BG23: =IF(AB23="","",COUNT(BE18:OFFSET(BE18,5,0,1,1))) ->  | BL23: =IF(AI23="","",COUNT(BJ18:OFFSET(BJ18,5,0,1,1))) ->  | BM23: =IF(AI23="","",COUNT(BK18:OFFSET(BK18,5,0,1,1))) ->  | BR23: =IF(AA23="","",COUNT(BP23:OFFSET(BP23,-5,0,1,1))) ->  | BS23: =IF(AA23="","",COUNT(BQ23:OFFSET(BQ23,-5,0,1,1))) ->  | BX23: =IF(AI23="","",COUNT(BV23:OFFSET(BV23,5,0,1,1))) ->  | BY23: =IF(AI23="","",COUNT(BW23:OFFSET(BW23,5,0,1,1))) ->  | CB23: =IF(AA23="","",IF(AA23>AA22,1,"")) ->  | CC23: =IF(AA23="","",IF(AA23<AA22,1,"")) ->  | CH23: =IF(AI23="","",IF(AI23>AI22,1,"")) ->  | CI23: =IF(AI23="","",IF(AI23<AI22,1,"")) -> 
P24: range lower | Q24: =VLOOKUP(Q13,ConstantsTable,3,FALSE) -> 0 | X24: =IF(V24="","",MAX(OFFSET(ArraySheet!$A$2,W23,0,1,1):OFFSET(ArraySheet!$A$2,(W24-1),0,1,1))) ->  | Y24: =IF(V24="","",MIN(OFFSET(ArraySheet!$A$2,W23,0,1,1):OFFSET(ArraySheet!$A$2,(W24-1),0,1,1))) ->  | AA24: =IF(V24="","",AVERAGE(OFFSET(ArraySheet!$A$2,W23,0,1,1):OFFSET(ArraySheet!$A$2,(W24-1),0,1,1))) ->  | BF24: =IF(AA24="","",COUNT(BD19:OFFSET(BD19,5,0,1,1))) ->  | BG24: =IF(AB24="","",COUNT(BE19:OFFSET(BE19,5,0,1,1))) ->  | BL24: =IF(AI24="","",COUNT(BJ19:OFFSET(BJ19,5,0,1,1))) ->  | BM24: =IF(AI24="","",COUNT(BK19:OFFSET(BK19,5,0,1,1))) ->  | BR24: =IF(AA24="","",COUNT(BP24:OFFSET(BP24,-5,0,1,1))) ->  | BS24: =IF(AA24="","",COUNT(BQ24:OFFSET(BQ24,-5,0,1,1))) ->  | BX24: =IF(AI24="","",COUNT(BV24:OFFSET(BV24,5,0,1,1))) ->  | BY24: =IF(AI24="","",COUNT(BW24:OFFSET(BW24,5,0,1,1))) ->  | CB24: =IF(AA24="","",IF(AA24<AA23,1,"")) ->  | CC24: =IF(AA24="","",IF(AA24>AA23,1,"")) ->  | CH24: =IF(AI24="","",IF(AI24<AI23,1,"")) ->  | CI24: =IF(AI24="","",IF(AI24>AI23,1,"")) -> 
P25: Range LCL | Q25: =IF(X2="","",MIN(xbarRange,$Q$17*xbarRangeLower)) -> 0 | X25: =IF(V25="","",MAX(OFFSET(ArraySheet!$A$2,W24,0,1,1):OFFSET(ArraySheet!$A$2,(W25-1),0,1,1))) ->  | Y25: =IF(V25="","",MIN(OFFSET(ArraySheet!$A$2,W24,0,1,1):OFFSET(ArraySheet!$A$2,(W25-1),0,1,1))) ->  | AA25: =IF(V25="","",AVERAGE(OFFSET(ArraySheet!$A$2,W24,0,1,1):OFFSET(ArraySheet!$A$2,(W25-1),0,1,1))) ->  | BF25: =IF(AA25="","",COUNT(BD20:OFFSET(BD20,5,0,1,1))) ->  | BG25: =IF(AB25="","",COUNT(BE20:OFFSET(BE20,5,0,1,1))) ->  | BL25: =IF(AI25="","",COUNT(BJ20:OFFSET(BJ20,5,0,1,1))) ->  | BM25: =IF(AI25="","",COUNT(BK20:OFFSET(BK20,5,0,1,1))) ->  | BR25: =IF(AA25="","",COUNT(BP25:OFFSET(BP25,-5,0,1,1))) ->  | BS25: =IF(AA25="","",COUNT(BQ25:OFFSET(BQ25,-5,0,1,1))) ->  | BX25: =IF(AI25="","",COUNT(BV25:OFFSET(BV25,5,0,1,1))) ->  | BY25: =IF(AI25="","",COUNT(BW25:OFFSET(BW25,5,0,1,1))) ->  | CB25: =IF(AA25="","",IF(AA25>AA24,1,"")) ->  | CC25: =IF(AA25="","",IF(AA25<AA24,1,"")) ->  | CH25: =IF(AI25="","",IF(AI25>AI24,1,"")) ->  | CI25: =IF(AI25="","",IF(AI25<AI24,1,"")) -> 
P26: range upper | Q26: =VLOOKUP(Q13,ConstantsTable,4,FALSE) -> 3.267 | X26: =IF(V26="","",MAX(OFFSET(ArraySheet!$A$2,W25,0,1,1):OFFSET(ArraySheet!$A$2,(W26-1),0,1,1))) ->  | Y26: =IF(V26="","",MIN(OFFSET(ArraySheet!$A$2,W25,0,1,1):OFFSET(ArraySheet!$A$2,(W26-1),0,1,1))) ->  | AA26: =IF(V26="","",AVERAGE(OFFSET(ArraySheet!$A$2,W25,0,1,1):OFFSET(ArraySheet!$A$2,(W26-1),0,1,1))) ->  | BF26: =IF(AA26="","",COUNT(BD21:OFFSET(BD21,5,0,1,1))) ->  | BG26: =IF(AB26="","",COUNT(BE21:OFFSET(BE21,5,0,1,1))) ->  | BL26: =IF(AI26="","",COUNT(BJ21:OFFSET(BJ21,5,0,1,1))) ->  | BM26: =IF(AI26="","",COUNT(BK21:OFFSET(BK21,5,0,1,1))) ->  | BR26: =IF(AA26="","",COUNT(BP26:OFFSET(BP26,-5,0,1,1))) ->  | BS26: =IF(AA26="","",COUNT(BQ26:OFFSET(BQ26,-5,0,1,1))) ->  | BX26: =IF(AI26="","",COUNT(BV26:OFFSET(BV26,5,0,1,1))) ->  | BY26: =IF(AI26="","",COUNT(BW26:OFFSET(BW26,5,0,1,1))) ->  | CB26: =IF(AA26="","",IF(AA26<AA25,1,"")) ->  | CC26: =IF(AA26="","",IF(AA26>AA25,1,"")) ->  | CH26: =IF(AI26="","",IF(AI26<AI25,1,"")) ->  | CI26: =IF(AI26="","",IF(AI26>AI25,1,"")) -> 
P27: range UCL | Q27: =IF(X2="","",MAX(xbarRange,$Q$17*RangeUpper)) -> 10.07325 | X27: =IF(V27="","",MAX(OFFSET(ArraySheet!$A$2,W26,0,1,1):OFFSET(ArraySheet!$A$2,(W27-1),0,1,1))) ->  | Y27: =IF(V27="","",MIN(OFFSET(ArraySheet!$A$2,W26,0,1,1):OFFSET(ArraySheet!$A$2,(W27-1),0,1,1))) ->  | AA27: =IF(V27="","",AVERAGE(OFFSET(ArraySheet!$A$2,W26,0,1,1):OFFSET(ArraySheet!$A$2,(W27-1),0,1,1))) ->  | BF27: =IF(AA27="","",COUNT(BD22:OFFSET(BD22,5,0,1,1))) ->  | BG27: =IF(AB27="","",COUNT(BE22:OFFSET(BE22,5,0,1,1))) ->  | BL27: =IF(AI27="","",COUNT(BJ22:OFFSET(BJ22,5,0,1,1))) ->  | BM27: =IF(AI27="","",COUNT(BK22:OFFSET(BK22,5,0,1,1))) ->  | BR27: =IF(AA27="","",COUNT(BP27:OFFSET(BP27,-5,0,1,1))) ->  | BS27: =IF(AA27="","",COUNT(BQ27:OFFSET(BQ27,-5,0,1,1))) ->  | BX27: =IF(AI27="","",COUNT(BV27:OFFSET(BV27,5,0,1,1))) ->  | BY27: =IF(AI27="","",COUNT(BW27:OFFSET(BW27,5,0,1,1))) ->  | CB27: =IF(AA27="","",IF(AA27>AA26,1,"")) ->  | CC27: =IF(AA27="","",IF(AA27<AA26,1,"")) ->  | CH27: =IF(AI27="","",IF(AI27>AI26,1,"")) ->  | CI27: =IF(AI27="","",IF(AI27<AI26,1,"")) -> 
X28: =IF(V28="","",MAX(OFFSET(ArraySheet!$A$2,W27,0,1,1):OFFSET(ArraySheet!$A$2,(W28-1),0,1,1))) ->  | Y28: =IF(V28="","",MIN(OFFSET(ArraySheet!$A$2,W27,0,1,1):OFFSET(ArraySheet!$A$2,(W28-1),0,1,1))) ->  | AA28: =IF(V28="","",AVERAGE(OFFSET(ArraySheet!$A$2,W27,0,1,1):OFFSET(ArraySheet!$A$2,(W28-1),0,1,1))) ->  | BF28: =IF(AA28="","",COUNT(BD23:OFFSET(BD23,5,0,1,1))) ->  | BG28: =IF(AB28="","",COUNT(BE23:OFFSET(BE23,5,0,1,1))) ->  | BL28: =IF(AI28="","",COUNT(BJ23:OFFSET(BJ23,5,0,1,1))) ->  | BM28: =IF(AI28="","",COUNT(BK23:OFFSET(BK23,5,0,1,1))) ->  | BR28: =IF(AA28="","",COUNT(BP28:OFFSET(BP28,-5,0,1,1))) ->  | BS28: =IF(AA28="","",COUNT(BQ28:OFFSET(BQ28,-5,0,1,1))) ->  | BX28: =IF(AI28="","",COUNT(BV28:OFFSET(BV28,5,0,1,1))) ->  | BY28: =IF(AI28="","",COUNT(BW28:OFFSET(BW28,5,0,1,1))) ->  | CB28: =IF(AA28="","",IF(AA28<AA27,1,"")) ->  | CC28: =IF(AA28="","",IF(AA28>AA27,1,"")) ->  | CH28: =IF(AI28="","",IF(AI28<AI27,1,"")) ->  | CI28: =IF(AI28="","",IF(AI28>AI27,1,"")) -> 
P29: UCL = | Q29: =Q27 -> 10.07325 | X29: =IF(V29="","",MAX(OFFSET(ArraySheet!$A$2,W28,0,1,1):OFFSET(ArraySheet!$A$2,(W29-1),0,1,1))) ->  | Y29: =IF(V29="","",MIN(OFFSET(ArraySheet!$A$2,W28,0,1,1):OFFSET(ArraySheet!$A$2,(W29-1),0,1,1))) ->  | AA29: =IF(V29="","",AVERAGE(OFFSET(ArraySheet!$A$2,W28,0,1,1):OFFSET(ArraySheet!$A$2,(W29-1),0,1,1))) ->  | BF29: =IF(AA29="","",COUNT(BD24:OFFSET(BD24,5,0,1,1))) ->  | BG29: =IF(AB29="","",COUNT(BE24:OFFSET(BE24,5,0,1,1))) ->  | BL29: =IF(AI29="","",COUNT(BJ24:OFFSET(BJ24,5,0,1,1))) ->  | BM29: =IF(AI29="","",COUNT(BK24:OFFSET(BK24,5,0,1,1))) ->  | BR29: =IF(AA29="","",COUNT(BP29:OFFSET(BP29,-5,0,1,1))) ->  | BS29: =IF(AA29="","",COUNT(BQ29:OFFSET(BQ29,-5,0,1,1))) ->  | BX29: =IF(AI29="","",COUNT(BV29:OFFSET(BV29,5,0,1,1))) ->  | BY29: =IF(AI29="","",COUNT(BW29:OFFSET(BW29,5,0,1,1))) ->  | CB29: =IF(AA29="","",IF(AA29>AA28,1,"")) ->  | CC29: =IF(AA29="","",IF(AA29<AA28,1,"")) ->  | CH29: =IF(AI29="","",IF(AI29>AI28,1,"")) ->  | CI29: =IF(AI29="","",IF(AI29<AI28,1,"")) -> 
P30: LCL = | Q30: =Q25 -> 0 | X30: =IF(V30="","",MAX(OFFSET(ArraySheet!$A$2,W29,0,1,1):OFFSET(ArraySheet!$A$2,(W30-1),0,1,1))) ->  | Y30: =IF(V30="","",MIN(OFFSET(ArraySheet!$A$2,W29,0,1,1):OFFSET(ArraySheet!$A$2,(W30-1),0,1,1))) ->  | AA30: =IF(V30="","",AVERAGE(OFFSET(ArraySheet!$A$2,W29,0,1,1):OFFSET(ArraySheet!$A$2,(W30-1),0,1,1))) ->  | BF30: =IF(AA30="","",COUNT(BD25:OFFSET(BD25,5,0,1,1))) ->  | BG30: =IF(AB30="","",COUNT(BE25:OFFSET(BE25,5,0,1,1))) ->  | BL30: =IF(AI30="","",COUNT(BJ25:OFFSET(BJ25,5,0,1,1))) ->  | BM30: =IF(AI30="","",COUNT(BK25:OFFSET(BK25,5,0,1,1))) ->  | BR30: =IF(AA30="","",COUNT(BP30:OFFSET(BP30,-5,0,1,1))) ->  | BS30: =IF(AA30="","",COUNT(BQ30:OFFSET(BQ30,-5,0,1,1))) ->  | BX30: =IF(AI30="","",COUNT(BV30:OFFSET(BV30,5,0,1,1))) ->  | BY30: =IF(AI30="","",COUNT(BW30:OFFSET(BW30,5,0,1,1))) ->  | CB30: =IF(AA30="","",IF(AA30<AA29,1,"")) ->  | CC30: =IF(AA30="","",IF(AA30>AA29,1,"")) ->  | CH30: =IF(AI30="","",IF(AI30<AI29,1,"")) ->  | CI30: =IF(AI30="","",IF(AI30>AI29,1,"")) -> 
P31: Mean = | Q31: =Q17 -> 3.083333333 | X31: =IF(V31="","",MAX(OFFSET(ArraySheet!$A$2,W30,0,1,1):OFFSET(ArraySheet!$A$2,(W31-1),0,1,1))) ->  | Y31: =IF(V31="","",MIN(OFFSET(ArraySheet!$A$2,W30,0,1,1):OFFSET(ArraySheet!$A$2,(W31-1),0,1,1))) ->  | AA31: =IF(V31="","",AVERAGE(OFFSET(ArraySheet!$A$2,W30,0,1,1):OFFSET(ArraySheet!$A$2,(W31-1),0,1,1))) ->  | BF31: =IF(AA31="","",COUNT(BD26:OFFSET(BD26,5,0,1,1))) ->  | BG31: =IF(AB31="","",COUNT(BE26:OFFSET(BE26,5,0,1,1))) ->  | BL31: =IF(AI31="","",COUNT(BJ26:OFFSET(BJ26,5,0,1,1))) ->  | BM31: =IF(AI31="","",COUNT(BK26:OFFSET(BK26,5,0,1,1))) ->  | BR31: =IF(AA31="","",COUNT(BP31:OFFSET(BP31,-5,0,1,1))) ->  | BS31: =IF(AA31="","",COUNT(BQ31:OFFSET(BQ31,-5,0,1,1))) ->  | BX31: =IF(AI31="","",COUNT(BV31:OFFSET(BV31,5,0,1,1))) ->  | BY31: =IF(AI31="","",COUNT(BW31:OFFSET(BW31,5,0,1,1))) ->  | CB31: =IF(AA31="","",IF(AA31>AA30,1,"")) ->  | CC31: =IF(AA31="","",IF(AA31<AA30,1,"")) ->  | CH31: =IF(AI31="","",IF(AI31>AI30,1,"")) ->  | CI31: =IF(AI31="","",IF(AI31<AI30,1,"")) -> 
P32: rangeminy | Q32: =IF(Q30=0,0,(ROUND(MIN($AI$2:$AI$252)-$Q$14,1))) -> 0 | X32: =IF(V32="","",MAX(OFFSET(ArraySheet!$A$2,W31,0,1,1):OFFSET(ArraySheet!$A$2,(W32-1),0,1,1))) ->  | Y32: =IF(V32="","",MIN(OFFSET(ArraySheet!$A$2,W31,0,1,1):OFFSET(ArraySheet!$A$2,(W32-1),0,1,1))) ->  | AA32: =IF(V32="","",AVERAGE(OFFSET(ArraySheet!$A$2,W31,0,1,1):OFFSET(ArraySheet!$A$2,(W32-1),0,1,1))) ->  | BF32: =IF(AA32="","",COUNT(BD27:OFFSET(BD27,5,0,1,1))) ->  | BG32: =IF(AB32="","",COUNT(BE27:OFFSET(BE27,5,0,1,1))) ->  | BL32: =IF(AI32="","",COUNT(BJ27:OFFSET(BJ27,5,0,1,1))) ->  | BM32: =IF(AI32="","",COUNT(BK27:OFFSET(BK27,5,0,1,1))) ->  | BR32: =IF(AA32="","",COUNT(BP32:OFFSET(BP32,-5,0,1,1))) ->  | BS32: =IF(AA32="","",COUNT(BQ32:OFFSET(BQ32,-5,0,1,1))) ->  | BX32: =IF(AI32="","",COUNT(BV32:OFFSET(BV32,5,0,1,1))) ->  | BY32: =IF(AI32="","",COUNT(BW32:OFFSET(BW32,5,0,1,1))) ->  | CB32: =IF(AA32="","",IF(AA32<AA31,1,"")) ->  | CC32: =IF(AA32="","",IF(AA32>AA31,1,"")) ->  | CH32: =IF(AI32="","",IF(AI32<AI31,1,"")) ->  | CI32: =IF(AI32="","",IF(AI32>AI31,1,"")) -> 
X33: =IF(V33="","",MAX(OFFSET(ArraySheet!$A$2,W32,0,1,1):OFFSET(ArraySheet!$A$2,(W33-1),0,1,1))) ->  | Y33: =IF(V33="","",MIN(OFFSET(ArraySheet!$A$2,W32,0,1,1):OFFSET(ArraySheet!$A$2,(W33-1),0,1,1))) ->  | AA33: =IF(V33="","",AVERAGE(OFFSET(ArraySheet!$A$2,W32,0,1,1):OFFSET(ArraySheet!$A$2,(W33-1),0,1,1))) ->  | BF33: =IF(AA33="","",COUNT(BD28:OFFSET(BD28,5,0,1,1))) ->  | BG33: =IF(AB33="","",COUNT(BE28:OFFSET(BE28,5,0,1,1))) ->  | BL33: =IF(AI33="","",COUNT(BJ28:OFFSET(BJ28,5,0,1,1))) ->  | BM33: =IF(AI33="","",COUNT(BK28:OFFSET(BK28,5,0,1,1))) ->  | BR33: =IF(AA33="","",COUNT(BP33:OFFSET(BP33,-5,0,1,1))) ->  | BS33: =IF(AA33="","",COUNT(BQ33:OFFSET(BQ33,-5,0,1,1))) ->  | BX33: =IF(AI33="","",COUNT(BV33:OFFSET(BV33,5,0,1,1))) ->  | BY33: =IF(AI33="","",COUNT(BW33:OFFSET(BW33,5,0,1,1))) ->  | CB33: =IF(AA33="","",IF(AA33>AA32,1,"")) ->  | CC33: =IF(AA33="","",IF(AA33<AA32,1,"")) ->  | CH33: =IF(AI33="","",IF(AI33>AI32,1,"")) ->  | CI33: =IF(AI33="","",IF(AI33<AI32,1,"")) -> 
P34: std population | Q34: =IF(ArraySheet!A2="","",STDEV(ArraySheet!A2:A501)) -> 3.958114029 | X34: =IF(V34="","",MAX(OFFSET(ArraySheet!$A$2,W33,0,1,1):OFFSET(ArraySheet!$A$2,(W34-1),0,1,1))) ->  | Y34: =IF(V34="","",MIN(OFFSET(ArraySheet!$A$2,W33,0,1,1):OFFSET(ArraySheet!$A$2,(W34-1),0,1,1))) ->  | AA34: =IF(V34="","",AVERAGE(OFFSET(ArraySheet!$A$2,W33,0,1,1):OFFSET(ArraySheet!$A$2,(W34-1),0,1,1))) ->  | BF34: =IF(AA34="","",COUNT(BD29:OFFSET(BD29,5,0,1,1))) ->  | BG34: =IF(AB34="","",COUNT(BE29:OFFSET(BE29,5,0,1,1))) ->  | BL34: =IF(AI34="","",COUNT(BJ29:OFFSET(BJ29,5,0,1,1))) ->  | BM34: =IF(AI34="","",COUNT(BK29:OFFSET(BK29,5,0,1,1))) ->  | BR34: =IF(AA34="","",COUNT(BP34:OFFSET(BP34,-5,0,1,1))) ->  | BS34: =IF(AA34="","",COUNT(BQ34:OFFSET(BQ34,-5,0,1,1))) ->  | BX34: =IF(AI34="","",COUNT(BV34:OFFSET(BV34,5,0,1,1))) ->  | BY34: =IF(AI34="","",COUNT(BW34:OFFSET(BW34,5,0,1,1))) ->  | CB34: =IF(AA34="","",IF(AA34<AA33,1,"")) ->  | CC34: =IF(AA34="","",IF(AA34>AA33,1,"")) ->  | CH34: =IF(AI34="","",IF(AI34<AI33,1,"")) ->  | CI34: =IF(AI34="","",IF(AI34>AI33,1,"")) -> 
X35: =IF(V35="","",MAX(OFFSET(ArraySheet!$A$2,W34,0,1,1):OFFSET(ArraySheet!$A$2,(W35-1),0,1,1))) ->  | Y35: =IF(V35="","",MIN(OFFSET(ArraySheet!$A$2,W34,0,1,1):OFFSET(ArraySheet!$A$2,(W35-1),0,1,1))) ->  | AA35: =IF(V35="","",AVERAGE(OFFSET(ArraySheet!$A$2,W34,0,1,1):OFFSET(ArraySheet!$A$2,(W35-1),0,1,1))) ->  | BF35: =IF(AA35="","",COUNT(BD30:OFFSET(BD30,5,0,1,1))) ->  | BG35: =IF(AB35="","",COUNT(BE30:OFFSET(BE30,5,0,1,1))) ->  | BL35: =IF(AI35="","",COUNT(BJ30:OFFSET(BJ30,5,0,1,1))) ->  | BM35: =IF(AI35="","",COUNT(BK30:OFFSET(BK30,5,0,1,1))) ->  | BR35: =IF(AA35="","",COUNT(BP35:OFFSET(BP35,-5,0,1,1))) ->  | BS35: =IF(AA35="","",COUNT(BQ35:OFFSET(BQ35,-5,0,1,1))) ->  | BX35: =IF(AI35="","",COUNT(BV35:OFFSET(BV35,5,0,1,1))) ->  | BY35: =IF(AI35="","",COUNT(BW35:OFFSET(BW35,5,0,1,1))) ->  | CB35: =IF(AA35="","",IF(AA35>AA34,1,"")) ->  | CC35: =IF(AA35="","",IF(AA35<AA34,1,"")) ->  | CH35: =IF(AI35="","",IF(AI35>AI34,1,"")) ->  | CI35: =IF(AI35="","",IF(AI35<AI34,1,"")) -> 
P36: Plot one sigma | Q36: =IF(Q18="","",(Q18-Q15)/3) -> 1.933333333 | X36: =IF(V36="","",MAX(OFFSET(ArraySheet!$A$2,W35,0,1,1):OFFSET(ArraySheet!$A$2,(W36-1),0,1,1))) ->  | Y36: =IF(V36="","",MIN(OFFSET(ArraySheet!$A$2,W35,0,1,1):OFFSET(ArraySheet!$A$2,(W36-1),0,1,1))) ->  | AA36: =IF(V36="","",AVERAGE(OFFSET(ArraySheet!$A$2,W35,0,1,1):OFFSET(ArraySheet!$A$2,(W36-1),0,1,1))) ->  | BF36: =IF(AA36="","",COUNT(BD31:OFFSET(BD31,5,0,1,1))) ->  | BG36: =IF(AB36="","",COUNT(BE31:OFFSET(BE31,5,0,1,1))) ->  | BL36: =IF(AI36="","",COUNT(BJ31:OFFSET(BJ31,5,0,1,1))) ->  | BM36: =IF(AI36="","",COUNT(BK31:OFFSET(BK31,5,0,1,1))) ->  | BR36: =IF(AA36="","",COUNT(BP36:OFFSET(BP36,-5,0,1,1))) ->  | BS36: =IF(AA36="","",COUNT(BQ36:OFFSET(BQ36,-5,0,1,1))) ->  | BX36: =IF(AI36="","",COUNT(BV36:OFFSET(BV36,5,0,1,1))) ->  | BY36: =IF(AI36="","",COUNT(BW36:OFFSET(BW36,5,0,1,1))) ->  | CB36: =IF(AA36="","",IF(AA36<AA35,1,"")) ->  | CC36: =IF(AA36="","",IF(AA36>AA35,1,"")) ->  | CH36: =IF(AI36="","",IF(AI36<AI35,1,"")) ->  | CI36: =IF(AI36="","",IF(AI36>AI35,1,"")) -> 
P37: range one sigma | Q37: =IF(Q27="","",(Q27-Q17)/3) -> 2.329972222 | X37: =IF(V37="","",MAX(OFFSET(ArraySheet!$A$2,W36,0,1,1):OFFSET(ArraySheet!$A$2,(W37-1),0,1,1))) ->  | Y37: =IF(V37="","",MIN(OFFSET(ArraySheet!$A$2,W36,0,1,1):OFFSET(ArraySheet!$A$2,(W37-1),0,1,1))) ->  | AA37: =IF(V37="","",AVERAGE(OFFSET(ArraySheet!$A$2,W36,0,1,1):OFFSET(ArraySheet!$A$2,(W37-1),0,1,1))) ->  | BF37: =IF(AA37="","",COUNT(BD32:OFFSET(BD32,5,0,1,1))) ->  | BG37: =IF(AB37="","",COUNT(BE32:OFFSET(BE32,5,0,1,1))) ->  | BL37: =IF(AI37="","",COUNT(BJ32:OFFSET(BJ32,5,0,1,1))) ->  | BM37: =IF(AI37="","",COUNT(BK32:OFFSET(BK32,5,0,1,1))) ->  | BR37: =IF(AA37="","",COUNT(BP37:OFFSET(BP37,-5,0,1,1))) ->  | BS37: =IF(AA37="","",COUNT(BQ37:OFFSET(BQ37,-5,0,1,1))) ->  | BX37: =IF(AI37="","",COUNT(BV37:OFFSET(BV37,5,0,1,1))) ->  | BY37: =IF(AI37="","",COUNT(BW37:OFFSET(BW37,5,0,1,1))) ->  | CB37: =IF(AA37="","",IF(AA37>AA36,1,"")) ->  | CC37: =IF(AA37="","",IF(AA37<AA36,1,"")) ->  | CH37: =IF(AI37="","",IF(AI37>AI36,1,"")) ->  | CI37: =IF(AI37="","",IF(AI37<AI36,1,"")) -> 
X38: =IF(V38="","",MAX(OFFSET(ArraySheet!$A$2,W37,0,1,1):OFFSET(ArraySheet!$A$2,(W38-1),0,1,1))) ->  | Y38: =IF(V38="","",MIN(OFFSET(ArraySheet!$A$2,W37,0,1,1):OFFSET(ArraySheet!$A$2,(W38-1),0,1,1))) ->  | AA38: =IF(V38="","",AVERAGE(OFFSET(ArraySheet!$A$2,W37,0,1,1):OFFSET(ArraySheet!$A$2,(W38-1),0,1,1))) ->  | BF38: =IF(AA38="","",COUNT(BD33:OFFSET(BD33,5,0,1,1))) ->  | BG38: =IF(AB38="","",COUNT(BE33:OFFSET(BE33,5,0,1,1))) ->  | BL38: =IF(AI38="","",COUNT(BJ33:OFFSET(BJ33,5,0,1,1))) ->  | BM38: =IF(AI38="","",COUNT(BK33:OFFSET(BK33,5,0,1,1))) ->  | BR38: =IF(AA38="","",COUNT(BP38:OFFSET(BP38,-5,0,1,1))) ->  | BS38: =IF(AA38="","",COUNT(BQ38:OFFSET(BQ38,-5,0,1,1))) ->  | BX38: =IF(AI38="","",COUNT(BV38:OFFSET(BV38,5,0,1,1))) ->  | BY38: =IF(AI38="","",COUNT(BW38:OFFSET(BW38,5,0,1,1))) ->  | CB38: =IF(AA38="","",IF(AA38<AA37,1,"")) ->  | CC38: =IF(AA38="","",IF(AA38>AA37,1,"")) ->  | CH38: =IF(AI38="","",IF(AI38<AI37,1,"")) ->  | CI38: =IF(AI38="","",IF(AI38>AI37,1,"")) -> 
P39: title | Q39: ="X-Bar (sub-group size = "&xbarsubgroup&")" -> X-Bar (sub-group size = 2) | X39: =IF(V39="","",MAX(OFFSET(ArraySheet!$A$2,W38,0,1,1):OFFSET(ArraySheet!$A$2,(W39-1),0,1,1))) ->  | Y39: =IF(V39="","",MIN(OFFSET(ArraySheet!$A$2,W38,0,1,1):OFFSET(ArraySheet!$A$2,(W39-1),0,1,1))) ->  | AA39: =IF(V39="","",AVERAGE(OFFSET(ArraySheet!$A$2,W38,0,1,1):OFFSET(ArraySheet!$A$2,(W39-1),0,1,1))) ->  | BF39: =IF(AA39="","",COUNT(BD34:OFFSET(BD34,5,0,1,1))) ->  | BG39: =IF(AB39="","",COUNT(BE34:OFFSET(BE34,5,0,1,1))) ->  | BL39: =IF(AI39="","",COUNT(BJ34:OFFSET(BJ34,5,0,1,1))) ->  | BM39: =IF(AI39="","",COUNT(BK34:OFFSET(BK34,5,0,1,1))) ->  | BR39: =IF(AA39="","",COUNT(BP39:OFFSET(BP39,-5,0,1,1))) ->  | BS39: =IF(AA39="","",COUNT(BQ39:OFFSET(BQ39,-5,0,1,1))) ->  | BX39: =IF(AI39="","",COUNT(BV39:OFFSET(BV39,5,0,1,1))) ->  | BY39: =IF(AI39="","",COUNT(BW39:OFFSET(BW39,5,0,1,1))) ->  | CB39: =IF(AA39="","",IF(AA39>AA38,1,"")) ->  | CC39: =IF(AA39="","",IF(AA39<AA38,1,"")) ->  | CH39: =IF(AI39="","",IF(AI39>AI38,1,"")) ->  | CI39: =IF(AI39="","",IF(AI39<AI38,1,"")) -> 
X40: =IF(V40="","",MAX(OFFSET(ArraySheet!$A$2,W39,0,1,1):OFFSET(ArraySheet!$A$2,(W40-1),0,1,1))) ->  | Y40: =IF(V40="","",MIN(OFFSET(ArraySheet!$A$2,W39,0,1,1):OFFSET(ArraySheet!$A$2,(W40-1),0,1,1))) ->  | AA40: =IF(V40="","",AVERAGE(OFFSET(ArraySheet!$A$2,W39,0,1,1):OFFSET(ArraySheet!$A$2,(W40-1),0,1,1))) ->  | BF40: =IF(AA40="","",COUNT(BD35:OFFSET(BD35,5,0,1,1))) ->  | BG40: =IF(AB40="","",COUNT(BE35:OFFSET(BE35,5,0,1,1))) ->  | BL40: =IF(AI40="","",COUNT(BJ35:OFFSET(BJ35,5,0,1,1))) ->  | BM40: =IF(AI40="","",COUNT(BK35:OFFSET(BK35,5,0,1,1))) ->  | BR40: =IF(AA40="","",COUNT(BP40:OFFSET(BP40,-5,0,1,1))) ->  | BS40: =IF(AA40="","",COUNT(BQ40:OFFSET(BQ40,-5,0,1,1))) ->  | BX40: =IF(AI40="","",COUNT(BV40:OFFSET(BV40,5,0,1,1))) ->  | BY40: =IF(AI40="","",COUNT(BW40:OFFSET(BW40,5,0,1,1))) ->  | CB40: =IF(AA40="","",IF(AA40<AA39,1,"")) ->  | CC40: =IF(AA40="","",IF(AA40>AA39,1,"")) ->  | CH40: =IF(AI40="","",IF(AI40<AI39,1,"")) ->  | CI40: =IF(AI40="","",IF(AI40>AI39,1,"")) -> 
X41: =IF(V41="","",MAX(OFFSET(ArraySheet!$A$2,W40,0,1,1):OFFSET(ArraySheet!$A$2,(W41-1),0,1,1))) ->  | Y41: =IF(V41="","",MIN(OFFSET(ArraySheet!$A$2,W40,0,1,1):OFFSET(ArraySheet!$A$2,(W41-1),0,1,1))) ->  | AA41: =IF(V41="","",AVERAGE(OFFSET(ArraySheet!$A$2,W40,0,1,1):OFFSET(ArraySheet!$A$2,(W41-1),0,1,1))) ->  | BF41: =IF(AA41="","",COUNT(BD36:OFFSET(BD36,5,0,1,1))) ->  | BG41: =IF(AB41="","",COUNT(BE36:OFFSET(BE36,5,0,1,1))) ->  | BL41: =IF(AI41="","",COUNT(BJ36:OFFSET(BJ36,5,0,1,1))) ->  | BM41: =IF(AI41="","",COUNT(BK36:OFFSET(BK36,5,0,1,1))) ->  | BR41: =IF(AA41="","",COUNT(BP41:OFFSET(BP41,-5,0,1,1))) ->  | BS41: =IF(AA41="","",COUNT(BQ41:OFFSET(BQ41,-5,0,1,1))) ->  | BX41: =IF(AI41="","",COUNT(BV41:OFFSET(BV41,5,0,1,1))) ->  | BY41: =IF(AI41="","",COUNT(BW41:OFFSET(BW41,5,0,1,1))) ->  | CB41: =IF(AA41="","",IF(AA41>AA40,1,"")) ->  | CC41: =IF(AA41="","",IF(AA41<AA40,1,"")) ->  | CH41: =IF(AI41="","",IF(AI41>AI40,1,"")) ->  | CI41: =IF(AI41="","",IF(AI41<AI40,1,"")) -> 
X42: =IF(V42="","",MAX(OFFSET(ArraySheet!$A$2,W41,0,1,1):OFFSET(ArraySheet!$A$2,(W42-1),0,1,1))) ->  | Y42: =IF(V42="","",MIN(OFFSET(ArraySheet!$A$2,W41,0,1,1):OFFSET(ArraySheet!$A$2,(W42-1),0,1,1))) ->  | AA42: =IF(V42="","",AVERAGE(OFFSET(ArraySheet!$A$2,W41,0,1,1):OFFSET(ArraySheet!$A$2,(W42-1),0,1,1))) ->  | BF42: =IF(AA42="","",COUNT(BD37:OFFSET(BD37,5,0,1,1))) ->  | BG42: =IF(AB42="","",COUNT(BE37:OFFSET(BE37,5,0,1,1))) ->  | BL42: =IF(AI42="","",COUNT(BJ37:OFFSET(BJ37,5,0,1,1))) ->  | BM42: =IF(AI42="","",COUNT(BK37:OFFSET(BK37,5,0,1,1))) ->  | BR42: =IF(AA42="","",COUNT(BP42:OFFSET(BP42,-5,0,1,1))) ->  | BS42: =IF(AA42="","",COUNT(BQ42:OFFSET(BQ42,-5,0,1,1))) ->  | BX42: =IF(AI42="","",COUNT(BV42:OFFSET(BV42,5,0,1,1))) ->  | BY42: =IF(AI42="","",COUNT(BW42:OFFSET(BW42,5,0,1,1))) ->  | CB42: =IF(AA42="","",IF(AA42<AA41,1,"")) ->  | CC42: =IF(AA42="","",IF(AA42>AA41,1,"")) ->  | CH42: =IF(AI42="","",IF(AI42<AI41,1,"")) ->  | CI42: =IF(AI42="","",IF(AI42>AI41,1,"")) -> 
X43: =IF(V43="","",MAX(OFFSET(ArraySheet!$A$2,W42,0,1,1):OFFSET(ArraySheet!$A$2,(W43-1),0,1,1))) ->  | Y43: =IF(V43="","",MIN(OFFSET(ArraySheet!$A$2,W42,0,1,1):OFFSET(ArraySheet!$A$2,(W43-1),0,1,1))) ->  | AA43: =IF(V43="","",AVERAGE(OFFSET(ArraySheet!$A$2,W42,0,1,1):OFFSET(ArraySheet!$A$2,(W43-1),0,1,1))) ->  | BF43: =IF(AA43="","",COUNT(BD38:OFFSET(BD38,5,0,1,1))) ->  | BG43: =IF(AB43="","",COUNT(BE38:OFFSET(BE38,5,0,1,1))) ->  | BL43: =IF(AI43="","",COUNT(BJ38:OFFSET(BJ38,5,0,1,1))) ->  | BM43: =IF(AI43="","",COUNT(BK38:OFFSET(BK38,5,0,1,1))) ->  | BR43: =IF(AA43="","",COUNT(BP43:OFFSET(BP43,-5,0,1,1))) ->  | BS43: =IF(AA43="","",COUNT(BQ43:OFFSET(BQ43,-5,0,1,1))) ->  | BX43: =IF(AI43="","",COUNT(BV43:OFFSET(BV43,5,0,1,1))) ->  | BY43: =IF(AI43="","",COUNT(BW43:OFFSET(BW43,5,0,1,1))) ->  | CB43: =IF(AA43="","",IF(AA43>AA42,1,"")) ->  | CC43: =IF(AA43="","",IF(AA43<AA42,1,"")) ->  | CH43: =IF(AI43="","",IF(AI43>AI42,1,"")) ->  | CI43: =IF(AI43="","",IF(AI43<AI42,1,"")) -> 
X44: =IF(V44="","",MAX(OFFSET(ArraySheet!$A$2,W43,0,1,1):OFFSET(ArraySheet!$A$2,(W44-1),0,1,1))) ->  | Y44: =IF(V44="","",MIN(OFFSET(ArraySheet!$A$2,W43,0,1,1):OFFSET(ArraySheet!$A$2,(W44-1),0,1,1))) ->  | AA44: =IF(V44="","",AVERAGE(OFFSET(ArraySheet!$A$2,W43,0,1,1):OFFSET(ArraySheet!$A$2,(W44-1),0,1,1))) ->  | BF44: =IF(AA44="","",COUNT(BD39:OFFSET(BD39,5,0,1,1))) ->  | BG44: =IF(AB44="","",COUNT(BE39:OFFSET(BE39,5,0,1,1))) ->  | BL44: =IF(AI44="","",COUNT(BJ39:OFFSET(BJ39,5,0,1,1))) ->  | BM44: =IF(AI44="","",COUNT(BK39:OFFSET(BK39,5,0,1,1))) ->  | BR44: =IF(AA44="","",COUNT(BP44:OFFSET(BP44,-5,0,1,1))) ->  | BS44: =IF(AA44="","",COUNT(BQ44:OFFSET(BQ44,-5,0,1,1))) ->  | BX44: =IF(AI44="","",COUNT(BV44:OFFSET(BV44,5,0,1,1))) ->  | BY44: =IF(AI44="","",COUNT(BW44:OFFSET(BW44,5,0,1,1))) ->  | CB44: =IF(AA44="","",IF(AA44<AA43,1,"")) ->  | CC44: =IF(AA44="","",IF(AA44>AA43,1,"")) ->  | CH44: =IF(AI44="","",IF(AI44<AI43,1,"")) ->  | CI44: =IF(AI44="","",IF(AI44>AI43,1,"")) -> 
X45: =IF(V45="","",MAX(OFFSET(ArraySheet!$A$2,W44,0,1,1):OFFSET(ArraySheet!$A$2,(W45-1),0,1,1))) ->  | Y45: =IF(V45="","",MIN(OFFSET(ArraySheet!$A$2,W44,0,1,1):OFFSET(ArraySheet!$A$2,(W45-1),0,1,1))) ->  | AA45: =IF(V45="","",AVERAGE(OFFSET(ArraySheet!$A$2,W44,0,1,1):OFFSET(ArraySheet!$A$2,(W45-1),0,1,1))) ->  | BF45: =IF(AA45="","",COUNT(BD40:OFFSET(BD40,5,0,1,1))) ->  | BG45: =IF(AB45="","",COUNT(BE40:OFFSET(BE40,5,0,1,1))) ->  | BL45: =IF(AI45="","",COUNT(BJ40:OFFSET(BJ40,5,0,1,1))) ->  | BM45: =IF(AI45="","",COUNT(BK40:OFFSET(BK40,5,0,1,1))) ->  | BR45: =IF(AA45="","",COUNT(BP45:OFFSET(BP45,-5,0,1,1))) ->  | BS45: =IF(AA45="","",COUNT(BQ45:OFFSET(BQ45,-5,0,1,1))) ->  | BX45: =IF(AI45="","",COUNT(BV45:OFFSET(BV45,5,0,1,1))) ->  | BY45: =IF(AI45="","",COUNT(BW45:OFFSET(BW45,5,0,1,1))) ->  | CB45: =IF(AA45="","",IF(AA45>AA44,1,"")) ->  | CC45: =IF(AA45="","",IF(AA45<AA44,1,"")) ->  | CH45: =IF(AI45="","",IF(AI45>AI44,1,"")) ->  | CI45: =IF(AI45="","",IF(AI45<AI44,1,"")) -> 
X46: =IF(V46="","",MAX(OFFSET(ArraySheet!$A$2,W45,0,1,1):OFFSET(ArraySheet!$A$2,(W46-1),0,1,1))) ->  | Y46: =IF(V46="","",MIN(OFFSET(ArraySheet!$A$2,W45,0,1,1):OFFSET(ArraySheet!$A$2,(W46-1),0,1,1))) ->  | AA46: =IF(V46="","",AVERAGE(OFFSET(ArraySheet!$A$2,W45,0,1,1):OFFSET(ArraySheet!$A$2,(W46-1),0,1,1))) ->  | BF46: =IF(AA46="","",COUNT(BD41:OFFSET(BD41,5,0,1,1))) ->  | BG46: =IF(AB46="","",COUNT(BE41:OFFSET(BE41,5,0,1,1))) ->  | BL46: =IF(AI46="","",COUNT(BJ41:OFFSET(BJ41,5,0,1,1))) ->  | BM46: =IF(AI46="","",COUNT(BK41:OFFSET(BK41,5,0,1,1))) ->  | BR46: =IF(AA46="","",COUNT(BP46:OFFSET(BP46,-5,0,1,1))) ->  | BS46: =IF(AA46="","",COUNT(BQ46:OFFSET(BQ46,-5,0,1,1))) ->  | BX46: =IF(AI46="","",COUNT(BV46:OFFSET(BV46,5,0,1,1))) ->  | BY46: =IF(AI46="","",COUNT(BW46:OFFSET(BW46,5,0,1,1))) ->  | CB46: =IF(AA46="","",IF(AA46<AA45,1,"")) ->  | CC46: =IF(AA46="","",IF(AA46>AA45,1,"")) ->  | CH46: =IF(AI46="","",IF(AI46<AI45,1,"")) ->  | CI46: =IF(AI46="","",IF(AI46>AI45,1,"")) -> 
X47: =IF(V47="","",MAX(OFFSET(ArraySheet!$A$2,W46,0,1,1):OFFSET(ArraySheet!$A$2,(W47-1),0,1,1))) ->  | Y47: =IF(V47="","",MIN(OFFSET(ArraySheet!$A$2,W46,0,1,1):OFFSET(ArraySheet!$A$2,(W47-1),0,1,1))) ->  | AA47: =IF(V47="","",AVERAGE(OFFSET(ArraySheet!$A$2,W46,0,1,1):OFFSET(ArraySheet!$A$2,(W47-1),0,1,1))) ->  | BF47: =IF(AA47="","",COUNT(BD42:OFFSET(BD42,5,0,1,1))) ->  | BG47: =IF(AB47="","",COUNT(BE42:OFFSET(BE42,5,0,1,1))) ->  | BL47: =IF(AI47="","",COUNT(BJ42:OFFSET(BJ42,5,0,1,1))) ->  | BM47: =IF(AI47="","",COUNT(BK42:OFFSET(BK42,5,0,1,1))) ->  | BR47: =IF(AA47="","",COUNT(BP47:OFFSET(BP47,-5,0,1,1))) ->  | BS47: =IF(AA47="","",COUNT(BQ47:OFFSET(BQ47,-5,0,1,1))) ->  | BX47: =IF(AI47="","",COUNT(BV47:OFFSET(BV47,5,0,1,1))) ->  | BY47: =IF(AI47="","",COUNT(BW47:OFFSET(BW47,5,0,1,1))) ->  | CB47: =IF(AA47="","",IF(AA47>AA46,1,"")) ->  | CC47: =IF(AA47="","",IF(AA47<AA46,1,"")) ->  | CH47: =IF(AI47="","",IF(AI47>AI46,1,"")) ->  | CI47: =IF(AI47="","",IF(AI47<AI46,1,"")) -> 
X48: =IF(V48="","",MAX(OFFSET(ArraySheet!$A$2,W47,0,1,1):OFFSET(ArraySheet!$A$2,(W48-1),0,1,1))) ->  | Y48: =IF(V48="","",MIN(OFFSET(ArraySheet!$A$2,W47,0,1,1):OFFSET(ArraySheet!$A$2,(W48-1),0,1,1))) ->  | AA48: =IF(V48="","",AVERAGE(OFFSET(ArraySheet!$A$2,W47,0,1,1):OFFSET(ArraySheet!$A$2,(W48-1),0,1,1))) ->  | BF48: =IF(AA48="","",COUNT(BD43:OFFSET(BD43,5,0,1,1))) ->  | BG48: =IF(AB48="","",COUNT(BE43:OFFSET(BE43,5,0,1,1))) ->  | BL48: =IF(AI48="","",COUNT(BJ43:OFFSET(BJ43,5,0,1,1))) ->  | BM48: =IF(AI48="","",COUNT(BK43:OFFSET(BK43,5,0,1,1))) ->  | BR48: =IF(AA48="","",COUNT(BP48:OFFSET(BP48,-5,0,1,1))) ->  | BS48: =IF(AA48="","",COUNT(BQ48:OFFSET(BQ48,-5,0,1,1))) ->  | BX48: =IF(AI48="","",COUNT(BV48:OFFSET(BV48,5,0,1,1))) ->  | BY48: =IF(AI48="","",COUNT(BW48:OFFSET(BW48,5,0,1,1))) ->  | CB48: =IF(AA48="","",IF(AA48<AA47,1,"")) ->  | CC48: =IF(AA48="","",IF(AA48>AA47,1,"")) ->  | CH48: =IF(AI48="","",IF(AI48<AI47,1,"")) ->  | CI48: =IF(AI48="","",IF(AI48>AI47,1,"")) -> 
X49: =IF(V49="","",MAX(OFFSET(ArraySheet!$A$2,W48,0,1,1):OFFSET(ArraySheet!$A$2,(W49-1),0,1,1))) ->  | Y49: =IF(V49="","",MIN(OFFSET(ArraySheet!$A$2,W48,0,1,1):OFFSET(ArraySheet!$A$2,(W49-1),0,1,1))) ->  | AA49: =IF(V49="","",AVERAGE(OFFSET(ArraySheet!$A$2,W48,0,1,1):OFFSET(ArraySheet!$A$2,(W49-1),0,1,1))) ->  | BF49: =IF(AA49="","",COUNT(BD44:OFFSET(BD44,5,0,1,1))) ->  | BG49: =IF(AB49="","",COUNT(BE44:OFFSET(BE44,5,0,1,1))) ->  | BL49: =IF(AI49="","",COUNT(BJ44:OFFSET(BJ44,5,0,1,1))) ->  | BM49: =IF(AI49="","",COUNT(BK44:OFFSET(BK44,5,0,1,1))) ->  | BR49: =IF(AA49="","",COUNT(BP49:OFFSET(BP49,-5,0,1,1))) ->  | BS49: =IF(AA49="","",COUNT(BQ49:OFFSET(BQ49,-5,0,1,1))) ->  | BX49: =IF(AI49="","",COUNT(BV49:OFFSET(BV49,5,0,1,1))) ->  | BY49: =IF(AI49="","",COUNT(BW49:OFFSET(BW49,5,0,1,1))) ->  | CB49: =IF(AA49="","",IF(AA49>AA48,1,"")) ->  | CC49: =IF(AA49="","",IF(AA49<AA48,1,"")) ->  | CH49: =IF(AI49="","",IF(AI49>AI48,1,"")) ->  | CI49: =IF(AI49="","",IF(AI49<AI48,1,"")) -> 
X50: =IF(V50="","",MAX(OFFSET(ArraySheet!$A$2,W49,0,1,1):OFFSET(ArraySheet!$A$2,(W50-1),0,1,1))) ->  | Y50: =IF(V50="","",MIN(OFFSET(ArraySheet!$A$2,W49,0,1,1):OFFSET(ArraySheet!$A$2,(W50-1),0,1,1))) ->  | AA50: =IF(V50="","",AVERAGE(OFFSET(ArraySheet!$A$2,W49,0,1,1):OFFSET(ArraySheet!$A$2,(W50-1),0,1,1))) ->  | BF50: =IF(AA50="","",COUNT(BD45:OFFSET(BD45,5,0,1,1))) ->  | BG50: =IF(AB50="","",COUNT(BE45:OFFSET(BE45,5,0,1,1))) ->  | BL50: =IF(AI50="","",COUNT(BJ45:OFFSET(BJ45,5,0,1,1))) ->  | BM50: =IF(AI50="","",COUNT(BK45:OFFSET(BK45,5,0,1,1))) ->  | BR50: =IF(AA50="","",COUNT(BP50:OFFSET(BP50,-5,0,1,1))) ->  | BS50: =IF(AA50="","",COUNT(BQ50:OFFSET(BQ50,-5,0,1,1))) ->  | BX50: =IF(AI50="","",COUNT(BV50:OFFSET(BV50,5,0,1,1))) ->  | BY50: =IF(AI50="","",COUNT(BW50:OFFSET(BW50,5,0,1,1))) ->  | CB50: =IF(AA50="","",IF(AA50<AA49,1,"")) ->  | CC50: =IF(AA50="","",IF(AA50>AA49,1,"")) ->  | CH50: =IF(AI50="","",IF(AI50<AI49,1,"")) ->  | CI50: =IF(AI50="","",IF(AI50>AI49,1,"")) -> 
X51: =IF(V51="","",MAX(OFFSET(ArraySheet!$A$2,W50,0,1,1):OFFSET(ArraySheet!$A$2,(W51-1),0,1,1))) ->  | Y51: =IF(V51="","",MIN(OFFSET(ArraySheet!$A$2,W50,0,1,1):OFFSET(ArraySheet!$A$2,(W51-1),0,1,1))) ->  | AA51: =IF(V51="","",AVERAGE(OFFSET(ArraySheet!$A$2,W50,0,1,1):OFFSET(ArraySheet!$A$2,(W51-1),0,1,1))) ->  | BF51: =IF(AA51="","",COUNT(BD46:OFFSET(BD46,5,0,1,1))) ->  | BG51: =IF(AB51="","",COUNT(BE46:OFFSET(BE46,5,0,1,1))) ->  | BL51: =IF(AI51="","",COUNT(BJ46:OFFSET(BJ46,5,0,1,1))) ->  | BM51: =IF(AI51="","",COUNT(BK46:OFFSET(BK46,5,0,1,1))) ->  | BR51: =IF(AA51="","",COUNT(BP51:OFFSET(BP51,-5,0,1,1))) ->  | BS51: =IF(AA51="","",COUNT(BQ51:OFFSET(BQ51,-5,0,1,1))) ->  | BX51: =IF(AI51="","",COUNT(BV51:OFFSET(BV51,5,0,1,1))) ->  | BY51: =IF(AI51="","",COUNT(BW51:OFFSET(BW51,5,0,1,1))) ->  | CB51: =IF(AA51="","",IF(AA51>AA50,1,"")) ->  | CC51: =IF(AA51="","",IF(AA51<AA50,1,"")) ->  | CH51: =IF(AI51="","",IF(AI51>AI50,1,"")) ->  | CI51: =IF(AI51="","",IF(AI51<AI50,1,"")) -> 
X52: =IF(V52="","",MAX(OFFSET(ArraySheet!$A$2,W51,0,1,1):OFFSET(ArraySheet!$A$2,(W52-1),0,1,1))) ->  | Y52: =IF(V52="","",MIN(OFFSET(ArraySheet!$A$2,W51,0,1,1):OFFSET(ArraySheet!$A$2,(W52-1),0,1,1))) ->  | AA52: =IF(V52="","",AVERAGE(OFFSET(ArraySheet!$A$2,W51,0,1,1):OFFSET(ArraySheet!$A$2,(W52-1),0,1,1))) ->  | BF52: =IF(AA52="","",COUNT(BD47:OFFSET(BD47,5,0,1,1))) ->  | BG52: =IF(AB52="","",COUNT(BE47:OFFSET(BE47,5,0,1,1))) ->  | BL52: =IF(AI52="","",COUNT(BJ47:OFFSET(BJ47,5,0,1,1))) ->  | BM52: =IF(AI52="","",COUNT(BK47:OFFSET(BK47,5,0,1,1))) ->  | BR52: =IF(AA52="","",COUNT(BP52:OFFSET(BP52,-5,0,1,1))) ->  | BS52: =IF(AA52="","",COUNT(BQ52:OFFSET(BQ52,-5,0,1,1))) ->  | BX52: =IF(AI52="","",COUNT(BV52:OFFSET(BV52,5,0,1,1))) ->  | BY52: =IF(AI52="","",COUNT(BW52:OFFSET(BW52,5,0,1,1))) ->  | CB52: =IF(AA52="","",IF(AA52<AA51,1,"")) ->  | CC52: =IF(AA52="","",IF(AA52>AA51,1,"")) ->  | CH52: =IF(AI52="","",IF(AI52<AI51,1,"")) ->  | CI52: =IF(AI52="","",IF(AI52>AI51,1,"")) -> 
X53: =IF(V53="","",MAX(OFFSET(ArraySheet!$A$2,W52,0,1,1):OFFSET(ArraySheet!$A$2,(W53-1),0,1,1))) ->  | Y53: =IF(V53="","",MIN(OFFSET(ArraySheet!$A$2,W52,0,1,1):OFFSET(ArraySheet!$A$2,(W53-1),0,1,1))) ->  | AA53: =IF(V53="","",AVERAGE(OFFSET(ArraySheet!$A$2,W52,0,1,1):OFFSET(ArraySheet!$A$2,(W53-1),0,1,1))) ->  | BF53: =IF(AA53="","",COUNT(BD48:OFFSET(BD48,5,0,1,1))) ->  | BG53: =IF(AB53="","",COUNT(BE48:OFFSET(BE48,5,0,1,1))) ->  | BL53: =IF(AI53="","",COUNT(BJ48:OFFSET(BJ48,5,0,1,1))) ->  | BM53: =IF(AI53="","",COUNT(BK48:OFFSET(BK48,5,0,1,1))) ->  | BR53: =IF(AA53="","",COUNT(BP53:OFFSET(BP53,-5,0,1,1))) ->  | BS53: =IF(AA53="","",COUNT(BQ53:OFFSET(BQ53,-5,0,1,1))) ->  | BX53: =IF(AI53="","",COUNT(BV53:OFFSET(BV53,5,0,1,1))) ->  | BY53: =IF(AI53="","",COUNT(BW53:OFFSET(BW53,5,0,1,1))) ->  | CB53: =IF(AA53="","",IF(AA53>AA52,1,"")) ->  | CC53: =IF(AA53="","",IF(AA53<AA52,1,"")) ->  | CH53: =IF(AI53="","",IF(AI53>AI52,1,"")) ->  | CI53: =IF(AI53="","",IF(AI53<AI52,1,"")) -> 
X54: =IF(V54="","",MAX(OFFSET(ArraySheet!$A$2,W53,0,1,1):OFFSET(ArraySheet!$A$2,(W54-1),0,1,1))) ->  | Y54: =IF(V54="","",MIN(OFFSET(ArraySheet!$A$2,W53,0,1,1):OFFSET(ArraySheet!$A$2,(W54-1),0,1,1))) ->  | AA54: =IF(V54="","",AVERAGE(OFFSET(ArraySheet!$A$2,W53,0,1,1):OFFSET(ArraySheet!$A$2,(W54-1),0,1,1))) ->  | BF54: =IF(AA54="","",COUNT(BD49:OFFSET(BD49,5,0,1,1))) ->  | BG54: =IF(AB54="","",COUNT(BE49:OFFSET(BE49,5,0,1,1))) ->  | BL54: =IF(AI54="","",COUNT(BJ49:OFFSET(BJ49,5,0,1,1))) ->  | BM54: =IF(AI54="","",COUNT(BK49:OFFSET(BK49,5,0,1,1))) ->  | BR54: =IF(AA54="","",COUNT(BP54:OFFSET(BP54,-5,0,1,1))) ->  | BS54: =IF(AA54="","",COUNT(BQ54:OFFSET(BQ54,-5,0,1,1))) ->  | BX54: =IF(AI54="","",COUNT(BV54:OFFSET(BV54,5,0,1,1))) ->  | BY54: =IF(AI54="","",COUNT(BW54:OFFSET(BW54,5,0,1,1))) ->  | CB54: =IF(AA54="","",IF(AA54<AA53,1,"")) ->  | CC54: =IF(AA54="","",IF(AA54>AA53,1,"")) ->  | CH54: =IF(AI54="","",IF(AI54<AI53,1,"")) ->  | CI54: =IF(AI54="","",IF(AI54>AI53,1,"")) -> 
X55: =IF(V55="","",MAX(OFFSET(ArraySheet!$A$2,W54,0,1,1):OFFSET(ArraySheet!$A$2,(W55-1),0,1,1))) ->  | Y55: =IF(V55="","",MIN(OFFSET(ArraySheet!$A$2,W54,0,1,1):OFFSET(ArraySheet!$A$2,(W55-1),0,1,1))) ->  | AA55: =IF(V55="","",AVERAGE(OFFSET(ArraySheet!$A$2,W54,0,1,1):OFFSET(ArraySheet!$A$2,(W55-1),0,1,1))) ->  | BF55: =IF(AA55="","",COUNT(BD50:OFFSET(BD50,5,0,1,1))) ->  | BG55: =IF(AB55="","",COUNT(BE50:OFFSET(BE50,5,0,1,1))) ->  | BL55: =IF(AI55="","",COUNT(BJ50:OFFSET(BJ50,5,0,1,1))) ->  | BM55: =IF(AI55="","",COUNT(BK50:OFFSET(BK50,5,0,1,1))) ->  | BR55: =IF(AA55="","",COUNT(BP55:OFFSET(BP55,-5,0,1,1))) ->  | BS55: =IF(AA55="","",COUNT(BQ55:OFFSET(BQ55,-5,0,1,1))) ->  | BX55: =IF(AI55="","",COUNT(BV55:OFFSET(BV55,5,0,1,1))) ->  | BY55: =IF(AI55="","",COUNT(BW55:OFFSET(BW55,5,0,1,1))) ->  | CB55: =IF(AA55="","",IF(AA55>AA54,1,"")) ->  | CC55: =IF(AA55="","",IF(AA55<AA54,1,"")) ->  | CH55: =IF(AI55="","",IF(AI55>AI54,1,"")) ->  | CI55: =IF(AI55="","",IF(AI55<AI54,1,"")) -> 
X56: =IF(V56="","",MAX(OFFSET(ArraySheet!$A$2,W55,0,1,1):OFFSET(ArraySheet!$A$2,(W56-1),0,1,1))) ->  | Y56: =IF(V56="","",MIN(OFFSET(ArraySheet!$A$2,W55,0,1,1):OFFSET(ArraySheet!$A$2,(W56-1),0,1,1))) ->  | AA56: =IF(V56="","",AVERAGE(OFFSET(ArraySheet!$A$2,W55,0,1,1):OFFSET(ArraySheet!$A$2,(W56-1),0,1,1))) ->  | BF56: =IF(AA56="","",COUNT(BD51:OFFSET(BD51,5,0,1,1))) ->  | BG56: =IF(AB56="","",COUNT(BE51:OFFSET(BE51,5,0,1,1))) ->  | BL56: =IF(AI56="","",COUNT(BJ51:OFFSET(BJ51,5,0,1,1))) ->  | BM56: =IF(AI56="","",COUNT(BK51:OFFSET(BK51,5,0,1,1))) ->  | BR56: =IF(AA56="","",COUNT(BP56:OFFSET(BP56,-5,0,1,1))) ->  | BS56: =IF(AA56="","",COUNT(BQ56:OFFSET(BQ56,-5,0,1,1))) ->  | BX56: =IF(AI56="","",COUNT(BV56:OFFSET(BV56,5,0,1,1))) ->  | BY56: =IF(AI56="","",COUNT(BW56:OFFSET(BW56,5,0,1,1))) ->  | CB56: =IF(AA56="","",IF(AA56<AA55,1,"")) ->  | CC56: =IF(AA56="","",IF(AA56>AA55,1,"")) ->  | CH56: =IF(AI56="","",IF(AI56<AI55,1,"")) ->  | CI56: =IF(AI56="","",IF(AI56>AI55,1,"")) -> 
X57: =IF(V57="","",MAX(OFFSET(ArraySheet!$A$2,W56,0,1,1):OFFSET(ArraySheet!$A$2,(W57-1),0,1,1))) ->  | Y57: =IF(V57="","",MIN(OFFSET(ArraySheet!$A$2,W56,0,1,1):OFFSET(ArraySheet!$A$2,(W57-1),0,1,1))) ->  | AA57: =IF(V57="","",AVERAGE(OFFSET(ArraySheet!$A$2,W56,0,1,1):OFFSET(ArraySheet!$A$2,(W57-1),0,1,1))) ->  | BF57: =IF(AA57="","",COUNT(BD52:OFFSET(BD52,5,0,1,1))) ->  | BG57: =IF(AB57="","",COUNT(BE52:OFFSET(BE52,5,0,1,1))) ->  | BL57: =IF(AI57="","",COUNT(BJ52:OFFSET(BJ52,5,0,1,1))) ->  | BM57: =IF(AI57="","",COUNT(BK52:OFFSET(BK52,5,0,1,1))) ->  | BR57: =IF(AA57="","",COUNT(BP57:OFFSET(BP57,-5,0,1,1))) ->  | BS57: =IF(AA57="","",COUNT(BQ57:OFFSET(BQ57,-5,0,1,1))) ->  | BX57: =IF(AI57="","",COUNT(BV57:OFFSET(BV57,5,0,1,1))) ->  | BY57: =IF(AI57="","",COUNT(BW57:OFFSET(BW57,5,0,1,1))) ->  | CB57: =IF(AA57="","",IF(AA57>AA56,1,"")) ->  | CC57: =IF(AA57="","",IF(AA57<AA56,1,"")) ->  | CH57: =IF(AI57="","",IF(AI57>AI56,1,"")) ->  | CI57: =IF(AI57="","",IF(AI57<AI56,1,"")) -> 
X58: =IF(V58="","",MAX(OFFSET(ArraySheet!$A$2,W57,0,1,1):OFFSET(ArraySheet!$A$2,(W58-1),0,1,1))) ->  | Y58: =IF(V58="","",MIN(OFFSET(ArraySheet!$A$2,W57,0,1,1):OFFSET(ArraySheet!$A$2,(W58-1),0,1,1))) ->  | AA58: =IF(V58="","",AVERAGE(OFFSET(ArraySheet!$A$2,W57,0,1,1):OFFSET(ArraySheet!$A$2,(W58-1),0,1,1))) ->  | BF58: =IF(AA58="","",COUNT(BD53:OFFSET(BD53,5,0,1,1))) ->  | BG58: =IF(AB58="","",COUNT(BE53:OFFSET(BE53,5,0,1,1))) ->  | BL58: =IF(AI58="","",COUNT(BJ53:OFFSET(BJ53,5,0,1,1))) ->  | BM58: =IF(AI58="","",COUNT(BK53:OFFSET(BK53,5,0,1,1))) ->  | BR58: =IF(AA58="","",COUNT(BP58:OFFSET(BP58,-5,0,1,1))) ->  | BS58: =IF(AA58="","",COUNT(BQ58:OFFSET(BQ58,-5,0,1,1))) ->  | BX58: =IF(AI58="","",COUNT(BV58:OFFSET(BV58,5,0,1,1))) ->  | BY58: =IF(AI58="","",COUNT(BW58:OFFSET(BW58,5,0,1,1))) ->  | CB58: =IF(AA58="","",IF(AA58<AA57,1,"")) ->  | CC58: =IF(AA58="","",IF(AA58>AA57,1,"")) ->  | CH58: =IF(AI58="","",IF(AI58<AI57,1,"")) ->  | CI58: =IF(AI58="","",IF(AI58>AI57,1,"")) -> 
X59: =IF(V59="","",MAX(OFFSET(ArraySheet!$A$2,W58,0,1,1):OFFSET(ArraySheet!$A$2,(W59-1),0,1,1))) ->  | Y59: =IF(V59="","",MIN(OFFSET(ArraySheet!$A$2,W58,0,1,1):OFFSET(ArraySheet!$A$2,(W59-1),0,1,1))) ->  | AA59: =IF(V59="","",AVERAGE(OFFSET(ArraySheet!$A$2,W58,0,1,1):OFFSET(ArraySheet!$A$2,(W59-1),0,1,1))) ->  | BF59: =IF(AA59="","",COUNT(BD54:OFFSET(BD54,5,0,1,1))) ->  | BG59: =IF(AB59="","",COUNT(BE54:OFFSET(BE54,5,0,1,1))) ->  | BL59: =IF(AI59="","",COUNT(BJ54:OFFSET(BJ54,5,0,1,1))) ->  | BM59: =IF(AI59="","",COUNT(BK54:OFFSET(BK54,5,0,1,1))) ->  | BR59: =IF(AA59="","",COUNT(BP59:OFFSET(BP59,-5,0,1,1))) ->  | BS59: =IF(AA59="","",COUNT(BQ59:OFFSET(BQ59,-5,0,1,1))) ->  | BX59: =IF(AI59="","",COUNT(BV59:OFFSET(BV59,5,0,1,1))) ->  | BY59: =IF(AI59="","",COUNT(BW59:OFFSET(BW59,5,0,1,1))) ->  | CB59: =IF(AA59="","",IF(AA59>AA58,1,"")) ->  | CC59: =IF(AA59="","",IF(AA59<AA58,1,"")) ->  | CH59: =IF(AI59="","",IF(AI59>AI58,1,"")) ->  | CI59: =IF(AI59="","",IF(AI59<AI58,1,"")) -> 
X60: =IF(V60="","",MAX(OFFSET(ArraySheet!$A$2,W59,0,1,1):OFFSET(ArraySheet!$A$2,(W60-1),0,1,1))) ->  | Y60: =IF(V60="","",MIN(OFFSET(ArraySheet!$A$2,W59,0,1,1):OFFSET(ArraySheet!$A$2,(W60-1),0,1,1))) ->  | AA60: =IF(V60="","",AVERAGE(OFFSET(ArraySheet!$A$2,W59,0,1,1):OFFSET(ArraySheet!$A$2,(W60-1),0,1,1))) ->  | BF60: =IF(AA60="","",COUNT(BD55:OFFSET(BD55,5,0,1,1))) ->  | BG60: =IF(AB60="","",COUNT(BE55:OFFSET(BE55,5,0,1,1))) ->  | BL60: =IF(AI60="","",COUNT(BJ55:OFFSET(BJ55,5,0,1,1))) ->  | BM60: =IF(AI60="","",COUNT(BK55:OFFSET(BK55,5,0,1,1))) ->  | BR60: =IF(AA60="","",COUNT(BP60:OFFSET(BP60,-5,0,1,1))) ->  | BS60: =IF(AA60="","",COUNT(BQ60:OFFSET(BQ60,-5,0,1,1))) ->  | BX60: =IF(AI60="","",COUNT(BV60:OFFSET(BV60,5,0,1,1))) ->  | BY60: =IF(AI60="","",COUNT(BW60:OFFSET(BW60,5,0,1,1))) ->  | CB60: =IF(AA60="","",IF(AA60<AA59,1,"")) ->  | CC60: =IF(AA60="","",IF(AA60>AA59,1,"")) ->  | CH60: =IF(AI60="","",IF(AI60<AI59,1,"")) ->  | CI60: =IF(AI60="","",IF(AI60>AI59,1,"")) -> 
X61: =IF(V61="","",MAX(OFFSET(ArraySheet!$A$2,W60,0,1,1):OFFSET(ArraySheet!$A$2,(W61-1),0,1,1))) ->  | Y61: =IF(V61="","",MIN(OFFSET(ArraySheet!$A$2,W60,0,1,1):OFFSET(ArraySheet!$A$2,(W61-1),0,1,1))) ->  | AA61: =IF(V61="","",AVERAGE(OFFSET(ArraySheet!$A$2,W60,0,1,1):OFFSET(ArraySheet!$A$2,(W61-1),0,1,1))) ->  | BF61: =IF(AA61="","",COUNT(BD56:OFFSET(BD56,5,0,1,1))) ->  | BG61: =IF(AB61="","",COUNT(BE56:OFFSET(BE56,5,0,1,1))) ->  | BL61: =IF(AI61="","",COUNT(BJ56:OFFSET(BJ56,5,0,1,1))) ->  | BM61: =IF(AI61="","",COUNT(BK56:OFFSET(BK56,5,0,1,1))) ->  | BR61: =IF(AA61="","",COUNT(BP61:OFFSET(BP61,-5,0,1,1))) ->  | BS61: =IF(AA61="","",COUNT(BQ61:OFFSET(BQ61,-5,0,1,1))) ->  | BX61: =IF(AI61="","",COUNT(BV61:OFFSET(BV61,5,0,1,1))) ->  | BY61: =IF(AI61="","",COUNT(BW61:OFFSET(BW61,5,0,1,1))) ->  | CB61: =IF(AA61="","",IF(AA61>AA60,1,"")) ->  | CC61: =IF(AA61="","",IF(AA61<AA60,1,"")) ->  | CH61: =IF(AI61="","",IF(AI61>AI60,1,"")) ->  | CI61: =IF(AI61="","",IF(AI61<AI60,1,"")) -> 
X62: =IF(V62="","",MAX(OFFSET(ArraySheet!$A$2,W61,0,1,1):OFFSET(ArraySheet!$A$2,(W62-1),0,1,1))) ->  | Y62: =IF(V62="","",MIN(OFFSET(ArraySheet!$A$2,W61,0,1,1):OFFSET(ArraySheet!$A$2,(W62-1),0,1,1))) ->  | AA62: =IF(V62="","",AVERAGE(OFFSET(ArraySheet!$A$2,W61,0,1,1):OFFSET(ArraySheet!$A$2,(W62-1),0,1,1))) ->  | BF62: =IF(AA62="","",COUNT(BD57:OFFSET(BD57,5,0,1,1))) ->  | BG62: =IF(AB62="","",COUNT(BE57:OFFSET(BE57,5,0,1,1))) ->  | BL62: =IF(AI62="","",COUNT(BJ57:OFFSET(BJ57,5,0,1,1))) ->  | BM62: =IF(AI62="","",COUNT(BK57:OFFSET(BK57,5,0,1,1))) ->  | BR62: =IF(AA62="","",COUNT(BP62:OFFSET(BP62,-5,0,1,1))) ->  | BS62: =IF(AA62="","",COUNT(BQ62:OFFSET(BQ62,-5,0,1,1))) ->  | BX62: =IF(AI62="","",COUNT(BV62:OFFSET(BV62,5,0,1,1))) ->  | BY62: =IF(AI62="","",COUNT(BW62:OFFSET(BW62,5,0,1,1))) ->  | CB62: =IF(AA62="","",IF(AA62<AA61,1,"")) ->  | CC62: =IF(AA62="","",IF(AA62>AA61,1,"")) ->  | CH62: =IF(AI62="","",IF(AI62<AI61,1,"")) ->  | CI62: =IF(AI62="","",IF(AI62>AI61,1,"")) -> 
X63: =IF(V63="","",MAX(OFFSET(ArraySheet!$A$2,W62,0,1,1):OFFSET(ArraySheet!$A$2,(W63-1),0,1,1))) ->  | Y63: =IF(V63="","",MIN(OFFSET(ArraySheet!$A$2,W62,0,1,1):OFFSET(ArraySheet!$A$2,(W63-1),0,1,1))) ->  | AA63: =IF(V63="","",AVERAGE(OFFSET(ArraySheet!$A$2,W62,0,1,1):OFFSET(ArraySheet!$A$2,(W63-1),0,1,1))) ->  | BF63: =IF(AA63="","",COUNT(BD58:OFFSET(BD58,5,0,1,1))) ->  | BG63: =IF(AB63="","",COUNT(BE58:OFFSET(BE58,5,0,1,1))) ->  | BL63: =IF(AI63="","",COUNT(BJ58:OFFSET(BJ58,5,0,1,1))) ->  | BM63: =IF(AI63="","",COUNT(BK58:OFFSET(BK58,5,0,1,1))) ->  | BR63: =IF(AA63="","",COUNT(BP63:OFFSET(BP63,-5,0,1,1))) ->  | BS63: =IF(AA63="","",COUNT(BQ63:OFFSET(BQ63,-5,0,1,1))) ->  | BX63: =IF(AI63="","",COUNT(BV63:OFFSET(BV63,5,0,1,1))) ->  | BY63: =IF(AI63="","",COUNT(BW63:OFFSET(BW63,5,0,1,1))) ->  | CB63: =IF(AA63="","",IF(AA63>AA62,1,"")) ->  | CC63: =IF(AA63="","",IF(AA63<AA62,1,"")) ->  | CH63: =IF(AI63="","",IF(AI63>AI62,1,"")) ->  | CI63: =IF(AI63="","",IF(AI63<AI62,1,"")) -> 
X64: =IF(V64="","",MAX(OFFSET(ArraySheet!$A$2,W63,0,1,1):OFFSET(ArraySheet!$A$2,(W64-1),0,1,1))) ->  | Y64: =IF(V64="","",MIN(OFFSET(ArraySheet!$A$2,W63,0,1,1):OFFSET(ArraySheet!$A$2,(W64-1),0,1,1))) ->  | AA64: =IF(V64="","",AVERAGE(OFFSET(ArraySheet!$A$2,W63,0,1,1):OFFSET(ArraySheet!$A$2,(W64-1),0,1,1))) ->  | BF64: =IF(AA64="","",COUNT(BD59:OFFSET(BD59,5,0,1,1))) ->  | BG64: =IF(AB64="","",COUNT(BE59:OFFSET(BE59,5,0,1,1))) ->  | BL64: =IF(AI64="","",COUNT(BJ59:OFFSET(BJ59,5,0,1,1))) ->  | BM64: =IF(AI64="","",COUNT(BK59:OFFSET(BK59,5,0,1,1))) ->  | BR64: =IF(AA64="","",COUNT(BP64:OFFSET(BP64,-5,0,1,1))) ->  | BS64: =IF(AA64="","",COUNT(BQ64:OFFSET(BQ64,-5,0,1,1))) ->  | BX64: =IF(AI64="","",COUNT(BV64:OFFSET(BV64,5,0,1,1))) ->  | BY64: =IF(AI64="","",COUNT(BW64:OFFSET(BW64,5,0,1,1))) ->  | CB64: =IF(AA64="","",IF(AA64<AA63,1,"")) ->  | CC64: =IF(AA64="","",IF(AA64>AA63,1,"")) ->  | CH64: =IF(AI64="","",IF(AI64<AI63,1,"")) ->  | CI64: =IF(AI64="","",IF(AI64>AI63,1,"")) -> 
X65: =IF(V65="","",MAX(OFFSET(ArraySheet!$A$2,W64,0,1,1):OFFSET(ArraySheet!$A$2,(W65-1),0,1,1))) ->  | Y65: =IF(V65="","",MIN(OFFSET(ArraySheet!$A$2,W64,0,1,1):OFFSET(ArraySheet!$A$2,(W65-1),0,1,1))) ->  | AA65: =IF(V65="","",AVERAGE(OFFSET(ArraySheet!$A$2,W64,0,1,1):OFFSET(ArraySheet!$A$2,(W65-1),0,1,1))) ->  | BF65: =IF(AA65="","",COUNT(BD60:OFFSET(BD60,5,0,1,1))) ->  | BG65: =IF(AB65="","",COUNT(BE60:OFFSET(BE60,5,0,1,1))) ->  | BL65: =IF(AI65="","",COUNT(BJ60:OFFSET(BJ60,5,0,1,1))) ->  | BM65: =IF(AI65="","",COUNT(BK60:OFFSET(BK60,5,0,1,1))) ->  | BR65: =IF(AA65="","",COUNT(BP65:OFFSET(BP65,-5,0,1,1))) ->  | BS65: =IF(AA65="","",COUNT(BQ65:OFFSET(BQ65,-5,0,1,1))) ->  | BX65: =IF(AI65="","",COUNT(BV65:OFFSET(BV65,5,0,1,1))) ->  | BY65: =IF(AI65="","",COUNT(BW65:OFFSET(BW65,5,0,1,1))) ->  | CB65: =IF(AA65="","",IF(AA65>AA64,1,"")) ->  | CC65: =IF(AA65="","",IF(AA65<AA64,1,"")) ->  | CH65: =IF(AI65="","",IF(AI65>AI64,1,"")) ->  | CI65: =IF(AI65="","",IF(AI65<AI64,1,"")) -> 
X66: =IF(V66="","",MAX(OFFSET(ArraySheet!$A$2,W65,0,1,1):OFFSET(ArraySheet!$A$2,(W66-1),0,1,1))) ->  | Y66: =IF(V66="","",MIN(OFFSET(ArraySheet!$A$2,W65,0,1,1):OFFSET(ArraySheet!$A$2,(W66-1),0,1,1))) ->  | AA66: =IF(V66="","",AVERAGE(OFFSET(ArraySheet!$A$2,W65,0,1,1):OFFSET(ArraySheet!$A$2,(W66-1),0,1,1))) ->  | AE66: =IF(AB67="",AB66,"") ->  | AF66: =IF(AD67="",AD66,"") ->  | AG66: =IF(AC67="",AC66,"") ->  | BF66: =IF(AA66="","",COUNT(BD61:OFFSET(BD61,5,0,1,1))) ->  | BG66: =IF(AB66="","",COUNT(BE61:OFFSET(BE61,5,0,1,1))) ->  | BL66: =IF(AI66="","",COUNT(BJ61:OFFSET(BJ61,5,0,1,1))) ->  | BM66: =IF(AI66="","",COUNT(BK61:OFFSET(BK61,5,0,1,1))) ->  | BR66: =IF(AA66="","",COUNT(BP66:OFFSET(BP66,-5,0,1,1))) ->  | BS66: =IF(AA66="","",COUNT(BQ66:OFFSET(BQ66,-5,0,1,1))) ->  | BX66: =IF(AI66="","",COUNT(BV66:OFFSET(BV66,5,0,1,1))) ->  | BY66: =IF(AI66="","",COUNT(BW66:OFFSET(BW66,5,0,1,1))) ->  | CB66: =IF(AA66="","",IF(AA66<AA65,1,"")) ->  | CC66: =IF(AA66="","",IF(AA66>AA65,1,"")) ->  | CH66: =IF(AI66="","",IF(AI66<AI65,1,"")) ->  | CI66: =IF(AI66="","",IF(AI66>AI65,1,"")) -> 
X67: =IF(V67="","",MAX(OFFSET(ArraySheet!$A$2,W66,0,1,1):OFFSET(ArraySheet!$A$2,(W67-1),0,1,1))) ->  | Y67: =IF(V67="","",MIN(OFFSET(ArraySheet!$A$2,W66,0,1,1):OFFSET(ArraySheet!$A$2,(W67-1),0,1,1))) ->  | Z67: =IF(X67="","",(X67-Y67)) ->  | AA67: =IF(V67="","",AVERAGE(OFFSET(ArraySheet!$A$2,W66,0,1,1):OFFSET(ArraySheet!$A$2,(W67-1),0,1,1))) ->  | AB67: =IF(AA67="","",(ROUND($Q$18,2))) ->  | AC67: =IF(AA67="","",$Q$19) ->  | AD67: =IF(AA67="","",$Q$15) ->  | AI67: =IF(Z67="","",Z67) ->  | AJ67: =IF(AI67="","",$Q$27) ->  | AK67: =IF(AI67="","",$Q$25) ->  | AL67: =IF(AI67="","",$Q$17) ->  | AM67: =IF(AJ68="",AJ67,NA()) ->  | AN67: =IF(AL68="",AL67,NA()) ->  | AO67: =IF(AK68="",AK67,NA()) ->  | AQ67: =IF(AA67="","",$Q$36+$Q$15) ->  | AR67: =IF(AA67="","",($Q$36*2)+$Q$15) ->  | AS67: =IF(AA67="","",$Q$15-$Q$36) ->  | AT67: =IF(AA67="","",$Q$15-($Q$36*2)) ->  | AV67: =IF(AI67="","",(AL67+$Q$37)) ->  | AW67: =IF(AI67="","",(AL67+($Q$37*2))) ->  | AX67: =IF(AI67="","",(AL67-$Q$37)) ->  | AY67: =IF(AI67="","",(AL67-($Q$37*2))) ->  | BA67: =IF(AA67="","",IF(OR(AA67>=AB67,AA67<=AC67),AA67,NA())) ->  | BB67: =IF(AI67="","",IF(OR(AI67>=AJ67,AI67<=AK67),AI67,NA())) ->  | BF67: =IF(AA67="","",COUNT(BD62:OFFSET(BD62,5,0,1,1))) ->  | BG67: =IF(AB67="","",COUNT(BE62:OFFSET(BE62,5,0,1,1))) ->  | BL67: =IF(AI67="","",COUNT(BJ62:OFFSET(BJ62,5,0,1,1))) ->  | BM67: =IF(AI67="","",COUNT(BK62:OFFSET(BK62,5,0,1,1))) ->  | BR67: =IF(AA67="","",COUNT(BP67:OFFSET(BP67,-5,0,1,1))) ->  | BS67: =IF(AA67="","",COUNT(BQ67:OFFSET(BQ67,-5,0,1,1))) ->  | BX67: =IF(AI67="","",COUNT(BV67:OFFSET(BV67,5,0,1,1))) ->  | BY67: =IF(AI67="","",COUNT(BW67:OFFSET(BW67,5,0,1,1))) ->  | CB67: =IF(AA67="","",IF(AA67>AA66,1,"")) ->  | CC67: =IF(AA67="","",IF(AA67<AA66,1,"")) ->  | CH67: =IF(AI67="","",IF(AI67>AI66,1,"")) ->  | CI67: =IF(AI67="","",IF(AI67<AI66,1,"")) ->  | CT67: =IF(AA67="","",IF(AA67>=AQ67,1,"")) ->  | CU67: =IF(AA67="","",IF(AA67<=AS67,1,"")) ->  | CZ67: =IF(AA67="","",IF(AND(AA67>=AS67,AA67<=AQ67),1,"")) ->  | DD67: =IF(AA67="","",IF(OR(AA67>=AQ67,AA67<=AS67),1,"")) -> 
V68: =IF(V67="","",IF(V67+1>$Q$22,"",V67+1)) ->  | W68: =IF(V68="","",$Q$13+W67) ->  | X68: =IF(V68="","",MAX(OFFSET(ArraySheet!$A$2,W67,0,1,1):OFFSET(ArraySheet!$A$2,(W68-1),0,1,1))) ->  | Y68: =IF(V68="","",MIN(OFFSET(ArraySheet!$A$2,W67,0,1,1):OFFSET(ArraySheet!$A$2,(W68-1),0,1,1))) ->  | AA68: =IF(V68="","",AVERAGE(OFFSET(ArraySheet!$A$2,W67,0,1,1):OFFSET(ArraySheet!$A$2,(W68-1),0,1,1))) ->  | BF68: =IF(AA68="","",COUNT(BD63:OFFSET(BD63,5,0,1,1))) ->  | BG68: =IF(AB68="","",COUNT(BE63:OFFSET(BE63,5,0,1,1))) ->  | BL68: =IF(AI68="","",COUNT(BJ63:OFFSET(BJ63,5,0,1,1))) ->  | BM68: =IF(AI68="","",COUNT(BK63:OFFSET(BK63,5,0,1,1))) ->  | BR68: =IF(AA68="","",COUNT(BP68:OFFSET(BP68,-5,0,1,1))) ->  | BS68: =IF(AA68="","",COUNT(BQ68:OFFSET(BQ68,-5,0,1,1))) ->  | BX68: =IF(AI68="","",COUNT(BV68:OFFSET(BV68,5,0,1,1))) ->  | BY68: =IF(AI68="","",COUNT(BW68:OFFSET(BW68,5,0,1,1))) ->  | CB68: =IF(AA68="","",IF(AA68<AA67,1,"")) ->  | CC68: =IF(AA68="","",IF(AA68>AA67,1,"")) ->  | CH68: =IF(AI68="","",IF(AI68<AI67,1,"")) ->  | CI68: =IF(AI68="","",IF(AI68>AI67,1,"")) -> 
X69: =IF(V69="","",MAX(OFFSET(ArraySheet!$A$2,W68,0,1,1):OFFSET(ArraySheet!$A$2,(W69-1),0,1,1))) ->  | Y69: =IF(V69="","",MIN(OFFSET(ArraySheet!$A$2,W68,0,1,1):OFFSET(ArraySheet!$A$2,(W69-1),0,1,1))) ->  | AA69: =IF(V69="","",AVERAGE(OFFSET(ArraySheet!$A$2,W68,0,1,1):OFFSET(ArraySheet!$A$2,(W69-1),0,1,1))) ->  | BF69: =IF(AA69="","",COUNT(BD64:OFFSET(BD64,5,0,1,1))) ->  | BG69: =IF(AB69="","",COUNT(BE64:OFFSET(BE64,5,0,1,1))) ->  | BL69: =IF(AI69="","",COUNT(BJ64:OFFSET(BJ64,5,0,1,1))) ->  | BM69: =IF(AI69="","",COUNT(BK64:OFFSET(BK64,5,0,1,1))) ->  | BR69: =IF(AA69="","",COUNT(BP69:OFFSET(BP69,-5,0,1,1))) ->  | BS69: =IF(AA69="","",COUNT(BQ69:OFFSET(BQ69,-5,0,1,1))) ->  | BX69: =IF(AI69="","",COUNT(BV69:OFFSET(BV69,5,0,1,1))) ->  | BY69: =IF(AI69="","",COUNT(BW69:OFFSET(BW69,5,0,1,1))) ->  | CB69: =IF(AA69="","",IF(AA69>AA68,1,"")) ->  | CC69: =IF(AA69="","",IF(AA69<AA68,1,"")) ->  | CH69: =IF(AI69="","",IF(AI69>AI68,1,"")) ->  | CI69: =IF(AI69="","",IF(AI69<AI68,1,"")) ->  | CN69: =IF(AA69="","",IF(AND(AA69>=AR69,OR(AA68>=AR68,AA67>=AR67)),AA69,"")) ->  | CO69: =IF(AA69="","",IF(AND(AA69<=AT69,OR(AA68<=AT68,AA67<=AT67)),AA69,"")) ->  | CP69: =IF(AA69="","",COUNT(CN67:CN69)) ->  | CQ69: =IF(AA69="","",COUNT(CO67:CO69)) ->  | CR69: =IF(AA69="","",IF(CN69<>"",CN69,IF(CO69<>"",CO69,NA()))) -> 
X70: =IF(V70="","",MAX(OFFSET(ArraySheet!$A$2,W69,0,1,1):OFFSET(ArraySheet!$A$2,(W70-1),0,1,1))) ->  | Y70: =IF(V70="","",MIN(OFFSET(ArraySheet!$A$2,W69,0,1,1):OFFSET(ArraySheet!$A$2,(W70-1),0,1,1))) ->  | AA70: =IF(V70="","",AVERAGE(OFFSET(ArraySheet!$A$2,W69,0,1,1):OFFSET(ArraySheet!$A$2,(W70-1),0,1,1))) ->  | BF70: =IF(AA70="","",COUNT(BD65:OFFSET(BD65,5,0,1,1))) ->  | BG70: =IF(AB70="","",COUNT(BE65:OFFSET(BE65,5,0,1,1))) ->  | BL70: =IF(AI70="","",COUNT(BJ65:OFFSET(BJ65,5,0,1,1))) ->  | BM70: =IF(AI70="","",COUNT(BK65:OFFSET(BK65,5,0,1,1))) ->  | BR70: =IF(AA70="","",COUNT(BP70:OFFSET(BP70,-5,0,1,1))) ->  | BS70: =IF(AA70="","",COUNT(BQ70:OFFSET(BQ70,-5,0,1,1))) ->  | BX70: =IF(AI70="","",COUNT(BV70:OFFSET(BV70,5,0,1,1))) ->  | BY70: =IF(AI70="","",COUNT(BW70:OFFSET(BW70,5,0,1,1))) ->  | CB70: =IF(AA70="","",IF(AA70<AA69,1,"")) ->  | CC70: =IF(AA70="","",IF(AA70>AA69,1,"")) ->  | CH70: =IF(AI70="","",IF(AI70<AI69,1,"")) ->  | CI70: =IF(AI70="","",IF(AI70>AI69,1,"")) -> 
X71: =IF(V71="","",MAX(OFFSET(ArraySheet!$A$2,W70,0,1,1):OFFSET(ArraySheet!$A$2,(W71-1),0,1,1))) ->  | Y71: =IF(V71="","",MIN(OFFSET(ArraySheet!$A$2,W70,0,1,1):OFFSET(ArraySheet!$A$2,(W71-1),0,1,1))) ->  | AA71: =IF(V71="","",AVERAGE(OFFSET(ArraySheet!$A$2,W70,0,1,1):OFFSET(ArraySheet!$A$2,(W71-1),0,1,1))) ->  | BF71: =IF(AA71="","",COUNT(BD66:OFFSET(BD66,5,0,1,1))) ->  | BG71: =IF(AB71="","",COUNT(BE66:OFFSET(BE66,5,0,1,1))) ->  | BL71: =IF(AI71="","",COUNT(BJ66:OFFSET(BJ66,5,0,1,1))) ->  | BM71: =IF(AI71="","",COUNT(BK66:OFFSET(BK66,5,0,1,1))) ->  | BR71: =IF(AA71="","",COUNT(BP71:OFFSET(BP71,-5,0,1,1))) ->  | BS71: =IF(AA71="","",COUNT(BQ71:OFFSET(BQ71,-5,0,1,1))) ->  | BX71: =IF(AI71="","",COUNT(BV71:OFFSET(BV71,5,0,1,1))) ->  | BY71: =IF(AI71="","",COUNT(BW71:OFFSET(BW71,5,0,1,1))) ->  | CB71: =IF(AA71="","",IF(AA71>AA70,1,"")) ->  | CC71: =IF(AA71="","",IF(AA71<AA70,1,"")) ->  | CH71: =IF(AI71="","",IF(AI71>AI70,1,"")) ->  | CI71: =IF(AI71="","",IF(AI71<AI70,1,"")) ->  | CV71: =IF(AA71="","",COUNT(CT67:CT71)) ->  | CW71: =IF(AA71="","",COUNT(CU67:CU71)) ->  | CX71: =IF(OR(CV71>=4,CW71>=4),AA71,NA()) -> 
X72: =IF(V72="","",MAX(OFFSET(ArraySheet!$A$2,W71,0,1,1):OFFSET(ArraySheet!$A$2,(W72-1),0,1,1))) ->  | Y72: =IF(V72="","",MIN(OFFSET(ArraySheet!$A$2,W71,0,1,1):OFFSET(ArraySheet!$A$2,(W72-1),0,1,1))) ->  | AA72: =IF(V72="","",AVERAGE(OFFSET(ArraySheet!$A$2,W71,0,1,1):OFFSET(ArraySheet!$A$2,(W72-1),0,1,1))) ->  | BF72: =IF(AA72="","",COUNT(BD67:OFFSET(BD67,5,0,1,1))) ->  | BG72: =IF(AB72="","",COUNT(BE67:OFFSET(BE67,5,0,1,1))) ->  | BH72: =IF(OR(BF72>=6,BG72>=6),AA72,NA()) ->  | BL72: =IF(AI72="","",COUNT(BJ67:OFFSET(BJ67,5,0,1,1))) ->  | BM72: =IF(AI72="","",COUNT(BK67:OFFSET(BK67,5,0,1,1))) ->  | BN72: =IF(OR(BL72>=6,BM72>=6),AI72,NA()) ->  | BR72: =IF(AA72="","",COUNT(BP72:OFFSET(BP72,-5,0,1,1))) ->  | BS72: =IF(AA72="","",COUNT(BQ72:OFFSET(BQ72,-5,0,1,1))) ->  | BT72: =IF(OR(BR72>=6,BS72>=6),AA72,NA()) ->  | BX72: =IF(AI72="","",COUNT(BV72:OFFSET(BV72,5,0,1,1))) ->  | BY72: =IF(AI72="","",COUNT(BW72:OFFSET(BW72,5,0,1,1))) ->  | BZ72: =IF(OR(BX72>=6,BY72>=6),AI72,NA()) ->  | CB72: =IF(AA72="","",IF(AA72<AA71,1,"")) ->  | CC72: =IF(AA72="","",IF(AA72>AA71,1,"")) ->  | CH72: =IF(AI72="","",IF(AI72<AI71,1,"")) ->  | CI72: =IF(AI72="","",IF(AI72>AI71,1,"")) ->  | DF72: =IF(AA72="","",COUNT(DD67:DD72)) ->  | DH72: =IF(DF72>=6,AA72,NA()) -> 
X73: =IF(V73="","",MAX(OFFSET(ArraySheet!$A$2,W72,0,1,1):OFFSET(ArraySheet!$A$2,(W73-1),0,1,1))) ->  | Y73: =IF(V73="","",MIN(OFFSET(ArraySheet!$A$2,W72,0,1,1):OFFSET(ArraySheet!$A$2,(W73-1),0,1,1))) ->  | AA73: =IF(V73="","",AVERAGE(OFFSET(ArraySheet!$A$2,W72,0,1,1):OFFSET(ArraySheet!$A$2,(W73-1),0,1,1))) ->  | AZ73: =IF(AA73="","",IF(AA73>$Q$15,"",IF(AA72>$Q$15,"",IF(AA72>$Q$15,"",IF(AA71>$Q$15,"",IF(AA70>$Q$15,"",IF(AA69>$Q$15,"",IF(AA68>$Q$15,"",AB73)))))))) ->  | BF73: =IF(AA73="","",COUNT(BD68:OFFSET(BD68,5,0,1,1))) ->  | BG73: =IF(AB73="","",COUNT(BE68:OFFSET(BE68,5,0,1,1))) ->  | BL73: =IF(AI73="","",COUNT(BJ68:OFFSET(BJ68,5,0,1,1))) ->  | BM73: =IF(AI73="","",COUNT(BK68:OFFSET(BK68,5,0,1,1))) ->  | BQ73: =IF(AA73="","",IF(AA73<AA72,1,"")) ->  | BR73: =IF(AA73="","",COUNT(BP73:OFFSET(BP73,-5,0,1,1))) ->  | BS73: =IF(AA73="","",COUNT(BQ73:OFFSET(BQ73,-5,0,1,1))) ->  | BX73: =IF(AI73="","",COUNT(BV73:OFFSET(BV73,5,0,1,1))) ->  | BY73: =IF(AI73="","",COUNT(BW73:OFFSET(BW73,5,0,1,1))) ->  | CB73: =IF(AA73="","",IF(AA73>AA72,1,"")) ->  | CC73: =IF(AA73="","",IF(AA73<AA72,1,"")) ->  | CH73: =IF(AI73="","",IF(AI73>AI72,1,"")) ->  | CI73: =IF(AI73="","",IF(AI73<AI72,1,"")) -> 
X74: =IF(V74="","",MAX(OFFSET(ArraySheet!$A$2,W73,0,1,1):OFFSET(ArraySheet!$A$2,(W74-1),0,1,1))) ->  | Y74: =IF(V74="","",MIN(OFFSET(ArraySheet!$A$2,W73,0,1,1):OFFSET(ArraySheet!$A$2,(W74-1),0,1,1))) ->  | AA74: =IF(V74="","",AVERAGE(OFFSET(ArraySheet!$A$2,W73,0,1,1):OFFSET(ArraySheet!$A$2,(W74-1),0,1,1))) ->  | BD74: =IF(AA74="","",IF(AA74>=AD74,1,"")) ->  | BE74: =IF(AA74="","",IF(AA74<=AD74,1,"")) ->  | BF74: =IF(AA74="","",COUNT(BD69:OFFSET(BD69,5,0,1,1))) ->  | BG74: =IF(AB74="","",COUNT(BE69:OFFSET(BE69,5,0,1,1))) ->  | BJ74: =IF(AI74="","",IF(AI74>=AL74,1,"")) ->  | BK74: =IF(AI74="","",IF(AI74<=AL74,1,"")) ->  | BL74: =IF(AI74="","",COUNT(BJ69:OFFSET(BJ69,5,0,1,1))) ->  | BM74: =IF(AI74="","",COUNT(BK69:OFFSET(BK69,5,0,1,1))) ->  | BR74: =IF(AA74="","",COUNT(BP74:OFFSET(BP74,-5,0,1,1))) ->  | BS74: =IF(AA74="","",COUNT(BQ74:OFFSET(BQ74,-5,0,1,1))) ->  | BV74: =IF(AI74="","",IF(AI74>AI73,1,"")) ->  | BW74: =IF(AI74="","",IF(AI74<AI73,1,"")) ->  | BX74: =IF(AI74="","",COUNT(BV74:OFFSET(BV74,5,0,1,1))) ->  | BY74: =IF(AI74="","",COUNT(BW74:OFFSET(BW74,5,0,1,1))) ->  | CB74: =IF(AA74="","",IF(AA74<AA73,1,"")) ->  | CC74: =IF(AA74="","",IF(AA74>AA73,1,"")) ->  | CH74: =IF(AI74="","",IF(AI74<AI73,1,"")) ->  | CI74: =IF(AI74="","",IF(AI74>AI73,1,"")) -> 
X75: =IF(V75="","",MAX(OFFSET(ArraySheet!$A$2,W74,0,1,1):OFFSET(ArraySheet!$A$2,(W75-1),0,1,1))) ->  | Y75: =IF(V75="","",MIN(OFFSET(ArraySheet!$A$2,W74,0,1,1):OFFSET(ArraySheet!$A$2,(W75-1),0,1,1))) ->  | AA75: =IF(V75="","",AVERAGE(OFFSET(ArraySheet!$A$2,W74,0,1,1):OFFSET(ArraySheet!$A$2,(W75-1),0,1,1))) ->  | BF75: =IF(AA75="","",COUNT(BD70:OFFSET(BD70,5,0,1,1))) ->  | BG75: =IF(AB75="","",COUNT(BE70:OFFSET(BE70,5,0,1,1))) ->  | BL75: =IF(AI75="","",COUNT(BJ70:OFFSET(BJ70,5,0,1,1))) ->  | BM75: =IF(AI75="","",COUNT(BK70:OFFSET(BK70,5,0,1,1))) ->  | BR75: =IF(AA75="","",COUNT(BP75:OFFSET(BP75,-5,0,1,1))) ->  | BS75: =IF(AA75="","",COUNT(BQ75:OFFSET(BQ75,-5,0,1,1))) ->  | BX75: =IF(AI75="","",COUNT(BV75:OFFSET(BV75,5,0,1,1))) ->  | BY75: =IF(AI75="","",COUNT(BW75:OFFSET(BW75,5,0,1,1))) ->  | CB75: =IF(AA75="","",IF(AA75>AA74,1,"")) ->  | CC75: =IF(AA75="","",IF(AA75<AA74,1,"")) ->  | CH75: =IF(AI75="","",IF(AI75>AI74,1,"")) ->  | CI75: =IF(AI75="","",IF(AI75<AI74,1,"")) -> 
X76: =IF(V76="","",MAX(OFFSET(ArraySheet!$A$2,W75,0,1,1):OFFSET(ArraySheet!$A$2,(W76-1),0,1,1))) ->  | Y76: =IF(V76="","",MIN(OFFSET(ArraySheet!$A$2,W75,0,1,1):OFFSET(ArraySheet!$A$2,(W76-1),0,1,1))) ->  | AA76: =IF(V76="","",AVERAGE(OFFSET(ArraySheet!$A$2,W75,0,1,1):OFFSET(ArraySheet!$A$2,(W76-1),0,1,1))) ->  | BF76: =IF(AA76="","",COUNT(BD71:OFFSET(BD71,5,0,1,1))) ->  | BG76: =IF(AB76="","",COUNT(BE71:OFFSET(BE71,5,0,1,1))) ->  | BL76: =IF(AI76="","",COUNT(BJ71:OFFSET(BJ71,5,0,1,1))) ->  | BM76: =IF(AI76="","",COUNT(BK71:OFFSET(BK71,5,0,1,1))) ->  | BR76: =IF(AA76="","",COUNT(BP76:OFFSET(BP76,-5,0,1,1))) ->  | BS76: =IF(AA76="","",COUNT(BQ76:OFFSET(BQ76,-5,0,1,1))) ->  | BX76: =IF(AI76="","",COUNT(BV76:OFFSET(BV76,5,0,1,1))) ->  | BY76: =IF(AI76="","",COUNT(BW76:OFFSET(BW76,5,0,1,1))) ->  | CB76: =IF(AA76="","",IF(AA76<AA75,1,"")) ->  | CC76: =IF(AA76="","",IF(AA76>AA75,1,"")) ->  | CH76: =IF(AI76="","",IF(AI76<AI75,1,"")) ->  | CI76: =IF(AI76="","",IF(AI76>AI75,1,"")) -> 
X77: =IF(V77="","",MAX(OFFSET(ArraySheet!$A$2,W76,0,1,1):OFFSET(ArraySheet!$A$2,(W77-1),0,1,1))) ->  | Y77: =IF(V77="","",MIN(OFFSET(ArraySheet!$A$2,W76,0,1,1):OFFSET(ArraySheet!$A$2,(W77-1),0,1,1))) ->  | AA77: =IF(V77="","",AVERAGE(OFFSET(ArraySheet!$A$2,W76,0,1,1):OFFSET(ArraySheet!$A$2,(W77-1),0,1,1))) ->  | BF77: =IF(AA77="","",COUNT(BD72:OFFSET(BD72,5,0,1,1))) ->  | BG77: =IF(AB77="","",COUNT(BE72:OFFSET(BE72,5,0,1,1))) ->  | BL77: =IF(AI77="","",COUNT(BJ72:OFFSET(BJ72,5,0,1,1))) ->  | BM77: =IF(AI77="","",COUNT(BK72:OFFSET(BK72,5,0,1,1))) ->  | BR77: =IF(AA77="","",COUNT(BP77:OFFSET(BP77,-5,0,1,1))) ->  | BS77: =IF(AA77="","",COUNT(BQ77:OFFSET(BQ77,-5,0,1,1))) ->  | BX77: =IF(AI77="","",COUNT(BV77:OFFSET(BV77,5,0,1,1))) ->  | BY77: =IF(AI77="","",COUNT(BW77:OFFSET(BW77,5,0,1,1))) ->  | CB77: =IF(AA77="","",IF(AA77>AA76,1,"")) ->  | CC77: =IF(AA77="","",IF(AA77<AA76,1,"")) ->  | CH77: =IF(AI77="","",IF(AI77>AI76,1,"")) ->  | CI77: =IF(AI77="","",IF(AI77<AI76,1,"")) -> 
X78: =IF(V78="","",MAX(OFFSET(ArraySheet!$A$2,W77,0,1,1):OFFSET(ArraySheet!$A$2,(W78-1),0,1,1))) ->  | Y78: =IF(V78="","",MIN(OFFSET(ArraySheet!$A$2,W77,0,1,1):OFFSET(ArraySheet!$A$2,(W78-1),0,1,1))) ->  | AA78: =IF(V78="","",AVERAGE(OFFSET(ArraySheet!$A$2,W77,0,1,1):OFFSET(ArraySheet!$A$2,(W78-1),0,1,1))) ->  | BF78: =IF(AA78="","",COUNT(BD73:OFFSET(BD73,5,0,1,1))) ->  | BG78: =IF(AB78="","",COUNT(BE73:OFFSET(BE73,5,0,1,1))) ->  | BL78: =IF(AI78="","",COUNT(BJ73:OFFSET(BJ73,5,0,1,1))) ->  | BM78: =IF(AI78="","",COUNT(BK73:OFFSET(BK73,5,0,1,1))) ->  | BR78: =IF(AA78="","",COUNT(BP78:OFFSET(BP78,-5,0,1,1))) ->  | BS78: =IF(AA78="","",COUNT(BQ78:OFFSET(BQ78,-5,0,1,1))) ->  | BX78: =IF(AI78="","",COUNT(BV78:OFFSET(BV78,5,0,1,1))) ->  | BY78: =IF(AI78="","",COUNT(BW78:OFFSET(BW78,5,0,1,1))) ->  | CB78: =IF(AA78="","",IF(AA78<AA77,1,"")) ->  | CC78: =IF(AA78="","",IF(AA78>AA77,1,"")) ->  | CH78: =IF(AI78="","",IF(AI78<AI77,1,"")) ->  | CI78: =IF(AI78="","",IF(AI78>AI77,1,"")) -> 
X79: =IF(V79="","",MAX(OFFSET(ArraySheet!$A$2,W78,0,1,1):OFFSET(ArraySheet!$A$2,(W79-1),0,1,1))) ->  | Y79: =IF(V79="","",MIN(OFFSET(ArraySheet!$A$2,W78,0,1,1):OFFSET(ArraySheet!$A$2,(W79-1),0,1,1))) ->  | AA79: =IF(V79="","",AVERAGE(OFFSET(ArraySheet!$A$2,W78,0,1,1):OFFSET(ArraySheet!$A$2,(W79-1),0,1,1))) ->  | BF79: =IF(AA79="","",COUNT(BD74:OFFSET(BD74,5,0,1,1))) ->  | BG79: =IF(AB79="","",COUNT(BE74:OFFSET(BE74,5,0,1,1))) ->  | BL79: =IF(AI79="","",COUNT(BJ74:OFFSET(BJ74,5,0,1,1))) ->  | BM79: =IF(AI79="","",COUNT(BK74:OFFSET(BK74,5,0,1,1))) ->  | BR79: =IF(AA79="","",COUNT(BP79:OFFSET(BP79,-5,0,1,1))) ->  | BS79: =IF(AA79="","",COUNT(BQ79:OFFSET(BQ79,-5,0,1,1))) ->  | BX79: =IF(AI79="","",COUNT(BV79:OFFSET(BV79,5,0,1,1))) ->  | BY79: =IF(AI79="","",COUNT(BW79:OFFSET(BW79,5,0,1,1))) ->  | CB79: =IF(AA79="","",IF(AA79>AA78,1,"")) ->  | CC79: =IF(AA79="","",IF(AA79<AA78,1,"")) ->  | CH79: =IF(AI79="","",IF(AI79>AI78,1,"")) ->  | CI79: =IF(AI79="","",IF(AI79<AI78,1,"")) -> 
X80: =IF(V80="","",MAX(OFFSET(ArraySheet!$A$2,W79,0,1,1):OFFSET(ArraySheet!$A$2,(W80-1),0,1,1))) ->  | Y80: =IF(V80="","",MIN(OFFSET(ArraySheet!$A$2,W79,0,1,1):OFFSET(ArraySheet!$A$2,(W80-1),0,1,1))) ->  | AA80: =IF(V80="","",AVERAGE(OFFSET(ArraySheet!$A$2,W79,0,1,1):OFFSET(ArraySheet!$A$2,(W80-1),0,1,1))) ->  | BF80: =IF(AA80="","",COUNT(BD75:OFFSET(BD75,5,0,1,1))) ->  | BG80: =IF(AB80="","",COUNT(BE75:OFFSET(BE75,5,0,1,1))) ->  | BL80: =IF(AI80="","",COUNT(BJ75:OFFSET(BJ75,5,0,1,1))) ->  | BM80: =IF(AI80="","",COUNT(BK75:OFFSET(BK75,5,0,1,1))) ->  | BR80: =IF(AA80="","",COUNT(BP80:OFFSET(BP80,-5,0,1,1))) ->  | BS80: =IF(AA80="","",COUNT(BQ80:OFFSET(BQ80,-5,0,1,1))) ->  | BX80: =IF(AI80="","",COUNT(BV80:OFFSET(BV80,5,0,1,1))) ->  | BY80: =IF(AI80="","",COUNT(BW80:OFFSET(BW80,5,0,1,1))) ->  | CB80: =IF(AA80="","",IF(AA80<AA79,1,"")) ->  | CC80: =IF(AA80="","",IF(AA80>AA79,1,"")) ->  | CH80: =IF(AI80="","",IF(AI80<AI79,1,"")) ->  | CI80: =IF(AI80="","",IF(AI80>AI79,1,"")) -> 
X81: =IF(V81="","",MAX(OFFSET(ArraySheet!$A$2,W80,0,1,1):OFFSET(ArraySheet!$A$2,(W81-1),0,1,1))) ->  | Y81: =IF(V81="","",MIN(OFFSET(ArraySheet!$A$2,W80,0,1,1):OFFSET(ArraySheet!$A$2,(W81-1),0,1,1))) ->  | AA81: =IF(V81="","",AVERAGE(OFFSET(ArraySheet!$A$2,W80,0,1,1):OFFSET(ArraySheet!$A$2,(W81-1),0,1,1))) ->  | BF81: =IF(AA81="","",COUNT(BD76:OFFSET(BD76,5,0,1,1))) ->  | BG81: =IF(AB81="","",COUNT(BE76:OFFSET(BE76,5,0,1,1))) ->  | BL81: =IF(AI81="","",COUNT(BJ76:OFFSET(BJ76,5,0,1,1))) ->  | BM81: =IF(AI81="","",COUNT(BK76:OFFSET(BK76,5,0,1,1))) ->  | BR81: =IF(AA81="","",COUNT(BP81:OFFSET(BP81,-5,0,1,1))) ->  | BS81: =IF(AA81="","",COUNT(BQ81:OFFSET(BQ81,-5,0,1,1))) ->  | BX81: =IF(AI81="","",COUNT(BV81:OFFSET(BV81,5,0,1,1))) ->  | BY81: =IF(AI81="","",COUNT(BW81:OFFSET(BW81,5,0,1,1))) ->  | CB81: =IF(AA81="","",IF(AA81>AA80,1,"")) ->  | CC81: =IF(AA81="","",IF(AA81<AA80,1,"")) ->  | CD81: =IF(AA81="","",COUNT(CB68:CB81)) ->  | CE81: =IF(AA81="","",COUNT(CC68:CC81)) ->  | CF81: =IF(OR(CD81>=14,CE81>=14),AA81,NA()) ->  | CH81: =IF(AI81="","",IF(AI81>AI80,1,"")) ->  | CI81: =IF(AI81="","",IF(AI81<AI80,1,"")) ->  | CJ81: =IF(AI81="","",COUNT(CH68:CH81)) ->  | CK81: =IF(AI81="","",COUNT(CI68:CI81)) ->  | CL81: =IF(OR(CJ81>=14,CK81>=14),AI81,NA()) ->  | DB81: =IF(AA81="","",IF(COUNT(CZ67:CZ81)>=15,AA80,NA())) -> 
X82: =IF(V82="","",MAX(OFFSET(ArraySheet!$A$2,W81,0,1,1):OFFSET(ArraySheet!$A$2,(W82-1),0,1,1))) ->  | Y82: =IF(V82="","",MIN(OFFSET(ArraySheet!$A$2,W81,0,1,1):OFFSET(ArraySheet!$A$2,(W82-1),0,1,1))) ->  | AA82: =IF(V82="","",AVERAGE(OFFSET(ArraySheet!$A$2,W81,0,1,1):OFFSET(ArraySheet!$A$2,(W82-1),0,1,1))) ->  | BF82: =IF(AA82="","",COUNT(BD77:OFFSET(BD77,5,0,1,1))) ->  | BG82: =IF(AB82="","",COUNT(BE77:OFFSET(BE77,5,0,1,1))) ->  | BL82: =IF(AI82="","",COUNT(BJ77:OFFSET(BJ77,5,0,1,1))) ->  | BM82: =IF(AI82="","",COUNT(BK77:OFFSET(BK77,5,0,1,1))) ->  | BR82: =IF(AA82="","",COUNT(BP82:OFFSET(BP82,-5,0,1,1))) ->  | BS82: =IF(AA82="","",COUNT(BQ82:OFFSET(BQ82,-5,0,1,1))) ->  | BX82: =IF(AI82="","",COUNT(BV82:OFFSET(BV82,5,0,1,1))) ->  | BY82: =IF(AI82="","",COUNT(BW82:OFFSET(BW82,5,0,1,1))) ->  | CB82: =IF(AA82="","",IF(AA82<AA81,1,"")) ->  | CC82: =IF(AA82="","",IF(AA82>AA81,1,"")) ->  | CH82: =IF(AI82="","",IF(AI82<AI81,1,"")) ->  | CI82: =IF(AI82="","",IF(AI82>AI81,1,"")) -> 
X83: =IF(V83="","",MAX(OFFSET(ArraySheet!$A$2,W82,0,1,1):OFFSET(ArraySheet!$A$2,(W83-1),0,1,1))) ->  | Y83: =IF(V83="","",MIN(OFFSET(ArraySheet!$A$2,W82,0,1,1):OFFSET(ArraySheet!$A$2,(W83-1),0,1,1))) ->  | AA83: =IF(V83="","",AVERAGE(OFFSET(ArraySheet!$A$2,W82,0,1,1):OFFSET(ArraySheet!$A$2,(W83-1),0,1,1))) ->  | BF83: =IF(AA83="","",COUNT(BD78:OFFSET(BD78,5,0,1,1))) ->  | BG83: =IF(AB83="","",COUNT(BE78:OFFSET(BE78,5,0,1,1))) ->  | BL83: =IF(AI83="","",COUNT(BJ78:OFFSET(BJ78,5,0,1,1))) ->  | BM83: =IF(AI83="","",COUNT(BK78:OFFSET(BK78,5,0,1,1))) ->  | BR83: =IF(AA83="","",COUNT(BP83:OFFSET(BP83,-5,0,1,1))) ->  | BS83: =IF(AA83="","",COUNT(BQ83:OFFSET(BQ83,-5,0,1,1))) ->  | BX83: =IF(AI83="","",COUNT(BV83:OFFSET(BV83,5,0,1,1))) ->  | BY83: =IF(AI83="","",COUNT(BW83:OFFSET(BW83,5,0,1,1))) ->  | CB83: =IF(AA83="","",IF(AA83>AA82,1,"")) ->  | CC83: =IF(AA83="","",IF(AA83<AA82,1,"")) ->  | CH83: =IF(AI83="","",IF(AI83>AI82,1,"")) ->  | CI83: =IF(AI83="","",IF(AI83<AI82,1,"")) -> 
X84: =IF(V84="","",MAX(OFFSET(ArraySheet!$A$2,W83,0,1,1):OFFSET(ArraySheet!$A$2,(W84-1),0,1,1))) ->  | Y84: =IF(V84="","",MIN(OFFSET(ArraySheet!$A$2,W83,0,1,1):OFFSET(ArraySheet!$A$2,(W84-1),0,1,1))) ->  | AA84: =IF(V84="","",AVERAGE(OFFSET(ArraySheet!$A$2,W83,0,1,1):OFFSET(ArraySheet!$A$2,(W84-1),0,1,1))) ->  | BF84: =IF(AA84="","",COUNT(BD79:OFFSET(BD79,5,0,1,1))) ->  | BG84: =IF(AB84="","",COUNT(BE79:OFFSET(BE79,5,0,1,1))) ->  | BL84: =IF(AI84="","",COUNT(BJ79:OFFSET(BJ79,5,0,1,1))) ->  | BM84: =IF(AI84="","",COUNT(BK79:OFFSET(BK79,5,0,1,1))) ->  | BR84: =IF(AA84="","",COUNT(BP84:OFFSET(BP84,-5,0,1,1))) ->  | BS84: =IF(AA84="","",COUNT(BQ84:OFFSET(BQ84,-5,0,1,1))) ->  | BX84: =IF(AI84="","",COUNT(BV84:OFFSET(BV84,5,0,1,1))) ->  | BY84: =IF(AI84="","",COUNT(BW84:OFFSET(BW84,5,0,1,1))) ->  | CB84: =IF(AA84="","",IF(AA84<AA83,1,"")) ->  | CC84: =IF(AA84="","",IF(AA84>AA83,1,"")) ->  | CH84: =IF(AI84="","",IF(AI84<AI83,1,"")) ->  | CI84: =IF(AI84="","",IF(AI84>AI83,1,"")) -> 
X85: =IF(V85="","",MAX(OFFSET(ArraySheet!$A$2,W84,0,1,1):OFFSET(ArraySheet!$A$2,(W85-1),0,1,1))) ->  | Y85: =IF(V85="","",MIN(OFFSET(ArraySheet!$A$2,W84,0,1,1):OFFSET(ArraySheet!$A$2,(W85-1),0,1,1))) ->  | AA85: =IF(V85="","",AVERAGE(OFFSET(ArraySheet!$A$2,W84,0,1,1):OFFSET(ArraySheet!$A$2,(W85-1),0,1,1))) ->  | BF85: =IF(AA85="","",COUNT(BD80:OFFSET(BD80,5,0,1,1))) ->  | BG85: =IF(AB85="","",COUNT(BE80:OFFSET(BE80,5,0,1,1))) ->  | BL85: =IF(AI85="","",COUNT(BJ80:OFFSET(BJ80,5,0,1,1))) ->  | BM85: =IF(AI85="","",COUNT(BK80:OFFSET(BK80,5,0,1,1))) ->  | BR85: =IF(AA85="","",COUNT(BP85:OFFSET(BP85,-5,0,1,1))) ->  | BS85: =IF(AA85="","",COUNT(BQ85:OFFSET(BQ85,-5,0,1,1))) ->  | BX85: =IF(AI85="","",COUNT(BV85:OFFSET(BV85,5,0,1,1))) ->  | BY85: =IF(AI85="","",COUNT(BW85:OFFSET(BW85,5,0,1,1))) ->  | CB85: =IF(AA85="","",IF(AA85>AA84,1,"")) ->  | CC85: =IF(AA85="","",IF(AA85<AA84,1,"")) ->  | CH85: =IF(AI85="","",IF(AI85>AI84,1,"")) ->  | CI85: =IF(AI85="","",IF(AI85<AI84,1,"")) -> 
X86: =IF(V86="","",MAX(OFFSET(ArraySheet!$A$2,W85,0,1,1):OFFSET(ArraySheet!$A$2,(W86-1),0,1,1))) ->  | Y86: =IF(V86="","",MIN(OFFSET(ArraySheet!$A$2,W85,0,1,1):OFFSET(ArraySheet!$A$2,(W86-1),0,1,1))) ->  | AA86: =IF(V86="","",AVERAGE(OFFSET(ArraySheet!$A$2,W85,0,1,1):OFFSET(ArraySheet!$A$2,(W86-1),0,1,1))) ->  | BF86: =IF(AA86="","",COUNT(BD81:OFFSET(BD81,5,0,1,1))) ->  | BG86: =IF(AB86="","",COUNT(BE81:OFFSET(BE81,5,0,1,1))) ->  | BL86: =IF(AI86="","",COUNT(BJ81:OFFSET(BJ81,5,0,1,1))) ->  | BM86: =IF(AI86="","",COUNT(BK81:OFFSET(BK81,5,0,1,1))) ->  | BR86: =IF(AA86="","",COUNT(BP86:OFFSET(BP86,-5,0,1,1))) ->  | BS86: =IF(AA86="","",COUNT(BQ86:OFFSET(BQ86,-5,0,1,1))) ->  | BX86: =IF(AI86="","",COUNT(BV86:OFFSET(BV86,5,0,1,1))) ->  | BY86: =IF(AI86="","",COUNT(BW86:OFFSET(BW86,5,0,1,1))) ->  | CB86: =IF(AA86="","",IF(AA86<AA85,1,"")) ->  | CC86: =IF(AA86="","",IF(AA86>AA85,1,"")) ->  | CH86: =IF(AI86="","",IF(AI86<AI85,1,"")) ->  | CI86: =IF(AI86="","",IF(AI86>AI85,1,"")) -> 
X87: =IF(V87="","",MAX(OFFSET(ArraySheet!$A$2,W86,0,1,1):OFFSET(ArraySheet!$A$2,(W87-1),0,1,1))) ->  | Y87: =IF(V87="","",MIN(OFFSET(ArraySheet!$A$2,W86,0,1,1):OFFSET(ArraySheet!$A$2,(W87-1),0,1,1))) ->  | AA87: =IF(V87="","",AVERAGE(OFFSET(ArraySheet!$A$2,W86,0,1,1):OFFSET(ArraySheet!$A$2,(W87-1),0,1,1))) ->  | BF87: =IF(AA87="","",COUNT(BD82:OFFSET(BD82,5,0,1,1))) ->  | BG87: =IF(AB87="","",COUNT(BE82:OFFSET(BE82,5,0,1,1))) ->  | BL87: =IF(AI87="","",COUNT(BJ82:OFFSET(BJ82,5,0,1,1))) ->  | BM87: =IF(AI87="","",COUNT(BK82:OFFSET(BK82,5,0,1,1))) ->  | BR87: =IF(AA87="","",COUNT(BP87:OFFSET(BP87,-5,0,1,1))) ->  | BS87: =IF(AA87="","",COUNT(BQ87:OFFSET(BQ87,-5,0,1,1))) ->  | BX87: =IF(AI87="","",COUNT(BV87:OFFSET(BV87,5,0,1,1))) ->  | BY87: =IF(AI87="","",COUNT(BW87:OFFSET(BW87,5,0,1,1))) ->  | CB87: =IF(AA87="","",IF(AA87>AA86,1,"")) ->  | CC87: =IF(AA87="","",IF(AA87<AA86,1,"")) ->  | CH87: =IF(AI87="","",IF(AI87>AI86,1,"")) ->  | CI87: =IF(AI87="","",IF(AI87<AI86,1,"")) -> 
X88: =IF(V88="","",MAX(OFFSET(ArraySheet!$A$2,W87,0,1,1):OFFSET(ArraySheet!$A$2,(W88-1),0,1,1))) ->  | Y88: =IF(V88="","",MIN(OFFSET(ArraySheet!$A$2,W87,0,1,1):OFFSET(ArraySheet!$A$2,(W88-1),0,1,1))) ->  | AA88: =IF(V88="","",AVERAGE(OFFSET(ArraySheet!$A$2,W87,0,1,1):OFFSET(ArraySheet!$A$2,(W88-1),0,1,1))) ->  | BF88: =IF(AA88="","",COUNT(BD83:OFFSET(BD83,5,0,1,1))) ->  | BG88: =IF(AB88="","",COUNT(BE83:OFFSET(BE83,5,0,1,1))) ->  | BL88: =IF(AI88="","",COUNT(BJ83:OFFSET(BJ83,5,0,1,1))) ->  | BM88: =IF(AI88="","",COUNT(BK83:OFFSET(BK83,5,0,1,1))) ->  | BR88: =IF(AA88="","",COUNT(BP88:OFFSET(BP88,-5,0,1,1))) ->  | BS88: =IF(AA88="","",COUNT(BQ88:OFFSET(BQ88,-5,0,1,1))) ->  | BX88: =IF(AI88="","",COUNT(BV88:OFFSET(BV88,5,0,1,1))) ->  | BY88: =IF(AI88="","",COUNT(BW88:OFFSET(BW88,5,0,1,1))) ->  | CB88: =IF(AA88="","",IF(AA88<AA87,1,"")) ->  | CC88: =IF(AA88="","",IF(AA88>AA87,1,"")) ->  | CH88: =IF(AI88="","",IF(AI88<AI87,1,"")) ->  | CI88: =IF(AI88="","",IF(AI88>AI87,1,"")) -> 
X89: =IF(V89="","",MAX(OFFSET(ArraySheet!$A$2,W88,0,1,1):OFFSET(ArraySheet!$A$2,(W89-1),0,1,1))) ->  | Y89: =IF(V89="","",MIN(OFFSET(ArraySheet!$A$2,W88,0,1,1):OFFSET(ArraySheet!$A$2,(W89-1),0,1,1))) ->  | AA89: =IF(V89="","",AVERAGE(OFFSET(ArraySheet!$A$2,W88,0,1,1):OFFSET(ArraySheet!$A$2,(W89-1),0,1,1))) ->  | BF89: =IF(AA89="","",COUNT(BD84:OFFSET(BD84,5,0,1,1))) ->  | BG89: =IF(AB89="","",COUNT(BE84:OFFSET(BE84,5,0,1,1))) ->  | BL89: =IF(AI89="","",COUNT(BJ84:OFFSET(BJ84,5,0,1,1))) ->  | BM89: =IF(AI89="","",COUNT(BK84:OFFSET(BK84,5,0,1,1))) ->  | BR89: =IF(AA89="","",COUNT(BP89:OFFSET(BP89,-5,0,1,1))) ->  | BS89: =IF(AA89="","",COUNT(BQ89:OFFSET(BQ89,-5,0,1,1))) ->  | BX89: =IF(AI89="","",COUNT(BV89:OFFSET(BV89,5,0,1,1))) ->  | BY89: =IF(AI89="","",COUNT(BW89:OFFSET(BW89,5,0,1,1))) ->  | CB89: =IF(AA89="","",IF(AA89>AA88,1,"")) ->  | CC89: =IF(AA89="","",IF(AA89<AA88,1,"")) ->  | CH89: =IF(AI89="","",IF(AI89>AI88,1,"")) ->  | CI89: =IF(AI89="","",IF(AI89<AI88,1,"")) -> 
X90: =IF(V90="","",MAX(OFFSET(ArraySheet!$A$2,W89,0,1,1):OFFSET(ArraySheet!$A$2,(W90-1),0,1,1))) ->  | Y90: =IF(V90="","",MIN(OFFSET(ArraySheet!$A$2,W89,0,1,1):OFFSET(ArraySheet!$A$2,(W90-1),0,1,1))) ->  | AA90: =IF(V90="","",AVERAGE(OFFSET(ArraySheet!$A$2,W89,0,1,1):OFFSET(ArraySheet!$A$2,(W90-1),0,1,1))) ->  | BF90: =IF(AA90="","",COUNT(BD85:OFFSET(BD85,5,0,1,1))) ->  | BG90: =IF(AB90="","",COUNT(BE85:OFFSET(BE85,5,0,1,1))) ->  | BL90: =IF(AI90="","",COUNT(BJ85:OFFSET(BJ85,5,0,1,1))) ->  | BM90: =IF(AI90="","",COUNT(BK85:OFFSET(BK85,5,0,1,1))) ->  | BR90: =IF(AA90="","",COUNT(BP90:OFFSET(BP90,-5,0,1,1))) ->  | BS90: =IF(AA90="","",COUNT(BQ90:OFFSET(BQ90,-5,0,1,1))) ->  | BX90: =IF(AI90="","",COUNT(BV90:OFFSET(BV90,5,0,1,1))) ->  | BY90: =IF(AI90="","",COUNT(BW90:OFFSET(BW90,5,0,1,1))) ->  | CB90: =IF(AA90="","",IF(AA90<AA89,1,"")) ->  | CC90: =IF(AA90="","",IF(AA90>AA89,1,"")) ->  | CH90: =IF(AI90="","",IF(AI90<AI89,1,"")) ->  | CI90: =IF(AI90="","",IF(AI90>AI89,1,"")) -> 
X91: =IF(V91="","",MAX(OFFSET(ArraySheet!$A$2,W90,0,1,1):OFFSET(ArraySheet!$A$2,(W91-1),0,1,1))) ->  | Y91: =IF(V91="","",MIN(OFFSET(ArraySheet!$A$2,W90,0,1,1):OFFSET(ArraySheet!$A$2,(W91-1),0,1,1))) ->  | AA91: =IF(V91="","",AVERAGE(OFFSET(ArraySheet!$A$2,W90,0,1,1):OFFSET(ArraySheet!$A$2,(W91-1),0,1,1))) ->  | BF91: =IF(AA91="","",COUNT(BD86:OFFSET(BD86,5,0,1,1))) ->  | BG91: =IF(AB91="","",COUNT(BE86:OFFSET(BE86,5,0,1,1))) ->  | BL91: =IF(AI91="","",COUNT(BJ86:OFFSET(BJ86,5,0,1,1))) ->  | BM91: =IF(AI91="","",COUNT(BK86:OFFSET(BK86,5,0,1,1))) ->  | BR91: =IF(AA91="","",COUNT(BP91:OFFSET(BP91,-5,0,1,1))) ->  | BS91: =IF(AA91="","",COUNT(BQ91:OFFSET(BQ91,-5,0,1,1))) ->  | BX91: =IF(AI91="","",COUNT(BV91:OFFSET(BV91,5,0,1,1))) ->  | BY91: =IF(AI91="","",COUNT(BW91:OFFSET(BW91,5,0,1,1))) ->  | CB91: =IF(AA91="","",IF(AA91>AA90,1,"")) ->  | CC91: =IF(AA91="","",IF(AA91<AA90,1,"")) ->  | CH91: =IF(AI91="","",IF(AI91>AI90,1,"")) ->  | CI91: =IF(AI91="","",IF(AI91<AI90,1,"")) -> 
X92: =IF(V92="","",MAX(OFFSET(ArraySheet!$A$2,W91,0,1,1):OFFSET(ArraySheet!$A$2,(W92-1),0,1,1))) ->  | Y92: =IF(V92="","",MIN(OFFSET(ArraySheet!$A$2,W91,0,1,1):OFFSET(ArraySheet!$A$2,(W92-1),0,1,1))) ->  | AA92: =IF(V92="","",AVERAGE(OFFSET(ArraySheet!$A$2,W91,0,1,1):OFFSET(ArraySheet!$A$2,(W92-1),0,1,1))) ->  | BF92: =IF(AA92="","",COUNT(BD87:OFFSET(BD87,5,0,1,1))) ->  | BG92: =IF(AB92="","",COUNT(BE87:OFFSET(BE87,5,0,1,1))) ->  | BL92: =IF(AI92="","",COUNT(BJ87:OFFSET(BJ87,5,0,1,1))) ->  | BM92: =IF(AI92="","",COUNT(BK87:OFFSET(BK87,5,0,1,1))) ->  | BR92: =IF(AA92="","",COUNT(BP92:OFFSET(BP92,-5,0,1,1))) ->  | BS92: =IF(AA92="","",COUNT(BQ92:OFFSET(BQ92,-5,0,1,1))) ->  | BX92: =IF(AI92="","",COUNT(BV92:OFFSET(BV92,5,0,1,1))) ->  | BY92: =IF(AI92="","",COUNT(BW92:OFFSET(BW92,5,0,1,1))) ->  | CB92: =IF(AA92="","",IF(AA92<AA91,1,"")) ->  | CC92: =IF(AA92="","",IF(AA92>AA91,1,"")) ->  | CH92: =IF(AI92="","",IF(AI92<AI91,1,"")) ->  | CI92: =IF(AI92="","",IF(AI92>AI91,1,"")) -> 
X93: =IF(V93="","",MAX(OFFSET(ArraySheet!$A$2,W92,0,1,1):OFFSET(ArraySheet!$A$2,(W93-1),0,1,1))) ->  | Y93: =IF(V93="","",MIN(OFFSET(ArraySheet!$A$2,W92,0,1,1):OFFSET(ArraySheet!$A$2,(W93-1),0,1,1))) ->  | AA93: =IF(V93="","",AVERAGE(OFFSET(ArraySheet!$A$2,W92,0,1,1):OFFSET(ArraySheet!$A$2,(W93-1),0,1,1))) ->  | BF93: =IF(AA93="","",COUNT(BD88:OFFSET(BD88,5,0,1,1))) ->  | BG93: =IF(AB93="","",COUNT(BE88:OFFSET(BE88,5,0,1,1))) ->  | BL93: =IF(AI93="","",COUNT(BJ88:OFFSET(BJ88,5,0,1,1))) ->  | BM93: =IF(AI93="","",COUNT(BK88:OFFSET(BK88,5,0,1,1))) ->  | BR93: =IF(AA93="","",COUNT(BP93:OFFSET(BP93,-5,0,1,1))) ->  | BS93: =IF(AA93="","",COUNT(BQ93:OFFSET(BQ93,-5,0,1,1))) ->  | BX93: =IF(AI93="","",COUNT(BV93:OFFSET(BV93,5,0,1,1))) ->  | BY93: =IF(AI93="","",COUNT(BW93:OFFSET(BW93,5,0,1,1))) ->  | CB93: =IF(AA93="","",IF(AA93>AA92,1,"")) ->  | CC93: =IF(AA93="","",IF(AA93<AA92,1,"")) ->  | CH93: =IF(AI93="","",IF(AI93>AI92,1,"")) ->  | CI93: =IF(AI93="","",IF(AI93<AI92,1,"")) -> 
X94: =IF(V94="","",MAX(OFFSET(ArraySheet!$A$2,W93,0,1,1):OFFSET(ArraySheet!$A$2,(W94-1),0,1,1))) ->  | Y94: =IF(V94="","",MIN(OFFSET(ArraySheet!$A$2,W93,0,1,1):OFFSET(ArraySheet!$A$2,(W94-1),0,1,1))) ->  | AA94: =IF(V94="","",AVERAGE(OFFSET(ArraySheet!$A$2,W93,0,1,1):OFFSET(ArraySheet!$A$2,(W94-1),0,1,1))) ->  | BF94: =IF(AA94="","",COUNT(BD89:OFFSET(BD89,5,0,1,1))) ->  | BG94: =IF(AB94="","",COUNT(BE89:OFFSET(BE89,5,0,1,1))) ->  | BL94: =IF(AI94="","",COUNT(BJ89:OFFSET(BJ89,5,0,1,1))) ->  | BM94: =IF(AI94="","",COUNT(BK89:OFFSET(BK89,5,0,1,1))) ->  | BR94: =IF(AA94="","",COUNT(BP94:OFFSET(BP94,-5,0,1,1))) ->  | BS94: =IF(AA94="","",COUNT(BQ94:OFFSET(BQ94,-5,0,1,1))) ->  | BX94: =IF(AI94="","",COUNT(BV94:OFFSET(BV94,5,0,1,1))) ->  | BY94: =IF(AI94="","",COUNT(BW94:OFFSET(BW94,5,0,1,1))) ->  | CB94: =IF(AA94="","",IF(AA94<AA93,1,"")) ->  | CC94: =IF(AA94="","",IF(AA94>AA93,1,"")) ->  | CH94: =IF(AI94="","",IF(AI94<AI93,1,"")) ->  | CI94: =IF(AI94="","",IF(AI94>AI93,1,"")) -> 
X95: =IF(V95="","",MAX(OFFSET(ArraySheet!$A$2,W94,0,1,1):OFFSET(ArraySheet!$A$2,(W95-1),0,1,1))) ->  | Y95: =IF(V95="","",MIN(OFFSET(ArraySheet!$A$2,W94,0,1,1):OFFSET(ArraySheet!$A$2,(W95-1),0,1,1))) ->  | AA95: =IF(V95="","",AVERAGE(OFFSET(ArraySheet!$A$2,W94,0,1,1):OFFSET(ArraySheet!$A$2,(W95-1),0,1,1))) ->  | BF95: =IF(AA95="","",COUNT(BD90:OFFSET(BD90,5,0,1,1))) ->  | BG95: =IF(AB95="","",COUNT(BE90:OFFSET(BE90,5,0,1,1))) ->  | BL95: =IF(AI95="","",COUNT(BJ90:OFFSET(BJ90,5,0,1,1))) ->  | BM95: =IF(AI95="","",COUNT(BK90:OFFSET(BK90,5,0,1,1))) ->  | BR95: =IF(AA95="","",COUNT(BP95:OFFSET(BP95,-5,0,1,1))) ->  | BS95: =IF(AA95="","",COUNT(BQ95:OFFSET(BQ95,-5,0,1,1))) ->  | BX95: =IF(AI95="","",COUNT(BV95:OFFSET(BV95,5,0,1,1))) ->  | BY95: =IF(AI95="","",COUNT(BW95:OFFSET(BW95,5,0,1,1))) ->  | CB95: =IF(AA95="","",IF(AA95>AA94,1,"")) ->  | CC95: =IF(AA95="","",IF(AA95<AA94,1,"")) ->  | CH95: =IF(AI95="","",IF(AI95>AI94,1,"")) ->  | CI95: =IF(AI95="","",IF(AI95<AI94,1,"")) -> 
X96: =IF(V96="","",MAX(OFFSET(ArraySheet!$A$2,W95,0,1,1):OFFSET(ArraySheet!$A$2,(W96-1),0,1,1))) ->  | Y96: =IF(V96="","",MIN(OFFSET(ArraySheet!$A$2,W95,0,1,1):OFFSET(ArraySheet!$A$2,(W96-1),0,1,1))) ->  | AA96: =IF(V96="","",AVERAGE(OFFSET(ArraySheet!$A$2,W95,0,1,1):OFFSET(ArraySheet!$A$2,(W96-1),0,1,1))) ->  | BF96: =IF(AA96="","",COUNT(BD91:OFFSET(BD91,5,0,1,1))) ->  | BG96: =IF(AB96="","",COUNT(BE91:OFFSET(BE91,5,0,1,1))) ->  | BL96: =IF(AI96="","",COUNT(BJ91:OFFSET(BJ91,5,0,1,1))) ->  | BM96: =IF(AI96="","",COUNT(BK91:OFFSET(BK91,5,0,1,1))) ->  | BR96: =IF(AA96="","",COUNT(BP96:OFFSET(BP96,-5,0,1,1))) ->  | BS96: =IF(AA96="","",COUNT(BQ96:OFFSET(BQ96,-5,0,1,1))) ->  | BX96: =IF(AI96="","",COUNT(BV96:OFFSET(BV96,5,0,1,1))) ->  | BY96: =IF(AI96="","",COUNT(BW96:OFFSET(BW96,5,0,1,1))) ->  | CB96: =IF(AA96="","",IF(AA96<AA95,1,"")) ->  | CC96: =IF(AA96="","",IF(AA96>AA95,1,"")) ->  | CH96: =IF(AI96="","",IF(AI96<AI95,1,"")) ->  | CI96: =IF(AI96="","",IF(AI96>AI95,1,"")) -> 
X97: =IF(V97="","",MAX(OFFSET(ArraySheet!$A$2,W96,0,1,1):OFFSET(ArraySheet!$A$2,(W97-1),0,1,1))) ->  | Y97: =IF(V97="","",MIN(OFFSET(ArraySheet!$A$2,W96,0,1,1):OFFSET(ArraySheet!$A$2,(W97-1),0,1,1))) ->  | AA97: =IF(V97="","",AVERAGE(OFFSET(ArraySheet!$A$2,W96,0,1,1):OFFSET(ArraySheet!$A$2,(W97-1),0,1,1))) ->  | BF97: =IF(AA97="","",COUNT(BD92:OFFSET(BD92,5,0,1,1))) ->  | BG97: =IF(AB97="","",COUNT(BE92:OFFSET(BE92,5,0,1,1))) ->  | BL97: =IF(AI97="","",COUNT(BJ92:OFFSET(BJ92,5,0,1,1))) ->  | BM97: =IF(AI97="","",COUNT(BK92:OFFSET(BK92,5,0,1,1))) ->  | BR97: =IF(AA97="","",COUNT(BP97:OFFSET(BP97,-5,0,1,1))) ->  | BS97: =IF(AA97="","",COUNT(BQ97:OFFSET(BQ97,-5,0,1,1))) ->  | BX97: =IF(AI97="","",COUNT(BV97:OFFSET(BV97,5,0,1,1))) ->  | BY97: =IF(AI97="","",COUNT(BW97:OFFSET(BW97,5,0,1,1))) ->  | CB97: =IF(AA97="","",IF(AA97>AA96,1,"")) ->  | CC97: =IF(AA97="","",IF(AA97<AA96,1,"")) ->  | CH97: =IF(AI97="","",IF(AI97>AI96,1,"")) ->  | CI97: =IF(AI97="","",IF(AI97<AI96,1,"")) -> 
X98: =IF(V98="","",MAX(OFFSET(ArraySheet!$A$2,W97,0,1,1):OFFSET(ArraySheet!$A$2,(W98-1),0,1,1))) ->  | Y98: =IF(V98="","",MIN(OFFSET(ArraySheet!$A$2,W97,0,1,1):OFFSET(ArraySheet!$A$2,(W98-1),0,1,1))) ->  | AA98: =IF(V98="","",AVERAGE(OFFSET(ArraySheet!$A$2,W97,0,1,1):OFFSET(ArraySheet!$A$2,(W98-1),0,1,1))) ->  | BF98: =IF(AA98="","",COUNT(BD93:OFFSET(BD93,5,0,1,1))) ->  | BG98: =IF(AB98="","",COUNT(BE93:OFFSET(BE93,5,0,1,1))) ->  | BL98: =IF(AI98="","",COUNT(BJ93:OFFSET(BJ93,5,0,1,1))) ->  | BM98: =IF(AI98="","",COUNT(BK93:OFFSET(BK93,5,0,1,1))) ->  | BR98: =IF(AA98="","",COUNT(BP98:OFFSET(BP98,-5,0,1,1))) ->  | BS98: =IF(AA98="","",COUNT(BQ98:OFFSET(BQ98,-5,0,1,1))) ->  | BX98: =IF(AI98="","",COUNT(BV98:OFFSET(BV98,5,0,1,1))) ->  | BY98: =IF(AI98="","",COUNT(BW98:OFFSET(BW98,5,0,1,1))) ->  | CB98: =IF(AA98="","",IF(AA98<AA97,1,"")) ->  | CC98: =IF(AA98="","",IF(AA98>AA97,1,"")) ->  | CH98: =IF(AI98="","",IF(AI98<AI97,1,"")) ->  | CI98: =IF(AI98="","",IF(AI98>AI97,1,"")) -> 
X99: =IF(V99="","",MAX(OFFSET(ArraySheet!$A$2,W98,0,1,1):OFFSET(ArraySheet!$A$2,(W99-1),0,1,1))) ->  | Y99: =IF(V99="","",MIN(OFFSET(ArraySheet!$A$2,W98,0,1,1):OFFSET(ArraySheet!$A$2,(W99-1),0,1,1))) ->  | AA99: =IF(V99="","",AVERAGE(OFFSET(ArraySheet!$A$2,W98,0,1,1):OFFSET(ArraySheet!$A$2,(W99-1),0,1,1))) ->  | BF99: =IF(AA99="","",COUNT(BD94:OFFSET(BD94,5,0,1,1))) ->  | BG99: =IF(AB99="","",COUNT(BE94:OFFSET(BE94,5,0,1,1))) ->  | BL99: =IF(AI99="","",COUNT(BJ94:OFFSET(BJ94,5,0,1,1))) ->  | BM99: =IF(AI99="","",COUNT(BK94:OFFSET(BK94,5,0,1,1))) ->  | BR99: =IF(AA99="","",COUNT(BP99:OFFSET(BP99,-5,0,1,1))) ->  | BS99: =IF(AA99="","",COUNT(BQ99:OFFSET(BQ99,-5,0,1,1))) ->  | BX99: =IF(AI99="","",COUNT(BV99:OFFSET(BV99,5,0,1,1))) ->  | BY99: =IF(AI99="","",COUNT(BW99:OFFSET(BW99,5,0,1,1))) ->  | CB99: =IF(AA99="","",IF(AA99>AA98,1,"")) ->  | CC99: =IF(AA99="","",IF(AA99<AA98,1,"")) ->  | CH99: =IF(AI99="","",IF(AI99>AI98,1,"")) ->  | CI99: =IF(AI99="","",IF(AI99<AI98,1,"")) -> 
X100: =IF(V100="","",MAX(OFFSET(ArraySheet!$A$2,W99,0,1,1):OFFSET(ArraySheet!$A$2,(W100-1),0,1,1))) ->  | Y100: =IF(V100="","",MIN(OFFSET(ArraySheet!$A$2,W99,0,1,1):OFFSET(ArraySheet!$A$2,(W100-1),0,1,1))) ->  | AA100: =IF(V100="","",AVERAGE(OFFSET(ArraySheet!$A$2,W99,0,1,1):OFFSET(ArraySheet!$A$2,(W100-1),0,1,1))) ->  | BF100: =IF(AA100="","",COUNT(BD95:OFFSET(BD95,5,0,1,1))) ->  | BG100: =IF(AB100="","",COUNT(BE95:OFFSET(BE95,5,0,1,1))) ->  | BL100: =IF(AI100="","",COUNT(BJ95:OFFSET(BJ95,5,0,1,1))) ->  | BM100: =IF(AI100="","",COUNT(BK95:OFFSET(BK95,5,0,1,1))) ->  | BR100: =IF(AA100="","",COUNT(BP100:OFFSET(BP100,-5,0,1,1))) ->  | BS100: =IF(AA100="","",COUNT(BQ100:OFFSET(BQ100,-5,0,1,1))) ->  | BX100: =IF(AI100="","",COUNT(BV100:OFFSET(BV100,5,0,1,1))) ->  | BY100: =IF(AI100="","",COUNT(BW100:OFFSET(BW100,5,0,1,1))) ->  | CB100: =IF(AA100="","",IF(AA100<AA99,1,"")) ->  | CC100: =IF(AA100="","",IF(AA100>AA99,1,"")) ->  | CH100: =IF(AI100="","",IF(AI100<AI99,1,"")) ->  | CI100: =IF(AI100="","",IF(AI100>AI99,1,"")) -> 
X101: =IF(V101="","",MAX(OFFSET(ArraySheet!$A$2,W100,0,1,1):OFFSET(ArraySheet!$A$2,(W101-1),0,1,1))) ->  | Y101: =IF(V101="","",MIN(OFFSET(ArraySheet!$A$2,W100,0,1,1):OFFSET(ArraySheet!$A$2,(W101-1),0,1,1))) ->  | AA101: =IF(V101="","",AVERAGE(OFFSET(ArraySheet!$A$2,W100,0,1,1):OFFSET(ArraySheet!$A$2,(W101-1),0,1,1))) ->  | BF101: =IF(AA101="","",COUNT(BD96:OFFSET(BD96,5,0,1,1))) ->  | BG101: =IF(AB101="","",COUNT(BE96:OFFSET(BE96,5,0,1,1))) ->  | BL101: =IF(AI101="","",COUNT(BJ96:OFFSET(BJ96,5,0,1,1))) ->  | BM101: =IF(AI101="","",COUNT(BK96:OFFSET(BK96,5,0,1,1))) ->  | BR101: =IF(AA101="","",COUNT(BP101:OFFSET(BP101,-5,0,1,1))) ->  | BS101: =IF(AA101="","",COUNT(BQ101:OFFSET(BQ101,-5,0,1,1))) ->  | BX101: =IF(AI101="","",COUNT(BV101:OFFSET(BV101,5,0,1,1))) ->  | BY101: =IF(AI101="","",COUNT(BW101:OFFSET(BW101,5,0,1,1))) ->  | CB101: =IF(AA101="","",IF(AA101>AA100,1,"")) ->  | CC101: =IF(AA101="","",IF(AA101<AA100,1,"")) ->  | CH101: =IF(AI101="","",IF(AI101>AI100,1,"")) ->  | CI101: =IF(AI101="","",IF(AI101<AI100,1,"")) -> 
X102: =IF(V102="","",MAX(OFFSET(ArraySheet!$A$2,W101,0,1,1):OFFSET(ArraySheet!$A$2,(W102-1),0,1,1))) ->  | Y102: =IF(V102="","",MIN(OFFSET(ArraySheet!$A$2,W101,0,1,1):OFFSET(ArraySheet!$A$2,(W102-1),0,1,1))) ->  | AA102: =IF(V102="","",AVERAGE(OFFSET(ArraySheet!$A$2,W101,0,1,1):OFFSET(ArraySheet!$A$2,(W102-1),0,1,1))) ->  | BF102: =IF(AA102="","",COUNT(BD97:OFFSET(BD97,5,0,1,1))) ->  | BG102: =IF(AB102="","",COUNT(BE97:OFFSET(BE97,5,0,1,1))) ->  | BL102: =IF(AI102="","",COUNT(BJ97:OFFSET(BJ97,5,0,1,1))) ->  | BM102: =IF(AI102="","",COUNT(BK97:OFFSET(BK97,5,0,1,1))) ->  | BR102: =IF(AA102="","",COUNT(BP102:OFFSET(BP102,-5,0,1,1))) ->  | BS102: =IF(AA102="","",COUNT(BQ102:OFFSET(BQ102,-5,0,1,1))) ->  | BX102: =IF(AI102="","",COUNT(BV102:OFFSET(BV102,5,0,1,1))) ->  | BY102: =IF(AI102="","",COUNT(BW102:OFFSET(BW102,5,0,1,1))) ->  | CB102: =IF(AA102="","",IF(AA102<AA101,1,"")) ->  | CC102: =IF(AA102="","",IF(AA102>AA101,1,"")) ->  | CH102: =IF(AI102="","",IF(AI102<AI101,1,"")) ->  | CI102: =IF(AI102="","",IF(AI102>AI101,1,"")) -> 
